Workbook

Sheet DATOS FISCALES
B2: NIF | C2: 34999999W | D2: Para calcular la casilla 13 del Modelo 130
B3: Nombre o Razón Social | D3: (es decir, la deducción del artículo 10.3 c) del Reglamento del IRPF)
B4: Nombre | C4: NOMBRE | D4: Se calcula según los rendimientos netos del ejercicio anterior
B5: Primer Apellido | C5: APELLIDOA | D5: Este importe lo obtenemos:
B6: Segundo Apellido | C6: APELLIDOB | D6: - De la casilla 03 del Modelo 130 del último trimestre del año anterior
B7: IBAN de la cuenta bancaria | C7: ES9999999999999999999999 | D7: - O bien, de la casilla 118 de la declaración anual de IRPF (Modelo 100)
B8: DEL AÑO ANTERIOR: Casilla [03] del último trimestre del Modelo 130 (o bien la suma de las casillas [118] de la declaración anual de IRPF | C8: 9000 | D8: <<<<<<<<<<<<<<<< escribir aquí este importe
B9: Tipo de actividad / clave IRPF Anual | C9: 5
B10: Tipo de actividad / clave Modelo 390 | C10: 1
B11: Grupo o epígrafe IAE | C11: 111
B12: IVA: Opción por el régimen especial del criterio de caja | C12: NO | D12: Macro: "Ocultar columnas recargo equivalencia" (Ctl+o)
B13: Primer Tipo de IVA | C13: 4 | D13: Tipo Recargo Equivalencia | E13: 0.5
B14: Segundo Tipo de IVA | C14: 10 | D14: Tipo de Recargo Equivalencia | E14: 1.4
B15: Tercer Tipo de IVA | C15: 21 | D15: Tipo de Recargo Equivalencia | E15: 5.2
B16: Localidad | C16: CIUDAD
B17: Teléfono | C17: 999999999
B18: Código Delegación | C18: 32600 | D18: =VLOOKUP(C18,D20:E271,2,FALSE) -> OURENSE
B19: Observaciones | D19: LISTADO CÓDIGOS DELEGACIONES | F19: LISTADO CÓDIGO PROVINCIAS PARA MODELO 347 | I19: Lista Trimestres
B20: Enlaces | D20: 01600 | E20: ALAVA | F20: ARABA/ÁLAVA | G20: 01 | I20: 1T
B21: Enlaces | C21: AEAT, presentación declaraciones | D21: 02037 | E21: HELLIN | F21: ALBACETE | G21: 02 | I21: 2T
D22: 02069 | E22: LA RODA | F22: ALACANT / ALICANTE | G22: 03 | I22: 3T
D23: 02600 | E23: ALBACETE | F23: ALMERÍA | G23: 04 | I23: 4T
B24: Macro: "Crear Nuevo Archivo" (Ctl+a) | D24: 03009 | E24: ALCOI/ALCOY | F24: ASTURIAS | G24: 33
D25: 03031 | E25: BENIDORM | F25: ÁVILA | G25: 05
D26: 03063 | E26: DENIA | F26: BADAJOZ | G26: 06
D27: 03065 | E27: ELX/ELCHE | F27: BARCELONA | G27: 08
D28: 03066 | E28: ELDA | F28: BURGOS | G28: 09
D29: 03099 | E29: ORIHUELA | F29: CÁCERES | G29: 10
D30: 03140 | E30: VILLENA | F30: CÁDIZ | G30: 11
D31: 03601 | E31: ALACANT/ALICANTE | F31: CANTABRIA | G31: 39
D32: 04053 | E32: HUERCAL-OVERA | F32: CASTELL / CASTELLÓN | G32: 12
D33: 04104 | E33: EL EJIDO | F33: CEUTA | G33: 51
D34: 04600 | E34: ALMERIA | F34: CIUDAD REAL | G34: 13
D35: 05600 | E35: AVILA | F35: CÓRDOBA | G35: 14
D36: 06044 | E36: DON BENITO | F36: A CORUÑA | G36: 15
D37: 06083 | E37: MERIDA | F37: CUENCA | G37: 16
D38: 06158 | E38: ZAFRA | F38: GIRONA | G38: 17
D39: 06600 | E39: BADAJOZ | F39: GRANADA | G39: 18
D40: 07026 | E40: EIVISSA-FORMENTERA | F40: GUADALAJARA | G40: 19
D41: 07027 | E41: INCA | F41: GIPÚZKOA | G41: 20
D42: 07032 | E42: MENORCA | F42: HUELVA | G42: 21
D43: 07033 | E43: MANACOR | F43: HUESCA | G43: 22
D44: 07601 | E44: PALMA DE MALLORCA | F44: ILLES BALEARS | G44: 07
D45: 08006 | E45: ARENYS DE MAR | F45: JAÉN | G45: 23
D46: 08015 | E46: BADALONA | F46: LEÓN | G46: 24
D47: 08022 | E47: BERGA | F47: LLEIDA | G47: 25
D48: 08072 | E48: CORNELLA DE LLOBR. | F48: LUGO | G48: 27
D49: 08095 | E49: GRANOLLERS | F49: MADRID | G49: 28
D50: 08100 | E50: L'HOSPITALET DE L. | F50: MÁLAGA | G50: 29
D51: 08101 | E51: IGUALADA | F51: MELILLA | G51: 52
D52: 08112 | E52: MANRESA | F52: MURCIA | G52: 30
D53: 08120 | E53: MATARO | F53: NAVARRA | G53: 31
D54: 08186 | E54: SABADELL | F54: OURENSE | G54: 32
D55: 08204 | E55: SANT CUGAT DEL V. | F55: PALENCIA | G55: 34
D56: 08210 | E56: SANT FELIU | F56: LAS PALMAS | G56: 35
D57: 08245 | E57: SANTA COLOMA DE G. | F57: PONTEVEDRA | G57: 36
D58: 08279 | E58: TERRASSA | F58: LA RIOJA | G58: 26
D59: 08299 | E59: VIC | F59: SALAMANCA | G59: 37
D60: 08306 | E60: VILAFRANCA PENEDES | F60: SANTA CRUZ DE TENERIFE | G60: 38
D61: 08308 | E61: VILANOVA I GELTRU | F61: SEGOVIA | G61: 40
D62: 08602 | E62: COLOM | F62: SEVILLA | G62: 41
D63: 08603 | E63: SANTS-LES CORTS | F63: SORIA | G63: 42
D64: 08604 | E64: PEDRALBES-SARRIA | F64: TARRAGONA | G64: 43
D65: 08605 | E65: GRACIA | F65: TERUEL | G65: 44
D66: 08606 | E66: HORTA | F66: TOLEDO | G66: 45
D67: 08607 | E67: SANT ANDREU | F67: VALENCIA / VALÉNCIA | G67: 46
D68: 08608 | E68: POBLE-NOU | F68: VALLADOLID | G68: 47
D69: 08610 | E69: LETAMENDI | F69: BIZKAIA | G69: 48
D70: 09018 | E70: ARANDA DE DUERO | F70: ZAMORA | G70: 49
D71: 09224 | E71: MIRANDA DE EBRO | F71: ZARAGOZA | G71: 50
D72: 09600 | E72: BURGOS | F72: NO RESIDENTE | G72: 99
D73: 10134 | E73: NAVALMORAL MATA
D74: 10151 | E74: PLASENCIA
D75: 10199 | E75: TRUJILLO
D76: 10600 | E76: CACERES
D77: 11004 | E77: ALGECIRAS
D78: 11015 | E78: CHICLANA DE LA FR.
D79: 11027 | E79: PTO. DE STA. MARIA
D80: 11032 | E80: SANLUCAR BARRAMEDA
D81: 11033 | E81: SAN ROQUE
D82: 11038 | E82: UBRIQUE
D83: 11600 | E83: CADIZ
D84: 12135 | E84: VILA-REAL/VILLARR.
D85: 12138 | E85: VINAROS
D86: 12600 | E86: CASTELLO/CASTELLON
D87: 13005 | E87: ALCAZAR SAN JUAN
D88: 13071 | E88: PUERTOLLANO
D89: 13087 | E89: VALDEPEÑAS
D90: 13600 | E90: CIUDAD REAL
D91: 14038 | E91: LUCENA
D92: 14042 | E92: MONTILLA
D93: 14052 | E93: PEÑARROYA-PUEBLON.
D94: 14054 | E94: POZOBLANCO
D95: 14600 | E95: CORDOBA
D96: 14601 | E96: CORDOBA-ESTE
D97: 15009 | E97: BETANZOS
D98: 15019 | E98: CARBALLO
D99: 15023 | E99: CEE
D100: 15037 | E100: FERROL
D101: 15062 | E101: ORTIGUEIRA
D102: 15074 | E102: RIBEIRA
D103: 15079 | E103: SANTIAGO COMPOST.
D104: 15600 | E104: A CORUÑA
D105: 16212 | E105: TARANCON
D106: 16600 | E106: CUENCA
D107: 17025 | E107: LA BISBAL
D108: 17072 | E108: FIGUERES
D109: 17121 | E109: OLOT
D110: 17600 | E110: GIRONA
D111: 18024 | E111: BAZA
D112: 18091 | E112: GUADIX
D113: 18123 | E113: LOJA
D114: 18142 | E114: MOTRIL
D115: 18150 | E115: ORGIVA
D116: 18600 | E116: GRANADA
D117: 18601 | E117: GRANADA-ALMANJAYAR
D118: 19600 | E118: GUADALAJARA
D119: 20600 | E119: GUIPUZCOA
D120: 21007 | E120: ARACENA
D121: 21010 | E121: AYAMONTE
D122: 21054 | E122: PALMA DEL CONDADO
D123: 21600 | E123: HUELVA
D124: 22218 | E124: MONZON
D125: 22600 | E125: HUESCA
D126: 23005 | E126: ANDUJAR
D127: 23055 | E127: LINARES
D128: 23092 | E128: UBEDA
D129: 23095 | E129: VILLACARRILLO
D130: 23600 | E130: JAEN
D131: 24009 | E131: ASTORGA
D132: 24118 | E132: PONFERRADA
D133: 24600 | E133: LEON
D134: 25252 | E134: LA SEU D'URGELL
D135: 25272 | E135: TARREGA
D136: 25600 | E136: LLEIDA
D137: 26036 | E137: CALAHORRA
D138: 26071 | E138: HARO
D139: 26600 | E139: LOGROÑO
D140: 27019 | E140: FOZ
D141: 27031 | E141: MONFORTE DE LEMOS
D142: 27600 | E142: LUGO
D143: 28005 | E143: ALCALA DE HENARES
D144: 28006 | E144: ALCOBENDAS
D145: 28007 | E145: ALCORCON
D146: 28013 | E146: ARANJUEZ
D147: 28014 | E147: ARGANDA
D148: 28045 | E148: COLMENAR VIEJO
D149: 28054 | E149: EL ESCORIAL
D150: 28058 | E150: FUENLABRADA
D151: 28065 | E151: GETAFE
D152: 28074 | E152: LEGANES
D153: 28092 | E153: MOSTOLES
D154: 28115 | E154: POZUELO
D155: 28148 | E155: TORREJON DE ARDOZ
D156: 28602 | E156: CARABANCHEL
D157: 28603 | E157: MONTALBAN
D158: 28604 | E158: CIUDAD LINEAL
D159: 28606 | E159: FUENCARRAL
D160: 28607 | E160: HORTALEZA-BARAJAS
D161: 28608 | E161: LATINA
D162: 28609 | E162: VILLA DE VALLECAS
D163: 28610 | E163: MORATALAZ-VICALV.
D164: 28612 | E164: MARIA DE MOLINA
D165: 28613 | E165: SAN BLAS
D166: 28614 | E166: PUENTE DE VALLECAS
D167: 28615 | E167: VILLAVERDE-USERA
D168: 28616 | E168: GUZMAN EL BUENO
D169: 29012 | E169: ALORA
D170: 29015 | E170: ANTEQUERA
D171: 29069 | E171: MARBELLA
D172: 29084 | E172: RONDA
D173: 29094 | E173: VELEZ-MALAGA
D174: 29103 | E174: TORREMOLINOS
D175: 29600 | E175: MALAGA
D176: 29601 | E176: MALAGA-ESTE
D177: 30019 | E177: CIEZA
D178: 30024 | E178: LORCA
D179: 30029 | E179: MULA
D180: 30601 | E180: MURCIA
D181: 31600 | E181: NAFARROA/NAVARRA
D182: 32010 | E182: O BARCO VALDEORRAS
D183: 32020 | E183: O CARBALLIÑO
D184: 32025 | E184: CELANOVA
D185: 32086 | E185: VERIN
D186: 32600 | E186: OURENSE
D187: 33004 | E187: AVILES
D188: 33011 | E188: CANGAS DEL NARCEA
D189: 33012 | E189: CANGAS DE ONIS
D190: 33031 | E190: LANGREO
D191: 33034 | E191: LUARCA
D192: 33037 | E192: MIERES
D193: 33600 | E193: OVIEDO
D194: 34004 | E194: AGUILAR DE CAMPOO
D195: 34600 | E195: PALENCIA
D196: 35004 | E196: LANZAROTE
D197: 35010 | E197: STA.MARIA DE GUIA
D198: 35018 | E198: FUERTEVENTURA
D199: 35020 | E199: SAN BARTOLOME TIR.
D200: 35601 | E200: LAS PALMAS G.C.
D201: 36017 | E201: A ESTRADA
... 70 more rows

Sheet INGRESOS
A1: FECHA REGISTRO | B1: FECHA FACTURA | C1: Nº FACTURA | D1: NIF | E1: APELLIDOS Y NOMBRE O RAZÓN SOCIAL | F1: BASE IMPONIBLE | G1: % IVA | H1: % REC.EQ. | I1: CUOTA IVA | J1: CUOTA REC. EQ. | K1: CUOTA RETENC IRPF | L1: TOTAL FACTURA | M1: INTRACOMUNITARIO | N1: RECTIFICATIVAS | O1: R.E. CRITERIO CAJA | P1: FECHA COBRO | Q1: CRITERIO CAJA BASE | R1: % IVA | S1: CRITERIO CAJA CUOTA | T1: MEDIO DE COBRO | V1: Trimestre | W1: Trimestre Rég. Criterio Caja | X1: Nº de Declarado Modelo 347 | Y1: Trimestre Modelo 347
B2: =IF(A2<>"",A2,"") ->  | D2: =IF(E2<>"",VLOOKUP(E2,CLIENTES!A$2:B$200,2,FALSE),"") ->  | G2: 21 | I2: =ROUND((F2*(G2/100)),2) -> 0 | J2: =ROUND((F2*(H2/100)),2) -> 0 | L2: =+F2+I2+J2-K2 -> 0 | S2: =ROUND((Q2*(R2/100)),2) -> 0 | V2: =IF(A2>0,ROUNDUP(MONTH(A2)/3,0),0) -> 0 | W2: =IF(P2>0,ROUNDUP(MONTH(P2)/3,0),0) -> 0 | X2: =IF(AND(D2<>"",ISBLANK(M2),SUMIF($D$2:$D$101,D2,$F$2:$F$101)+SUMIF($D$2:$D$101,D2,$I$2:$I$101)+SUMIF($D$2:$D$101,D2,$J$2:$J$101)>3005.06),IF(COUNTIF($D$2:D2,D2)>1,VLOOKUP(D2,D$2:X2,21,FALSE),MAX($X$1:X1)+1),0) -> 0 | Y2: =IF(X2>0,ROUNDUP(MONTH(B2)/3,0),0) -> 0
D3: =IF(E3<>"",VLOOKUP(E3,CLIENTES!A$2:B$200,2,FALSE),"") ->  | G3: 21 | I3: 0 | J3: =ROUND((F3*(H3/100)),2) -> 0 | L3: =+F3+I3+J3-K3 -> 0 | S3: =ROUND((Q3*(R3/100)),2) -> 0 | V3: =IF(A3>0,ROUNDUP(MONTH(A3)/3,0),0) -> 0 | W3: =IF(P3>0,ROUNDUP(MONTH(P3)/3,0),0) -> 0 | X3: =IF(AND(D3<>"",ISBLANK(M3),SUMIF($D$2:$D$101,D3,$F$2:$F$101)+SUMIF($D$2:$D$101,D3,$I$2:$I$101)+SUMIF($D$2:$D$101,D3,$J$2:$J$101)>3005.06),IF(COUNTIF($D$2:D3,D3)>1,VLOOKUP(D3,D$2:X3,21,FALSE),MAX($X$1:X2)+1),0) -> 0 | Y3: =IF(X3>0,ROUNDUP(MONTH(B3)/3,0),0) -> 0
D4: =IF(E4<>"",VLOOKUP(E4,CLIENTES!A$2:B$200,2,FALSE),"") ->  | G4: 21 | I4: 0 | J4: 0 | L4: 0 | S4: 0 | V4: 0 | W4: 0 | X4: =IF(AND(D4<>"",ISBLANK(M4),SUMIF($D$2:$D$101,D4,$F$2:$F$101)+SUMIF($D$2:$D$101,D4,$I$2:$I$101)+SUMIF($D$2:$D$101,D4,$J$2:$J$101)>3005.06),IF(COUNTIF($D$2:D4,D4)>1,VLOOKUP(D4,D$2:X4,21,FALSE),MAX($X$1:X3)+1),0) -> 0 | Y4: 0
D5: =IF(E5<>"",VLOOKUP(E5,CLIENTES!A$2:B$200,2,FALSE),"") ->  | G5: 21 | I5: 0 | J5: 0 | L5: 0 | S5: 0 | V5: 0 | W5: 0 | X5: =IF(AND(D5<>"",ISBLANK(M5),SUMIF($D$2:$D$101,D5,$F$2:$F$101)+SUMIF($D$2:$D$101,D5,$I$2:$I$101)+SUMIF($D$2:$D$101,D5,$J$2:$J$101)>3005.06),IF(COUNTIF($D$2:D5,D5)>1,VLOOKUP(D5,D$2:X5,21,FALSE),MAX($X$1:X4)+1),0) -> 0 | Y5: 0
D6: =IF(E6<>"",VLOOKUP(E6,CLIENTES!A$2:B$200,2,FALSE),"") ->  | G6: 21 | I6: 0 | J6: 0 | L6: 0 | S6: 0 | V6: 0 | W6: 0 | X6: =IF(AND(D6<>"",ISBLANK(M6),SUMIF($D$2:$D$101,D6,$F$2:$F$101)+SUMIF($D$2:$D$101,D6,$I$2:$I$101)+SUMIF($D$2:$D$101,D6,$J$2:$J$101)>3005.06),IF(COUNTIF($D$2:D6,D6)>1,VLOOKUP(D6,D$2:X6,21,FALSE),MAX($X$1:X5)+1),0) -> 0 | Y6: 0
D7: =IF(E7<>"",VLOOKUP(E7,CLIENTES!A$2:B$200,2,FALSE),"") ->  | G7: 21 | I7: 0 | J7: 0 | L7: 0 | S7: 0 | V7: 0 | W7: 0 | X7: =IF(AND(D7<>"",ISBLANK(M7),SUMIF($D$2:$D$101,D7,$F$2:$F$101)+SUMIF($D$2:$D$101,D7,$I$2:$I$101)+SUMIF($D$2:$D$101,D7,$J$2:$J$101)>3005.06),IF(COUNTIF($D$2:D7,D7)>1,VLOOKUP(D7,D$2:X7,21,FALSE),MAX($X$1:X6)+1),0) -> 0 | Y7: 0
D8: =IF(E8<>"",VLOOKUP(E8,CLIENTES!A$2:B$200,2,FALSE),"") ->  | G8: 21 | I8: 0 | J8: 0 | L8: 0 | S8: 0 | V8: 0 | W8: 0 | X8: =IF(AND(D8<>"",ISBLANK(M8),SUMIF($D$2:$D$101,D8,$F$2:$F$101)+SUMIF($D$2:$D$101,D8,$I$2:$I$101)+SUMIF($D$2:$D$101,D8,$J$2:$J$101)>3005.06),IF(COUNTIF($D$2:D8,D8)>1,VLOOKUP(D8,D$2:X8,21,FALSE),MAX($X$1:X7)+1),0) -> 0 | Y8: 0
D9: =IF(E9<>"",VLOOKUP(E9,CLIENTES!A$2:B$200,2,FALSE),"") ->  | G9: 21 | I9: 0 | J9: 0 | L9: 0 | S9: 0 | V9: 0 | W9: 0 | X9: =IF(AND(D9<>"",ISBLANK(M9),SUMIF($D$2:$D$101,D9,$F$2:$F$101)+SUMIF($D$2:$D$101,D9,$I$2:$I$101)+SUMIF($D$2:$D$101,D9,$J$2:$J$101)>3005.06),IF(COUNTIF($D$2:D9,D9)>1,VLOOKUP(D9,D$2:X9,21,FALSE),MAX($X$1:X8)+1),0) -> 0 | Y9: 0
D10: =IF(E10<>"",VLOOKUP(E10,CLIENTES!A$2:B$200,2,FALSE),"") ->  | G10: 21 | I10: 0 | J10: 0 | L10: 0 | S10: 0 | V10: 0 | W10: 0 | X10: =IF(AND(D10<>"",ISBLANK(M10),SUMIF($D$2:$D$101,D10,$F$2:$F$101)+SUMIF($D$2:$D$101,D10,$I$2:$I$101)+SUMIF($D$2:$D$101,D10,$J$2:$J$101)>3005.06),IF(COUNTIF($D$2:D10,D10)>1,VLOOKUP(D10,D$2:X10,21,FALSE),MAX($X$1:X9)+1),0) -> 0 | Y10: 0
D11: =IF(E11<>"",VLOOKUP(E11,CLIENTES!A$2:B$200,2,FALSE),"") ->  | G11: 21 | I11: 0 | J11: 0 | L11: 0 | S11: 0 | V11: 0 | W11: 0 | X11: =IF(AND(D11<>"",ISBLANK(M11),SUMIF($D$2:$D$101,D11,$F$2:$F$101)+SUMIF($D$2:$D$101,D11,$I$2:$I$101)+SUMIF($D$2:$D$101,D11,$J$2:$J$101)>3005.06),IF(COUNTIF($D$2:D11,D11)>1,VLOOKUP(D11,D$2:X11,21,FALSE),MAX($X$1:X10)+1),0) -> 0 | Y11: 0
D12: =IF(E12<>"",VLOOKUP(E12,CLIENTES!A$2:B$200,2,FALSE),"") ->  | G12: 21 | I12: 0 | J12: 0 | L12: 0 | S12: 0 | V12: 0 | W12: 0 | X12: =IF(AND(D12<>"",ISBLANK(M12),SUMIF($D$2:$D$101,D12,$F$2:$F$101)+SUMIF($D$2:$D$101,D12,$I$2:$I$101)+SUMIF($D$2:$D$101,D12,$J$2:$J$101)>3005.06),IF(COUNTIF($D$2:D12,D12)>1,VLOOKUP(D12,D$2:X12,21,FALSE),MAX($X$1:X11)+1),0) -> 0 | Y12: 0
D13: =IF(E13<>"",VLOOKUP(E13,CLIENTES!A$2:B$200,2,FALSE),"") ->  | G13: 21 | I13: 0 | J13: 0 | L13: 0 | S13: 0 | V13: 0 | W13: 0 | X13: =IF(AND(D13<>"",ISBLANK(M13),SUMIF($D$2:$D$101,D13,$F$2:$F$101)+SUMIF($D$2:$D$101,D13,$I$2:$I$101)+SUMIF($D$2:$D$101,D13,$J$2:$J$101)>3005.06),IF(COUNTIF($D$2:D13,D13)>1,VLOOKUP(D13,D$2:X13,21,FALSE),MAX($X$1:X12)+1),0) -> 0 | Y13: 0
D14: =IF(E14<>"",VLOOKUP(E14,CLIENTES!A$2:B$200,2,FALSE),"") ->  | G14: 21 | I14: 0 | J14: 0 | L14: 0 | S14: 0 | V14: 0 | W14: 0 | X14: =IF(AND(D14<>"",ISBLANK(M14),SUMIF($D$2:$D$101,D14,$F$2:$F$101)+SUMIF($D$2:$D$101,D14,$I$2:$I$101)+SUMIF($D$2:$D$101,D14,$J$2:$J$101)>3005.06),IF(COUNTIF($D$2:D14,D14)>1,VLOOKUP(D14,D$2:X14,21,FALSE),MAX($X$1:X13)+1),0) -> 0 | Y14: 0
D15: =IF(E15<>"",VLOOKUP(E15,CLIENTES!A$2:B$200,2,FALSE),"") ->  | G15: 21 | I15: 0 | J15: 0 | L15: 0 | S15: 0 | V15: 0 | W15: 0 | X15: =IF(AND(D15<>"",ISBLANK(M15),SUMIF($D$2:$D$101,D15,$F$2:$F$101)+SUMIF($D$2:$D$101,D15,$I$2:$I$101)+SUMIF($D$2:$D$101,D15,$J$2:$J$101)>3005.06),IF(COUNTIF($D$2:D15,D15)>1,VLOOKUP(D15,D$2:X15,21,FALSE),MAX($X$1:X14)+1),0) -> 0 | Y15: 0
D16: =IF(E16<>"",VLOOKUP(E16,CLIENTES!A$2:B$200,2,FALSE),"") ->  | G16: 21 | I16: 0 | J16: 0 | L16: 0 | S16: 0 | V16: 0 | W16: 0 | X16: =IF(AND(D16<>"",ISBLANK(M16),SUMIF($D$2:$D$101,D16,$F$2:$F$101)+SUMIF($D$2:$D$101,D16,$I$2:$I$101)+SUMIF($D$2:$D$101,D16,$J$2:$J$101)>3005.06),IF(COUNTIF($D$2:D16,D16)>1,VLOOKUP(D16,D$2:X16,21,FALSE),MAX($X$1:X15)+1),0) -> 0 | Y16: 0
D17: =IF(E17<>"",VLOOKUP(E17,CLIENTES!A$2:B$200,2,FALSE),"") ->  | G17: 21 | I17: 0 | J17: 0 | L17: 0 | S17: 0 | V17: 0 | W17: 0 | X17: =IF(AND(D17<>"",ISBLANK(M17),SUMIF($D$2:$D$101,D17,$F$2:$F$101)+SUMIF($D$2:$D$101,D17,$I$2:$I$101)+SUMIF($D$2:$D$101,D17,$J$2:$J$101)>3005.06),IF(COUNTIF($D$2:D17,D17)>1,VLOOKUP(D17,D$2:X17,21,FALSE),MAX($X$1:X16)+1),0) -> 0 | Y17: 0
D18: =IF(E18<>"",VLOOKUP(E18,CLIENTES!A$2:B$200,2,FALSE),"") ->  | G18: 21 | I18: 0 | J18: 0 | L18: 0 | S18: 0 | V18: 0 | W18: 0 | X18: =IF(AND(D18<>"",ISBLANK(M18),SUMIF($D$2:$D$101,D18,$F$2:$F$101)+SUMIF($D$2:$D$101,D18,$I$2:$I$101)+SUMIF($D$2:$D$101,D18,$J$2:$J$101)>3005.06),IF(COUNTIF($D$2:D18,D18)>1,VLOOKUP(D18,D$2:X18,21,FALSE),MAX($X$1:X17)+1),0) -> 0 | Y18: 0
D19: =IF(E19<>"",VLOOKUP(E19,CLIENTES!A$2:B$200,2,FALSE),"") ->  | G19: 21 | I19: 0 | J19: 0 | L19: 0 | S19: 0 | V19: 0 | W19: 0 | X19: =IF(AND(D19<>"",ISBLANK(M19),SUMIF($D$2:$D$101,D19,$F$2:$F$101)+SUMIF($D$2:$D$101,D19,$I$2:$I$101)+SUMIF($D$2:$D$101,D19,$J$2:$J$101)>3005.06),IF(COUNTIF($D$2:D19,D19)>1,VLOOKUP(D19,D$2:X19,21,FALSE),MAX($X$1:X18)+1),0) -> 0 | Y19: 0
D20: =IF(E20<>"",VLOOKUP(E20,CLIENTES!A$2:B$200,2,FALSE),"") ->  | G20: 21 | I20: 0 | J20: 0 | L20: 0 | S20: 0 | V20: 0 | W20: 0 | X20: =IF(AND(D20<>"",ISBLANK(M20),SUMIF($D$2:$D$101,D20,$F$2:$F$101)+SUMIF($D$2:$D$101,D20,$I$2:$I$101)+SUMIF($D$2:$D$101,D20,$J$2:$J$101)>3005.06),IF(COUNTIF($D$2:D20,D20)>1,VLOOKUP(D20,D$2:X20,21,FALSE),MAX($X$1:X19)+1),0) -> 0 | Y20: 0
D21: =IF(E21<>"",VLOOKUP(E21,CLIENTES!A$2:B$200,2,FALSE),"") ->  | G21: 21 | I21: 0 | J21: 0 | L21: 0 | S21: 0 | V21: 0 | W21: 0 | X21: =IF(AND(D21<>"",ISBLANK(M21),SUMIF($D$2:$D$101,D21,$F$2:$F$101)+SUMIF($D$2:$D$101,D21,$I$2:$I$101)+SUMIF($D$2:$D$101,D21,$J$2:$J$101)>3005.06),IF(COUNTIF($D$2:D21,D21)>1,VLOOKUP(D21,D$2:X21,21,FALSE),MAX($X$1:X20)+1),0) -> 0 | Y21: 0
D22: =IF(E22<>"",VLOOKUP(E22,CLIENTES!A$2:B$200,2,FALSE),"") ->  | G22: 21 | I22: 0 | J22: 0 | L22: 0 | S22: 0 | V22: 0 | W22: 0 | X22: =IF(AND(D22<>"",ISBLANK(M22),SUMIF($D$2:$D$101,D22,$F$2:$F$101)+SUMIF($D$2:$D$101,D22,$I$2:$I$101)+SUMIF($D$2:$D$101,D22,$J$2:$J$101)>3005.06),IF(COUNTIF($D$2:D22,D22)>1,VLOOKUP(D22,D$2:X22,21,FALSE),MAX($X$1:X21)+1),0) -> 0 | Y22: 0
D23: =IF(E23<>"",VLOOKUP(E23,CLIENTES!A$2:B$200,2,FALSE),"") ->  | G23: 21 | I23: 0 | J23: 0 | L23: 0 | S23: 0 | V23: 0 | W23: 0 | X23: =IF(AND(D23<>"",ISBLANK(M23),SUMIF($D$2:$D$101,D23,$F$2:$F$101)+SUMIF($D$2:$D$101,D23,$I$2:$I$101)+SUMIF($D$2:$D$101,D23,$J$2:$J$101)>3005.06),IF(COUNTIF($D$2:D23,D23)>1,VLOOKUP(D23,D$2:X23,21,FALSE),MAX($X$1:X22)+1),0) -> 0 | Y23: 0
D24: =IF(E24<>"",VLOOKUP(E24,CLIENTES!A$2:B$200,2,FALSE),"") ->  | G24: 21 | I24: 0 | J24: 0 | L24: 0 | S24: 0 | V24: 0 | W24: 0 | X24: =IF(AND(D24<>"",ISBLANK(M24),SUMIF($D$2:$D$101,D24,$F$2:$F$101)+SUMIF($D$2:$D$101,D24,$I$2:$I$101)+SUMIF($D$2:$D$101,D24,$J$2:$J$101)>3005.06),IF(COUNTIF($D$2:D24,D24)>1,VLOOKUP(D24,D$2:X24,21,FALSE),MAX($X$1:X23)+1),0) -> 0 | Y24: 0
D25: =IF(E25<>"",VLOOKUP(E25,CLIENTES!A$2:B$200,2,FALSE),"") ->  | G25: 21 | I25: 0 | J25: 0 | L25: 0 | S25: 0 | V25: 0 | W25: 0 | X25: =IF(AND(D25<>"",ISBLANK(M25),SUMIF($D$2:$D$101,D25,$F$2:$F$101)+SUMIF($D$2:$D$101,D25,$I$2:$I$101)+SUMIF($D$2:$D$101,D25,$J$2:$J$101)>3005.06),IF(COUNTIF($D$2:D25,D25)>1,VLOOKUP(D25,D$2:X25,21,FALSE),MAX($X$1:X24)+1),0) -> 0 | Y25: 0
D26: =IF(E26<>"",VLOOKUP(E26,CLIENTES!A$2:B$200,2,FALSE),"") ->  | G26: 21 | I26: 0 | J26: 0 | L26: 0 | S26: 0 | V26: 0 | W26: 0 | X26: =IF(AND(D26<>"",ISBLANK(M26),SUMIF($D$2:$D$101,D26,$F$2:$F$101)+SUMIF($D$2:$D$101,D26,$I$2:$I$101)+SUMIF($D$2:$D$101,D26,$J$2:$J$101)>3005.06),IF(COUNTIF($D$2:D26,D26)>1,VLOOKUP(D26,D$2:X26,21,FALSE),MAX($X$1:X25)+1),0) -> 0 | Y26: 0
D27: =IF(E27<>"",VLOOKUP(E27,CLIENTES!A$2:B$200,2,FALSE),"") ->  | G27: 21 | I27: 0 | J27: 0 | L27: 0 | S27: 0 | V27: 0 | W27: 0 | X27: =IF(AND(D27<>"",ISBLANK(M27),SUMIF($D$2:$D$101,D27,$F$2:$F$101)+SUMIF($D$2:$D$101,D27,$I$2:$I$101)+SUMIF($D$2:$D$101,D27,$J$2:$J$101)>3005.06),IF(COUNTIF($D$2:D27,D27)>1,VLOOKUP(D27,D$2:X27,21,FALSE),MAX($X$1:X26)+1),0) -> 0 | Y27: 0
D28: =IF(E28<>"",VLOOKUP(E28,CLIENTES!A$2:B$200,2,FALSE),"") ->  | G28: 21 | I28: 0 | J28: 0 | L28: 0 | S28: 0 | V28: 0 | W28: 0 | X28: =IF(AND(D28<>"",ISBLANK(M28),SUMIF($D$2:$D$101,D28,$F$2:$F$101)+SUMIF($D$2:$D$101,D28,$I$2:$I$101)+SUMIF($D$2:$D$101,D28,$J$2:$J$101)>3005.06),IF(COUNTIF($D$2:D28,D28)>1,VLOOKUP(D28,D$2:X28,21,FALSE),MAX($X$1:X27)+1),0) -> 0 | Y28: 0
D29: =IF(E29<>"",VLOOKUP(E29,CLIENTES!A$2:B$200,2,FALSE),"") ->  | G29: 21 | I29: 0 | J29: 0 | L29: 0 | S29: 0 | V29: 0 | W29: 0 | X29: =IF(AND(D29<>"",ISBLANK(M29),SUMIF($D$2:$D$101,D29,$F$2:$F$101)+SUMIF($D$2:$D$101,D29,$I$2:$I$101)+SUMIF($D$2:$D$101,D29,$J$2:$J$101)>3005.06),IF(COUNTIF($D$2:D29,D29)>1,VLOOKUP(D29,D$2:X29,21,FALSE),MAX($X$1:X28)+1),0) -> 0 | Y29: 0
D30: =IF(E30<>"",VLOOKUP(E30,CLIENTES!A$2:B$200,2,FALSE),"") ->  | G30: 21 | I30: 0 | J30: 0 | L30: 0 | S30: 0 | V30: 0 | W30: 0 | X30: =IF(AND(D30<>"",ISBLANK(M30),SUMIF($D$2:$D$101,D30,$F$2:$F$101)+SUMIF($D$2:$D$101,D30,$I$2:$I$101)+SUMIF($D$2:$D$101,D30,$J$2:$J$101)>3005.06),IF(COUNTIF($D$2:D30,D30)>1,VLOOKUP(D30,D$2:X30,21,FALSE),MAX($X$1:X29)+1),0) -> 0 | Y30: 0
D31: =IF(E31<>"",VLOOKUP(E31,CLIENTES!A$2:B$200,2,FALSE),"") ->  | G31: 21 | I31: 0 | J31: 0 | L31: 0 | S31: 0 | V31: 0 | W31: 0 | X31: =IF(AND(D31<>"",ISBLANK(M31),SUMIF($D$2:$D$101,D31,$F$2:$F$101)+SUMIF($D$2:$D$101,D31,$I$2:$I$101)+SUMIF($D$2:$D$101,D31,$J$2:$J$101)>3005.06),IF(COUNTIF($D$2:D31,D31)>1,VLOOKUP(D31,D$2:X31,21,FALSE),MAX($X$1:X30)+1),0) -> 0 | Y31: 0
D32: =IF(E32<>"",VLOOKUP(E32,CLIENTES!A$2:B$200,2,FALSE),"") ->  | G32: 21 | I32: 0 | J32: 0 | L32: 0 | S32: 0 | V32: 0 | W32: 0 | X32: =IF(AND(D32<>"",ISBLANK(M32),SUMIF($D$2:$D$101,D32,$F$2:$F$101)+SUMIF($D$2:$D$101,D32,$I$2:$I$101)+SUMIF($D$2:$D$101,D32,$J$2:$J$101)>3005.06),IF(COUNTIF($D$2:D32,D32)>1,VLOOKUP(D32,D$2:X32,21,FALSE),MAX($X$1:X31)+1),0) -> 0 | Y32: 0
D33: =IF(E33<>"",VLOOKUP(E33,CLIENTES!A$2:B$200,2,FALSE),"") ->  | G33: 21 | I33: 0 | J33: 0 | L33: 0 | S33: 0 | V33: 0 | W33: 0 | X33: =IF(AND(D33<>"",ISBLANK(M33),SUMIF($D$2:$D$101,D33,$F$2:$F$101)+SUMIF($D$2:$D$101,D33,$I$2:$I$101)+SUMIF($D$2:$D$101,D33,$J$2:$J$101)>3005.06),IF(COUNTIF($D$2:D33,D33)>1,VLOOKUP(D33,D$2:X33,21,FALSE),MAX($X$1:X32)+1),0) -> 0 | Y33: 0
D34: =IF(E34<>"",VLOOKUP(E34,CLIENTES!A$2:B$200,2,FALSE),"") ->  | G34: 21 | I34: 0 | J34: 0 | L34: 0 | S34: 0 | V34: 0 | W34: 0 | X34: =IF(AND(D34<>"",ISBLANK(M34),SUMIF($D$2:$D$101,D34,$F$2:$F$101)+SUMIF($D$2:$D$101,D34,$I$2:$I$101)+SUMIF($D$2:$D$101,D34,$J$2:$J$101)>3005.06),IF(COUNTIF($D$2:D34,D34)>1,VLOOKUP(D34,D$2:X34,21,FALSE),MAX($X$1:X33)+1),0) -> 0 | Y34: 0
D35: =IF(E35<>"",VLOOKUP(E35,CLIENTES!A$2:B$200,2,FALSE),"") ->  | G35: 21 | I35: 0 | J35: 0 | L35: 0 | S35: 0 | V35: 0 | W35: 0 | X35: =IF(AND(D35<>"",ISBLANK(M35),SUMIF($D$2:$D$101,D35,$F$2:$F$101)+SUMIF($D$2:$D$101,D35,$I$2:$I$101)+SUMIF($D$2:$D$101,D35,$J$2:$J$101)>3005.06),IF(COUNTIF($D$2:D35,D35)>1,VLOOKUP(D35,D$2:X35,21,FALSE),MAX($X$1:X34)+1),0) -> 0 | Y35: 0
D36: =IF(E36<>"",VLOOKUP(E36,CLIENTES!A$2:B$200,2,FALSE),"") ->  | G36: 21 | I36: 0 | J36: 0 | L36: 0 | S36: 0 | V36: 0 | W36: 0 | X36: =IF(AND(D36<>"",ISBLANK(M36),SUMIF($D$2:$D$101,D36,$F$2:$F$101)+SUMIF($D$2:$D$101,D36,$I$2:$I$101)+SUMIF($D$2:$D$101,D36,$J$2:$J$101)>3005.06),IF(COUNTIF($D$2:D36,D36)>1,VLOOKUP(D36,D$2:X36,21,FALSE),MAX($X$1:X35)+1),0) -> 0 | Y36: 0
D37: =IF(E37<>"",VLOOKUP(E37,CLIENTES!A$2:B$200,2,FALSE),"") ->  | G37: 21 | I37: 0 | J37: 0 | L37: 0 | S37: 0 | V37: 0 | W37: 0 | X37: =IF(AND(D37<>"",ISBLANK(M37),SUMIF($D$2:$D$101,D37,$F$2:$F$101)+SUMIF($D$2:$D$101,D37,$I$2:$I$101)+SUMIF($D$2:$D$101,D37,$J$2:$J$101)>3005.06),IF(COUNTIF($D$2:D37,D37)>1,VLOOKUP(D37,D$2:X37,21,FALSE),MAX($X$1:X36)+1),0) -> 0 | Y37: 0
D38: =IF(E38<>"",VLOOKUP(E38,CLIENTES!A$2:B$200,2,FALSE),"") ->  | G38: 21 | I38: 0 | J38: 0 | L38: 0 | S38: 0 | V38: 0 | W38: 0 | X38: =IF(AND(D38<>"",ISBLANK(M38),SUMIF($D$2:$D$101,D38,$F$2:$F$101)+SUMIF($D$2:$D$101,D38,$I$2:$I$101)+SUMIF($D$2:$D$101,D38,$J$2:$J$101)>3005.06),IF(COUNTIF($D$2:D38,D38)>1,VLOOKUP(D38,D$2:X38,21,FALSE),MAX($X$1:X37)+1),0) -> 0 | Y38: 0
D39: =IF(E39<>"",VLOOKUP(E39,CLIENTES!A$2:B$200,2,FALSE),"") ->  | G39: 21 | I39: 0 | J39: 0 | L39: 0 | S39: 0 | V39: 0 | W39: 0 | X39: =IF(AND(D39<>"",ISBLANK(M39),SUMIF($D$2:$D$101,D39,$F$2:$F$101)+SUMIF($D$2:$D$101,D39,$I$2:$I$101)+SUMIF($D$2:$D$101,D39,$J$2:$J$101)>3005.06),IF(COUNTIF($D$2:D39,D39)>1,VLOOKUP(D39,D$2:X39,21,FALSE),MAX($X$1:X38)+1),0) -> 0 | Y39: 0
D40: =IF(E40<>"",VLOOKUP(E40,CLIENTES!A$2:B$200,2,FALSE),"") ->  | G40: 21 | I40: 0 | J40: 0 | L40: 0 | S40: 0 | V40: 0 | W40: 0 | X40: =IF(AND(D40<>"",ISBLANK(M40),SUMIF($D$2:$D$101,D40,$F$2:$F$101)+SUMIF($D$2:$D$101,D40,$I$2:$I$101)+SUMIF($D$2:$D$101,D40,$J$2:$J$101)>3005.06),IF(COUNTIF($D$2:D40,D40)>1,VLOOKUP(D40,D$2:X40,21,FALSE),MAX($X$1:X39)+1),0) -> 0 | Y40: 0
D41: =IF(E41<>"",VLOOKUP(E41,CLIENTES!A$2:B$200,2,FALSE),"") ->  | G41: 21 | I41: 0 | J41: 0 | L41: 0 | S41: 0 | V41: 0 | W41: 0 | X41: =IF(AND(D41<>"",ISBLANK(M41),SUMIF($D$2:$D$101,D41,$F$2:$F$101)+SUMIF($D$2:$D$101,D41,$I$2:$I$101)+SUMIF($D$2:$D$101,D41,$J$2:$J$101)>3005.06),IF(COUNTIF($D$2:D41,D41)>1,VLOOKUP(D41,D$2:X41,21,FALSE),MAX($X$1:X40)+1),0) -> 0 | Y41: 0
D42: =IF(E42<>"",VLOOKUP(E42,CLIENTES!A$2:B$200,2,FALSE),"") ->  | G42: 21 | I42: 0 | J42: 0 | L42: 0 | S42: 0 | V42: 0 | W42: 0 | X42: =IF(AND(D42<>"",ISBLANK(M42),SUMIF($D$2:$D$101,D42,$F$2:$F$101)+SUMIF($D$2:$D$101,D42,$I$2:$I$101)+SUMIF($D$2:$D$101,D42,$J$2:$J$101)>3005.06),IF(COUNTIF($D$2:D42,D42)>1,VLOOKUP(D42,D$2:X42,21,FALSE),MAX($X$1:X41)+1),0) -> 0 | Y42: 0
D43: =IF(E43<>"",VLOOKUP(E43,CLIENTES!A$2:B$200,2,FALSE),"") ->  | G43: 21 | I43: 0 | J43: 0 | L43: 0 | S43: 0 | V43: 0 | W43: 0 | X43: =IF(AND(D43<>"",ISBLANK(M43),SUMIF($D$2:$D$101,D43,$F$2:$F$101)+SUMIF($D$2:$D$101,D43,$I$2:$I$101)+SUMIF($D$2:$D$101,D43,$J$2:$J$101)>3005.06),IF(COUNTIF($D$2:D43,D43)>1,VLOOKUP(D43,D$2:X43,21,FALSE),MAX($X$1:X42)+1),0) -> 0 | Y43: 0
D44: =IF(E44<>"",VLOOKUP(E44,CLIENTES!A$2:B$200,2,FALSE),"") ->  | G44: 21 | I44: 0 | J44: 0 | L44: 0 | S44: 0 | V44: 0 | W44: 0 | X44: =IF(AND(D44<>"",ISBLANK(M44),SUMIF($D$2:$D$101,D44,$F$2:$F$101)+SUMIF($D$2:$D$101,D44,$I$2:$I$101)+SUMIF($D$2:$D$101,D44,$J$2:$J$101)>3005.06),IF(COUNTIF($D$2:D44,D44)>1,VLOOKUP(D44,D$2:X44,21,FALSE),MAX($X$1:X43)+1),0) -> 0 | Y44: 0
D45: =IF(E45<>"",VLOOKUP(E45,CLIENTES!A$2:B$200,2,FALSE),"") ->  | G45: 21 | I45: 0 | J45: 0 | L45: 0 | S45: 0 | V45: 0 | W45: 0 | X45: =IF(AND(D45<>"",ISBLANK(M45),SUMIF($D$2:$D$101,D45,$F$2:$F$101)+SUMIF($D$2:$D$101,D45,$I$2:$I$101)+SUMIF($D$2:$D$101,D45,$J$2:$J$101)>3005.06),IF(COUNTIF($D$2:D45,D45)>1,VLOOKUP(D45,D$2:X45,21,FALSE),MAX($X$1:X44)+1),0) -> 0 | Y45: 0
D46: =IF(E46<>"",VLOOKUP(E46,CLIENTES!A$2:B$200,2,FALSE),"") ->  | G46: 21 | I46: 0 | J46: 0 | L46: 0 | S46: 0 | V46: 0 | W46: 0 | X46: =IF(AND(D46<>"",ISBLANK(M46),SUMIF($D$2:$D$101,D46,$F$2:$F$101)+SUMIF($D$2:$D$101,D46,$I$2:$I$101)+SUMIF($D$2:$D$101,D46,$J$2:$J$101)>3005.06),IF(COUNTIF($D$2:D46,D46)>1,VLOOKUP(D46,D$2:X46,21,FALSE),MAX($X$1:X45)+1),0) -> 0 | Y46: 0
D47: =IF(E47<>"",VLOOKUP(E47,CLIENTES!A$2:B$200,2,FALSE),"") ->  | G47: 21 | I47: 0 | J47: 0 | L47: 0 | S47: 0 | V47: 0 | W47: 0 | X47: =IF(AND(D47<>"",ISBLANK(M47),SUMIF($D$2:$D$101,D47,$F$2:$F$101)+SUMIF($D$2:$D$101,D47,$I$2:$I$101)+SUMIF($D$2:$D$101,D47,$J$2:$J$101)>3005.06),IF(COUNTIF($D$2:D47,D47)>1,VLOOKUP(D47,D$2:X47,21,FALSE),MAX($X$1:X46)+1),0) -> 0 | Y47: 0
D48: =IF(E48<>"",VLOOKUP(E48,CLIENTES!A$2:B$200,2,FALSE),"") ->  | G48: 21 | I48: 0 | J48: 0 | L48: 0 | S48: 0 | V48: 0 | W48: 0 | X48: =IF(AND(D48<>"",ISBLANK(M48),SUMIF($D$2:$D$101,D48,$F$2:$F$101)+SUMIF($D$2:$D$101,D48,$I$2:$I$101)+SUMIF($D$2:$D$101,D48,$J$2:$J$101)>3005.06),IF(COUNTIF($D$2:D48,D48)>1,VLOOKUP(D48,D$2:X48,21,FALSE),MAX($X$1:X47)+1),0) -> 0 | Y48: 0
D49: =IF(E49<>"",VLOOKUP(E49,CLIENTES!A$2:B$200,2,FALSE),"") ->  | G49: 21 | I49: 0 | J49: 0 | L49: 0 | S49: 0 | V49: 0 | W49: 0 | X49: =IF(AND(D49<>"",ISBLANK(M49),SUMIF($D$2:$D$101,D49,$F$2:$F$101)+SUMIF($D$2:$D$101,D49,$I$2:$I$101)+SUMIF($D$2:$D$101,D49,$J$2:$J$101)>3005.06),IF(COUNTIF($D$2:D49,D49)>1,VLOOKUP(D49,D$2:X49,21,FALSE),MAX($X$1:X48)+1),0) -> 0 | Y49: 0
D50: =IF(E50<>"",VLOOKUP(E50,CLIENTES!A$2:B$200,2,FALSE),"") ->  | G50: 21 | I50: 0 | J50: 0 | L50: 0 | S50: 0 | V50: 0 | W50: 0 | X50: =IF(AND(D50<>"",ISBLANK(M50),SUMIF($D$2:$D$101,D50,$F$2:$F$101)+SUMIF($D$2:$D$101,D50,$I$2:$I$101)+SUMIF($D$2:$D$101,D50,$J$2:$J$101)>3005.06),IF(COUNTIF($D$2:D50,D50)>1,VLOOKUP(D50,D$2:X50,21,FALSE),MAX($X$1:X49)+1),0) -> 0 | Y50: 0
D51: =IF(E51<>"",VLOOKUP(E51,CLIENTES!A$2:B$200,2,FALSE),"") ->  | G51: 21 | I51: 0 | J51: 0 | L51: 0 | S51: 0 | V51: 0 | W51: 0 | X51: =IF(AND(D51<>"",ISBLANK(M51),SUMIF($D$2:$D$101,D51,$F$2:$F$101)+SUMIF($D$2:$D$101,D51,$I$2:$I$101)+SUMIF($D$2:$D$101,D51,$J$2:$J$101)>3005.06),IF(COUNTIF($D$2:D51,D51)>1,VLOOKUP(D51,D$2:X51,21,FALSE),MAX($X$1:X50)+1),0) -> 0 | Y51: 0
D52: =IF(E52<>"",VLOOKUP(E52,CLIENTES!A$2:B$200,2,FALSE),"") ->  | G52: 21 | I52: 0 | J52: 0 | L52: 0 | S52: 0 | V52: 0 | W52: 0 | X52: =IF(AND(D52<>"",ISBLANK(M52),SUMIF($D$2:$D$101,D52,$F$2:$F$101)+SUMIF($D$2:$D$101,D52,$I$2:$I$101)+SUMIF($D$2:$D$101,D52,$J$2:$J$101)>3005.06),IF(COUNTIF($D$2:D52,D52)>1,VLOOKUP(D52,D$2:X52,21,FALSE),MAX($X$1:X51)+1),0) -> 0 | Y52: 0
D53: =IF(E53<>"",VLOOKUP(E53,CLIENTES!A$2:B$200,2,FALSE),"") ->  | G53: 21 | I53: 0 | J53: 0 | L53: 0 | S53: 0 | V53: 0 | W53: 0 | X53: =IF(AND(D53<>"",ISBLANK(M53),SUMIF($D$2:$D$101,D53,$F$2:$F$101)+SUMIF($D$2:$D$101,D53,$I$2:$I$101)+SUMIF($D$2:$D$101,D53,$J$2:$J$101)>3005.06),IF(COUNTIF($D$2:D53,D53)>1,VLOOKUP(D53,D$2:X53,21,FALSE),MAX($X$1:X52)+1),0) -> 0 | Y53: 0
D54: =IF(E54<>"",VLOOKUP(E54,CLIENTES!A$2:B$200,2,FALSE),"") ->  | G54: 21 | I54: 0 | J54: 0 | L54: 0 | S54: 0 | V54: 0 | W54: 0 | X54: =IF(AND(D54<>"",ISBLANK(M54),SUMIF($D$2:$D$101,D54,$F$2:$F$101)+SUMIF($D$2:$D$101,D54,$I$2:$I$101)+SUMIF($D$2:$D$101,D54,$J$2:$J$101)>3005.06),IF(COUNTIF($D$2:D54,D54)>1,VLOOKUP(D54,D$2:X54,21,FALSE),MAX($X$1:X53)+1),0) -> 0 | Y54: 0
D55: =IF(E55<>"",VLOOKUP(E55,CLIENTES!A$2:B$200,2,FALSE),"") ->  | G55: 21 | I55: 0 | J55: 0 | L55: 0 | S55: 0 | V55: 0 | W55: 0 | X55: =IF(AND(D55<>"",ISBLANK(M55),SUMIF($D$2:$D$101,D55,$F$2:$F$101)+SUMIF($D$2:$D$101,D55,$I$2:$I$101)+SUMIF($D$2:$D$101,D55,$J$2:$J$101)>3005.06),IF(COUNTIF($D$2:D55,D55)>1,VLOOKUP(D55,D$2:X55,21,FALSE),MAX($X$1:X54)+1),0) -> 0 | Y55: 0
D56: =IF(E56<>"",VLOOKUP(E56,CLIENTES!A$2:B$200,2,FALSE),"") ->  | G56: 21 | I56: 0 | J56: 0 | L56: 0 | S56: 0 | V56: 0 | W56: 0 | X56: =IF(AND(D56<>"",ISBLANK(M56),SUMIF($D$2:$D$101,D56,$F$2:$F$101)+SUMIF($D$2:$D$101,D56,$I$2:$I$101)+SUMIF($D$2:$D$101,D56,$J$2:$J$101)>3005.06),IF(COUNTIF($D$2:D56,D56)>1,VLOOKUP(D56,D$2:X56,21,FALSE),MAX($X$1:X55)+1),0) -> 0 | Y56: 0
D57: =IF(E57<>"",VLOOKUP(E57,CLIENTES!A$2:B$200,2,FALSE),"") ->  | G57: 21 | I57: 0 | J57: 0 | L57: 0 | S57: 0 | V57: 0 | W57: 0 | X57: =IF(AND(D57<>"",ISBLANK(M57),SUMIF($D$2:$D$101,D57,$F$2:$F$101)+SUMIF($D$2:$D$101,D57,$I$2:$I$101)+SUMIF($D$2:$D$101,D57,$J$2:$J$101)>3005.06),IF(COUNTIF($D$2:D57,D57)>1,VLOOKUP(D57,D$2:X57,21,FALSE),MAX($X$1:X56)+1),0) -> 0 | Y57: 0
D58: =IF(E58<>"",VLOOKUP(E58,CLIENTES!A$2:B$200,2,FALSE),"") ->  | G58: 21 | I58: 0 | J58: 0 | L58: 0 | S58: 0 | V58: 0 | W58: 0 | X58: =IF(AND(D58<>"",ISBLANK(M58),SUMIF($D$2:$D$101,D58,$F$2:$F$101)+SUMIF($D$2:$D$101,D58,$I$2:$I$101)+SUMIF($D$2:$D$101,D58,$J$2:$J$101)>3005.06),IF(COUNTIF($D$2:D58,D58)>1,VLOOKUP(D58,D$2:X58,21,FALSE),MAX($X$1:X57)+1),0) -> 0 | Y58: 0
D59: =IF(E59<>"",VLOOKUP(E59,CLIENTES!A$2:B$200,2,FALSE),"") ->  | G59: 21 | I59: 0 | J59: 0 | L59: 0 | S59: 0 | V59: 0 | W59: 0 | X59: =IF(AND(D59<>"",ISBLANK(M59),SUMIF($D$2:$D$101,D59,$F$2:$F$101)+SUMIF($D$2:$D$101,D59,$I$2:$I$101)+SUMIF($D$2:$D$101,D59,$J$2:$J$101)>3005.06),IF(COUNTIF($D$2:D59,D59)>1,VLOOKUP(D59,D$2:X59,21,FALSE),MAX($X$1:X58)+1),0) -> 0 | Y59: 0
D60: =IF(E60<>"",VLOOKUP(E60,CLIENTES!A$2:B$200,2,FALSE),"") ->  | G60: 21 | I60: 0 | J60: 0 | L60: 0 | S60: 0 | V60: 0 | W60: 0 | X60: =IF(AND(D60<>"",ISBLANK(M60),SUMIF($D$2:$D$101,D60,$F$2:$F$101)+SUMIF($D$2:$D$101,D60,$I$2:$I$101)+SUMIF($D$2:$D$101,D60,$J$2:$J$101)>3005.06),IF(COUNTIF($D$2:D60,D60)>1,VLOOKUP(D60,D$2:X60,21,FALSE),MAX($X$1:X59)+1),0) -> 0 | Y60: 0
D61: =IF(E61<>"",VLOOKUP(E61,CLIENTES!A$2:B$200,2,FALSE),"") ->  | G61: 21 | I61: 0 | J61: 0 | L61: 0 | S61: 0 | V61: 0 | W61: 0 | X61: =IF(AND(D61<>"",ISBLANK(M61),SUMIF($D$2:$D$101,D61,$F$2:$F$101)+SUMIF($D$2:$D$101,D61,$I$2:$I$101)+SUMIF($D$2:$D$101,D61,$J$2:$J$101)>3005.06),IF(COUNTIF($D$2:D61,D61)>1,VLOOKUP(D61,D$2:X61,21,FALSE),MAX($X$1:X60)+1),0) -> 0 | Y61: 0
D62: =IF(E62<>"",VLOOKUP(E62,CLIENTES!A$2:B$200,2,FALSE),"") ->  | G62: 21 | I62: 0 | J62: 0 | L62: 0 | S62: 0 | V62: 0 | W62: 0 | X62: =IF(AND(D62<>"",ISBLANK(M62),SUMIF($D$2:$D$101,D62,$F$2:$F$101)+SUMIF($D$2:$D$101,D62,$I$2:$I$101)+SUMIF($D$2:$D$101,D62,$J$2:$J$101)>3005.06),IF(COUNTIF($D$2:D62,D62)>1,VLOOKUP(D62,D$2:X62,21,FALSE),MAX($X$1:X61)+1),0) -> 0 | Y62: 0
D63: =IF(E63<>"",VLOOKUP(E63,CLIENTES!A$2:B$200,2,FALSE),"") ->  | G63: 21 | I63: 0 | J63: 0 | L63: 0 | S63: 0 | V63: 0 | W63: 0 | X63: =IF(AND(D63<>"",ISBLANK(M63),SUMIF($D$2:$D$101,D63,$F$2:$F$101)+SUMIF($D$2:$D$101,D63,$I$2:$I$101)+SUMIF($D$2:$D$101,D63,$J$2:$J$101)>3005.06),IF(COUNTIF($D$2:D63,D63)>1,VLOOKUP(D63,D$2:X63,21,FALSE),MAX($X$1:X62)+1),0) -> 0 | Y63: 0
D64: =IF(E64<>"",VLOOKUP(E64,CLIENTES!A$2:B$200,2,FALSE),"") ->  | G64: 21 | I64: 0 | J64: 0 | L64: 0 | S64: 0 | V64: 0 | W64: 0 | X64: =IF(AND(D64<>"",ISBLANK(M64),SUMIF($D$2:$D$101,D64,$F$2:$F$101)+SUMIF($D$2:$D$101,D64,$I$2:$I$101)+SUMIF($D$2:$D$101,D64,$J$2:$J$101)>3005.06),IF(COUNTIF($D$2:D64,D64)>1,VLOOKUP(D64,D$2:X64,21,FALSE),MAX($X$1:X63)+1),0) -> 0 | Y64: 0
D65: =IF(E65<>"",VLOOKUP(E65,CLIENTES!A$2:B$200,2,FALSE),"") ->  | G65: 21 | I65: 0 | J65: 0 | L65: 0 | S65: 0 | V65: 0 | W65: 0 | X65: =IF(AND(D65<>"",ISBLANK(M65),SUMIF($D$2:$D$101,D65,$F$2:$F$101)+SUMIF($D$2:$D$101,D65,$I$2:$I$101)+SUMIF($D$2:$D$101,D65,$J$2:$J$101)>3005.06),IF(COUNTIF($D$2:D65,D65)>1,VLOOKUP(D65,D$2:X65,21,FALSE),MAX($X$1:X64)+1),0) -> 0 | Y65: 0
D66: =IF(E66<>"",VLOOKUP(E66,CLIENTES!A$2:B$200,2,FALSE),"") ->  | G66: 21 | I66: 0 | J66: 0 | L66: 0 | S66: 0 | V66: 0 | W66: 0 | X66: =IF(AND(D66<>"",ISBLANK(M66),SUMIF($D$2:$D$101,D66,$F$2:$F$101)+SUMIF($D$2:$D$101,D66,$I$2:$I$101)+SUMIF($D$2:$D$101,D66,$J$2:$J$101)>3005.06),IF(COUNTIF($D$2:D66,D66)>1,VLOOKUP(D66,D$2:X66,21,FALSE),MAX($X$1:X65)+1),0) -> 0 | Y66: 0
B67: =IF(A67<>"",A67,"") ->  | D67: =IF(E67<>"",VLOOKUP(E67,CLIENTES!A$2:B$200,2,FALSE),"") ->  | G67: 21 | I67: =ROUND((F67*(G67/100)),2) -> 0 | J67: =ROUND((F67*(H67/100)),2) -> 0 | L67: =+F67+I67+J67-K67 -> 0 | S67: =ROUND((Q67*(R67/100)),2) -> 0 | V67: =IF(A67>0,ROUNDUP(MONTH(A67)/3,0),0) -> 0 | W67: =IF(P67>0,ROUNDUP(MONTH(P67)/3,0),0) -> 0 | X67: =IF(AND(D67<>"",ISBLANK(M67),SUMIF($D$2:$D$101,D67,$F$2:$F$101)+SUMIF($D$2:$D$101,D67,$I$2:$I$101)+SUMIF($D$2:$D$101,D67,$J$2:$J$101)>3005.06),IF(COUNTIF($D$2:D67,D67)>1,VLOOKUP(D67,D$2:X67,21,FALSE),MAX($X$1:X66)+1),0) -> 0 | Y67: =IF(X67>0,ROUNDUP(MONTH(B67)/3,0),0) -> 0
D68: =IF(E68<>"",VLOOKUP(E68,CLIENTES!A$2:B$200,2,FALSE),"") ->  | G68: 21 | I68: 0 | J68: 0 | L68: 0 | S68: 0 | V68: 0 | W68: 0 | X68: =IF(AND(D68<>"",ISBLANK(M68),SUMIF($D$2:$D$101,D68,$F$2:$F$101)+SUMIF($D$2:$D$101,D68,$I$2:$I$101)+SUMIF($D$2:$D$101,D68,$J$2:$J$101)>3005.06),IF(COUNTIF($D$2:D68,D68)>1,VLOOKUP(D68,D$2:X68,21,FALSE),MAX($X$1:X67)+1),0) -> 0 | Y68: 0
D69: =IF(E69<>"",VLOOKUP(E69,CLIENTES!A$2:B$200,2,FALSE),"") ->  | G69: 21 | I69: 0 | J69: 0 | L69: 0 | S69: 0 | V69: 0 | W69: 0 | X69: =IF(AND(D69<>"",ISBLANK(M69),SUMIF($D$2:$D$101,D69,$F$2:$F$101)+SUMIF($D$2:$D$101,D69,$I$2:$I$101)+SUMIF($D$2:$D$101,D69,$J$2:$J$101)>3005.06),IF(COUNTIF($D$2:D69,D69)>1,VLOOKUP(D69,D$2:X69,21,FALSE),MAX($X$1:X68)+1),0) -> 0 | Y69: 0
D70: =IF(E70<>"",VLOOKUP(E70,CLIENTES!A$2:B$200,2,FALSE),"") ->  | G70: 21 | I70: 0 | J70: 0 | L70: 0 | S70: 0 | V70: 0 | W70: 0 | X70: =IF(AND(D70<>"",ISBLANK(M70),SUMIF($D$2:$D$101,D70,$F$2:$F$101)+SUMIF($D$2:$D$101,D70,$I$2:$I$101)+SUMIF($D$2:$D$101,D70,$J$2:$J$101)>3005.06),IF(COUNTIF($D$2:D70,D70)>1,VLOOKUP(D70,D$2:X70,21,FALSE),MAX($X$1:X69)+1),0) -> 0 | Y70: 0
D71: =IF(E71<>"",VLOOKUP(E71,CLIENTES!A$2:B$200,2,FALSE),"") ->  | G71: 21 | I71: 0 | J71: 0 | L71: 0 | S71: 0 | V71: 0 | W71: 0 | X71: =IF(AND(D71<>"",ISBLANK(M71),SUMIF($D$2:$D$101,D71,$F$2:$F$101)+SUMIF($D$2:$D$101,D71,$I$2:$I$101)+SUMIF($D$2:$D$101,D71,$J$2:$J$101)>3005.06),IF(COUNTIF($D$2:D71,D71)>1,VLOOKUP(D71,D$2:X71,21,FALSE),MAX($X$1:X70)+1),0) -> 0 | Y71: 0
D72: =IF(E72<>"",VLOOKUP(E72,CLIENTES!A$2:B$200,2,FALSE),"") ->  | G72: 21 | I72: 0 | J72: 0 | L72: 0 | S72: 0 | V72: 0 | W72: 0 | X72: =IF(AND(D72<>"",ISBLANK(M72),SUMIF($D$2:$D$101,D72,$F$2:$F$101)+SUMIF($D$2:$D$101,D72,$I$2:$I$101)+SUMIF($D$2:$D$101,D72,$J$2:$J$101)>3005.06),IF(COUNTIF($D$2:D72,D72)>1,VLOOKUP(D72,D$2:X72,21,FALSE),MAX($X$1:X71)+1),0) -> 0 | Y72: 0
D73: =IF(E73<>"",VLOOKUP(E73,CLIENTES!A$2:B$200,2,FALSE),"") ->  | G73: 21 | I73: 0 | J73: 0 | L73: 0 | S73: 0 | V73: 0 | W73: 0 | X73: =IF(AND(D73<>"",ISBLANK(M73),SUMIF($D$2:$D$101,D73,$F$2:$F$101)+SUMIF($D$2:$D$101,D73,$I$2:$I$101)+SUMIF($D$2:$D$101,D73,$J$2:$J$101)>3005.06),IF(COUNTIF($D$2:D73,D73)>1,VLOOKUP(D73,D$2:X73,21,FALSE),MAX($X$1:X72)+1),0) -> 0 | Y73: 0
D74: =IF(E74<>"",VLOOKUP(E74,CLIENTES!A$2:B$200,2,FALSE),"") ->  | G74: 21 | I74: 0 | J74: 0 | L74: 0 | S74: 0 | V74: 0 | W74: 0 | X74: =IF(AND(D74<>"",ISBLANK(M74),SUMIF($D$2:$D$101,D74,$F$2:$F$101)+SUMIF($D$2:$D$101,D74,$I$2:$I$101)+SUMIF($D$2:$D$101,D74,$J$2:$J$101)>3005.06),IF(COUNTIF($D$2:D74,D74)>1,VLOOKUP(D74,D$2:X74,21,FALSE),MAX($X$1:X73)+1),0) -> 0 | Y74: 0
D75: =IF(E75<>"",VLOOKUP(E75,CLIENTES!A$2:B$200,2,FALSE),"") ->  | G75: 21 | I75: 0 | J75: 0 | L75: 0 | S75: 0 | V75: 0 | W75: 0 | X75: =IF(AND(D75<>"",ISBLANK(M75),SUMIF($D$2:$D$101,D75,$F$2:$F$101)+SUMIF($D$2:$D$101,D75,$I$2:$I$101)+SUMIF($D$2:$D$101,D75,$J$2:$J$101)>3005.06),IF(COUNTIF($D$2:D75,D75)>1,VLOOKUP(D75,D$2:X75,21,FALSE),MAX($X$1:X74)+1),0) -> 0 | Y75: 0
D76: =IF(E76<>"",VLOOKUP(E76,CLIENTES!A$2:B$200,2,FALSE),"") ->  | G76: 21 | I76: 0 | J76: 0 | L76: 0 | S76: 0 | V76: 0 | W76: 0 | X76: =IF(AND(D76<>"",ISBLANK(M76),SUMIF($D$2:$D$101,D76,$F$2:$F$101)+SUMIF($D$2:$D$101,D76,$I$2:$I$101)+SUMIF($D$2:$D$101,D76,$J$2:$J$101)>3005.06),IF(COUNTIF($D$2:D76,D76)>1,VLOOKUP(D76,D$2:X76,21,FALSE),MAX($X$1:X75)+1),0) -> 0 | Y76: 0
D77: =IF(E77<>"",VLOOKUP(E77,CLIENTES!A$2:B$200,2,FALSE),"") ->  | G77: 21 | I77: 0 | J77: 0 | L77: 0 | S77: 0 | V77: 0 | W77: 0 | X77: =IF(AND(D77<>"",ISBLANK(M77),SUMIF($D$2:$D$101,D77,$F$2:$F$101)+SUMIF($D$2:$D$101,D77,$I$2:$I$101)+SUMIF($D$2:$D$101,D77,$J$2:$J$101)>3005.06),IF(COUNTIF($D$2:D77,D77)>1,VLOOKUP(D77,D$2:X77,21,FALSE),MAX($X$1:X76)+1),0) -> 0 | Y77: 0
D78: =IF(E78<>"",VLOOKUP(E78,CLIENTES!A$2:B$200,2,FALSE),"") ->  | G78: 21 | I78: 0 | J78: 0 | L78: 0 | S78: 0 | V78: 0 | W78: 0 | X78: =IF(AND(D78<>"",ISBLANK(M78),SUMIF($D$2:$D$101,D78,$F$2:$F$101)+SUMIF($D$2:$D$101,D78,$I$2:$I$101)+SUMIF($D$2:$D$101,D78,$J$2:$J$101)>3005.06),IF(COUNTIF($D$2:D78,D78)>1,VLOOKUP(D78,D$2:X78,21,FALSE),MAX($X$1:X77)+1),0) -> 0 | Y78: 0
D79: =IF(E79<>"",VLOOKUP(E79,CLIENTES!A$2:B$200,2,FALSE),"") ->  | G79: 21 | I79: 0 | J79: 0 | L79: 0 | S79: 0 | V79: 0 | W79: 0 | X79: =IF(AND(D79<>"",ISBLANK(M79),SUMIF($D$2:$D$101,D79,$F$2:$F$101)+SUMIF($D$2:$D$101,D79,$I$2:$I$101)+SUMIF($D$2:$D$101,D79,$J$2:$J$101)>3005.06),IF(COUNTIF($D$2:D79,D79)>1,VLOOKUP(D79,D$2:X79,21,FALSE),MAX($X$1:X78)+1),0) -> 0 | Y79: 0
D80: =IF(E80<>"",VLOOKUP(E80,CLIENTES!A$2:B$200,2,FALSE),"") ->  | G80: 21 | I80: 0 | J80: 0 | L80: 0 | S80: 0 | V80: 0 | W80: 0 | X80: =IF(AND(D80<>"",ISBLANK(M80),SUMIF($D$2:$D$101,D80,$F$2:$F$101)+SUMIF($D$2:$D$101,D80,$I$2:$I$101)+SUMIF($D$2:$D$101,D80,$J$2:$J$101)>3005.06),IF(COUNTIF($D$2:D80,D80)>1,VLOOKUP(D80,D$2:X80,21,FALSE),MAX($X$1:X79)+1),0) -> 0 | Y80: 0
D81: =IF(E81<>"",VLOOKUP(E81,CLIENTES!A$2:B$200,2,FALSE),"") ->  | G81: 21 | I81: 0 | J81: 0 | L81: 0 | S81: 0 | V81: 0 | W81: 0 | X81: =IF(AND(D81<>"",ISBLANK(M81),SUMIF($D$2:$D$101,D81,$F$2:$F$101)+SUMIF($D$2:$D$101,D81,$I$2:$I$101)+SUMIF($D$2:$D$101,D81,$J$2:$J$101)>3005.06),IF(COUNTIF($D$2:D81,D81)>1,VLOOKUP(D81,D$2:X81,21,FALSE),MAX($X$1:X80)+1),0) -> 0 | Y81: 0
D82: =IF(E82<>"",VLOOKUP(E82,CLIENTES!A$2:B$200,2,FALSE),"") ->  | G82: 21 | I82: 0 | J82: 0 | L82: 0 | S82: 0 | V82: 0 | W82: 0 | X82: =IF(AND(D82<>"",ISBLANK(M82),SUMIF($D$2:$D$101,D82,$F$2:$F$101)+SUMIF($D$2:$D$101,D82,$I$2:$I$101)+SUMIF($D$2:$D$101,D82,$J$2:$J$101)>3005.06),IF(COUNTIF($D$2:D82,D82)>1,VLOOKUP(D82,D$2:X82,21,FALSE),MAX($X$1:X81)+1),0) -> 0 | Y82: 0
D83: =IF(E83<>"",VLOOKUP(E83,CLIENTES!A$2:B$200,2,FALSE),"") ->  | G83: 21 | I83: 0 | J83: 0 | L83: 0 | S83: 0 | V83: 0 | W83: 0 | X83: =IF(AND(D83<>"",ISBLANK(M83),SUMIF($D$2:$D$101,D83,$F$2:$F$101)+SUMIF($D$2:$D$101,D83,$I$2:$I$101)+SUMIF($D$2:$D$101,D83,$J$2:$J$101)>3005.06),IF(COUNTIF($D$2:D83,D83)>1,VLOOKUP(D83,D$2:X83,21,FALSE),MAX($X$1:X82)+1),0) -> 0 | Y83: 0
D84: =IF(E84<>"",VLOOKUP(E84,CLIENTES!A$2:B$200,2,FALSE),"") ->  | G84: 21 | I84: 0 | J84: 0 | L84: 0 | S84: 0 | V84: 0 | W84: 0 | X84: =IF(AND(D84<>"",ISBLANK(M84),SUMIF($D$2:$D$101,D84,$F$2:$F$101)+SUMIF($D$2:$D$101,D84,$I$2:$I$101)+SUMIF($D$2:$D$101,D84,$J$2:$J$101)>3005.06),IF(COUNTIF($D$2:D84,D84)>1,VLOOKUP(D84,D$2:X84,21,FALSE),MAX($X$1:X83)+1),0) -> 0 | Y84: 0
D85: =IF(E85<>"",VLOOKUP(E85,CLIENTES!A$2:B$200,2,FALSE),"") ->  | G85: 21 | I85: 0 | J85: 0 | L85: 0 | S85: 0 | V85: 0 | W85: 0 | X85: =IF(AND(D85<>"",ISBLANK(M85),SUMIF($D$2:$D$101,D85,$F$2:$F$101)+SUMIF($D$2:$D$101,D85,$I$2:$I$101)+SUMIF($D$2:$D$101,D85,$J$2:$J$101)>3005.06),IF(COUNTIF($D$2:D85,D85)>1,VLOOKUP(D85,D$2:X85,21,FALSE),MAX($X$1:X84)+1),0) -> 0 | Y85: 0
D86: =IF(E86<>"",VLOOKUP(E86,CLIENTES!A$2:B$200,2,FALSE),"") ->  | G86: 21 | I86: 0 | J86: 0 | L86: 0 | S86: 0 | V86: 0 | W86: 0 | X86: =IF(AND(D86<>"",ISBLANK(M86),SUMIF($D$2:$D$101,D86,$F$2:$F$101)+SUMIF($D$2:$D$101,D86,$I$2:$I$101)+SUMIF($D$2:$D$101,D86,$J$2:$J$101)>3005.06),IF(COUNTIF($D$2:D86,D86)>1,VLOOKUP(D86,D$2:X86,21,FALSE),MAX($X$1:X85)+1),0) -> 0 | Y86: 0
D87: =IF(E87<>"",VLOOKUP(E87,CLIENTES!A$2:B$200,2,FALSE),"") ->  | G87: 21 | I87: 0 | J87: 0 | L87: 0 | S87: 0 | V87: 0 | W87: 0 | X87: =IF(AND(D87<>"",ISBLANK(M87),SUMIF($D$2:$D$101,D87,$F$2:$F$101)+SUMIF($D$2:$D$101,D87,$I$2:$I$101)+SUMIF($D$2:$D$101,D87,$J$2:$J$101)>3005.06),IF(COUNTIF($D$2:D87,D87)>1,VLOOKUP(D87,D$2:X87,21,FALSE),MAX($X$1:X86)+1),0) -> 0 | Y87: 0
D88: =IF(E88<>"",VLOOKUP(E88,CLIENTES!A$2:B$200,2,FALSE),"") ->  | G88: 21 | I88: 0 | J88: 0 | L88: 0 | S88: 0 | V88: 0 | W88: 0 | X88: =IF(AND(D88<>"",ISBLANK(M88),SUMIF($D$2:$D$101,D88,$F$2:$F$101)+SUMIF($D$2:$D$101,D88,$I$2:$I$101)+SUMIF($D$2:$D$101,D88,$J$2:$J$101)>3005.06),IF(COUNTIF($D$2:D88,D88)>1,VLOOKUP(D88,D$2:X88,21,FALSE),MAX($X$1:X87)+1),0) -> 0 | Y88: 0
D89: =IF(E89<>"",VLOOKUP(E89,CLIENTES!A$2:B$200,2,FALSE),"") ->  | G89: 21 | I89: 0 | J89: 0 | L89: 0 | S89: 0 | V89: 0 | W89: 0 | X89: =IF(AND(D89<>"",ISBLANK(M89),SUMIF($D$2:$D$101,D89,$F$2:$F$101)+SUMIF($D$2:$D$101,D89,$I$2:$I$101)+SUMIF($D$2:$D$101,D89,$J$2:$J$101)>3005.06),IF(COUNTIF($D$2:D89,D89)>1,VLOOKUP(D89,D$2:X89,21,FALSE),MAX($X$1:X88)+1),0) -> 0 | Y89: 0
D90: =IF(E90<>"",VLOOKUP(E90,CLIENTES!A$2:B$200,2,FALSE),"") ->  | G90: 21 | I90: 0 | J90: 0 | L90: 0 | S90: 0 | V90: 0 | W90: 0 | X90: =IF(AND(D90<>"",ISBLANK(M90),SUMIF($D$2:$D$101,D90,$F$2:$F$101)+SUMIF($D$2:$D$101,D90,$I$2:$I$101)+SUMIF($D$2:$D$101,D90,$J$2:$J$101)>3005.06),IF(COUNTIF($D$2:D90,D90)>1,VLOOKUP(D90,D$2:X90,21,FALSE),MAX($X$1:X89)+1),0) -> 0 | Y90: 0
D91: =IF(E91<>"",VLOOKUP(E91,CLIENTES!A$2:B$200,2,FALSE),"") ->  | G91: 21 | I91: 0 | J91: 0 | L91: 0 | S91: 0 | V91: 0 | W91: 0 | X91: =IF(AND(D91<>"",ISBLANK(M91),SUMIF($D$2:$D$101,D91,$F$2:$F$101)+SUMIF($D$2:$D$101,D91,$I$2:$I$101)+SUMIF($D$2:$D$101,D91,$J$2:$J$101)>3005.06),IF(COUNTIF($D$2:D91,D91)>1,VLOOKUP(D91,D$2:X91,21,FALSE),MAX($X$1:X90)+1),0) -> 0 | Y91: 0
D92: =IF(E92<>"",VLOOKUP(E92,CLIENTES!A$2:B$200,2,FALSE),"") ->  | G92: 21 | I92: 0 | J92: 0 | L92: 0 | S92: 0 | V92: 0 | W92: 0 | X92: =IF(AND(D92<>"",ISBLANK(M92),SUMIF($D$2:$D$101,D92,$F$2:$F$101)+SUMIF($D$2:$D$101,D92,$I$2:$I$101)+SUMIF($D$2:$D$101,D92,$J$2:$J$101)>3005.06),IF(COUNTIF($D$2:D92,D92)>1,VLOOKUP(D92,D$2:X92,21,FALSE),MAX($X$1:X91)+1),0) -> 0 | Y92: 0
D93: =IF(E93<>"",VLOOKUP(E93,CLIENTES!A$2:B$200,2,FALSE),"") ->  | G93: 21 | I93: 0 | J93: 0 | L93: 0 | S93: 0 | V93: 0 | W93: 0 | X93: =IF(AND(D93<>"",ISBLANK(M93),SUMIF($D$2:$D$101,D93,$F$2:$F$101)+SUMIF($D$2:$D$101,D93,$I$2:$I$101)+SUMIF($D$2:$D$101,D93,$J$2:$J$101)>3005.06),IF(COUNTIF($D$2:D93,D93)>1,VLOOKUP(D93,D$2:X93,21,FALSE),MAX($X$1:X92)+1),0) -> 0 | Y93: 0
D94: =IF(E94<>"",VLOOKUP(E94,CLIENTES!A$2:B$200,2,FALSE),"") ->  | G94: 21 | I94: 0 | J94: 0 | L94: 0 | S94: 0 | V94: 0 | W94: 0 | X94: =IF(AND(D94<>"",ISBLANK(M94),SUMIF($D$2:$D$101,D94,$F$2:$F$101)+SUMIF($D$2:$D$101,D94,$I$2:$I$101)+SUMIF($D$2:$D$101,D94,$J$2:$J$101)>3005.06),IF(COUNTIF($D$2:D94,D94)>1,VLOOKUP(D94,D$2:X94,21,FALSE),MAX($X$1:X93)+1),0) -> 0 | Y94: 0
D95: =IF(E95<>"",VLOOKUP(E95,CLIENTES!A$2:B$200,2,FALSE),"") ->  | G95: 21 | I95: 0 | J95: 0 | L95: 0 | S95: 0 | V95: 0 | W95: 0 | X95: =IF(AND(D95<>"",ISBLANK(M95),SUMIF($D$2:$D$101,D95,$F$2:$F$101)+SUMIF($D$2:$D$101,D95,$I$2:$I$101)+SUMIF($D$2:$D$101,D95,$J$2:$J$101)>3005.06),IF(COUNTIF($D$2:D95,D95)>1,VLOOKUP(D95,D$2:X95,21,FALSE),MAX($X$1:X94)+1),0) -> 0 | Y95: 0
D96: =IF(E96<>"",VLOOKUP(E96,CLIENTES!A$2:B$200,2,FALSE),"") ->  | G96: 21 | I96: 0 | J96: 0 | L96: 0 | S96: 0 | V96: 0 | W96: 0 | X96: =IF(AND(D96<>"",ISBLANK(M96),SUMIF($D$2:$D$101,D96,$F$2:$F$101)+SUMIF($D$2:$D$101,D96,$I$2:$I$101)+SUMIF($D$2:$D$101,D96,$J$2:$J$101)>3005.06),IF(COUNTIF($D$2:D96,D96)>1,VLOOKUP(D96,D$2:X96,21,FALSE),MAX($X$1:X95)+1),0) -> 0 | Y96: 0
D97: =IF(E97<>"",VLOOKUP(E97,CLIENTES!A$2:B$200,2,FALSE),"") ->  | G97: 21 | I97: 0 | J97: 0 | L97: 0 | S97: 0 | V97: 0 | W97: 0 | X97: =IF(AND(D97<>"",ISBLANK(M97),SUMIF($D$2:$D$101,D97,$F$2:$F$101)+SUMIF($D$2:$D$101,D97,$I$2:$I$101)+SUMIF($D$2:$D$101,D97,$J$2:$J$101)>3005.06),IF(COUNTIF($D$2:D97,D97)>1,VLOOKUP(D97,D$2:X97,21,FALSE),MAX($X$1:X96)+1),0) -> 0 | Y97: 0
D98: =IF(E98<>"",VLOOKUP(E98,CLIENTES!A$2:B$200,2,FALSE),"") ->  | G98: 21 | I98: 0 | J98: 0 | L98: 0 | S98: 0 | V98: 0 | W98: 0 | X98: =IF(AND(D98<>"",ISBLANK(M98),SUMIF($D$2:$D$101,D98,$F$2:$F$101)+SUMIF($D$2:$D$101,D98,$I$2:$I$101)+SUMIF($D$2:$D$101,D98,$J$2:$J$101)>3005.06),IF(COUNTIF($D$2:D98,D98)>1,VLOOKUP(D98,D$2:X98,21,FALSE),MAX($X$1:X97)+1),0) -> 0 | Y98: 0
D99: =IF(E99<>"",VLOOKUP(E99,CLIENTES!A$2:B$200,2,FALSE),"") ->  | G99: 21 | I99: 0 | J99: 0 | L99: 0 | S99: 0 | V99: 0 | W99: 0 | X99: =IF(AND(D99<>"",ISBLANK(M99),SUMIF($D$2:$D$101,D99,$F$2:$F$101)+SUMIF($D$2:$D$101,D99,$I$2:$I$101)+SUMIF($D$2:$D$101,D99,$J$2:$J$101)>3005.06),IF(COUNTIF($D$2:D99,D99)>1,VLOOKUP(D99,D$2:X99,21,FALSE),MAX($X$1:X98)+1),0) -> 0 | Y99: 0
D100: =IF(E100<>"",VLOOKUP(E100,CLIENTES!A$2:B$200,2,FALSE),"") ->  | G100: 21 | I100: 0 | J100: 0 | L100: 0 | S100: 0 | V100: 0 | W100: 0 | X100: =IF(AND(D100<>"",ISBLANK(M100),SUMIF($D$2:$D$101,D100,$F$2:$F$101)+SUMIF($D$2:$D$101,D100,$I$2:$I$101)+SUMIF($D$2:$D$101,D100,$J$2:$J$101)>3005.06),IF(COUNTIF($D$2:D100,D100)>1,VLOOKUP(D100,D$2:X100,21,FALSE),MAX($X$1:X99)+1),0) -> 0 | Y100: 0
D101: =IF(E101<>"",VLOOKUP(E101,CLIENTES!A$2:B$200,2,FALSE),"") ->  | G101: 21 | I101: 0 | J101: 0 | L101: 0 | S101: 0 | V101: 0 | W101: 0 | X101: =IF(AND(D101<>"",ISBLANK(M101),SUMIF($D$2:$D$101,D101,$F$2:$F$101)+SUMIF($D$2:$D$101,D101,$I$2:$I$101)+SUMIF($D$2:$D$101,D101,$J$2:$J$101)>3005.06),IF(COUNTIF($D$2:D101,D101)>1,VLOOKUP(D101,D$2:X101,21,FALSE),MAX($X$1:X100)+1),0) -> 0 | Y101: 0
E102: TOTAL EJERCICIO | F102: =SUM(F2:F101) -> 0 | I102: =SUM(I2:I101) -> 0 | J102: =SUM(J2:J101) -> 0 | K102: =SUM(K2:K101) -> 0 | L102: =SUM(L2:L101) -> 0

Sheet GASTOS
A1: FECHA REGISTRO | B1: FECHA FACTURA | C1: Nº FACTURA | D1: NIF | E1: APELLIDOS Y NOMBRE O RAZÓN SOCIAL | F1: DESCRIPCIÓN | G1: CONSUMOS EXPLOTACIÓN | H1: SUELDOS SALARIOS | I1: OTROS GASTOS PERSONAL | J1: SEGURIDAD SOCIAL | K1: ARRENDAM. CÁNONES | L1: REPARACIONES CONSERVACIÓN | M1: SERVICIOS PROFESIONALES INDEPENDIENTES | N1: OTROS SERV. EXTERIORES (INCLUID. SUMINISTROS) | O1: TRIBUTOS DEDUCIBLES | P1: GASTOS FINANCIEROS | Q1: AMORTIZACIONES DOTACIONES DEDUCIBLES | R1: PÉRDIDAS DETERIORO VALOR ELEMENTOS PATRIMONIALES | S1: OTROS GASTOS | T1: BASE IMPONIBLE IRPF | U1: BASE IMPONIBLE IVA | V1: % IVA | W1: CUOTA IVA SOPORT | X1: RETENCIÓN IRPF | Y1: TOTAL FACTURA | Z1: INTRACOMUNITARIO | AA1: BIENES DE INVERSIÓN (op.interior.) | AB1: RECTIFICATIVAS | AC1: CRITERIO CAJA | AD1: FECHA PAGO | AE1: CRITERIO CAJA BASE | AF1: % IVA | AG1: CRITERIO CAJA CUOTA | AH1: MEDIO DE PAGO | AI1: COMPENSACIONES REG. AGP GAN Y P. | AK1: Trimestre | AL1: Trimestre Rég. Criterio Caja | AM1: Nº de Declarado Modelo 347 | AN1: Trimestre Modelo 347
B2: =IF(A2<>"",A2,"") ->  | D2: =IF(E2<>"",VLOOKUP(E2,PROVEEDORES!A$2:B$200,2,FALSE),"") ->  | T2: =SUM(G2:S2) -> 0 | U2: =SUM(G2,K2:N2,S2) -> 0 | V2: 21 | W2: =ROUND((U2*(V2/100)),2) -> 0 | Y2: =SUM(U2)+W2-X2 -> 0 | AG2: =ROUND((AE2*(AF2/100)),2) -> 0 | AK2: =IF(A2>0,ROUNDUP(MONTH(A2)/3,0),0) -> 0 | AL2: =IF(AND(AC2>0,AD2>0),ROUNDUP(MONTH(AD2)/3,0),0) -> 0 | AM2: =IF(AND(D2<>"",ISBLANK(Z2),SUMIF($D$2:$D$101,D2,$U$2:$U$101)+SUMIF($D$2:$D$101,D2,$W$2:$W$101)>3005.06),IF(COUNTIF($D$2:D2,D2)>1,VLOOKUP(D2,D$2:AM2,36,FALSE),IF(MAX($AM$1:AM1)>MAX(INGRESOS!$X$1:$X$101),MAX($AM$1:AM1)+1,MAX(INGRESOS!$X$1:$X$101)+1)),0) -> 0 | AN2: =IF(AM2>0,ROUNDUP(MONTH(B2)/3,0),0) -> 0
B3: =IF(A3<>"",A3,"") ->  | D3: =IF(E3<>"",VLOOKUP(E3,PROVEEDORES!A$2:B$200,2,FALSE),"") ->  | T3: 0 | U3: =SUM(G3,K3:N3,S3) -> 0 | V3: 21 | W3: =ROUND((U3*(V3/100)),2) -> 0 | Y3: =SUM(U3)+W3-X3 -> 0 | AG3: =ROUND((AE3*(AF3/100)),2) -> 0 | AK3: =IF(A3>0,ROUNDUP(MONTH(A3)/3,0),0) -> 0 | AL3: =IF(AND(AC3>0,AD3>0),ROUNDUP(MONTH(AD3)/3,0),0) -> 0 | AM3: =IF(AND(D3<>"",ISBLANK(Z3),SUMIF($D$2:$D$101,D3,$U$2:$U$101)+SUMIF($D$2:$D$101,D3,$W$2:$W$101)>3005.06),IF(COUNTIF($D$2:D3,D3)>1,VLOOKUP(D3,D$2:AM3,36,FALSE),IF(MAX($AM$1:AM2)>MAX(INGRESOS!$X$1:$X$101),MAX($AM$1:AM2)+1,MAX(INGRESOS!$X$1:$X$101)+1)),0) -> 0 | AN3: 0
D4: =IF(E4<>"",VLOOKUP(E4,PROVEEDORES!A$2:B$200,2,FALSE),"") ->  | T4: 0 | U4: 0 | V4: 21 | W4: 0 | Y4: 0 | AG4: 0 | AK4: 0 | AL4: 0 | AM4: =IF(AND(D4<>"",ISBLANK(Z4),SUMIF($D$2:$D$101,D4,$U$2:$U$101)+SUMIF($D$2:$D$101,D4,$W$2:$W$101)>3005.06),IF(COUNTIF($D$2:D4,D4)>1,VLOOKUP(D4,D$2:AM4,36,FALSE),IF(MAX($AM$1:AM3)>MAX(INGRESOS!$X$1:$X$101),MAX($AM$1:AM3)+1,MAX(INGRESOS!$X$1:$X$101)+1)),0) -> 0 | AN4: 0
D5: =IF(E5<>"",VLOOKUP(E5,PROVEEDORES!A$2:B$200,2,FALSE),"") ->  | T5: 0 | U5: 0 | V5: 21 | W5: 0 | Y5: 0 | AG5: 0 | AK5: 0 | AL5: 0 | AM5: =IF(AND(D5<>"",ISBLANK(Z5),SUMIF($D$2:$D$101,D5,$U$2:$U$101)+SUMIF($D$2:$D$101,D5,$W$2:$W$101)>3005.06),IF(COUNTIF($D$2:D5,D5)>1,VLOOKUP(D5,D$2:AM5,36,FALSE),IF(MAX($AM$1:AM4)>MAX(INGRESOS!$X$1:$X$101),MAX($AM$1:AM4)+1,MAX(INGRESOS!$X$1:$X$101)+1)),0) -> 0 | AN5: 0
D6: =IF(E6<>"",VLOOKUP(E6,PROVEEDORES!A$2:B$200,2,FALSE),"") ->  | T6: 0 | U6: 0 | V6: 21 | W6: 0 | Y6: 0 | AG6: 0 | AK6: 0 | AL6: 0 | AM6: =IF(AND(D6<>"",ISBLANK(Z6),SUMIF($D$2:$D$101,D6,$U$2:$U$101)+SUMIF($D$2:$D$101,D6,$W$2:$W$101)>3005.06),IF(COUNTIF($D$2:D6,D6)>1,VLOOKUP(D6,D$2:AM6,36,FALSE),IF(MAX($AM$1:AM5)>MAX(INGRESOS!$X$1:$X$101),MAX($AM$1:AM5)+1,MAX(INGRESOS!$X$1:$X$101)+1)),0) -> 0 | AN6: 0
D7: =IF(E7<>"",VLOOKUP(E7,PROVEEDORES!A$2:B$200,2,FALSE),"") ->  | T7: 0 | U7: 0 | V7: 21 | W7: 0 | Y7: 0 | AG7: 0 | AK7: 0 | AL7: 0 | AM7: =IF(AND(D7<>"",ISBLANK(Z7),SUMIF($D$2:$D$101,D7,$U$2:$U$101)+SUMIF($D$2:$D$101,D7,$W$2:$W$101)>3005.06),IF(COUNTIF($D$2:D7,D7)>1,VLOOKUP(D7,D$2:AM7,36,FALSE),IF(MAX($AM$1:AM6)>MAX(INGRESOS!$X$1:$X$101),MAX($AM$1:AM6)+1,MAX(INGRESOS!$X$1:$X$101)+1)),0) -> 0 | AN7: 0
D8: =IF(E8<>"",VLOOKUP(E8,PROVEEDORES!A$2:B$200,2,FALSE),"") ->  | T8: 0 | U8: 0 | V8: 21 | W8: 0 | Y8: 0 | AG8: 0 | AK8: 0 | AL8: 0 | AM8: =IF(AND(D8<>"",ISBLANK(Z8),SUMIF($D$2:$D$101,D8,$U$2:$U$101)+SUMIF($D$2:$D$101,D8,$W$2:$W$101)>3005.06),IF(COUNTIF($D$2:D8,D8)>1,VLOOKUP(D8,D$2:AM8,36,FALSE),IF(MAX($AM$1:AM7)>MAX(INGRESOS!$X$1:$X$101),MAX($AM$1:AM7)+1,MAX(INGRESOS!$X$1:$X$101)+1)),0) -> 0 | AN8: 0
D9: =IF(E9<>"",VLOOKUP(E9,PROVEEDORES!A$2:B$200,2,FALSE),"") ->  | T9: 0 | U9: 0 | V9: 21 | W9: 0 | Y9: 0 | AG9: 0 | AK9: 0 | AL9: 0 | AM9: =IF(AND(D9<>"",ISBLANK(Z9),SUMIF($D$2:$D$101,D9,$U$2:$U$101)+SUMIF($D$2:$D$101,D9,$W$2:$W$101)>3005.06),IF(COUNTIF($D$2:D9,D9)>1,VLOOKUP(D9,D$2:AM9,36,FALSE),IF(MAX($AM$1:AM8)>MAX(INGRESOS!$X$1:$X$101),MAX($AM$1:AM8)+1,MAX(INGRESOS!$X$1:$X$101)+1)),0) -> 0 | AN9: 0
D10: =IF(E10<>"",VLOOKUP(E10,PROVEEDORES!A$2:B$200,2,FALSE),"") ->  | T10: 0 | U10: 0 | V10: 21 | W10: 0 | Y10: 0 | AG10: 0 | AK10: 0 | AL10: 0 | AM10: =IF(AND(D10<>"",ISBLANK(Z10),SUMIF($D$2:$D$101,D10,$U$2:$U$101)+SUMIF($D$2:$D$101,D10,$W$2:$W$101)>3005.06),IF(COUNTIF($D$2:D10,D10)>1,VLOOKUP(D10,D$2:AM10,36,FALSE),IF(MAX($AM$1:AM9)>MAX(INGRESOS!$X$1:$X$101),MAX($AM$1:AM9)+1,MAX(INGRESOS!$X$1:$X$101)+1)),0) -> 0 | AN10: 0
D11: =IF(E11<>"",VLOOKUP(E11,PROVEEDORES!A$2:B$200,2,FALSE),"") ->  | T11: 0 | U11: 0 | V11: 21 | W11: 0 | Y11: 0 | AG11: 0 | AK11: 0 | AL11: 0 | AM11: =IF(AND(D11<>"",ISBLANK(Z11),SUMIF($D$2:$D$101,D11,$U$2:$U$101)+SUMIF($D$2:$D$101,D11,$W$2:$W$101)>3005.06),IF(COUNTIF($D$2:D11,D11)>1,VLOOKUP(D11,D$2:AM11,36,FALSE),IF(MAX($AM$1:AM10)>MAX(INGRESOS!$X$1:$X$101),MAX($AM$1:AM10)+1,MAX(INGRESOS!$X$1:$X$101)+1)),0) -> 0 | AN11: 0
D12: =IF(E12<>"",VLOOKUP(E12,PROVEEDORES!A$2:B$200,2,FALSE),"") ->  | T12: 0 | U12: 0 | V12: 21 | W12: 0 | Y12: 0 | AG12: 0 | AK12: 0 | AL12: 0 | AM12: =IF(AND(D12<>"",ISBLANK(Z12),SUMIF($D$2:$D$101,D12,$U$2:$U$101)+SUMIF($D$2:$D$101,D12,$W$2:$W$101)>3005.06),IF(COUNTIF($D$2:D12,D12)>1,VLOOKUP(D12,D$2:AM12,36,FALSE),IF(MAX($AM$1:AM11)>MAX(INGRESOS!$X$1:$X$101),MAX($AM$1:AM11)+1,MAX(INGRESOS!$X$1:$X$101)+1)),0) -> 0 | AN12: 0
D13: =IF(E13<>"",VLOOKUP(E13,PROVEEDORES!A$2:B$200,2,FALSE),"") ->  | T13: 0 | U13: 0 | V13: 21 | W13: 0 | Y13: 0 | AG13: 0 | AK13: 0 | AL13: 0 | AM13: =IF(AND(D13<>"",ISBLANK(Z13),SUMIF($D$2:$D$101,D13,$U$2:$U$101)+SUMIF($D$2:$D$101,D13,$W$2:$W$101)>3005.06),IF(COUNTIF($D$2:D13,D13)>1,VLOOKUP(D13,D$2:AM13,36,FALSE),IF(MAX($AM$1:AM12)>MAX(INGRESOS!$X$1:$X$101),MAX($AM$1:AM12)+1,MAX(INGRESOS!$X$1:$X$101)+1)),0) -> 0 | AN13: 0
D14: =IF(E14<>"",VLOOKUP(E14,PROVEEDORES!A$2:B$200,2,FALSE),"") ->  | T14: 0 | U14: 0 | V14: 21 | W14: 0 | Y14: 0 | AG14: 0 | AK14: 0 | AL14: 0 | AM14: =IF(AND(D14<>"",ISBLANK(Z14),SUMIF($D$2:$D$101,D14,$U$2:$U$101)+SUMIF($D$2:$D$101,D14,$W$2:$W$101)>3005.06),IF(COUNTIF($D$2:D14,D14)>1,VLOOKUP(D14,D$2:AM14,36,FALSE),IF(MAX($AM$1:AM13)>MAX(INGRESOS!$X$1:$X$101),MAX($AM$1:AM13)+1,MAX(INGRESOS!$X$1:$X$101)+1)),0) -> 0 | AN14: 0
D15: =IF(E15<>"",VLOOKUP(E15,PROVEEDORES!A$2:B$200,2,FALSE),"") ->  | T15: 0 | U15: 0 | V15: 21 | W15: 0 | Y15: 0 | AG15: 0 | AK15: 0 | AL15: 0 | AM15: =IF(AND(D15<>"",ISBLANK(Z15),SUMIF($D$2:$D$101,D15,$U$2:$U$101)+SUMIF($D$2:$D$101,D15,$W$2:$W$101)>3005.06),IF(COUNTIF($D$2:D15,D15)>1,VLOOKUP(D15,D$2:AM15,36,FALSE),IF(MAX($AM$1:AM14)>MAX(INGRESOS!$X$1:$X$101),MAX($AM$1:AM14)+1,MAX(INGRESOS!$X$1:$X$101)+1)),0) -> 0 | AN15: 0
D16: =IF(E16<>"",VLOOKUP(E16,PROVEEDORES!A$2:B$200,2,FALSE),"") ->  | T16: 0 | U16: 0 | V16: 21 | W16: 0 | Y16: 0 | AG16: 0 | AK16: 0 | AL16: 0 | AM16: =IF(AND(D16<>"",ISBLANK(Z16),SUMIF($D$2:$D$101,D16,$U$2:$U$101)+SUMIF($D$2:$D$101,D16,$W$2:$W$101)>3005.06),IF(COUNTIF($D$2:D16,D16)>1,VLOOKUP(D16,D$2:AM16,36,FALSE),IF(MAX($AM$1:AM15)>MAX(INGRESOS!$X$1:$X$101),MAX($AM$1:AM15)+1,MAX(INGRESOS!$X$1:$X$101)+1)),0) -> 0 | AN16: 0
D17: =IF(E17<>"",VLOOKUP(E17,PROVEEDORES!A$2:B$200,2,FALSE),"") ->  | T17: 0 | U17: 0 | V17: 21 | W17: 0 | Y17: 0 | AG17: 0 | AK17: 0 | AL17: 0 | AM17: =IF(AND(D17<>"",ISBLANK(Z17),SUMIF($D$2:$D$101,D17,$U$2:$U$101)+SUMIF($D$2:$D$101,D17,$W$2:$W$101)>3005.06),IF(COUNTIF($D$2:D17,D17)>1,VLOOKUP(D17,D$2:AM17,36,FALSE),IF(MAX($AM$1:AM16)>MAX(INGRESOS!$X$1:$X$101),MAX($AM$1:AM16)+1,MAX(INGRESOS!$X$1:$X$101)+1)),0) -> 0 | AN17: 0
D18: =IF(E18<>"",VLOOKUP(E18,PROVEEDORES!A$2:B$200,2,FALSE),"") ->  | T18: 0 | U18: 0 | V18: 21 | W18: 0 | Y18: 0 | AG18: 0 | AK18: 0 | AL18: 0 | AM18: =IF(AND(D18<>"",ISBLANK(Z18),SUMIF($D$2:$D$101,D18,$U$2:$U$101)+SUMIF($D$2:$D$101,D18,$W$2:$W$101)>3005.06),IF(COUNTIF($D$2:D18,D18)>1,VLOOKUP(D18,D$2:AM18,36,FALSE),IF(MAX($AM$1:AM17)>MAX(INGRESOS!$X$1:$X$101),MAX($AM$1:AM17)+1,MAX(INGRESOS!$X$1:$X$101)+1)),0) -> 0 | AN18: 0
D19: =IF(E19<>"",VLOOKUP(E19,PROVEEDORES!A$2:B$200,2,FALSE),"") ->  | T19: 0 | U19: 0 | V19: 21 | W19: 0 | Y19: 0 | AG19: 0 | AK19: 0 | AL19: 0 | AM19: =IF(AND(D19<>"",ISBLANK(Z19),SUMIF($D$2:$D$101,D19,$U$2:$U$101)+SUMIF($D$2:$D$101,D19,$W$2:$W$101)>3005.06),IF(COUNTIF($D$2:D19,D19)>1,VLOOKUP(D19,D$2:AM19,36,FALSE),IF(MAX($AM$1:AM18)>MAX(INGRESOS!$X$1:$X$101),MAX($AM$1:AM18)+1,MAX(INGRESOS!$X$1:$X$101)+1)),0) -> 0 | AN19: 0
D20: =IF(E20<>"",VLOOKUP(E20,PROVEEDORES!A$2:B$200,2,FALSE),"") ->  | T20: 0 | U20: 0 | V20: 21 | W20: 0 | Y20: 0 | AG20: 0 | AK20: 0 | AL20: 0 | AM20: =IF(AND(D20<>"",ISBLANK(Z20),SUMIF($D$2:$D$101,D20,$U$2:$U$101)+SUMIF($D$2:$D$101,D20,$W$2:$W$101)>3005.06),IF(COUNTIF($D$2:D20,D20)>1,VLOOKUP(D20,D$2:AM20,36,FALSE),IF(MAX($AM$1:AM19)>MAX(INGRESOS!$X$1:$X$101),MAX($AM$1:AM19)+1,MAX(INGRESOS!$X$1:$X$101)+1)),0) -> 0 | AN20: 0
D21: =IF(E21<>"",VLOOKUP(E21,PROVEEDORES!A$2:B$200,2,FALSE),"") ->  | T21: 0 | U21: 0 | V21: 21 | W21: 0 | Y21: 0 | AG21: 0 | AK21: 0 | AL21: 0 | AM21: =IF(AND(D21<>"",ISBLANK(Z21),SUMIF($D$2:$D$101,D21,$U$2:$U$101)+SUMIF($D$2:$D$101,D21,$W$2:$W$101)>3005.06),IF(COUNTIF($D$2:D21,D21)>1,VLOOKUP(D21,D$2:AM21,36,FALSE),IF(MAX($AM$1:AM20)>MAX(INGRESOS!$X$1:$X$101),MAX($AM$1:AM20)+1,MAX(INGRESOS!$X$1:$X$101)+1)),0) -> 0 | AN21: 0
D22: =IF(E22<>"",VLOOKUP(E22,PROVEEDORES!A$2:B$200,2,FALSE),"") ->  | T22: 0 | U22: 0 | V22: 21 | W22: 0 | Y22: 0 | AG22: 0 | AK22: 0 | AL22: 0 | AM22: =IF(AND(D22<>"",ISBLANK(Z22),SUMIF($D$2:$D$101,D22,$U$2:$U$101)+SUMIF($D$2:$D$101,D22,$W$2:$W$101)>3005.06),IF(COUNTIF($D$2:D22,D22)>1,VLOOKUP(D22,D$2:AM22,36,FALSE),IF(MAX($AM$1:AM21)>MAX(INGRESOS!$X$1:$X$101),MAX($AM$1:AM21)+1,MAX(INGRESOS!$X$1:$X$101)+1)),0) -> 0 | AN22: 0
D23: =IF(E23<>"",VLOOKUP(E23,PROVEEDORES!A$2:B$200,2,FALSE),"") ->  | T23: 0 | U23: 0 | V23: 21 | W23: 0 | Y23: 0 | AG23: 0 | AK23: 0 | AL23: 0 | AM23: =IF(AND(D23<>"",ISBLANK(Z23),SUMIF($D$2:$D$101,D23,$U$2:$U$101)+SUMIF($D$2:$D$101,D23,$W$2:$W$101)>3005.06),IF(COUNTIF($D$2:D23,D23)>1,VLOOKUP(D23,D$2:AM23,36,FALSE),IF(MAX($AM$1:AM22)>MAX(INGRESOS!$X$1:$X$101),MAX($AM$1:AM22)+1,MAX(INGRESOS!$X$1:$X$101)+1)),0) -> 0 | AN23: 0
D24: =IF(E24<>"",VLOOKUP(E24,PROVEEDORES!A$2:B$200,2,FALSE),"") ->  | T24: 0 | U24: 0 | V24: 21 | W24: 0 | Y24: 0 | AG24: 0 | AK24: 0 | AL24: 0 | AM24: =IF(AND(D24<>"",ISBLANK(Z24),SUMIF($D$2:$D$101,D24,$U$2:$U$101)+SUMIF($D$2:$D$101,D24,$W$2:$W$101)>3005.06),IF(COUNTIF($D$2:D24,D24)>1,VLOOKUP(D24,D$2:AM24,36,FALSE),IF(MAX($AM$1:AM23)>MAX(INGRESOS!$X$1:$X$101),MAX($AM$1:AM23)+1,MAX(INGRESOS!$X$1:$X$101)+1)),0) -> 0 | AN24: 0
D25: =IF(E25<>"",VLOOKUP(E25,PROVEEDORES!A$2:B$200,2,FALSE),"") ->  | T25: 0 | U25: 0 | V25: 21 | W25: 0 | Y25: 0 | AG25: 0 | AK25: 0 | AL25: 0 | AM25: =IF(AND(D25<>"",ISBLANK(Z25),SUMIF($D$2:$D$101,D25,$U$2:$U$101)+SUMIF($D$2:$D$101,D25,$W$2:$W$101)>3005.06),IF(COUNTIF($D$2:D25,D25)>1,VLOOKUP(D25,D$2:AM25,36,FALSE),IF(MAX($AM$1:AM24)>MAX(INGRESOS!$X$1:$X$101),MAX($AM$1:AM24)+1,MAX(INGRESOS!$X$1:$X$101)+1)),0) -> 0 | AN25: 0
D26: =IF(E26<>"",VLOOKUP(E26,PROVEEDORES!A$2:B$200,2,FALSE),"") ->  | T26: 0 | U26: 0 | V26: 21 | W26: 0 | Y26: 0 | AG26: 0 | AK26: 0 | AL26: 0 | AM26: =IF(AND(D26<>"",ISBLANK(Z26),SUMIF($D$2:$D$101,D26,$U$2:$U$101)+SUMIF($D$2:$D$101,D26,$W$2:$W$101)>3005.06),IF(COUNTIF($D$2:D26,D26)>1,VLOOKUP(D26,D$2:AM26,36,FALSE),IF(MAX($AM$1:AM25)>MAX(INGRESOS!$X$1:$X$101),MAX($AM$1:AM25)+1,MAX(INGRESOS!$X$1:$X$101)+1)),0) -> 0 | AN26: 0
D27: =IF(E27<>"",VLOOKUP(E27,PROVEEDORES!A$2:B$200,2,FALSE),"") ->  | T27: 0 | U27: 0 | V27: 21 | W27: 0 | Y27: 0 | AG27: 0 | AK27: 0 | AL27: 0 | AM27: =IF(AND(D27<>"",ISBLANK(Z27),SUMIF($D$2:$D$101,D27,$U$2:$U$101)+SUMIF($D$2:$D$101,D27,$W$2:$W$101)>3005.06),IF(COUNTIF($D$2:D27,D27)>1,VLOOKUP(D27,D$2:AM27,36,FALSE),IF(MAX($AM$1:AM26)>MAX(INGRESOS!$X$1:$X$101),MAX($AM$1:AM26)+1,MAX(INGRESOS!$X$1:$X$101)+1)),0) -> 0 | AN27: 0
D28: =IF(E28<>"",VLOOKUP(E28,PROVEEDORES!A$2:B$200,2,FALSE),"") ->  | T28: 0 | U28: 0 | V28: 21 | W28: 0 | Y28: 0 | AG28: 0 | AK28: 0 | AL28: 0 | AM28: =IF(AND(D28<>"",ISBLANK(Z28),SUMIF($D$2:$D$101,D28,$U$2:$U$101)+SUMIF($D$2:$D$101,D28,$W$2:$W$101)>3005.06),IF(COUNTIF($D$2:D28,D28)>1,VLOOKUP(D28,D$2:AM28,36,FALSE),IF(MAX($AM$1:AM27)>MAX(INGRESOS!$X$1:$X$101),MAX($AM$1:AM27)+1,MAX(INGRESOS!$X$1:$X$101)+1)),0) -> 0 | AN28: 0
D29: =IF(E29<>"",VLOOKUP(E29,PROVEEDORES!A$2:B$200,2,FALSE),"") ->  | T29: 0 | U29: 0 | V29: 21 | W29: 0 | Y29: 0 | AG29: 0 | AK29: 0 | AL29: 0 | AM29: =IF(AND(D29<>"",ISBLANK(Z29),SUMIF($D$2:$D$101,D29,$U$2:$U$101)+SUMIF($D$2:$D$101,D29,$W$2:$W$101)>3005.06),IF(COUNTIF($D$2:D29,D29)>1,VLOOKUP(D29,D$2:AM29,36,FALSE),IF(MAX($AM$1:AM28)>MAX(INGRESOS!$X$1:$X$101),MAX($AM$1:AM28)+1,MAX(INGRESOS!$X$1:$X$101)+1)),0) -> 0 | AN29: 0
D30: =IF(E30<>"",VLOOKUP(E30,PROVEEDORES!A$2:B$200,2,FALSE),"") ->  | T30: 0 | U30: 0 | V30: 21 | W30: 0 | Y30: 0 | AG30: 0 | AK30: 0 | AL30: 0 | AM30: =IF(AND(D30<>"",ISBLANK(Z30),SUMIF($D$2:$D$101,D30,$U$2:$U$101)+SUMIF($D$2:$D$101,D30,$W$2:$W$101)>3005.06),IF(COUNTIF($D$2:D30,D30)>1,VLOOKUP(D30,D$2:AM30,36,FALSE),IF(MAX($AM$1:AM29)>MAX(INGRESOS!$X$1:$X$101),MAX($AM$1:AM29)+1,MAX(INGRESOS!$X$1:$X$101)+1)),0) -> 0 | AN30: 0
D31: =IF(E31<>"",VLOOKUP(E31,PROVEEDORES!A$2:B$200,2,FALSE),"") ->  | T31: 0 | U31: 0 | V31: 21 | W31: 0 | Y31: 0 | AG31: 0 | AK31: 0 | AL31: 0 | AM31: =IF(AND(D31<>"",ISBLANK(Z31),SUMIF($D$2:$D$101,D31,$U$2:$U$101)+SUMIF($D$2:$D$101,D31,$W$2:$W$101)>3005.06),IF(COUNTIF($D$2:D31,D31)>1,VLOOKUP(D31,D$2:AM31,36,FALSE),IF(MAX($AM$1:AM30)>MAX(INGRESOS!$X$1:$X$101),MAX($AM$1:AM30)+1,MAX(INGRESOS!$X$1:$X$101)+1)),0) -> 0 | AN31: 0
D32: =IF(E32<>"",VLOOKUP(E32,PROVEEDORES!A$2:B$200,2,FALSE),"") ->  | T32: 0 | U32: 0 | V32: 21 | W32: 0 | Y32: 0 | AG32: 0 | AK32: 0 | AL32: 0 | AM32: =IF(AND(D32<>"",ISBLANK(Z32),SUMIF($D$2:$D$101,D32,$U$2:$U$101)+SUMIF($D$2:$D$101,D32,$W$2:$W$101)>3005.06),IF(COUNTIF($D$2:D32,D32)>1,VLOOKUP(D32,D$2:AM32,36,FALSE),IF(MAX($AM$1:AM31)>MAX(INGRESOS!$X$1:$X$101),MAX($AM$1:AM31)+1,MAX(INGRESOS!$X$1:$X$101)+1)),0) -> 0 | AN32: 0
D33: =IF(E33<>"",VLOOKUP(E33,PROVEEDORES!A$2:B$200,2,FALSE),"") ->  | T33: 0 | U33: 0 | V33: 21 | W33: 0 | Y33: 0 | AG33: 0 | AK33: 0 | AL33: 0 | AM33: =IF(AND(D33<>"",ISBLANK(Z33),SUMIF($D$2:$D$101,D33,$U$2:$U$101)+SUMIF($D$2:$D$101,D33,$W$2:$W$101)>3005.06),IF(COUNTIF($D$2:D33,D33)>1,VLOOKUP(D33,D$2:AM33,36,FALSE),IF(MAX($AM$1:AM32)>MAX(INGRESOS!$X$1:$X$101),MAX($AM$1:AM32)+1,MAX(INGRESOS!$X$1:$X$101)+1)),0) -> 0 | AN33: 0
D34: =IF(E34<>"",VLOOKUP(E34,PROVEEDORES!A$2:B$200,2,FALSE),"") ->  | T34: 0 | U34: 0 | V34: 21 | W34: 0 | Y34: 0 | AG34: 0 | AK34: 0 | AL34: 0 | AM34: =IF(AND(D34<>"",ISBLANK(Z34),SUMIF($D$2:$D$101,D34,$U$2:$U$101)+SUMIF($D$2:$D$101,D34,$W$2:$W$101)>3005.06),IF(COUNTIF($D$2:D34,D34)>1,VLOOKUP(D34,D$2:AM34,36,FALSE),IF(MAX($AM$1:AM33)>MAX(INGRESOS!$X$1:$X$101),MAX($AM$1:AM33)+1,MAX(INGRESOS!$X$1:$X$101)+1)),0) -> 0 | AN34: =IF(AM34>0,ROUNDUP(MONTH(B34)/3,0),0) -> 0
D35: =IF(E35<>"",VLOOKUP(E35,PROVEEDORES!A$2:B$200,2,FALSE),"") ->  | T35: 0 | U35: 0 | V35: 21 | W35: 0 | Y35: 0 | AG35: 0 | AK35: 0 | AL35: 0 | AM35: =IF(AND(D35<>"",ISBLANK(Z35),SUMIF($D$2:$D$101,D35,$U$2:$U$101)+SUMIF($D$2:$D$101,D35,$W$2:$W$101)>3005.06),IF(COUNTIF($D$2:D35,D35)>1,VLOOKUP(D35,D$2:AM35,36,FALSE),IF(MAX($AM$1:AM34)>MAX(INGRESOS!$X$1:$X$101),MAX($AM$1:AM34)+1,MAX(INGRESOS!$X$1:$X$101)+1)),0) -> 0 | AN35: 0
D36: =IF(E36<>"",VLOOKUP(E36,PROVEEDORES!A$2:B$200,2,FALSE),"") ->  | T36: 0 | U36: 0 | V36: 21 | W36: 0 | Y36: 0 | AG36: 0 | AK36: 0 | AL36: 0 | AM36: =IF(AND(D36<>"",ISBLANK(Z36),SUMIF($D$2:$D$101,D36,$U$2:$U$101)+SUMIF($D$2:$D$101,D36,$W$2:$W$101)>3005.06),IF(COUNTIF($D$2:D36,D36)>1,VLOOKUP(D36,D$2:AM36,36,FALSE),IF(MAX($AM$1:AM35)>MAX(INGRESOS!$X$1:$X$101),MAX($AM$1:AM35)+1,MAX(INGRESOS!$X$1:$X$101)+1)),0) -> 0 | AN36: 0
D37: =IF(E37<>"",VLOOKUP(E37,PROVEEDORES!A$2:B$200,2,FALSE),"") ->  | T37: 0 | U37: 0 | V37: 21 | W37: 0 | Y37: 0 | AG37: 0 | AK37: 0 | AL37: 0 | AM37: =IF(AND(D37<>"",ISBLANK(Z37),SUMIF($D$2:$D$101,D37,$U$2:$U$101)+SUMIF($D$2:$D$101,D37,$W$2:$W$101)>3005.06),IF(COUNTIF($D$2:D37,D37)>1,VLOOKUP(D37,D$2:AM37,36,FALSE),IF(MAX($AM$1:AM36)>MAX(INGRESOS!$X$1:$X$101),MAX($AM$1:AM36)+1,MAX(INGRESOS!$X$1:$X$101)+1)),0) -> 0 | AN37: 0
D38: =IF(E38<>"",VLOOKUP(E38,PROVEEDORES!A$2:B$200,2,FALSE),"") ->  | T38: 0 | U38: 0 | V38: 21 | W38: 0 | Y38: 0 | AG38: 0 | AK38: 0 | AL38: 0 | AM38: =IF(AND(D38<>"",ISBLANK(Z38),SUMIF($D$2:$D$101,D38,$U$2:$U$101)+SUMIF($D$2:$D$101,D38,$W$2:$W$101)>3005.06),IF(COUNTIF($D$2:D38,D38)>1,VLOOKUP(D38,D$2:AM38,36,FALSE),IF(MAX($AM$1:AM37)>MAX(INGRESOS!$X$1:$X$101),MAX($AM$1:AM37)+1,MAX(INGRESOS!$X$1:$X$101)+1)),0) -> 0 | AN38: 0
D39: =IF(E39<>"",VLOOKUP(E39,PROVEEDORES!A$2:B$200,2,FALSE),"") ->  | T39: 0 | U39: 0 | V39: 21 | W39: 0 | Y39: 0 | AG39: 0 | AK39: 0 | AL39: 0 | AM39: =IF(AND(D39<>"",ISBLANK(Z39),SUMIF($D$2:$D$101,D39,$U$2:$U$101)+SUMIF($D$2:$D$101,D39,$W$2:$W$101)>3005.06),IF(COUNTIF($D$2:D39,D39)>1,VLOOKUP(D39,D$2:AM39,36,FALSE),IF(MAX($AM$1:AM38)>MAX(INGRESOS!$X$1:$X$101),MAX($AM$1:AM38)+1,MAX(INGRESOS!$X$1:$X$101)+1)),0) -> 0 | AN39: 0
D40: =IF(E40<>"",VLOOKUP(E40,PROVEEDORES!A$2:B$200,2,FALSE),"") ->  | T40: 0 | U40: 0 | V40: 21 | W40: 0 | Y40: 0 | AG40: 0 | AK40: 0 | AL40: 0 | AM40: =IF(AND(D40<>"",ISBLANK(Z40),SUMIF($D$2:$D$101,D40,$U$2:$U$101)+SUMIF($D$2:$D$101,D40,$W$2:$W$101)>3005.06),IF(COUNTIF($D$2:D40,D40)>1,VLOOKUP(D40,D$2:AM40,36,FALSE),IF(MAX($AM$1:AM39)>MAX(INGRESOS!$X$1:$X$101),MAX($AM$1:AM39)+1,MAX(INGRESOS!$X$1:$X$101)+1)),0) -> 0 | AN40: 0
D41: =IF(E41<>"",VLOOKUP(E41,PROVEEDORES!A$2:B$200,2,FALSE),"") ->  | T41: 0 | U41: 0 | V41: 21 | W41: 0 | Y41: 0 | AG41: 0 | AK41: 0 | AL41: 0 | AM41: =IF(AND(D41<>"",ISBLANK(Z41),SUMIF($D$2:$D$101,D41,$U$2:$U$101)+SUMIF($D$2:$D$101,D41,$W$2:$W$101)>3005.06),IF(COUNTIF($D$2:D41,D41)>1,VLOOKUP(D41,D$2:AM41,36,FALSE),IF(MAX($AM$1:AM40)>MAX(INGRESOS!$X$1:$X$101),MAX($AM$1:AM40)+1,MAX(INGRESOS!$X$1:$X$101)+1)),0) -> 0 | AN41: 0
D42: =IF(E42<>"",VLOOKUP(E42,PROVEEDORES!A$2:B$200,2,FALSE),"") ->  | T42: 0 | U42: 0 | V42: 21 | W42: 0 | Y42: 0 | AG42: 0 | AK42: 0 | AL42: 0 | AM42: =IF(AND(D42<>"",ISBLANK(Z42),SUMIF($D$2:$D$101,D42,$U$2:$U$101)+SUMIF($D$2:$D$101,D42,$W$2:$W$101)>3005.06),IF(COUNTIF($D$2:D42,D42)>1,VLOOKUP(D42,D$2:AM42,36,FALSE),IF(MAX($AM$1:AM41)>MAX(INGRESOS!$X$1:$X$101),MAX($AM$1:AM41)+1,MAX(INGRESOS!$X$1:$X$101)+1)),0) -> 0 | AN42: 0
D43: =IF(E43<>"",VLOOKUP(E43,PROVEEDORES!A$2:B$200,2,FALSE),"") ->  | T43: 0 | U43: 0 | V43: 21 | W43: 0 | Y43: 0 | AG43: 0 | AK43: 0 | AL43: 0 | AM43: =IF(AND(D43<>"",ISBLANK(Z43),SUMIF($D$2:$D$101,D43,$U$2:$U$101)+SUMIF($D$2:$D$101,D43,$W$2:$W$101)>3005.06),IF(COUNTIF($D$2:D43,D43)>1,VLOOKUP(D43,D$2:AM43,36,FALSE),IF(MAX($AM$1:AM42)>MAX(INGRESOS!$X$1:$X$101),MAX($AM$1:AM42)+1,MAX(INGRESOS!$X$1:$X$101)+1)),0) -> 0 | AN43: 0
D44: =IF(E44<>"",VLOOKUP(E44,PROVEEDORES!A$2:B$200,2,FALSE),"") ->  | T44: 0 | U44: 0 | V44: 21 | W44: 0 | Y44: 0 | AG44: 0 | AK44: 0 | AL44: 0 | AM44: =IF(AND(D44<>"",ISBLANK(Z44),SUMIF($D$2:$D$101,D44,$U$2:$U$101)+SUMIF($D$2:$D$101,D44,$W$2:$W$101)>3005.06),IF(COUNTIF($D$2:D44,D44)>1,VLOOKUP(D44,D$2:AM44,36,FALSE),IF(MAX($AM$1:AM43)>MAX(INGRESOS!$X$1:$X$101),MAX($AM$1:AM43)+1,MAX(INGRESOS!$X$1:$X$101)+1)),0) -> 0 | AN44: 0
D45: =IF(E45<>"",VLOOKUP(E45,PROVEEDORES!A$2:B$200,2,FALSE),"") ->  | T45: 0 | U45: 0 | V45: 21 | W45: 0 | Y45: 0 | AG45: 0 | AK45: 0 | AL45: 0 | AM45: =IF(AND(D45<>"",ISBLANK(Z45),SUMIF($D$2:$D$101,D45,$U$2:$U$101)+SUMIF($D$2:$D$101,D45,$W$2:$W$101)>3005.06),IF(COUNTIF($D$2:D45,D45)>1,VLOOKUP(D45,D$2:AM45,36,FALSE),IF(MAX($AM$1:AM44)>MAX(INGRESOS!$X$1:$X$101),MAX($AM$1:AM44)+1,MAX(INGRESOS!$X$1:$X$101)+1)),0) -> 0 | AN45: 0
D46: =IF(E46<>"",VLOOKUP(E46,PROVEEDORES!A$2:B$200,2,FALSE),"") ->  | T46: 0 | U46: 0 | V46: 21 | W46: 0 | Y46: 0 | AG46: 0 | AK46: 0 | AL46: 0 | AM46: =IF(AND(D46<>"",ISBLANK(Z46),SUMIF($D$2:$D$101,D46,$U$2:$U$101)+SUMIF($D$2:$D$101,D46,$W$2:$W$101)>3005.06),IF(COUNTIF($D$2:D46,D46)>1,VLOOKUP(D46,D$2:AM46,36,FALSE),IF(MAX($AM$1:AM45)>MAX(INGRESOS!$X$1:$X$101),MAX($AM$1:AM45)+1,MAX(INGRESOS!$X$1:$X$101)+1)),0) -> 0 | AN46: 0
D47: =IF(E47<>"",VLOOKUP(E47,PROVEEDORES!A$2:B$200,2,FALSE),"") ->  | T47: 0 | U47: 0 | V47: 21 | W47: 0 | Y47: 0 | AG47: 0 | AK47: 0 | AL47: 0 | AM47: =IF(AND(D47<>"",ISBLANK(Z47),SUMIF($D$2:$D$101,D47,$U$2:$U$101)+SUMIF($D$2:$D$101,D47,$W$2:$W$101)>3005.06),IF(COUNTIF($D$2:D47,D47)>1,VLOOKUP(D47,D$2:AM47,36,FALSE),IF(MAX($AM$1:AM46)>MAX(INGRESOS!$X$1:$X$101),MAX($AM$1:AM46)+1,MAX(INGRESOS!$X$1:$X$101)+1)),0) -> 0 | AN47: 0
D48: =IF(E48<>"",VLOOKUP(E48,PROVEEDORES!A$2:B$200,2,FALSE),"") ->  | T48: 0 | U48: 0 | V48: 21 | W48: 0 | Y48: 0 | AG48: 0 | AK48: 0 | AL48: 0 | AM48: =IF(AND(D48<>"",ISBLANK(Z48),SUMIF($D$2:$D$101,D48,$U$2:$U$101)+SUMIF($D$2:$D$101,D48,$W$2:$W$101)>3005.06),IF(COUNTIF($D$2:D48,D48)>1,VLOOKUP(D48,D$2:AM48,36,FALSE),IF(MAX($AM$1:AM47)>MAX(INGRESOS!$X$1:$X$101),MAX($AM$1:AM47)+1,MAX(INGRESOS!$X$1:$X$101)+1)),0) -> 0 | AN48: 0
D49: =IF(E49<>"",VLOOKUP(E49,PROVEEDORES!A$2:B$200,2,FALSE),"") ->  | T49: 0 | U49: 0 | V49: 21 | W49: 0 | Y49: 0 | AG49: 0 | AK49: 0 | AL49: 0 | AM49: =IF(AND(D49<>"",ISBLANK(Z49),SUMIF($D$2:$D$101,D49,$U$2:$U$101)+SUMIF($D$2:$D$101,D49,$W$2:$W$101)>3005.06),IF(COUNTIF($D$2:D49,D49)>1,VLOOKUP(D49,D$2:AM49,36,FALSE),IF(MAX($AM$1:AM48)>MAX(INGRESOS!$X$1:$X$101),MAX($AM$1:AM48)+1,MAX(INGRESOS!$X$1:$X$101)+1)),0) -> 0 | AN49: 0
D50: =IF(E50<>"",VLOOKUP(E50,PROVEEDORES!A$2:B$200,2,FALSE),"") ->  | T50: 0 | U50: 0 | V50: 21 | W50: 0 | Y50: 0 | AG50: 0 | AK50: 0 | AL50: 0 | AM50: =IF(AND(D50<>"",ISBLANK(Z50),SUMIF($D$2:$D$101,D50,$U$2:$U$101)+SUMIF($D$2:$D$101,D50,$W$2:$W$101)>3005.06),IF(COUNTIF($D$2:D50,D50)>1,VLOOKUP(D50,D$2:AM50,36,FALSE),IF(MAX($AM$1:AM49)>MAX(INGRESOS!$X$1:$X$101),MAX($AM$1:AM49)+1,MAX(INGRESOS!$X$1:$X$101)+1)),0) -> 0 | AN50: 0
D51: =IF(E51<>"",VLOOKUP(E51,PROVEEDORES!A$2:B$200,2,FALSE),"") ->  | T51: 0 | U51: 0 | V51: 21 | W51: 0 | Y51: 0 | AG51: 0 | AK51: 0 | AL51: 0 | AM51: =IF(AND(D51<>"",ISBLANK(Z51),SUMIF($D$2:$D$101,D51,$U$2:$U$101)+SUMIF($D$2:$D$101,D51,$W$2:$W$101)>3005.06),IF(COUNTIF($D$2:D51,D51)>1,VLOOKUP(D51,D$2:AM51,36,FALSE),IF(MAX($AM$1:AM50)>MAX(INGRESOS!$X$1:$X$101),MAX($AM$1:AM50)+1,MAX(INGRESOS!$X$1:$X$101)+1)),0) -> 0 | AN51: 0
D52: =IF(E52<>"",VLOOKUP(E52,PROVEEDORES!A$2:B$200,2,FALSE),"") ->  | T52: 0 | U52: 0 | V52: 21 | W52: 0 | Y52: 0 | AG52: 0 | AK52: 0 | AL52: 0 | AM52: =IF(AND(D52<>"",ISBLANK(Z52),SUMIF($D$2:$D$101,D52,$U$2:$U$101)+SUMIF($D$2:$D$101,D52,$W$2:$W$101)>3005.06),IF(COUNTIF($D$2:D52,D52)>1,VLOOKUP(D52,D$2:AM52,36,FALSE),IF(MAX($AM$1:AM51)>MAX(INGRESOS!$X$1:$X$101),MAX($AM$1:AM51)+1,MAX(INGRESOS!$X$1:$X$101)+1)),0) -> 0 | AN52: 0
D53: =IF(E53<>"",VLOOKUP(E53,PROVEEDORES!A$2:B$200,2,FALSE),"") ->  | T53: 0 | U53: 0 | V53: 21 | W53: 0 | Y53: 0 | AG53: 0 | AK53: 0 | AL53: 0 | AM53: =IF(AND(D53<>"",ISBLANK(Z53),SUMIF($D$2:$D$101,D53,$U$2:$U$101)+SUMIF($D$2:$D$101,D53,$W$2:$W$101)>3005.06),IF(COUNTIF($D$2:D53,D53)>1,VLOOKUP(D53,D$2:AM53,36,FALSE),IF(MAX($AM$1:AM52)>MAX(INGRESOS!$X$1:$X$101),MAX($AM$1:AM52)+1,MAX(INGRESOS!$X$1:$X$101)+1)),0) -> 0 | AN53: 0
D54: =IF(E54<>"",VLOOKUP(E54,PROVEEDORES!A$2:B$200,2,FALSE),"") ->  | T54: 0 | U54: 0 | V54: 21 | W54: 0 | Y54: 0 | AG54: 0 | AK54: 0 | AL54: 0 | AM54: =IF(AND(D54<>"",ISBLANK(Z54),SUMIF($D$2:$D$101,D54,$U$2:$U$101)+SUMIF($D$2:$D$101,D54,$W$2:$W$101)>3005.06),IF(COUNTIF($D$2:D54,D54)>1,VLOOKUP(D54,D$2:AM54,36,FALSE),IF(MAX($AM$1:AM53)>MAX(INGRESOS!$X$1:$X$101),MAX($AM$1:AM53)+1,MAX(INGRESOS!$X$1:$X$101)+1)),0) -> 0 | AN54: 0
D55: =IF(E55<>"",VLOOKUP(E55,PROVEEDORES!A$2:B$200,2,FALSE),"") ->  | T55: 0 | U55: 0 | V55: 21 | W55: 0 | Y55: 0 | AG55: 0 | AK55: 0 | AL55: 0 | AM55: =IF(AND(D55<>"",ISBLANK(Z55),SUMIF($D$2:$D$101,D55,$U$2:$U$101)+SUMIF($D$2:$D$101,D55,$W$2:$W$101)>3005.06),IF(COUNTIF($D$2:D55,D55)>1,VLOOKUP(D55,D$2:AM55,36,FALSE),IF(MAX($AM$1:AM54)>MAX(INGRESOS!$X$1:$X$101),MAX($AM$1:AM54)+1,MAX(INGRESOS!$X$1:$X$101)+1)),0) -> 0 | AN55: 0
D56: =IF(E56<>"",VLOOKUP(E56,PROVEEDORES!A$2:B$200,2,FALSE),"") ->  | T56: 0 | U56: 0 | V56: 21 | W56: 0 | Y56: 0 | AG56: 0 | AK56: 0 | AL56: 0 | AM56: =IF(AND(D56<>"",ISBLANK(Z56),SUMIF($D$2:$D$101,D56,$U$2:$U$101)+SUMIF($D$2:$D$101,D56,$W$2:$W$101)>3005.06),IF(COUNTIF($D$2:D56,D56)>1,VLOOKUP(D56,D$2:AM56,36,FALSE),IF(MAX($AM$1:AM55)>MAX(INGRESOS!$X$1:$X$101),MAX($AM$1:AM55)+1,MAX(INGRESOS!$X$1:$X$101)+1)),0) -> 0 | AN56: 0
D57: =IF(E57<>"",VLOOKUP(E57,PROVEEDORES!A$2:B$200,2,FALSE),"") ->  | T57: 0 | U57: 0 | V57: 21 | W57: 0 | Y57: 0 | AG57: 0 | AK57: 0 | AL57: 0 | AM57: =IF(AND(D57<>"",ISBLANK(Z57),SUMIF($D$2:$D$101,D57,$U$2:$U$101)+SUMIF($D$2:$D$101,D57,$W$2:$W$101)>3005.06),IF(COUNTIF($D$2:D57,D57)>1,VLOOKUP(D57,D$2:AM57,36,FALSE),IF(MAX($AM$1:AM56)>MAX(INGRESOS!$X$1:$X$101),MAX($AM$1:AM56)+1,MAX(INGRESOS!$X$1:$X$101)+1)),0) -> 0 | AN57: 0
D58: =IF(E58<>"",VLOOKUP(E58,PROVEEDORES!A$2:B$200,2,FALSE),"") ->  | T58: 0 | U58: 0 | V58: 21 | W58: 0 | Y58: 0 | AG58: 0 | AK58: 0 | AL58: 0 | AM58: =IF(AND(D58<>"",ISBLANK(Z58),SUMIF($D$2:$D$101,D58,$U$2:$U$101)+SUMIF($D$2:$D$101,D58,$W$2:$W$101)>3005.06),IF(COUNTIF($D$2:D58,D58)>1,VLOOKUP(D58,D$2:AM58,36,FALSE),IF(MAX($AM$1:AM57)>MAX(INGRESOS!$X$1:$X$101),MAX($AM$1:AM57)+1,MAX(INGRESOS!$X$1:$X$101)+1)),0) -> 0 | AN58: 0
D59: =IF(E59<>"",VLOOKUP(E59,PROVEEDORES!A$2:B$200,2,FALSE),"") ->  | T59: 0 | U59: 0 | V59: 21 | W59: 0 | Y59: 0 | AG59: 0 | AK59: 0 | AL59: 0 | AM59: =IF(AND(D59<>"",ISBLANK(Z59),SUMIF($D$2:$D$101,D59,$U$2:$U$101)+SUMIF($D$2:$D$101,D59,$W$2:$W$101)>3005.06),IF(COUNTIF($D$2:D59,D59)>1,VLOOKUP(D59,D$2:AM59,36,FALSE),IF(MAX($AM$1:AM58)>MAX(INGRESOS!$X$1:$X$101),MAX($AM$1:AM58)+1,MAX(INGRESOS!$X$1:$X$101)+1)),0) -> 0 | AN59: 0
D60: =IF(E60<>"",VLOOKUP(E60,PROVEEDORES!A$2:B$200,2,FALSE),"") ->  | T60: 0 | U60: 0 | V60: 21 | W60: 0 | Y60: 0 | AG60: 0 | AK60: 0 | AL60: 0 | AM60: =IF(AND(D60<>"",ISBLANK(Z60),SUMIF($D$2:$D$101,D60,$U$2:$U$101)+SUMIF($D$2:$D$101,D60,$W$2:$W$101)>3005.06),IF(COUNTIF($D$2:D60,D60)>1,VLOOKUP(D60,D$2:AM60,36,FALSE),IF(MAX($AM$1:AM59)>MAX(INGRESOS!$X$1:$X$101),MAX($AM$1:AM59)+1,MAX(INGRESOS!$X$1:$X$101)+1)),0) -> 0 | AN60: 0
D61: =IF(E61<>"",VLOOKUP(E61,PROVEEDORES!A$2:B$200,2,FALSE),"") ->  | T61: 0 | U61: 0 | V61: 21 | W61: 0 | Y61: 0 | AG61: 0 | AK61: 0 | AL61: 0 | AM61: =IF(AND(D61<>"",ISBLANK(Z61),SUMIF($D$2:$D$101,D61,$U$2:$U$101)+SUMIF($D$2:$D$101,D61,$W$2:$W$101)>3005.06),IF(COUNTIF($D$2:D61,D61)>1,VLOOKUP(D61,D$2:AM61,36,FALSE),IF(MAX($AM$1:AM60)>MAX(INGRESOS!$X$1:$X$101),MAX($AM$1:AM60)+1,MAX(INGRESOS!$X$1:$X$101)+1)),0) -> 0 | AN61: 0
D62: =IF(E62<>"",VLOOKUP(E62,PROVEEDORES!A$2:B$200,2,FALSE),"") ->  | T62: 0 | U62: 0 | V62: 21 | W62: 0 | Y62: 0 | AG62: 0 | AK62: 0 | AL62: 0 | AM62: =IF(AND(D62<>"",ISBLANK(Z62),SUMIF($D$2:$D$101,D62,$U$2:$U$101)+SUMIF($D$2:$D$101,D62,$W$2:$W$101)>3005.06),IF(COUNTIF($D$2:D62,D62)>1,VLOOKUP(D62,D$2:AM62,36,FALSE),IF(MAX($AM$1:AM61)>MAX(INGRESOS!$X$1:$X$101),MAX($AM$1:AM61)+1,MAX(INGRESOS!$X$1:$X$101)+1)),0) -> 0 | AN62: 0
D63: =IF(E63<>"",VLOOKUP(E63,PROVEEDORES!A$2:B$200,2,FALSE),"") ->  | T63: 0 | U63: 0 | V63: 21 | W63: 0 | Y63: 0 | AG63: 0 | AK63: 0 | AL63: 0 | AM63: =IF(AND(D63<>"",ISBLANK(Z63),SUMIF($D$2:$D$101,D63,$U$2:$U$101)+SUMIF($D$2:$D$101,D63,$W$2:$W$101)>3005.06),IF(COUNTIF($D$2:D63,D63)>1,VLOOKUP(D63,D$2:AM63,36,FALSE),IF(MAX($AM$1:AM62)>MAX(INGRESOS!$X$1:$X$101),MAX($AM$1:AM62)+1,MAX(INGRESOS!$X$1:$X$101)+1)),0) -> 0 | AN63: 0
D64: =IF(E64<>"",VLOOKUP(E64,PROVEEDORES!A$2:B$200,2,FALSE),"") ->  | T64: 0 | U64: 0 | V64: 21 | W64: 0 | Y64: 0 | AG64: 0 | AK64: 0 | AL64: 0 | AM64: =IF(AND(D64<>"",ISBLANK(Z64),SUMIF($D$2:$D$101,D64,$U$2:$U$101)+SUMIF($D$2:$D$101,D64,$W$2:$W$101)>3005.06),IF(COUNTIF($D$2:D64,D64)>1,VLOOKUP(D64,D$2:AM64,36,FALSE),IF(MAX($AM$1:AM63)>MAX(INGRESOS!$X$1:$X$101),MAX($AM$1:AM63)+1,MAX(INGRESOS!$X$1:$X$101)+1)),0) -> 0 | AN64: 0
D65: =IF(E65<>"",VLOOKUP(E65,PROVEEDORES!A$2:B$200,2,FALSE),"") ->  | T65: 0 | U65: 0 | V65: 21 | W65: 0 | Y65: 0 | AG65: 0 | AK65: 0 | AL65: 0 | AM65: =IF(AND(D65<>"",ISBLANK(Z65),SUMIF($D$2:$D$101,D65,$U$2:$U$101)+SUMIF($D$2:$D$101,D65,$W$2:$W$101)>3005.06),IF(COUNTIF($D$2:D65,D65)>1,VLOOKUP(D65,D$2:AM65,36,FALSE),IF(MAX($AM$1:AM64)>MAX(INGRESOS!$X$1:$X$101),MAX($AM$1:AM64)+1,MAX(INGRESOS!$X$1:$X$101)+1)),0) -> 0 | AN65: 0
D66: =IF(E66<>"",VLOOKUP(E66,PROVEEDORES!A$2:B$200,2,FALSE),"") ->  | T66: 0 | U66: 0 | V66: 21 | W66: 0 | Y66: 0 | AG66: 0 | AK66: 0 | AL66: 0 | AM66: =IF(AND(D66<>"",ISBLANK(Z66),SUMIF($D$2:$D$101,D66,$U$2:$U$101)+SUMIF($D$2:$D$101,D66,$W$2:$W$101)>3005.06),IF(COUNTIF($D$2:D66,D66)>1,VLOOKUP(D66,D$2:AM66,36,FALSE),IF(MAX($AM$1:AM65)>MAX(INGRESOS!$X$1:$X$101),MAX($AM$1:AM65)+1,MAX(INGRESOS!$X$1:$X$101)+1)),0) -> 0 | AN66: =IF(AM66>0,ROUNDUP(MONTH(B66)/3,0),0) -> 0
B67: =IF(A67<>"",A67,"") ->  | D67: =IF(E67<>"",VLOOKUP(E67,PROVEEDORES!A$2:B$200,2,FALSE),"") ->  | T67: =SUM(G67:S67) -> 0 | U67: =SUM(G67,K67:N67,S67) -> 0 | V67: 21 | W67: =ROUND((U67*(V67/100)),2) -> 0 | Y67: =SUM(U67)+W67-X67 -> 0 | AG67: =ROUND((AE67*(AF67/100)),2) -> 0 | AK67: =IF(A67>0,ROUNDUP(MONTH(A67)/3,0),0) -> 0 | AL67: =IF(AND(AC67>0,AD67>0),ROUNDUP(MONTH(AD67)/3,0),0) -> 0 | AM67: =IF(AND(D67<>"",ISBLANK(Z67),SUMIF($D$2:$D$101,D67,$U$2:$U$101)+SUMIF($D$2:$D$101,D67,$W$2:$W$101)>3005.06),IF(COUNTIF($D$2:D67,D67)>1,VLOOKUP(D67,D$2:AM67,36,FALSE),IF(MAX($AM$1:AM66)>MAX(INGRESOS!$X$1:$X$101),MAX($AM$1:AM66)+1,MAX(INGRESOS!$X$1:$X$101)+1)),0) -> 0 | AN67: 0
D68: =IF(E68<>"",VLOOKUP(E68,PROVEEDORES!A$2:B$200,2,FALSE),"") ->  | T68: 0 | U68: 0 | V68: 21 | W68: 0 | Y68: 0 | AG68: 0 | AK68: 0 | AL68: 0 | AM68: =IF(AND(D68<>"",ISBLANK(Z68),SUMIF($D$2:$D$101,D68,$U$2:$U$101)+SUMIF($D$2:$D$101,D68,$W$2:$W$101)>3005.06),IF(COUNTIF($D$2:D68,D68)>1,VLOOKUP(D68,D$2:AM68,36,FALSE),IF(MAX($AM$1:AM67)>MAX(INGRESOS!$X$1:$X$101),MAX($AM$1:AM67)+1,MAX(INGRESOS!$X$1:$X$101)+1)),0) -> 0 | AN68: 0
D69: =IF(E69<>"",VLOOKUP(E69,PROVEEDORES!A$2:B$200,2,FALSE),"") ->  | T69: 0 | U69: 0 | V69: 21 | W69: 0 | Y69: 0 | AG69: 0 | AK69: 0 | AL69: 0 | AM69: =IF(AND(D69<>"",ISBLANK(Z69),SUMIF($D$2:$D$101,D69,$U$2:$U$101)+SUMIF($D$2:$D$101,D69,$W$2:$W$101)>3005.06),IF(COUNTIF($D$2:D69,D69)>1,VLOOKUP(D69,D$2:AM69,36,FALSE),IF(MAX($AM$1:AM68)>MAX(INGRESOS!$X$1:$X$101),MAX($AM$1:AM68)+1,MAX(INGRESOS!$X$1:$X$101)+1)),0) -> 0 | AN69: 0
D70: =IF(E70<>"",VLOOKUP(E70,PROVEEDORES!A$2:B$200,2,FALSE),"") ->  | T70: 0 | U70: 0 | V70: 21 | W70: 0 | Y70: 0 | AG70: 0 | AK70: 0 | AL70: 0 | AM70: =IF(AND(D70<>"",ISBLANK(Z70),SUMIF($D$2:$D$101,D70,$U$2:$U$101)+SUMIF($D$2:$D$101,D70,$W$2:$W$101)>3005.06),IF(COUNTIF($D$2:D70,D70)>1,VLOOKUP(D70,D$2:AM70,36,FALSE),IF(MAX($AM$1:AM69)>MAX(INGRESOS!$X$1:$X$101),MAX($AM$1:AM69)+1,MAX(INGRESOS!$X$1:$X$101)+1)),0) -> 0 | AN70: 0
D71: =IF(E71<>"",VLOOKUP(E71,PROVEEDORES!A$2:B$200,2,FALSE),"") ->  | T71: 0 | U71: 0 | V71: 21 | W71: 0 | Y71: 0 | AG71: 0 | AK71: 0 | AL71: 0 | AM71: =IF(AND(D71<>"",ISBLANK(Z71),SUMIF($D$2:$D$101,D71,$U$2:$U$101)+SUMIF($D$2:$D$101,D71,$W$2:$W$101)>3005.06),IF(COUNTIF($D$2:D71,D71)>1,VLOOKUP(D71,D$2:AM71,36,FALSE),IF(MAX($AM$1:AM70)>MAX(INGRESOS!$X$1:$X$101),MAX($AM$1:AM70)+1,MAX(INGRESOS!$X$1:$X$101)+1)),0) -> 0 | AN71: 0
D72: =IF(E72<>"",VLOOKUP(E72,PROVEEDORES!A$2:B$200,2,FALSE),"") ->  | T72: 0 | U72: 0 | V72: 21 | W72: 0 | Y72: 0 | AG72: 0 | AK72: 0 | AL72: 0 | AM72: =IF(AND(D72<>"",ISBLANK(Z72),SUMIF($D$2:$D$101,D72,$U$2:$U$101)+SUMIF($D$2:$D$101,D72,$W$2:$W$101)>3005.06),IF(COUNTIF($D$2:D72,D72)>1,VLOOKUP(D72,D$2:AM72,36,FALSE),IF(MAX($AM$1:AM71)>MAX(INGRESOS!$X$1:$X$101),MAX($AM$1:AM71)+1,MAX(INGRESOS!$X$1:$X$101)+1)),0) -> 0 | AN72: 0
D73: =IF(E73<>"",VLOOKUP(E73,PROVEEDORES!A$2:B$200,2,FALSE),"") ->  | T73: 0 | U73: 0 | V73: 21 | W73: 0 | Y73: 0 | AG73: 0 | AK73: 0 | AL73: 0 | AM73: =IF(AND(D73<>"",ISBLANK(Z73),SUMIF($D$2:$D$101,D73,$U$2:$U$101)+SUMIF($D$2:$D$101,D73,$W$2:$W$101)>3005.06),IF(COUNTIF($D$2:D73,D73)>1,VLOOKUP(D73,D$2:AM73,36,FALSE),IF(MAX($AM$1:AM72)>MAX(INGRESOS!$X$1:$X$101),MAX($AM$1:AM72)+1,MAX(INGRESOS!$X$1:$X$101)+1)),0) -> 0 | AN73: 0
D74: =IF(E74<>"",VLOOKUP(E74,PROVEEDORES!A$2:B$200,2,FALSE),"") ->  | T74: 0 | U74: 0 | V74: 21 | W74: 0 | Y74: 0 | AG74: 0 | AK74: 0 | AL74: 0 | AM74: =IF(AND(D74<>"",ISBLANK(Z74),SUMIF($D$2:$D$101,D74,$U$2:$U$101)+SUMIF($D$2:$D$101,D74,$W$2:$W$101)>3005.06),IF(COUNTIF($D$2:D74,D74)>1,VLOOKUP(D74,D$2:AM74,36,FALSE),IF(MAX($AM$1:AM73)>MAX(INGRESOS!$X$1:$X$101),MAX($AM$1:AM73)+1,MAX(INGRESOS!$X$1:$X$101)+1)),0) -> 0 | AN74: 0
D75: =IF(E75<>"",VLOOKUP(E75,PROVEEDORES!A$2:B$200,2,FALSE),"") ->  | T75: 0 | U75: 0 | V75: 21 | W75: 0 | Y75: 0 | AG75: 0 | AK75: 0 | AL75: 0 | AM75: =IF(AND(D75<>"",ISBLANK(Z75),SUMIF($D$2:$D$101,D75,$U$2:$U$101)+SUMIF($D$2:$D$101,D75,$W$2:$W$101)>3005.06),IF(COUNTIF($D$2:D75,D75)>1,VLOOKUP(D75,D$2:AM75,36,FALSE),IF(MAX($AM$1:AM74)>MAX(INGRESOS!$X$1:$X$101),MAX($AM$1:AM74)+1,MAX(INGRESOS!$X$1:$X$101)+1)),0) -> 0 | AN75: 0
D76: =IF(E76<>"",VLOOKUP(E76,PROVEEDORES!A$2:B$200,2,FALSE),"") ->  | T76: 0 | U76: 0 | V76: 21 | W76: 0 | Y76: 0 | AG76: 0 | AK76: 0 | AL76: 0 | AM76: =IF(AND(D76<>"",ISBLANK(Z76),SUMIF($D$2:$D$101,D76,$U$2:$U$101)+SUMIF($D$2:$D$101,D76,$W$2:$W$101)>3005.06),IF(COUNTIF($D$2:D76,D76)>1,VLOOKUP(D76,D$2:AM76,36,FALSE),IF(MAX($AM$1:AM75)>MAX(INGRESOS!$X$1:$X$101),MAX($AM$1:AM75)+1,MAX(INGRESOS!$X$1:$X$101)+1)),0) -> 0 | AN76: 0
D77: =IF(E77<>"",VLOOKUP(E77,PROVEEDORES!A$2:B$200,2,FALSE),"") ->  | T77: 0 | U77: 0 | V77: 21 | W77: 0 | Y77: 0 | AG77: 0 | AK77: 0 | AL77: 0 | AM77: =IF(AND(D77<>"",ISBLANK(Z77),SUMIF($D$2:$D$101,D77,$U$2:$U$101)+SUMIF($D$2:$D$101,D77,$W$2:$W$101)>3005.06),IF(COUNTIF($D$2:D77,D77)>1,VLOOKUP(D77,D$2:AM77,36,FALSE),IF(MAX($AM$1:AM76)>MAX(INGRESOS!$X$1:$X$101),MAX($AM$1:AM76)+1,MAX(INGRESOS!$X$1:$X$101)+1)),0) -> 0 | AN77: 0
D78: =IF(E78<>"",VLOOKUP(E78,PROVEEDORES!A$2:B$200,2,FALSE),"") ->  | T78: 0 | U78: 0 | V78: 21 | W78: 0 | Y78: 0 | AG78: 0 | AK78: 0 | AL78: 0 | AM78: =IF(AND(D78<>"",ISBLANK(Z78),SUMIF($D$2:$D$101,D78,$U$2:$U$101)+SUMIF($D$2:$D$101,D78,$W$2:$W$101)>3005.06),IF(COUNTIF($D$2:D78,D78)>1,VLOOKUP(D78,D$2:AM78,36,FALSE),IF(MAX($AM$1:AM77)>MAX(INGRESOS!$X$1:$X$101),MAX($AM$1:AM77)+1,MAX(INGRESOS!$X$1:$X$101)+1)),0) -> 0 | AN78: 0
D79: =IF(E79<>"",VLOOKUP(E79,PROVEEDORES!A$2:B$200,2,FALSE),"") ->  | T79: 0 | U79: 0 | V79: 21 | W79: 0 | Y79: 0 | AG79: 0 | AK79: 0 | AL79: 0 | AM79: =IF(AND(D79<>"",ISBLANK(Z79),SUMIF($D$2:$D$101,D79,$U$2:$U$101)+SUMIF($D$2:$D$101,D79,$W$2:$W$101)>3005.06),IF(COUNTIF($D$2:D79,D79)>1,VLOOKUP(D79,D$2:AM79,36,FALSE),IF(MAX($AM$1:AM78)>MAX(INGRESOS!$X$1:$X$101),MAX($AM$1:AM78)+1,MAX(INGRESOS!$X$1:$X$101)+1)),0) -> 0 | AN79: 0
D80: =IF(E80<>"",VLOOKUP(E80,PROVEEDORES!A$2:B$200,2,FALSE),"") ->  | T80: 0 | U80: 0 | V80: 21 | W80: 0 | Y80: 0 | AG80: 0 | AK80: 0 | AL80: 0 | AM80: =IF(AND(D80<>"",ISBLANK(Z80),SUMIF($D$2:$D$101,D80,$U$2:$U$101)+SUMIF($D$2:$D$101,D80,$W$2:$W$101)>3005.06),IF(COUNTIF($D$2:D80,D80)>1,VLOOKUP(D80,D$2:AM80,36,FALSE),IF(MAX($AM$1:AM79)>MAX(INGRESOS!$X$1:$X$101),MAX($AM$1:AM79)+1,MAX(INGRESOS!$X$1:$X$101)+1)),0) -> 0 | AN80: 0
D81: =IF(E81<>"",VLOOKUP(E81,PROVEEDORES!A$2:B$200,2,FALSE),"") ->  | T81: 0 | U81: 0 | V81: 21 | W81: 0 | Y81: 0 | AG81: 0 | AK81: 0 | AL81: 0 | AM81: =IF(AND(D81<>"",ISBLANK(Z81),SUMIF($D$2:$D$101,D81,$U$2:$U$101)+SUMIF($D$2:$D$101,D81,$W$2:$W$101)>3005.06),IF(COUNTIF($D$2:D81,D81)>1,VLOOKUP(D81,D$2:AM81,36,FALSE),IF(MAX($AM$1:AM80)>MAX(INGRESOS!$X$1:$X$101),MAX($AM$1:AM80)+1,MAX(INGRESOS!$X$1:$X$101)+1)),0) -> 0 | AN81: 0
D82: =IF(E82<>"",VLOOKUP(E82,PROVEEDORES!A$2:B$200,2,FALSE),"") ->  | T82: 0 | U82: 0 | V82: 21 | W82: 0 | Y82: 0 | AG82: 0 | AK82: 0 | AL82: 0 | AM82: =IF(AND(D82<>"",ISBLANK(Z82),SUMIF($D$2:$D$101,D82,$U$2:$U$101)+SUMIF($D$2:$D$101,D82,$W$2:$W$101)>3005.06),IF(COUNTIF($D$2:D82,D82)>1,VLOOKUP(D82,D$2:AM82,36,FALSE),IF(MAX($AM$1:AM81)>MAX(INGRESOS!$X$1:$X$101),MAX($AM$1:AM81)+1,MAX(INGRESOS!$X$1:$X$101)+1)),0) -> 0 | AN82: 0
D83: =IF(E83<>"",VLOOKUP(E83,PROVEEDORES!A$2:B$200,2,FALSE),"") ->  | T83: 0 | U83: 0 | V83: 21 | W83: 0 | Y83: 0 | AG83: 0 | AK83: 0 | AL83: 0 | AM83: =IF(AND(D83<>"",ISBLANK(Z83),SUMIF($D$2:$D$101,D83,$U$2:$U$101)+SUMIF($D$2:$D$101,D83,$W$2:$W$101)>3005.06),IF(COUNTIF($D$2:D83,D83)>1,VLOOKUP(D83,D$2:AM83,36,FALSE),IF(MAX($AM$1:AM82)>MAX(INGRESOS!$X$1:$X$101),MAX($AM$1:AM82)+1,MAX(INGRESOS!$X$1:$X$101)+1)),0) -> 0 | AN83: 0
D84: =IF(E84<>"",VLOOKUP(E84,PROVEEDORES!A$2:B$200,2,FALSE),"") ->  | T84: 0 | U84: 0 | V84: 21 | W84: 0 | Y84: 0 | AG84: 0 | AK84: 0 | AL84: 0 | AM84: =IF(AND(D84<>"",ISBLANK(Z84),SUMIF($D$2:$D$101,D84,$U$2:$U$101)+SUMIF($D$2:$D$101,D84,$W$2:$W$101)>3005.06),IF(COUNTIF($D$2:D84,D84)>1,VLOOKUP(D84,D$2:AM84,36,FALSE),IF(MAX($AM$1:AM83)>MAX(INGRESOS!$X$1:$X$101),MAX($AM$1:AM83)+1,MAX(INGRESOS!$X$1:$X$101)+1)),0) -> 0 | AN84: 0
D85: =IF(E85<>"",VLOOKUP(E85,PROVEEDORES!A$2:B$200,2,FALSE),"") ->  | T85: 0 | U85: 0 | V85: 21 | W85: 0 | Y85: 0 | AG85: 0 | AK85: 0 | AL85: 0 | AM85: =IF(AND(D85<>"",ISBLANK(Z85),SUMIF($D$2:$D$101,D85,$U$2:$U$101)+SUMIF($D$2:$D$101,D85,$W$2:$W$101)>3005.06),IF(COUNTIF($D$2:D85,D85)>1,VLOOKUP(D85,D$2:AM85,36,FALSE),IF(MAX($AM$1:AM84)>MAX(INGRESOS!$X$1:$X$101),MAX($AM$1:AM84)+1,MAX(INGRESOS!$X$1:$X$101)+1)),0) -> 0 | AN85: 0
D86: =IF(E86<>"",VLOOKUP(E86,PROVEEDORES!A$2:B$200,2,FALSE),"") ->  | T86: 0 | U86: 0 | V86: 21 | W86: 0 | Y86: 0 | AG86: 0 | AK86: 0 | AL86: 0 | AM86: =IF(AND(D86<>"",ISBLANK(Z86),SUMIF($D$2:$D$101,D86,$U$2:$U$101)+SUMIF($D$2:$D$101,D86,$W$2:$W$101)>3005.06),IF(COUNTIF($D$2:D86,D86)>1,VLOOKUP(D86,D$2:AM86,36,FALSE),IF(MAX($AM$1:AM85)>MAX(INGRESOS!$X$1:$X$101),MAX($AM$1:AM85)+1,MAX(INGRESOS!$X$1:$X$101)+1)),0) -> 0 | AN86: 0
D87: =IF(E87<>"",VLOOKUP(E87,PROVEEDORES!A$2:B$200,2,FALSE),"") ->  | T87: 0 | U87: 0 | V87: 21 | W87: 0 | Y87: 0 | AG87: 0 | AK87: 0 | AL87: 0 | AM87: =IF(AND(D87<>"",ISBLANK(Z87),SUMIF($D$2:$D$101,D87,$U$2:$U$101)+SUMIF($D$2:$D$101,D87,$W$2:$W$101)>3005.06),IF(COUNTIF($D$2:D87,D87)>1,VLOOKUP(D87,D$2:AM87,36,FALSE),IF(MAX($AM$1:AM86)>MAX(INGRESOS!$X$1:$X$101),MAX($AM$1:AM86)+1,MAX(INGRESOS!$X$1:$X$101)+1)),0) -> 0 | AN87: 0
D88: =IF(E88<>"",VLOOKUP(E88,PROVEEDORES!A$2:B$200,2,FALSE),"") ->  | T88: 0 | U88: 0 | V88: 21 | W88: 0 | Y88: 0 | AG88: 0 | AK88: 0 | AL88: 0 | AM88: =IF(AND(D88<>"",ISBLANK(Z88),SUMIF($D$2:$D$101,D88,$U$2:$U$101)+SUMIF($D$2:$D$101,D88,$W$2:$W$101)>3005.06),IF(COUNTIF($D$2:D88,D88)>1,VLOOKUP(D88,D$2:AM88,36,FALSE),IF(MAX($AM$1:AM87)>MAX(INGRESOS!$X$1:$X$101),MAX($AM$1:AM87)+1,MAX(INGRESOS!$X$1:$X$101)+1)),0) -> 0 | AN88: 0
D89: =IF(E89<>"",VLOOKUP(E89,PROVEEDORES!A$2:B$200,2,FALSE),"") ->  | T89: 0 | U89: 0 | V89: 21 | W89: 0 | Y89: 0 | AG89: 0 | AK89: 0 | AL89: 0 | AM89: =IF(AND(D89<>"",ISBLANK(Z89),SUMIF($D$2:$D$101,D89,$U$2:$U$101)+SUMIF($D$2:$D$101,D89,$W$2:$W$101)>3005.06),IF(COUNTIF($D$2:D89,D89)>1,VLOOKUP(D89,D$2:AM89,36,FALSE),IF(MAX($AM$1:AM88)>MAX(INGRESOS!$X$1:$X$101),MAX($AM$1:AM88)+1,MAX(INGRESOS!$X$1:$X$101)+1)),0) -> 0 | AN89: 0
D90: =IF(E90<>"",VLOOKUP(E90,PROVEEDORES!A$2:B$200,2,FALSE),"") ->  | T90: 0 | U90: 0 | V90: 21 | W90: 0 | Y90: 0 | AG90: 0 | AK90: 0 | AL90: 0 | AM90: =IF(AND(D90<>"",ISBLANK(Z90),SUMIF($D$2:$D$101,D90,$U$2:$U$101)+SUMIF($D$2:$D$101,D90,$W$2:$W$101)>3005.06),IF(COUNTIF($D$2:D90,D90)>1,VLOOKUP(D90,D$2:AM90,36,FALSE),IF(MAX($AM$1:AM89)>MAX(INGRESOS!$X$1:$X$101),MAX($AM$1:AM89)+1,MAX(INGRESOS!$X$1:$X$101)+1)),0) -> 0 | AN90: 0
D91: =IF(E91<>"",VLOOKUP(E91,PROVEEDORES!A$2:B$200,2,FALSE),"") ->  | T91: 0 | U91: 0 | V91: 21 | W91: 0 | Y91: 0 | AG91: 0 | AK91: 0 | AL91: 0 | AM91: =IF(AND(D91<>"",ISBLANK(Z91),SUMIF($D$2:$D$101,D91,$U$2:$U$101)+SUMIF($D$2:$D$101,D91,$W$2:$W$101)>3005.06),IF(COUNTIF($D$2:D91,D91)>1,VLOOKUP(D91,D$2:AM91,36,FALSE),IF(MAX($AM$1:AM90)>MAX(INGRESOS!$X$1:$X$101),MAX($AM$1:AM90)+1,MAX(INGRESOS!$X$1:$X$101)+1)),0) -> 0 | AN91: 0
D92: =IF(E92<>"",VLOOKUP(E92,PROVEEDORES!A$2:B$200,2,FALSE),"") ->  | T92: 0 | U92: 0 | V92: 21 | W92: 0 | Y92: 0 | AG92: 0 | AK92: 0 | AL92: 0 | AM92: =IF(AND(D92<>"",ISBLANK(Z92),SUMIF($D$2:$D$101,D92,$U$2:$U$101)+SUMIF($D$2:$D$101,D92,$W$2:$W$101)>3005.06),IF(COUNTIF($D$2:D92,D92)>1,VLOOKUP(D92,D$2:AM92,36,FALSE),IF(MAX($AM$1:AM91)>MAX(INGRESOS!$X$1:$X$101),MAX($AM$1:AM91)+1,MAX(INGRESOS!$X$1:$X$101)+1)),0) -> 0 | AN92: 0
D93: =IF(E93<>"",VLOOKUP(E93,PROVEEDORES!A$2:B$200,2,FALSE),"") ->  | T93: 0 | U93: 0 | V93: 21 | W93: 0 | Y93: 0 | AG93: 0 | AK93: 0 | AL93: 0 | AM93: =IF(AND(D93<>"",ISBLANK(Z93),SUMIF($D$2:$D$101,D93,$U$2:$U$101)+SUMIF($D$2:$D$101,D93,$W$2:$W$101)>3005.06),IF(COUNTIF($D$2:D93,D93)>1,VLOOKUP(D93,D$2:AM93,36,FALSE),IF(MAX($AM$1:AM92)>MAX(INGRESOS!$X$1:$X$101),MAX($AM$1:AM92)+1,MAX(INGRESOS!$X$1:$X$101)+1)),0) -> 0 | AN93: 0
D94: =IF(E94<>"",VLOOKUP(E94,PROVEEDORES!A$2:B$200,2,FALSE),"") ->  | T94: 0 | U94: 0 | V94: 21 | W94: 0 | Y94: 0 | AG94: 0 | AK94: 0 | AL94: 0 | AM94: =IF(AND(D94<>"",ISBLANK(Z94),SUMIF($D$2:$D$101,D94,$U$2:$U$101)+SUMIF($D$2:$D$101,D94,$W$2:$W$101)>3005.06),IF(COUNTIF($D$2:D94,D94)>1,VLOOKUP(D94,D$2:AM94,36,FALSE),IF(MAX($AM$1:AM93)>MAX(INGRESOS!$X$1:$X$101),MAX($AM$1:AM93)+1,MAX(INGRESOS!$X$1:$X$101)+1)),0) -> 0 | AN94: 0
D95: =IF(E95<>"",VLOOKUP(E95,PROVEEDORES!A$2:B$200,2,FALSE),"") ->  | T95: 0 | U95: 0 | V95: 21 | W95: 0 | Y95: 0 | AG95: 0 | AK95: 0 | AL95: 0 | AM95: =IF(AND(D95<>"",ISBLANK(Z95),SUMIF($D$2:$D$101,D95,$U$2:$U$101)+SUMIF($D$2:$D$101,D95,$W$2:$W$101)>3005.06),IF(COUNTIF($D$2:D95,D95)>1,VLOOKUP(D95,D$2:AM95,36,FALSE),IF(MAX($AM$1:AM94)>MAX(INGRESOS!$X$1:$X$101),MAX($AM$1:AM94)+1,MAX(INGRESOS!$X$1:$X$101)+1)),0) -> 0 | AN95: 0
D96: =IF(E96<>"",VLOOKUP(E96,PROVEEDORES!A$2:B$200,2,FALSE),"") ->  | T96: 0 | U96: 0 | V96: 21 | W96: 0 | Y96: 0 | AG96: 0 | AK96: 0 | AL96: 0 | AM96: =IF(AND(D96<>"",ISBLANK(Z96),SUMIF($D$2:$D$101,D96,$U$2:$U$101)+SUMIF($D$2:$D$101,D96,$W$2:$W$101)>3005.06),IF(COUNTIF($D$2:D96,D96)>1,VLOOKUP(D96,D$2:AM96,36,FALSE),IF(MAX($AM$1:AM95)>MAX(INGRESOS!$X$1:$X$101),MAX($AM$1:AM95)+1,MAX(INGRESOS!$X$1:$X$101)+1)),0) -> 0 | AN96: 0
D97: =IF(E97<>"",VLOOKUP(E97,PROVEEDORES!A$2:B$200,2,FALSE),"") ->  | T97: 0 | U97: 0 | V97: 21 | W97: 0 | Y97: 0 | AG97: 0 | AK97: 0 | AL97: 0 | AM97: =IF(AND(D97<>"",ISBLANK(Z97),SUMIF($D$2:$D$101,D97,$U$2:$U$101)+SUMIF($D$2:$D$101,D97,$W$2:$W$101)>3005.06),IF(COUNTIF($D$2:D97,D97)>1,VLOOKUP(D97,D$2:AM97,36,FALSE),IF(MAX($AM$1:AM96)>MAX(INGRESOS!$X$1:$X$101),MAX($AM$1:AM96)+1,MAX(INGRESOS!$X$1:$X$101)+1)),0) -> 0 | AN97: 0
D98: =IF(E98<>"",VLOOKUP(E98,PROVEEDORES!A$2:B$200,2,FALSE),"") ->  | T98: 0 | U98: 0 | V98: 21 | W98: 0 | Y98: 0 | AG98: 0 | AK98: 0 | AL98: 0 | AM98: =IF(AND(D98<>"",ISBLANK(Z98),SUMIF($D$2:$D$101,D98,$U$2:$U$101)+SUMIF($D$2:$D$101,D98,$W$2:$W$101)>3005.06),IF(COUNTIF($D$2:D98,D98)>1,VLOOKUP(D98,D$2:AM98,36,FALSE),IF(MAX($AM$1:AM97)>MAX(INGRESOS!$X$1:$X$101),MAX($AM$1:AM97)+1,MAX(INGRESOS!$X$1:$X$101)+1)),0) -> 0 | AN98: =IF(AM98>0,ROUNDUP(MONTH(B98)/3,0),0) -> 0
D99: =IF(E99<>"",VLOOKUP(E99,PROVEEDORES!A$2:B$200,2,FALSE),"") ->  | T99: 0 | U99: 0 | V99: 21 | W99: 0 | Y99: 0 | AG99: 0 | AK99: 0 | AL99: 0 | AM99: =IF(AND(D99<>"",ISBLANK(Z99),SUMIF($D$2:$D$101,D99,$U$2:$U$101)+SUMIF($D$2:$D$101,D99,$W$2:$W$101)>3005.06),IF(COUNTIF($D$2:D99,D99)>1,VLOOKUP(D99,D$2:AM99,36,FALSE),IF(MAX($AM$1:AM98)>MAX(INGRESOS!$X$1:$X$101),MAX($AM$1:AM98)+1,MAX(INGRESOS!$X$1:$X$101)+1)),0) -> 0 | AN99: =IF(AM99>0,ROUNDUP(MONTH(B99)/3,0),0) -> 0
D100: =IF(E100<>"",VLOOKUP(E100,PROVEEDORES!A$2:B$200,2,FALSE),"") ->  | T100: 0 | U100: 0 | V100: 21 | W100: 0 | Y100: 0 | AG100: 0 | AK100: 0 | AL100: 0 | AM100: =IF(AND(D100<>"",ISBLANK(Z100),SUMIF($D$2:$D$101,D100,$U$2:$U$101)+SUMIF($D$2:$D$101,D100,$W$2:$W$101)>3005.06),IF(COUNTIF($D$2:D100,D100)>1,VLOOKUP(D100,D$2:AM100,36,FALSE),IF(MAX($AM$1:AM99)>MAX(INGRESOS!$X$1:$X$101),MAX($AM$1:AM99)+1,MAX(INGRESOS!$X$1:$X$101)+1)),0) -> 0 | AN100: =IF(AM100>0,ROUNDUP(MONTH(B100)/3,0),0) -> 0
D101: =IF(E101<>"",VLOOKUP(E101,PROVEEDORES!A$2:B$200,2,FALSE),"") ->  | T101: 0 | U101: 0 | V101: 21 | W101: 0 | Y101: 0 | AG101: 0 | AK101: 0 | AL101: 0 | AM101: =IF(AND(D101<>"",ISBLANK(Z101),SUMIF($D$2:$D$101,D101,$U$2:$U$101)+SUMIF($D$2:$D$101,D101,$W$2:$W$101)>3005.06),IF(COUNTIF($D$2:D101,D101)>1,VLOOKUP(D101,D$2:AM101,36,FALSE),IF(MAX($AM$1:AM100)>MAX(INGRESOS!$X$1:$X$101),MAX($AM$1:AM100)+1,MAX(INGRESOS!$X$1:$X$101)+1)),0) -> 0 | AN101: =IF(AM101>0,ROUNDUP(MONTH(B101)/3,0),0) -> 0
E102: TOTAL EJERCICIO | G102: =SUM(G2:G101) -> 0 | H102: 0 | I102: 0 | J102: 0 | K102: 0 | L102: 0 | M102: 0 | N102: 0 | O102: 0 | P102: 0 | Q102: 0 | R102: 0 | S102: 0 | W102: =SUM(W2:W101) -> 0 | X102: =SUM(X2:X101) -> 0 | Y102: =SUM(Y2:Y101) -> 0

Sheet 303
B2: IVA Modelo 303 (borrador) | AA2: Ejercicio | AE2: =IF(NOT(ISBLANK(INGRESOS!A2)),YEAR(INGRESOS!A2),IF(NOT(ISBLANK(GASTOS!A2)),YEAR(GASTOS!A2),YEAR(TODAY()))) -> 2022 | AH2: Período | AM2: 1T
B4: NIF | J4: Apellidos y Nombre o Razón social | AO4: =VALUE(LEFT(AM2,1)) -> 1
B5: ='DATOS FISCALES'!C2 -> 34999999W | J5: ='DATOS FISCALES'!C5&" "&'DATOS FISCALES'!C6&" "&'DATOS FISCALES'!C4 -> APELLIDOA APELLIDOB NOMBRE
O6: SI | Q6: NO | AM6: SI | AO6: NO
B7: ¿Inscrito en Registro de devolución mensual? | Q7: X | T7: ¿Declarado en concurso de acreedores en el presente período? | AO7: X
B8: ¿Tributa exclusivamente en régimen simpliﬁcado? | Q8: X | T8: ¿Ha optado por el régimen especial del criterio de caja? | AM8: =IF(AO8="X","","X") ->  | AO8: =IF(CALCULOS!B14=0,"X","") -> X
B9: ¿Es autoliquidación conjunta? | Q9: X | T9: ¿Destinatario de operaciones a las que se aplique el criterio de caja? | AM9: =IF(AO9="X","","X") ->  | AO9: =IF(VLOOKUP($AO$4,CALCULOS!A$14:AP$17,3,FALSE)=0,"X","") -> X
B11: IVA devengado | O11: Base imponible | AB11: Tipo % | AH11: Cuota | AQ11: Pago Impuestos
N12: 01 | O12: =VLOOKUP($AO$4,CALCULOS!A$14:AP$17,4,FALSE) -> 0 | AA12: 02 | AB12: =IF(O12>0,'DATOS FISCALES'!C13,0) -> 0 | AG12: 03 | AH12: =VLOOKUP($AO$4,CALCULOS!A$14:AP$17,5,FALSE) -> 0 | AQ12: =HYPERLINK("C:\AEAT","ABRIR CARPETA C:\AEAT") -> ABRIR CARPETA C:\AEAT
B13: Régimen general …………..... | N13: 04 | O13: =VLOOKUP($AO$4,CALCULOS!A$14:AP$17,8,FALSE) -> 0 | AA13: 05 | AB13: =IF(O13>0,'DATOS FISCALES'!C14,0) -> 0 | AG13: 06 | AH13: =VLOOKUP($AO$4,CALCULOS!A$14:AP$17,9,FALSE) -> 0 | AQ13: PRESENTACIÓN ELECTRÓNICA
N14: 07 | O14: =VLOOKUP($AO$4,CALCULOS!A$14:AP$17,12,FALSE) -> 0 | AA14: 08 | AB14: =IF(O14>0,'DATOS FISCALES'!C15,0) -> 0 | AG14: 09 | AH14: =VLOOKUP($AO$4,CALCULOS!A$14:AP$17,13,FALSE) -> 0 | AQ14: Si desea imprimir el modelo para su presentación en papel
B15: Adquisiciones intracomunitarias de bienes y serv. | N15: 10 | O15: =VLOOKUP($AO$4,CALCULOS!A$14:AP$17,16,FALSE) -> 0 | AG15: 11 | AH15: =VLOOKUP($AO$4,CALCULOS!A$14:AP$17,17,FALSE) -> 0 | AQ15: Consulta de declaraciones presentadas
B16: Otras operaciones con inversión del sujeto pasivo | N16: 12 | AG16: 13
B17: Modiﬁcación bases y cuotas | N17: 14 | O17: =VLOOKUP($AO$4,CALCULOS!A$14:AP$17,20,FALSE) -> 0 | AG17: 15 | AH17: =VLOOKUP($AO$4,CALCULOS!A$14:AP$17,21,FALSE) -> 0 | AQ17: Mostrar Calculadora de Windows (Ctl+w)
N18: 16 | O18: =VLOOKUP($AO$4,CALCULOS!A$14:AP$17,6,FALSE) -> 0 | AA18: 17 | AB18: =IF(O18>0,'DATOS FISCALES'!E13,0) -> 0 | AG18: 18 | AH18: =VLOOKUP($AO$4,CALCULOS!A$14:AP$17,7,FALSE) -> 0
B19: Recargo de equivalencia ….... | N19: 19 | O19: =VLOOKUP($AO$4,CALCULOS!A$14:AP$17,10,FALSE) -> 0 | AA19: 20 | AB19: =IF(O19>0,'DATOS FISCALES'!E14,0) -> 0 | AG19: 21 | AH19: =VLOOKUP($AO$4,CALCULOS!A$14:AP$17,11,FALSE) -> 0
N20: 22 | O20: =VLOOKUP($AO$4,CALCULOS!A$14:AP$17,14,FALSE) -> 0 | AA20: 23 | AB20: =IF(O20>0,'DATOS FISCALES'!E15,0) -> 0 | AG20: 24 | AH20: =VLOOKUP($AO$4,CALCULOS!A$14:AP$17,15,FALSE) -> 0
B21: Modific. bases y cuotas recargo equival. | N21: 25 | O21: =VLOOKUP($AO$4,CALCULOS!A$14:AP$17,22,FALSE) -> 0 | AG21: 26 | AH21: =VLOOKUP($AO$4,CALCULOS!A$14:AP$17,23,FALSE) -> 0
D23: Total cuota devengada (03 + 06+ 09 + 11 + 13 + 15 + 18 + 21 + 24 + 26) | AG23: 27 | AH23: =SUM(AH12:AO21) -> 0
B25: IVA Deducible | AB25: Base | AH25: Cuota
B26: Por cuotas soportadas en operaciones interiores corrientes ……………… | AA26: 28 | AB26: =VLOOKUP($AO$4,CALCULOS!A$14:AP$17,24,FALSE) -> 0 | AG26: 29 | AH26: =VLOOKUP($AO$4,CALCULOS!A$14:AP$17,25,FALSE) -> 0
B27: Por cuotas soportadas en operaciones interiores con bienes de inversión | AA27: 30 | AB27: =VLOOKUP($AO$4,CALCULOS!A$14:AP$17,26,FALSE) -> 0 | AG27: 31 | AH27: =VLOOKUP($AO$4,CALCULOS!A$14:AP$17,27,FALSE) -> 0
B28: Por cuotas devengadas en las importaciones de bienes corrientes ……... | AA28: 32 | AG28: 33
B29: Por cuotas devengadas en las importaciones de bienes de inversión …... | AA29: 34 | AG29: 35
B30: En adquisiciones intracomunitarias de bienes y servicios corrientes ........ | AA30: 36 | AB30: =VLOOKUP($AO$4,CALCULOS!A$14:AP$17,28,FALSE) -> 0 | AG30: 37 | AH30: =VLOOKUP($AO$4,CALCULOS!A$14:AP$17,29,FALSE) -> 0
B31: En adquisiciones intracomunitarias de bienes de inversión ………………. | AA31: 38 | AB31: =VLOOKUP($AO$4,CALCULOS!A$14:AP$17,30,FALSE) -> 0 | AG31: 39 | AH31: =VLOOKUP($AO$4,CALCULOS!A$14:AP$17,31,FALSE) -> 0
B32: Rectificación de deducciones .................................................................. | AA32: 40 | AB32: =VLOOKUP($AO$4,CALCULOS!A$14:AP$17,32,FALSE) -> 0 | AG32: 41 | AH32: =VLOOKUP($AO$4,CALCULOS!A$14:AP$17,33,FALSE) -> 0
B33: Compensaciones Régimen Especial Agricultura Ganadería y Pesca………………................. | AG33: 42 | AH33: =VLOOKUP($AO$4,CALCULOS!A$14:AP$17,34,FALSE) -> 0
B34: Regularización bienes de inversión .......................................................................................... | AG34: 43
B35: Regularización por aplicación del porcentaje definitivo de prorrata (sólo 4T o mes 12) ……... | AG35: 44
D37: Total a deducir (29 + 31 + 33 + 35 + 37 + 39 + 41 + 42 + 43 + 44) | AG37: 45 | AH37: =SUM(AH26:AO35) -> 0
D39: Resultado del régimen general (27 - 45) | AG39: 46 | AH39: =VLOOKUP($AO$4,CALCULOS!A$14:AP$17,35,FALSE) -> 0
B41: Información adicional
B42: Entregas intracomunitarias de bienes y servicios .................................................................... | AG42: 59 | AH42: =VLOOKUP($AO$4,CALCULOS!A$14:AP$17,36,FALSE) -> 0
B43: Exclusivamente para aquellos sujetos pasivos acogidos al rég. especial del criterio de caja y para aquéllos que sean destinatarios de operaciones afectadas por el mismo: | AB43: Base | AH43: Cuota
B44: Entregas bienes y prest. serv. en RECC que hubieran resultado devengadas conforme a la regla general ... | AA44: 62 | AB44: =VLOOKUP($AO$4,CALCULOS!A$14:AP$17,37,FALSE) -> 0 | AG44: 63 | AH44: =VLOOKUP($AO$4,CALCULOS!A$14:AP$17,38,FALSE) -> 0
B46: Adquisiciones bienes y serv. a las que se aplique o afecte el RECC conforme a la regla general de devengo | AA46: 74 | AB46: =VLOOKUP($AO$4,CALCULOS!A$14:AP$17,39,FALSE) -> 0 | AG46: 75 | AH46: =VLOOKUP($AO$4,CALCULOS!A$14:AP$17,40,FALSE) -> 0
B49: Resultado | Q49: Suma de resultados (46 + 58) | AG49: 64 | AH49: =AH39 -> 0
B50: Atribuible a la Administración del Estado | N50: 65 | O50: 100 | R50: % | AG50: 66 | AH50: =AH49*(O50/100) -> 0
B51: Cuotas a compensar de periodos anteriores ……….…………………………..………………… | AG51: 67 | AH51: =VLOOKUP($AO$4,CALCULOS!A$14:AP$17,41,FALSE) -> 0
B53: Exclusivamente para sujetos pasivos que tributan | Q53: Resultado (66 - 67 + 68) | AG53: 69 | AH53: =VLOOKUP($AO$4,CALCULOS!A$14:AP$17,42,FALSE) -> 0
B54: conjuntamente a la Administración del Estado y a las | O54: A deducir (exclusivamente en caso de autoliquidación complementaria):
B55: Diputaciones Forales. Resultado de la regularización anual | O55: Resultado anteriores declarac. mismo concep. ejerc. y per. | AG55: 70
C57: 68 | K57: euros | Q57: Resultado de la liquidación (69 - 70) | AG57: 71 | AH57: =AH53 -> 0
B61: Si resulta | F61: 71 | G61: negativa consignar el importe a compensar | Y61: Ingreso efectuado a favor del Tesoro Público, cuenta restring.
Y62: de colaboración en la recaudación de la AEAT autoliquidac.
E64: 72 | G64: C | H64: =IF(AH57<0,ABS(AH57),"") ->  | Z64: Importe: | AD64: I | AE64: =IF(AH57>0,AH57,0) -> 0
AG66: Código IBAN
G67: Sin actividad | O67: =IF(AH57=0,"X","") -> X | Y67: =IF(AE64<>0,'DATOS FISCALES'!C7,"") -> 
B69: Manifiesto a esa Delegación que el importe a devolver reseñado deseo | Y69: Si esta autoliquidación es complementaria de otra autoliquidad.
B70: me sea abonado mediante transferencia bancaria a la cuenta | Y70: anterior correspondiente al mismo concepto ejercicio y período
B71: indicada de la que soy titular: | Y71: indíquelo marcando con una "X" esta casilla.
B73: Importe: | F73: 73 | H73: D | AC73: Autoliquidación complementaria
Y74: En este caso consigne a continuación el número de justificante
K75: Código IBAN | Y75: identificativo de la declaración anterior
B76: =IF(I73<>0,'DATOS FISCALES'!C7,"") ->  | Z76: Nº de justificante
A79: CÁLCULOS PARA EL DISEÑO DE REGISTRO (para generar el archivo de texto con el contenido del modelo)
B80: Posición | C80: Longitud | D80: Tipo | E80: Descripción | F80: Contenido
B81: 13 | C81: 1 | D81: A | E81: Tipo Declaración | F81: =IF(H64<>"","C",IF(O67<>"","N",IF(I73<>0,"D",IF(AE64<>"","I"," ")))) -> N
B82: 23 | C82: 60 | D82: An | E82: Identificación (1) - Apellidos o Razón Social. | F82: ='DATOS FISCALES'!C5&" "&'DATOS FISCALES'!C6&REPT(" ",C82-LEN('DATOS FISCALES'!C5&" "&'DATOS FISCALES'!C6)) -> APELLIDOA APELLIDOB
B83: 83 | C83: 20 | D83: A | E83: Identificación (1) - Nombre. | F83: =LEFT('DATOS FISCALES'!C4,15)&REPT(" ",C83-LEN(LEFT('DATOS FISCALES'!C4,15))) -> NOMBRE
B84: 122 | C84: 1 | D84: Num | E84: Identificación (1) - Opción por el régimen especial de criterio de caja | F84: =IF(AO8="X",2,1) -> 2
B85: 123 | C85: 1 | D85: Num | E85: Identificación (1) - Destinatario de las operaciones a las que se aplique el régimen especial del criterio de caja | F85: =IF(AO9="X",2,1) -> 2
B86: 126 | C86: 17 | D86: Num | E86: Liquidación (3) - Regimen General - IVA Devengado - Régimen general - Base imponible [01] | F86: =REPT("0",C86-LEN(SUBSTITUTE(TEXT(O12,"0,00"),",","")))&SUBSTITUTE(TEXT(O12,"0,00"),",","") -> 00000000000000000
B87: 143 | C87: 5 | D87: Num | E87: Liquidación (3) - Regimen General - IVA Devengado - Régimen general - Tipo % [02] | F87: =REPT("0",C87-LEN(SUBSTITUTE(TEXT(AB12,"0,00"),",","")))&SUBSTITUTE(TEXT(AB12,"0,00"),",","") -> 00000
B88: 148 | C88: 17 | D88: Num | E88: Liquidación (3) - Regimen General - IVA Devengado - Régimen general - Cuota [03] | F88: =REPT("0",C88-LEN(SUBSTITUTE(TEXT(AH12,"0,00"),",","")))&SUBSTITUTE(TEXT(AH12,"0,00"),",","") -> 00000000000000000
B89: 165 | C89: 17 | D89: Num | E89: Liquidación (3) - Regimen General - IVA Devengado - Régimen general - Base imponible [04] | F89: =REPT("0",C89-LEN(SUBSTITUTE(TEXT(O13,"0,00"),",","")))&SUBSTITUTE(TEXT(O13,"0,00"),",","") -> 00000000000000000
B90: 182 | C90: 5 | D90: Num | E90: Liquidación (3) - Regimen General - IVA Devengado - Régimen general - Tipo % [05] | F90: =REPT("0",C90-LEN(SUBSTITUTE(TEXT(AB13,"0,00"),",","")))&SUBSTITUTE(TEXT(AB13,"0,00"),",","") -> 00000
B91: 187 | C91: 17 | D91: Num | E91: Liquidación (3) - Regimen General - IVA Devengado - Régimen general - Cuota [06] | F91: =REPT("0",C91-LEN(SUBSTITUTE(TEXT(AH13,"0,00"),",","")))&SUBSTITUTE(TEXT(AH13,"0,00"),",","") -> 00000000000000000
B92: 204 | C92: 17 | D92: Num | E92: Liquidación (3) - Regimen General - IVA Devengado - Régimen general - Base imponible [07] | F92: =REPT("0",C92-LEN(SUBSTITUTE(TEXT(O14,"0,00"),",","")))&SUBSTITUTE(TEXT(O14,"0,00"),",","") -> 00000000000000000
B93: 221 | C93: 5 | D93: Num | E93: Liquidación (3) - Regimen General - IVA Devengado - Régimen general - Tipo % [08] | F93: =REPT("0",C93-LEN(SUBSTITUTE(TEXT(AB14,"0,00"),",","")))&SUBSTITUTE(TEXT(AB14,"0,00"),",","") -> 00000
B94: 226 | C94: 17 | D94: Num | E94: Liquidación (3) - Regimen General - IVA Devengado - Régimen general - Cuota [09] | F94: =REPT("0",C94-LEN(SUBSTITUTE(TEXT(AH14,"0,00"),",","")))&SUBSTITUTE(TEXT(AH14,"0,00"),",","") -> 00000000000000000
B95: 243 | C95: 17 | D95: Num | E95: Liquidación (3) - Regimen General - IVA Devengado - Adquisiciones intracomunitarias de bienes y servicios - Base imponible [10] | F95: =REPT("0",C95-LEN(SUBSTITUTE(TEXT(O15,"0,00"),",","")))&SUBSTITUTE(TEXT(O15,"0,00"),",","") -> 00000000000000000
B96: 260 | C96: 17 | D96: Num | E96: Liquidación (3) - Regimen General - IVA Devengado - Adquisiciones intracomunitarias de bienes y servicios - Cuota [11] | F96: =REPT("0",C96-LEN(SUBSTITUTE(TEXT(AH15,"0,00"),",","")))&SUBSTITUTE(TEXT(AH15,"0,00"),",","") -> 00000000000000000
B97: 311 | C97: 17 | D97: N | E97: Liquidación (3) - Regimen General - IVA Devengado - Modificación bases y cuotas - Base imponible [14] | F97: =IF(O17<0,"N",0)&REPT("0",C97-1-LEN(SUBSTITUTE(SUBSTITUTE(TEXT(O17,"0,00"),",",""),"-","")))&SUBSTITUTE(SUBSTITUTE(TEXT(O17,"0,00"),",",""),"-","") -> 00000000000000000
B98: 328 | C98: 17 | D98: N | E98: Liquidación (3) - Regimen General - IVA Devengado - Modificación bases y cuotas - Cuota [15] | F98: =IF(AH17<0,"N",0)&REPT("0",C98-1-LEN(SUBSTITUTE(SUBSTITUTE(TEXT(AH17,"0,00"),",",""),"-","")))&SUBSTITUTE(SUBSTITUTE(TEXT(AH17,"0,00"),",",""),"-","") -> 00000000000000000
B99: 345 | C99: 17 | D99: Num | E99: Liquidación (3) - Regimen General - IVA Devengado - Recargo equivalencia- Base imponible [16] | F99: =REPT("0",C99-LEN(SUBSTITUTE(TEXT(O18,"0,00"),",","")))&SUBSTITUTE(TEXT(O18,"0,00"),",","") -> 00000000000000000
B100: 362 | C100: 5 | D100: Num | E100: Liquidación (3) - Regimen General - IVA Devengado - Recargo equivalencia - Tipo % [17] | F100: =REPT("0",C100-LEN(SUBSTITUTE(TEXT(AB18,"0,00"),",","")))&SUBSTITUTE(TEXT(AB18,"0,00"),",","") -> 00000
B101: 367 | C101: 17 | D101: Num | E101: Liquidación (3) - Regimen General - IVA Devengado - Recargo equivalencia - Cuota [18] | F101: =REPT("0",C101-LEN(SUBSTITUTE(TEXT(AH18,"0,00"),",","")))&SUBSTITUTE(TEXT(AH18,"0,00"),",","") -> 00000000000000000
B102: 384 | C102: 17 | D102: Num | E102: Liquidación (3) - Regimen General - IVA Devengado - Recargo equivalencia - Base imponible [19] | F102: =REPT("0",C102-LEN(SUBSTITUTE(TEXT(O19,"0,00"),",","")))&SUBSTITUTE(TEXT(O19,"0,00"),",","") -> 00000000000000000
B103: 401 | C103: 5 | D103: Num | E103: Liquidación (3) - Regimen General - IVA Devengado - Recargo equivalencia - Tipo % [20] | F103: =REPT("0",C103-LEN(SUBSTITUTE(TEXT(AB19,"0,00"),",","")))&SUBSTITUTE(TEXT(AB19,"0,00"),",","") -> 00000
B104: 406 | C104: 17 | D104: Num | E104: Liquidación (3) - Regimen General - IVA Devengado - Recargo equivalencia - Cuota [21] | F104: =REPT("0",C104-LEN(SUBSTITUTE(TEXT(AH19,"0,00"),",","")))&SUBSTITUTE(TEXT(AH19,"0,00"),",","") -> 00000000000000000
B105: 423 | C105: 17 | D105: Num | E105: Liquidación (3) - Regimen General - IVA Devengado - Recargo equivalencia - Base imponible [22] | F105: =REPT("0",C105-LEN(SUBSTITUTE(TEXT(O20,"0,00"),",","")))&SUBSTITUTE(TEXT(O20,"0,00"),",","") -> 00000000000000000
B106: 440 | C106: 5 | D106: Num | E106: Liquidación (3) - Regimen General - IVA Devengado - Recargo equivalencia - Tipo % [23] | F106: =REPT("0",C106-LEN(SUBSTITUTE(TEXT(AB20,"0,00"),",","")))&SUBSTITUTE(TEXT(AB20,"0,00"),",","") -> 00000
B107: 445 | C107: 17 | D107: Num | E107: Liquidación (3) - Regimen General - IVA Devengado - Recargo equivalencia - Cuota [24] | F107: =REPT("0",C107-LEN(SUBSTITUTE(TEXT(AH20,"0,00"),",","")))&SUBSTITUTE(TEXT(AH20,"0,00"),",","") -> 00000000000000000
B108: 462 | C108: 17 | D108: N | E108: Liquidación (3) - Regimen General - IVA Devengado - Modificación bases y cuotas del recargo de equivalencia - Base imponible [25] | F108: =IF(O21<0,"N",0)&REPT("0",C108-1-LEN(SUBSTITUTE(SUBSTITUTE(TEXT(O21,"0,00"),",",""),"-","")))&SUBSTITUTE(SUBSTITUTE(TEXT(O21,"0,00"),",",""),"-","") -> 00000000000000000
B109: 479 | C109: 17 | D109: N | E109: Liquidación (3) - Regimen General - IVA Devengado - Modificación bases y cuotas del recargo de equivalencia - Cuota [26] | F109: =IF(AH21<0,"N",0)&REPT("0",C109-1-LEN(SUBSTITUTE(SUBSTITUTE(TEXT(AH21,"0,00"),",",""),"-","")))&SUBSTITUTE(SUBSTITUTE(TEXT(AH21,"0,00"),",",""),"-","") -> 00000000000000000
B110: 496 | C110: 17 | D110: N | E110: Liquidación (3) - Regimen General - IVA Devengado - Total cuota devengada [27] | F110: =REPT("0",C110-LEN(SUBSTITUTE(TEXT(AH23,"0,00"),",","")))&SUBSTITUTE(TEXT(AH23,"0,00"),",","") -> 00000000000000000
B111: 513 | C111: 17 | D111: Num | E111: Liquidación (3) - Regimen General - IVA Deducible - Por cuotas soportadas en operaciones interiores corrientes - Base [28] | F111: =REPT("0",C111-LEN(SUBSTITUTE(TEXT(AB26,"0,00"),",","")))&SUBSTITUTE(TEXT(AB26,"0,00"),",","") -> 00000000000000000
B112: 530 | C112: 17 | D112: Num | E112: Liquidación (3) - Regimen General - IVA Deducible - Por cuotas soportadas en operaciones interiores corrientes - Cuota [29] | F112: =REPT("0",C112-LEN(SUBSTITUTE(TEXT(AH26,"0,00"),",","")))&SUBSTITUTE(TEXT(AH26,"0,00"),",","") -> 00000000000000000
B113: 547 | C113: 17 | D113: Num | E113: Liquidación (3) - Regimen General - IVA Deducible - Por cuotas soportadas en operaciones interiores con bienes de inversión - Base [30] | F113: =REPT("0",C113-LEN(SUBSTITUTE(TEXT(AB27,"0,00"),",","")))&SUBSTITUTE(TEXT(AB27,"0,00"),",","") -> 00000000000000000
B114: 564 | C114: 17 | D114: Num | E114: Liquidación (3) - Regimen General - IVA Deducible - Por cuotas soportadas en operaciones interiores con bienes de inversión - Cuota [31] | F114: =REPT("0",C114-LEN(SUBSTITUTE(TEXT(AH27,"0,00"),",","")))&SUBSTITUTE(TEXT(AH27,"0,00"),",","") -> 00000000000000000
B115: 649 | C115: 17 | D115: Num | E115: Liquidación (3) - Regimen General - IVA Deducible - En adquisiciones intracomunitarias de bienes y servicios corrientes - Base [36] | F115: =REPT("0",C115-LEN(SUBSTITUTE(TEXT(AB30,"0,00"),",","")))&SUBSTITUTE(TEXT(AB30,"0,00"),",","") -> 00000000000000000
B116: 666 | C116: 17 | D116: Num | E116: Liquidación (3) - Regimen General - IVA Deducible - En adquisiciones intracomunitarias de bienes y servicios corrientes - Cuota [37] | F116: =REPT("0",C116-LEN(SUBSTITUTE(TEXT(AH30,"0,00"),",","")))&SUBSTITUTE(TEXT(AH30,"0,00"),",","") -> 00000000000000000
B117: 683 | C117: 17 | D117: Num | E117: Liquidación (3) - Regimen General - IVA Deducible - En adquisiciones intracomunitarias de bienes de inversión - Base [38] | F117: =REPT("0",C117-LEN(SUBSTITUTE(TEXT(AB31,"0,00"),",","")))&SUBSTITUTE(TEXT(AB31,"0,00"),",","") -> 00000000000000000
B118: 700 | C118: 17 | D118: Num | E118: Liquidación (3) - Regimen General - IVA Deducible - En adquisiciones intracomunitarias de bienes de inversión - Cuota [39] | F118: =REPT("0",C118-LEN(SUBSTITUTE(TEXT(AH31,"0,00"),",","")))&SUBSTITUTE(TEXT(AH31,"0,00"),",","") -> 00000000000000000
B119: 717 | C119: 17 | D119: N | E119: Liquidación (3) - Regimen General - IVA Deducible - Rectificación de deducciones - Base [40] | F119: =IF(AB32<0,"N",0)&REPT("0",C119-1-LEN(SUBSTITUTE(SUBSTITUTE(TEXT(AB32,"0,00"),",",""),"-","")))&SUBSTITUTE(SUBSTITUTE(TEXT(AB32,"0,00"),",",""),"-","") -> 00000000000000000
B120: 734 | C120: 17 | D120: N | E120: Liquidación (3) - Regimen General - IVA Deducible - Rectificación de deducciones - Cuota [41] | F120: =IF(AH32<0,"N",0)&REPT("0",C120-1-LEN(SUBSTITUTE(SUBSTITUTE(TEXT(AH32,"0,00"),",",""),"-","")))&SUBSTITUTE(SUBSTITUTE(TEXT(AH32,"0,00"),",",""),"-","") -> 00000000000000000
B121: 751 | C121: 17 | D121: N | E121: Liquidación (3) - Regimen General - IVA Deducible - Compensaciones Régimen Especial A.G. y P. - Cuota [42] | F121: =IF(AH33<0,"N",0)&REPT("0",C121-1-LEN(SUBSTITUTE(SUBSTITUTE(TEXT(AH33,"0,00"),",",""),"-","")))&SUBSTITUTE(SUBSTITUTE(TEXT(AH33,"0,00"),",",""),"-","") -> 00000000000000000
B122: 802 | C122: 17 | D122: N | E122: Liquidación (3) - Regimen General - IVA Deducible - Total a deducir - Cuota [45] | F122: =REPT("0",C122-LEN(SUBSTITUTE(TEXT(AH37,"0,00"),",","")))&SUBSTITUTE(TEXT(AH37,"0,00"),",","") -> 00000000000000000
B123: 819 | C123: 17 | D123: N | E123: Liquidación (3) - Regimen General - IVA Deducible -Resultado régimen general - Cuota [46] | F123: =IF(AH39<0,"N",0)&REPT("0",C123-1-LEN(SUBSTITUTE(SUBSTITUTE(TEXT(AH39,"0,00"),",",""),"-","")))&SUBSTITUTE(SUBSTITUTE(TEXT(AH39,"0,00"),",",""),"-","") -> 00000000000000000
B124: 12 | C124: 17 | D124: N | E124: Información adicional - Entregas intracomunitarias de bienes y servicios [59] | F124: =IF(AH42<0,"N",0)&REPT("0",C124-1-LEN(SUBSTITUTE(SUBSTITUTE(TEXT(AH42,"0,00"),",",""),"-","")))&SUBSTITUTE(SUBSTITUTE(TEXT(AH42,"0,00"),",",""),"-","") -> 00000000000000000
B125: 63 | C125: 17 | D125: N | E125: Información adicional - Exclusivamente para operaciones ... en régimen especial de criterio de caja ... [62] | F125: =IF(AB44<0,"N",0)&REPT("0",C125-1-LEN(SUBSTITUTE(SUBSTITUTE(TEXT(AB44,"0,00"),",",""),"-","")))&SUBSTITUTE(SUBSTITUTE(TEXT(AB44,"0,00"),",",""),"-","") -> 00000000000000000
B126: 80 | C126: 17 | D126: N | E126: Información adicional - Exclusivamente para operaciones ... en régimen especial de criterio de caja ... [63] | F126: =IF(AH44<0,"N",0)&REPT("0",C126-1-LEN(SUBSTITUTE(SUBSTITUTE(TEXT(AH44,"0,00"),",",""),"-","")))&SUBSTITUTE(SUBSTITUTE(TEXT(AH44,"0,00"),",",""),"-","") -> 00000000000000000
B127: 97 | C127: 17 | D127: N | E127: Información adicional - Exclusivamente para operaciones ... en régimen especial de criterio de caja ... [74] | F127: =IF(AB46<0,"N",0)&REPT("0",C127-1-LEN(SUBSTITUTE(SUBSTITUTE(TEXT(AB46,"0,00"),",",""),"-","")))&SUBSTITUTE(SUBSTITUTE(TEXT(AB46,"0,00"),",",""),"-","") -> 00000000000000000
B128: 114 | C128: 17 | D128: N | E128: Información adicional - Exclusivamente para operaciones ... en régimen especial de criterio de caja ... [75] | F128: =IF(AH46<0,"N",0)&REPT("0",C128-1-LEN(SUBSTITUTE(SUBSTITUTE(TEXT(AH46,"0,00"),",",""),"-","")))&SUBSTITUTE(SUBSTITUTE(TEXT(AH46,"0,00"),",",""),"-","") -> 00000000000000000
B129: 148 | C129: 17 | D129: N | E129: Liquidación (3) - Resultado - Suma de resultados [64] | F129: =IF(AH49<0,"N",0)&REPT("0",C129-1-LEN(SUBSTITUTE(SUBSTITUTE(TEXT(AH49,"0,00"),",",""),"-","")))&SUBSTITUTE(SUBSTITUTE(TEXT(AH49,"0,00"),",",""),"-","") -> 00000000000000000
B130: 165 | C130: 9 | D130: Num | E130: Liquidación (3) - Resultado - % Atribuible a la Administración del Estado [65] | F130: =REPT("0",C130-LEN(SUBSTITUTE(TEXT(O50,"0,000000"),",","")))&SUBSTITUTE(TEXT(O50,"0,000000"),",","") -> 100000000
B131: 174 | C131: 17 | D131: N | E131: Liquidación (3) - Resultado - Atribuible a la Administración del Estado [66] | F131: =IF(AH50<0,"N",0)&REPT("0",C129-1-LEN(SUBSTITUTE(SUBSTITUTE(TEXT(AH50,"0,00"),",",""),"-","")))&SUBSTITUTE(SUBSTITUTE(TEXT(AH50,"0,00"),",",""),"-","") -> 00000000000000000
B132: 208 | C132: 17 | D132: Num | E132: Liquidación (3) - Resultado - Cuotas a compensar de periodos anteriores [67] | F132: =REPT("0",C132-LEN(SUBSTITUTE(TEXT(AH51,"0,00"),",","")))&SUBSTITUTE(TEXT(AH51,"0,00"),",","") -> 00000000000000000
B133: 242 | C133: 17 | D133: N | E133: Liquidación (3) - Resultado - Resultado [69] | F133: =IF(AH53<0,"N",0)&REPT("0",C123-1-LEN(SUBSTITUTE(SUBSTITUTE(TEXT(AH53,"0,00"),",",""),"-","")))&SUBSTITUTE(SUBSTITUTE(TEXT(AH53,"0,00"),",",""),"-","") -> 00000000000000000

Sheet IRPF ANUAL
B1: RENDIMIENTOS DE ACTIVIDADES ECONÓMICAS EN ESTIMACIÓN DIRECTA
B3: Actividades realizadas
B5: Contribuyente que realiza la/s actividad/es | C5: 086 | D5: DECLARANTE
B6: Tipo de actividad/es realizada/s: clave indicativa | C6: 087 | D6: ='DATOS FISCALES'!C9 -> 5
B7: Modalidad aplicable del método de estimación directa | C7: 090 | D7: Simplificada
B8: Grupo o epígrafe I.A.E. | C8: 088 | D8: ='DATOS FISCALES'!C11 -> 111
B10: Ingresos íntegros
B11: Ingresos de explotación | C11: 092 | D11: =CALCULOS!B8 -> 0
B12: Otros ingresos (incluidas subvenciones y otras transferencias) | C12: 093
B13: Autoconsumo de bienes y servicios | C13: 094
B15: Transmisión elementos patrimoniales que hayan gozado libertad amortización exceso amortización deducida respecto amortización deducible | C15: 095
B17: Total ingresos computables (092 + 093 + 094 + 095) | C17: 096 | D17: =SUM(D11:D13) -> 0
B19: Gastos fiscalmente deducibles
B21: Consumos de explotación | C21: 097 | D21: =GASTOS!G102 -> 0
B22: Sueldos y salarios | C22: 098 | D22: =GASTOS!H102 -> 0
B23: S.Social a cargo de la empresa (incluidas las cotizaciones del titular) | C23: 099 | D23: =GASTOS!J102 -> 0
B24: Otros gastos de personal | C24: 100 | D24: =GASTOS!I102 -> 0
B25: Arrendamientos y cánones | C25: 101 | D25: =GASTOS!K102 -> 0
B26: Reparaciones y conservación | C26: 102 | D26: =GASTOS!L102 -> 0
B27: Servicios de profesionales independientes | C27: 103 | D27: =GASTOS!M102 -> 0
B28: Otros servicios exteriores | C28: 104 | D28: =GASTOS!N102 -> 0
B29: Tributos fiscalmente deducibles | C29: 105 | D29: =GASTOS!O102 -> 0
B30: Gastos financieros | C30: 106 | D30: =GASTOS!P102 -> 0
B31: Amortizaciones: dotaciones del ejercicio fiscalmente deducibles. | C31: 107 | D31: =GASTOS!Q102 -> 0
B32: Pérdidas por deterioro del valor de los elementos patrimoniales: importes deducibles | C32: 108 | D32: =GASTOS!R102 -> 0
B33: Incentivos al mecenazgo. Convenios de colaboración en actividades de interés general | C33: 109
B34: Incentivos al mecenazgo. Gastos en actividades de interés general | C34: 110
B35: Otros conceptos fiscalmente deducibles (excepto provisiones) | C35: 111 | D35: =GASTOS!S102 -> 0
B37: Suma (0997 a 111) | C37: 112 | D37: =SUM(D21:D35) -> 0
B39: Actividades en estimación directa (modalidad normal):
B40: Provisiones fiscalmente deducibles | C40: 113
B41: Total gastos deducibles (112 + 113) | C41: 114
B43: Actividades en estimación directa (modalidad simplificada):
B44: Diferencia (096 - 112) | C44: 115 | D44: =D17-D37 -> 0
B45: Conjunto de provisiones deducibles y gastos de dificil justificación | C45: 116 | D45: =IF(D17-D37>0,MIN(ROUND(0.05*(D17-D37),2),2000),0) -> 0
B46: Total gastos deducibles (112 + 116) | C46: 117 | D46: =D37+D45 -> 0
B48: Rendimiento neto y rendimiento neto reducido
B49: Rendimiento neto (096 - 114 ó 096 - 117) | C49: 118 | D49: =D17-D46 -> 0
B51: Reducciones de rendimientos generados en más de 2 años u obtenidos de forma notoriamente irregular | C51: 119
B53: Rendimiento neto reducido (118 - 119) | C53: 120 | D53: =D49-D51 -> 0
B55: Rendimiento neto reducido total de las actividades econ. en estimac. directa
B57: Suma de rendimientos netos reducidos (suma de las casillas 120) | C57: 121 | D57: =D53 -> 0
B58: Reducción por el ejercicio de determinadas actividades económicas (artículo 32.2 de la Ley del Impuesto y artículo 26 el | C58: 122
B59: Reducción por inicio de una actividad económica (artículo 32.3 de la Ley del Impuesto) | C59: 123
B60: Reducción por mantenimiento o creación de empleo (disposición adicional vigésima séptima de la Ley del Impuesto) | C60: 124
B61: Rendimiento neto reducido total (121 - 122 - 123 - 124) | C61: 125 | D61: =D57-D58-D59-D60 -> 0
B63: Retenciones y demás pagos a cuenta
B65: Por rendimientos del trabajo | C65: 590
B66: Por rendimientos del capital mobiliario | C66: 591
B67: Por arrendamientos de inmuebles urbanos | C67: 592
B68: Por rendimientos de actividades económicas (*) | C68: 593 | D68: =CALCULOS!F8 -> 0
B69: Atribuidos por entidades en régimen de atribución de rentas | C69: 594
B70: Imputados por agrupaciones de interés económico y UTE`s | C70: 595
B71: Ingresos a cuenta del artículo 92.8 de la Ley del Impuesto | C71: 596
B72: Por ganancias patrimoniales, incluidos premios | C72: 597
B73: Pagos fraccionados ingresados (actividades económicas) | C73: 598 | D73: =SUMIF(CALCULOS!P5:P8,">0",CALCULOS!P5:P8) -> 0
B74: Cuotas del Impuesto sobre la Renta de no Residentes(**) | C74: 599
B75: Retenciones art. 11 de la Directiva 2003/48/CE, del Consejo | C75: 600
B77: Total pagos a cuenta (suma de las casillas 590 a 600) | C77: 601 | D77: =SUM(D65:D75) -> 0

Sheet CALCULOS
A2: CÁLCULOS TRIMESTRALES PARA EL MODELO 130: IRPF
A4: TRIMESTRE | B4: Ingresos Casilla [01] | C4: Gastos Brutos | D4: Casilla [02] Gastos con deducción | E4: Casilla [05] | F4: Casilla [06] Retenc. soportad | G4: Casilla [07] Pago fraccionado | J4: Casilla [11] | K4: Casilla [12] | L4: Casilla [13] Deducción del art. 110.3 c) Regl. IRPF | M4: Casilla [15] Compensar negativas anteriores | N4: Casilla [17] | O4: Casilla [18] | P4: Casilla [19]
A5: 1T | B5: =SUMIF(INGRESOS!$V$2:$V$101,1,INGRESOS!$F$2:$F$101) -> 0 | C5: =SUMIF(GASTOS!$AK$2:$AK$101,1,GASTOS!$T$2:$T$101) -> 0 | D5: =IF((B5-C5)>=0,C5+MIN(ROUND(0.05*(B5-C5),2),2000),C5) -> 0 | E5: 0 | F5: =ROUND(SUMIF(INGRESOS!$V$2:$V$101,1,INGRESOS!$K$2:$K$101),2) -> 0 | G5: =ROUND(IF((B5-D5)>=0,0.2*(B5-D5),0)-(E5+F5),2) -> 0 | K5: =IF(G5+J5>0,G5+J5,0) -> 0 | L5: =IF('DATOS FISCALES'!C$8>12000,0,IF('DATOS FISCALES'!C$8>=11000.01,25,IF('DATOS FISCALES'!C$8>=10000.01,50,IF('DATOS FISCALES'!C$8>=9000.01,75,100)))) -> 100 | M5: 0 | N5: =K5-L5-M5 -> -100 | P5: =N5-O5 -> -100
A6: 2T | B6: =SUMIF(INGRESOS!$V$2:$V$101,"<=2",INGRESOS!$F$2:$F$101) -> 0 | C6: =SUMIF(GASTOS!$AK$2:$AK$101,"<=2",GASTOS!$T$2:$T$101) -> 0 | D6: =IF((B6-C6)>=0,C6+MIN(ROUND(0.05*(B6-C6),2),2000),C6) -> 0 | E6: =IF(G5>0,G5,0) -> 0 | F6: =ROUND(SUMIF(INGRESOS!$V$2:$V$101,"<=2",INGRESOS!$K$2:$K$101),2) -> 0 | G6: =ROUND(IF((B6-D6)>=0,0.2*(B6-D6),0)-(E6+F6),2) -> 0 | K6: =IF(G6+J6>0,G6+J6,0) -> 0 | L6: =IF('DATOS FISCALES'!C$8>12000,0,IF('DATOS FISCALES'!C$8>=11000.01,25,IF('DATOS FISCALES'!C$8>=10000.01,50,IF('DATOS FISCALES'!C$8>=9000.01,75,100)))) -> 100 | M6: =IF(AND(K6-L6>0,P5<0),IF(ABS(P5)<K6-L6,ABS(P5),K6-L6),0) -> 0 | N6: =K6-L6-M6 -> -100 | P6: =N6-O6 -> -100
A7: 3T | B7: =SUMIF(INGRESOS!$V$2:$V$101,"<=3",INGRESOS!$F$2:$F$101) -> 0 | C7: =SUMIF(GASTOS!$AK$2:$AK$101,"<=3",GASTOS!$T$2:$T$101) -> 0 | D7: =IF((B7-C7)>=0,C7+MIN(ROUND(0.05*(B7-C7),2),2000),C7) -> 0 | E7: =E6+IF(G6>0,G6,0) -> 0 | F7: =ROUND(SUMIF(INGRESOS!$V$2:$V$101,"<=3",INGRESOS!$K$2:$K$101),2) -> 0 | G7: =ROUND(IF((B7-D7)>=0,0.2*(B7-D7),0)-(E7+F7),2) -> 0 | K7: =IF(G7+J7>0,G7+J7,0) -> 0 | L7: =IF('DATOS FISCALES'!C$8>12000,0,IF('DATOS FISCALES'!C$8>=11000.01,25,IF('DATOS FISCALES'!C$8>=10000.01,50,IF('DATOS FISCALES'!C$8>=9000.01,75,100)))) -> 100 | M7: =IF(AND(K7-L7>0,(IF(P6<0,P6,0)+IF(M6+P5<0,M6+P5,0))<0),IF(ABS(IF(P6<0,P6,0)+IF(M6+P5<0,M6+P5,0))<K7-L7,ABS(IF(P6<0,P6,0)+IF(M6+P5<0,M6+P5,0)),K7-L7),0) -> 0 | N7: =K7-L7-M7 -> -100 | P7: =N7-O7 -> -100
A8: 4T | B8: =SUMIF(INGRESOS!$V$2:$V$101,"<=4",INGRESOS!$F$2:$F$101) -> 0 | C8: =SUMIF(GASTOS!$AK$2:$AK$101,"<=4",GASTOS!$T$2:$T$101) -> 0 | D8: =IF((B8-C8)>=0,C8+MIN(ROUND(0.05*(B8-C8),2),2000),C8) -> 0 | E8: =E7+IF(G7>0,G7,0) -> 0 | F8: =ROUND(SUMIF(INGRESOS!$V$2:$V$101,"<=4",INGRESOS!$K$2:$K$101),2) -> 0 | G8: =ROUND(IF((B8-D8)>=0,0.2*(B8-D8),0)-(E8+F8),2) -> 0 | K8: =IF(G8+J8>0,G8+J8,0) -> 0 | L8: =IF('DATOS FISCALES'!C$8>12000,0,IF('DATOS FISCALES'!C$8>=11000.01,25,IF('DATOS FISCALES'!C$8>=10000.01,50,IF('DATOS FISCALES'!C$8>=9000.01,75,100)))) -> 100 | M8: =IF(AND(K8-L8>0,SUM(M6:M7)+SUMIF(P5:P7,"<0")<0),IF(ABS(SUM(M6:M7)+SUMIF(P5:P7,"<0"))<K8-L8,ABS(SUM(M6:M7)+SUMIF(P5:P7,"<0")),K8-L8),0) -> 0 | N8: =K8-L8-M8 -> -100 | P8: =N8-O8 -> -100
A10: CÁLCULOS TRIMESTRALES PARA EL MODELO 303: IVA
A12: TRIMESTRE | B12: Rég. Especial Criterio de Caja | D12: IVA Devengado en Operaciones Interiores (excluídas las facturas rectificativas) | P12: IVA Deveng. Adq. Intracom. | R12: IVA Deveng. Modif. Intrac. | T12: IVA Deveng. Total Modif. | V12: IVA Deveng. Total Modif R.E. | X12: IVA Deduc. Op. Inter. B. y S. Corrient. | Z12: IVA Deduc. Op. Inter. B. de Inversión | AB12: IVA Deducible Adquisiciones Intracomunitarias | AF12: Rectificación Deducciones | AH12: Compensac. Rég. Esp. Agric. Ganad. y P. [42] | AI12: Resultado régimen general [46] | AJ12: Información Adicional | AO12: Cuotas a compensar trimestres Anteriores [67] | AP12: Resultado [69] y Resultado Liquid. [71]
B13: Opción por el RECC | C13: Destinat. ope. afect. RECC | D13: ="Bases al Tipo " & 'DATOS FISCALES'!C13 &"%" -> Bases al Tipo 4% | E13: ="Cuotas IVA al "& 'DATOS FISCALES'!C13 & "%" -> Cuotas IVA al 4% | F13: ="Bases sujetas R.E. " & 'DATOS FISCALES'!E13 & "%" -> Bases sujetas R.E. 0,5% | G13: ="Cuotas R.E. " & 'DATOS FISCALES'!E13 & "%" -> Cuotas R.E. 0,5% | H13: ="Bases al Tipo " & 'DATOS FISCALES'!C14 & "%" -> Bases al Tipo 10% | I13: ="Cuotas IVA al " & 'DATOS FISCALES'!C14 & "%" -> Cuotas IVA al 10% | J13: ="Bases sujetas R.E. " & 'DATOS FISCALES'!E14 & "%" -> Bases sujetas R.E. 1,4% | K13: ="Cuotas R.E. " & 'DATOS FISCALES'!E14 & "%" -> Cuotas R.E. 1,4% | L13: ="Bases al Tipo " & 'DATOS FISCALES'!C15 & "%" -> Bases al Tipo 21% | M13: ="Cuotas IVA al " & 'DATOS FISCALES'!C15 & "%" -> Cuotas IVA al 21% | N13: ="Bases sujetas R.E. " & 'DATOS FISCALES'!E15 & "%" -> Bases sujetas R.E. 5,2% | O13: ="Cuotas R.E. " & 'DATOS FISCALES'!E15 & "%" -> Cuotas R.E. 5,2% | P13: Base Imponible [10] | Q13: Cuota [11] | R13: Base Imponible | S13: Cuota | T13: Base Imponible [14] | U13: Cuota [15] | V13: Base Imponible [25] | W13: Cuota [26] | X13: Base Imponible [28] | Y13: Cuota [29] | Z13: Base Imponible [30] | AA13: Cuota [31] | AB13: Bases bienes y servicios corrientes [36] | AC13: Cuotas bienes y servicios corrientes [37] | AD13: Bases bienes de inversión [38] | AE13: Cuotas bienes de inversión [39] | AF13: Base Imponible [40] | AG13: Cuota [41] | AJ13: Entregas Intrac. de bienes y servicios [59] | AK13: Bases entregas en RECC calculadas según regla general devengo [62] | AL13: Cuotas entregas en RECC pero cálculo según regla general devengo [63] | AM13: Bases adquisic. en RECC pero cálculo según regla general devengo [74] | AN13: Cuotas adquisic. en RECC pero cálculo según regla general devengo [75]
A14: 1 | B14: =IF(LEFT('DATOS FISCALES'!C12,1)="S",1,0) -> 0 | C14: =SUMPRODUCT((GASTOS!AL$2:AL$101=$A14)*(GASTOS!AC$2:AC$101=2)) -> 0 | D14: =IF($B$14=0,SUMPRODUCT((INGRESOS!$V$2:$V$101=$A14)*(INGRESOS!$G$2:$G$101='DATOS FISCALES'!$C$13)*ISBLANK(INGRESOS!$N$2:$N$101)*INGRESOS!$F$2:$F$101),SUMPRODUCT((INGRESOS!$W$2:$W$101=$A14)*(INGRESOS!$R$2:$R$101='DATOS FISCALES'!$C$13)*ISBLANK(INGRESOS!$N$2:$N$101)*INGRESOS!$Q$2:$Q$101)) -> 0 | E14: =IF($B$14=0,SUMPRODUCT((INGRESOS!$V$2:$V$101=$A14)*(INGRESOS!$G$2:$G$101='DATOS FISCALES'!$C$13)*ISBLANK(INGRESOS!$N$2:$N$101)*INGRESOS!$I$2:$I$101),SUMPRODUCT((INGRESOS!$W$2:$W$101=$A14)*(INGRESOS!$R$2:$R$101='DATOS FISCALES'!$C$13)*ISBLANK(INGRESOS!$N$2:$N$101)*INGRESOS!$S$2:$S$101)) -> 0 | F14: =SUMPRODUCT((INGRESOS!$V$2:$V$101=$A14)*(INGRESOS!$H$2:$H$101='DATOS FISCALES'!$E$13)*ISBLANK(INGRESOS!$N$2:$N$101)*INGRESOS!$F$2:$F$101) -> 0 | G14: =SUMPRODUCT((INGRESOS!$V$2:$V$101=$A14)*(INGRESOS!$H$2:$H$101='DATOS FISCALES'!$E$13)*ISBLANK(INGRESOS!$N$2:$N$101)*INGRESOS!$J$2:$J$101) -> 0 | H14: =IF($B$14=0,SUMPRODUCT((INGRESOS!$V$2:$V$101=$A14)*(INGRESOS!$G$2:$G$101='DATOS FISCALES'!$C$14)*ISBLANK(INGRESOS!$N$2:$N$101)*INGRESOS!$F$2:$F$101),SUMPRODUCT((INGRESOS!$W$2:$W$101=$A14)*(INGRESOS!$R$2:$R$101='DATOS FISCALES'!$C$14)*ISBLANK(INGRESOS!$N$2:$N$101)*INGRESOS!$Q$2:$Q$101)) -> 0 | I14: =IF($B$14=0,SUMPRODUCT((INGRESOS!$V$2:$V$101=$A14)*(INGRESOS!$G$2:$G$101='DATOS FISCALES'!$C$14)*ISBLANK(INGRESOS!$N$2:$N$101)*INGRESOS!$I$2:$I$101),SUMPRODUCT((INGRESOS!$W$2:$W$101=$A14)*(INGRESOS!$R$2:$R$101='DATOS FISCALES'!$C$14)*ISBLANK(INGRESOS!$N$2:$N$101)*INGRESOS!$S$2:$S$101)) -> 0 | J14: =SUMPRODUCT((INGRESOS!$V$2:$V$101=$A14)*(INGRESOS!$H$2:$H$101='DATOS FISCALES'!$E$14)*ISBLANK(INGRESOS!$N$2:$N$101)*INGRESOS!$F$2:$F$101) -> 0 | K14: =SUMPRODUCT((INGRESOS!$V$2:$V$101=$A14)*(INGRESOS!$H$2:$H$101='DATOS FISCALES'!$E$14)*ISBLANK(INGRESOS!$N$2:$N$101)*INGRESOS!$J$2:$J$101) -> 0 | L14: =IF($B$14=0,SUMPRODUCT((INGRESOS!$V$2:$V$101=$A14)*(INGRESOS!$G$2:$G$101='DATOS FISCALES'!$C$15)*ISBLANK(INGRESOS!$N$2:$N$101)*INGRESOS!$F$2:$F$101),SUMPRODUCT((INGRESOS!$W$2:$W$101=$A14)*(INGRESOS!$R$2:$R$101='DATOS FISCALES'!$C$15)*ISBLANK(INGRESOS!$N$2:$N$101)*INGRESOS!$Q$2:$Q$101)) -> 0 | M14: =IF($B$14=0,SUMPRODUCT((INGRESOS!$V$2:$V$101=$A14)*(INGRESOS!$G$2:$G$101='DATOS FISCALES'!$C$15)*ISBLANK(INGRESOS!$N$2:$N$101)*INGRESOS!$I$2:$I$101),SUMPRODUCT((INGRESOS!$W$2:$W$101=$A14)*(INGRESOS!$R$2:$R$101='DATOS FISCALES'!$C$15)*ISBLANK(INGRESOS!$N$2:$N$101)*INGRESOS!$S$2:$S$101)) -> 0 | N14: =SUMPRODUCT((INGRESOS!$V$2:$V$101=$A14)*(INGRESOS!$H$2:$H$101='DATOS FISCALES'!$E$15)*ISBLANK(INGRESOS!$N$2:$N$101)*INGRESOS!$F$2:$F$101) -> 0 | O14: =SUMPRODUCT((INGRESOS!$V$2:$V$101=$A14)*(INGRESOS!$H$2:$H$101='DATOS FISCALES'!$E$15)*ISBLANK(INGRESOS!$N$2:$N$101)*INGRESOS!$J$2:$J$101) -> 0 | P14: =SUMPRODUCT((GASTOS!AK$2:AK$101=$A14)*ISNUMBER(GASTOS!Z$2:Z$101)*ISBLANK(GASTOS!AB$2:AB$101)*GASTOS!U$2:U$101) -> 0 | Q14: =SUMPRODUCT((GASTOS!AK$2:AK$101=$A14)*ISNUMBER(GASTOS!Z$2:Z$101)*ISBLANK(GASTOS!AB$2:AB$101)*GASTOS!W$2:W$101) -> 0 | R14: =SUMPRODUCT((GASTOS!AK$2:AK$101=$A14)*ISNUMBER(GASTOS!Z$2:Z$101)*(GASTOS!AB$2:AB$101=1)*GASTOS!U$2:U$101) -> 0 | S14: =SUMPRODUCT((GASTOS!AK$2:AK$101=$A14)*ISNUMBER(GASTOS!Z$2:Z$101)*(GASTOS!AB$2:AB$101=1)*GASTOS!W$2:W$101) -> 0 | T14: =IF($B$14=0,SUMPRODUCT((INGRESOS!$V$2:$V$101=$A14)*(INGRESOS!$N$2:$N$101=1)*INGRESOS!$F$2:$F$101)+R14,SUMPRODUCT((INGRESOS!$W$2:$W$101=$A14)*(INGRESOS!$N$2:$N$101=1)*INGRESOS!$Q$2:$Q$101)+R14) -> 0 | U14: =IF($B$14=0,SUMPRODUCT((INGRESOS!$V$2:$V$101=$A14)*(INGRESOS!$N$2:$N$101=1)*INGRESOS!$I$2:$I$101)+S14,SUMPRODUCT((INGRESOS!$W$2:$W$101=$A14)*(INGRESOS!$N$2:$N$101=1)*INGRESOS!$S$2:$S$101)+S14) -> 0 | V14: =SUMPRODUCT((INGRESOS!$V$2:$V$101=$A14)*(INGRESOS!$H$2:$H$101>0)*(INGRESOS!$N$2:$N$101=1)*INGRESOS!$F$2:$F$101) -> 0 | W14: =SUMPRODUCT((INGRESOS!$V$2:$V$101=$A14)*(INGRESOS!$H$2:$H$101>0)*(INGRESOS!$N$2:$N$101=1)*INGRESOS!$J$2:$J$101) -> 0 | X14: =IF(AND($B$14=0,$C14=0),SUMPRODUCT((GASTOS!AK$2:AK$101=$A14)*(GASTOS!V$2:V$101>0)*ISBLANK(GASTOS!Z$2:Z$101)*ISBLANK(GASTOS!AA$2:AA$101)*ISBLANK(GASTOS!AB$2:AB$101)*GASTOS!U$2:U$101),SUMPRODUCT((GASTOS!AL$2:AL$101=$A14)*(GASTOS!AF$2:AF$101>0)*ISBLANK(GASTOS!Z$2:Z$101)*ISBLANK(GASTOS!AA$2:AA$101)*ISBLANK(GASTOS!AB$2:AB$101)*GASTOS!AE$2:AE$101)) -> 0 | Y14: =IF(AND($B$14=0,$C14=0),SUMPRODUCT((GASTOS!AK$2:AK$101=$A14)*ISBLANK(GASTOS!Z$2:Z$101)*ISBLANK(GASTOS!AA$2:AA$101)*ISBLANK(GASTOS!AB$2:AB$101)*GASTOS!W$2:W$101),SUMPRODUCT((GASTOS!AL$2:AL$101=$A14)*ISBLANK(GASTOS!Z$2:Z$101)*ISBLANK(GASTOS!AA$2:AA$101)*ISBLANK(GASTOS!AB$2:AB$101)*GASTOS!AG$2:AG$101)) -> 0 | Z14: =IF(AND($B$14=0,$C14=0),SUMPRODUCT((GASTOS!AK$2:AK$101=$A14)*(GASTOS!V$2:V$101>0)*ISBLANK(GASTOS!Z$2:Z$101)*(GASTOS!AA$2:AA$101=1)*ISBLANK(GASTOS!AB$2:AB$101)*GASTOS!U$2:U$101),SUMPRODUCT((GASTOS!AL$2:AL$101=$A14)*(GASTOS!V$2:V$101>0)*ISBLANK(GASTOS!Z$2:Z$101)*(GASTOS!AA$2:AA$101=1)*ISBLANK(GASTOS!AB$2:AB$101)*GASTOS!AE$2:AE$101)) -> 0 | AA14: =IF(AND($B$14=0,$C14=0),SUMPRODUCT((GASTOS!AK$2:AK$101=$A14)*ISBLANK(GASTOS!Z$2:Z$101)*(GASTOS!AA$2:AA$101=1)*ISBLANK(GASTOS!AB$2:AB$101)*GASTOS!W$2:W$101),SUMPRODUCT((GASTOS!AL$2:AL$101=$A14)*ISBLANK(GASTOS!Z$2:Z$101)*(GASTOS!AA$2:AA$101=1)*ISBLANK(GASTOS!AB$2:AB$101)*GASTOS!AG$2:AG$101)) -> 0 | AB14: =SUMPRODUCT((GASTOS!AK$2:AK$101=$A14)*ISNUMBER(GASTOS!Z$2:Z$101)*GASTOS!U$2:U$101)-AD14 -> 0 | AC14: =SUMPRODUCT((GASTOS!AK$2:AK$101=$A14)*ISNUMBER(GASTOS!Z$2:Z$101)*GASTOS!W$2:W$101)-AE14 -> 0 | AD14: =SUMPRODUCT((GASTOS!AK$2:AK$101=$A14)*(GASTOS!Z$2:Z$101=3)*GASTOS!U$2:U$101) -> 0 | AE14: =SUMPRODUCT((GASTOS!AK$2:AK$101=$A14)*(GASTOS!Z$2:Z$101=3)*GASTOS!W$2:W$101) -> 0 | AF14: =IF(AND($B$14=0,$C14=0),SUMPRODUCT((GASTOS!AK$2:AK$101=$A14)*(GASTOS!V$2:V$101>0)*ISBLANK(GASTOS!Z$2:Z$101)*(GASTOS!AB$2:AB$101=1)*GASTOS!U$2:U$101),SUMPRODUCT((GASTOS!AL$2:AL$101=$A14)*(GASTOS!V$2:V$101>0)*ISBLANK(GASTOS!Z$2:Z$101)*(GASTOS!AB$2:AB$101=1)*GASTOS!AE$2:AE$101)) -> 0 | AG14: =IF(AND($B$14=0,$C14=0),SUMPRODUCT((GASTOS!AK$2:AK$101=$A14)*ISBLANK(GASTOS!Z$2:Z$101)*(GASTOS!AB$2:AB$101=1)*GASTOS!W$2:W$101),SUMPRODUCT((GASTOS!AL$2:AL$101=$A14)*ISBLANK(GASTOS!Z$2:Z$101)*(GASTOS!AB$2:AB$101=1)*GASTOS!AG$2:AG$101)) -> 0 | AH14: =IF(AND($B$14=0,$C14=0),SUMPRODUCT((GASTOS!AK$2:AK$101=$A14)*GASTOS!AI$2:AI$101),SUMPRODUCT((GASTOS!AL$2:AL$101=$A14)*GASTOS!AI$2:AI$101)) -> 0 | AI14: =SUM(E14,G14,I14,K14,M14,O14,U14,W14)-S14-SUM(Y14,AA14,AG14,AH14) -> 0 | AJ14: =SUMPRODUCT((INGRESOS!$V$2:$V$101=$A14)*ISNUMBER(INGRESOS!$M$2:$M$101)*INGRESOS!$L$2:$L$101) -> 0 | AK14: =IF($B$14=1,SUMPRODUCT((INGRESOS!$V$2:$V$101=$A14)*(INGRESOS!$O$2:$O$101=1)*NOT(ISBLANK(INGRESOS!$G$2:$G$101))*INGRESOS!$F$2:$F$101),0) -> 0 | AL14: =IF($B$14=1,SUMPRODUCT((INGRESOS!$V$2:$V$101=$A14)*(INGRESOS!$O$2:$O$101=1)*NOT(ISBLANK(INGRESOS!$G$2:$G$101))*INGRESOS!$I$2:$I$101),0) -> 0 | AM14: =IF(OR($B$14=1,$C14=1),SUMPRODUCT((GASTOS!$AK$2:$AK$101=$A14)*(GASTOS!$AC$2:$AC$101>0)*NOT(ISBLANK(GASTOS!$V$2:$V$101))*GASTOS!$U$2:$U$101),0) -> 0 | AN14: =IF(OR($B$14=1,$C14=1),SUMPRODUCT((GASTOS!$AK$2:$AK$101=$A14)*(GASTOS!$AC$2:$AC$101>0)*NOT(ISBLANK(GASTOS!$V$2:$V$101))*GASTOS!$W$2:$W$101),0) -> 0 | AP14: =AI14-AO14 -> 0
A15: 2 | C15: =SUMPRODUCT((GASTOS!AL$2:AL$101=$A15)*(GASTOS!AC$2:AC$101=2)) -> 0 | D15: =IF($B$14=0,SUMPRODUCT((INGRESOS!$V$2:$V$101=$A15)*(INGRESOS!$G$2:$G$101='DATOS FISCALES'!$C$13)*ISBLANK(INGRESOS!$N$2:$N$101)*INGRESOS!$F$2:$F$101),SUMPRODUCT((INGRESOS!$W$2:$W$101=$A15)*(INGRESOS!$R$2:$R$101='DATOS FISCALES'!$C$13)*ISBLANK(INGRESOS!$N$2:$N$101)*INGRESOS!$Q$2:$Q$101)) -> 0 | E15: =IF($B$14=0,SUMPRODUCT((INGRESOS!$V$2:$V$101=$A15)*(INGRESOS!$G$2:$G$101='DATOS FISCALES'!$C$13)*ISBLANK(INGRESOS!$N$2:$N$101)*INGRESOS!$I$2:$I$101),SUMPRODUCT((INGRESOS!$W$2:$W$101=$A15)*(INGRESOS!$R$2:$R$101='DATOS FISCALES'!$C$13)*ISBLANK(INGRESOS!$N$2:$N$101)*INGRESOS!$S$2:$S$101)) -> 0 | F15: =SUMPRODUCT((INGRESOS!$V$2:$V$101=$A15)*(INGRESOS!$H$2:$H$101='DATOS FISCALES'!$E$13)*ISBLANK(INGRESOS!$N$2:$N$101)*INGRESOS!$F$2:$F$101) -> 0 | G15: =SUMPRODUCT((INGRESOS!$V$2:$V$101=$A15)*(INGRESOS!$H$2:$H$101='DATOS FISCALES'!$E$13)*ISBLANK(INGRESOS!$N$2:$N$101)*INGRESOS!$J$2:$J$101) -> 0 | H15: =IF($B$14=0,SUMPRODUCT((INGRESOS!$V$2:$V$101=$A15)*(INGRESOS!$G$2:$G$101='DATOS FISCALES'!$C$14)*ISBLANK(INGRESOS!$N$2:$N$101)*INGRESOS!$F$2:$F$101),SUMPRODUCT((INGRESOS!$W$2:$W$101=$A15)*(INGRESOS!$R$2:$R$101='DATOS FISCALES'!$C$14)*ISBLANK(INGRESOS!$N$2:$N$101)*INGRESOS!$Q$2:$Q$101)) -> 0 | I15: =IF($B$14=0,SUMPRODUCT((INGRESOS!$V$2:$V$101=$A15)*(INGRESOS!$G$2:$G$101='DATOS FISCALES'!$C$14)*ISBLANK(INGRESOS!$N$2:$N$101)*INGRESOS!$I$2:$I$101),SUMPRODUCT((INGRESOS!$W$2:$W$101=$A15)*(INGRESOS!$R$2:$R$101='DATOS FISCALES'!$C$14)*ISBLANK(INGRESOS!$N$2:$N$101)*INGRESOS!$S$2:$S$101)) -> 0 | J15: =SUMPRODUCT((INGRESOS!$V$2:$V$101=$A15)*(INGRESOS!$H$2:$H$101='DATOS FISCALES'!$E$14)*ISBLANK(INGRESOS!$N$2:$N$101)*INGRESOS!$F$2:$F$101) -> 0 | K15: =SUMPRODUCT((INGRESOS!$V$2:$V$101=$A15)*(INGRESOS!$H$2:$H$101='DATOS FISCALES'!$E$14)*ISBLANK(INGRESOS!$N$2:$N$101)*INGRESOS!$J$2:$J$101) -> 0 | L15: =IF($B$14=0,SUMPRODUCT((INGRESOS!$V$2:$V$101=$A15)*(INGRESOS!$G$2:$G$101='DATOS FISCALES'!$C$15)*ISBLANK(INGRESOS!$N$2:$N$101)*INGRESOS!$F$2:$F$101),SUMPRODUCT((INGRESOS!$W$2:$W$101=$A15)*(INGRESOS!$R$2:$R$101='DATOS FISCALES'!$C$15)*ISBLANK(INGRESOS!$N$2:$N$101)*INGRESOS!$Q$2:$Q$101)) -> 0 | M15: =IF($B$14=0,SUMPRODUCT((INGRESOS!$V$2:$V$101=$A15)*(INGRESOS!$G$2:$G$101='DATOS FISCALES'!$C$15)*ISBLANK(INGRESOS!$N$2:$N$101)*INGRESOS!$I$2:$I$101),SUMPRODUCT((INGRESOS!$W$2:$W$101=$A15)*(INGRESOS!$R$2:$R$101='DATOS FISCALES'!$C$15)*ISBLANK(INGRESOS!$N$2:$N$101)*INGRESOS!$S$2:$S$101)) -> 0 | N15: =SUMPRODUCT((INGRESOS!$V$2:$V$101=$A15)*(INGRESOS!$H$2:$H$101='DATOS FISCALES'!$E$15)*ISBLANK(INGRESOS!$N$2:$N$101)*INGRESOS!$F$2:$F$101) -> 0 | O15: =SUMPRODUCT((INGRESOS!$V$2:$V$101=$A15)*(INGRESOS!$H$2:$H$101='DATOS FISCALES'!$E$15)*ISBLANK(INGRESOS!$N$2:$N$101)*INGRESOS!$J$2:$J$101) -> 0 | P15: =SUMPRODUCT((GASTOS!AK$2:AK$101=$A15)*ISNUMBER(GASTOS!Z$2:Z$101)*ISBLANK(GASTOS!AB$2:AB$101)*GASTOS!U$2:U$101) -> 0 | Q15: =SUMPRODUCT((GASTOS!AK$2:AK$101=$A15)*ISNUMBER(GASTOS!Z$2:Z$101)*ISBLANK(GASTOS!AB$2:AB$101)*GASTOS!W$2:W$101) -> 0 | R15: =SUMPRODUCT((GASTOS!AK$2:AK$101=$A15)*ISNUMBER(GASTOS!Z$2:Z$101)*(GASTOS!AB$2:AB$101=1)*GASTOS!U$2:U$101) -> 0 | S15: =SUMPRODUCT((GASTOS!AK$2:AK$101=$A15)*ISNUMBER(GASTOS!Z$2:Z$101)*(GASTOS!AB$2:AB$101=1)*GASTOS!W$2:W$101) -> 0 | T15: =IF($B$14=0,SUMPRODUCT((INGRESOS!$V$2:$V$101=$A15)*(INGRESOS!$N$2:$N$101=1)*INGRESOS!$F$2:$F$101)+R15,SUMPRODUCT((INGRESOS!$W$2:$W$101=$A15)*(INGRESOS!$N$2:$N$101=1)*INGRESOS!$Q$2:$Q$101)+R15) -> 0 | U15: =IF($B$14=0,SUMPRODUCT((INGRESOS!$V$2:$V$101=$A15)*(INGRESOS!$N$2:$N$101=1)*INGRESOS!$I$2:$I$101)+S15,SUMPRODUCT((INGRESOS!$W$2:$W$101=$A15)*(INGRESOS!$N$2:$N$101=1)*INGRESOS!$S$2:$S$101)+S15) -> 0 | V15: =SUMPRODUCT((INGRESOS!$V$2:$V$101=$A15)*(INGRESOS!$H$2:$H$101>0)*(INGRESOS!$N$2:$N$101=1)*INGRESOS!$F$2:$F$101) -> 0 | W15: =SUMPRODUCT((INGRESOS!$V$2:$V$101=$A15)*(INGRESOS!$H$2:$H$101>0)*(INGRESOS!$N$2:$N$101=1)*INGRESOS!$J$2:$J$101) -> 0 | X15: =IF(AND($B$14=0,$C15=0),SUMPRODUCT((GASTOS!AK$2:AK$101=$A15)*(GASTOS!V$2:V$101>0)*ISBLANK(GASTOS!Z$2:Z$101)*ISBLANK(GASTOS!AA$2:AA$101)*ISBLANK(GASTOS!AB$2:AB$101)*GASTOS!U$2:U$101),SUMPRODUCT((GASTOS!AL$2:AL$101=$A15)*(GASTOS!AF$2:AF$101>0)*ISBLANK(GASTOS!Z$2:Z$101)*ISBLANK(GASTOS!AA$2:AA$101)*ISBLANK(GASTOS!AB$2:AB$101)*GASTOS!AE$2:AE$101)) -> 0 | Y15: =IF(AND($B$14=0,$C15=0),SUMPRODUCT((GASTOS!AK$2:AK$101=$A15)*ISBLANK(GASTOS!Z$2:Z$101)*ISBLANK(GASTOS!AA$2:AA$101)*ISBLANK(GASTOS!AB$2:AB$101)*GASTOS!W$2:W$101),SUMPRODUCT((GASTOS!AL$2:AL$101=$A15)*ISBLANK(GASTOS!Z$2:Z$101)*ISBLANK(GASTOS!AA$2:AA$101)*ISBLANK(GASTOS!AB$2:AB$101)*GASTOS!AG$2:AG$101)) -> 0 | Z15: =IF(AND($B$14=0,$C15=0),SUMPRODUCT((GASTOS!AK$2:AK$101=$A15)*(GASTOS!V$2:V$101>0)*ISBLANK(GASTOS!Z$2:Z$101)*(GASTOS!AA$2:AA$101=1)*ISBLANK(GASTOS!AB$2:AB$101)*GASTOS!U$2:U$101),SUMPRODUCT((GASTOS!AL$2:AL$101=$A15)*(GASTOS!V$2:V$101>0)*ISBLANK(GASTOS!Z$2:Z$101)*(GASTOS!AA$2:AA$101=1)*ISBLANK(GASTOS!AB$2:AB$101)*GASTOS!AE$2:AE$101)) -> 0 | AA15: =IF(AND($B$14=0,$C15=0),SUMPRODUCT((GASTOS!AK$2:AK$101=$A15)*ISBLANK(GASTOS!Z$2:Z$101)*(GASTOS!AA$2:AA$101=1)*ISBLANK(GASTOS!AB$2:AB$101)*GASTOS!W$2:W$101),SUMPRODUCT((GASTOS!AL$2:AL$101=$A15)*ISBLANK(GASTOS!Z$2:Z$101)*(GASTOS!AA$2:AA$101=1)*ISBLANK(GASTOS!AB$2:AB$101)*GASTOS!AG$2:AG$101)) -> 0 | AB15: =SUMPRODUCT((GASTOS!AK$2:AK$101=$A15)*ISNUMBER(GASTOS!Z$2:Z$101)*GASTOS!U$2:U$101)-AD15 -> 0 | AC15: =SUMPRODUCT((GASTOS!AK$2:AK$101=$A15)*ISNUMBER(GASTOS!Z$2:Z$101)*GASTOS!W$2:W$101)-AE15 -> 0 | AD15: =SUMPRODUCT((GASTOS!AK$2:AK$101=$A15)*(GASTOS!Z$2:Z$101=3)*GASTOS!U$2:U$101) -> 0 | AE15: =SUMPRODUCT((GASTOS!AK$2:AK$101=$A15)*(GASTOS!Z$2:Z$101=3)*GASTOS!W$2:W$101) -> 0 | AF15: =IF(AND($B$14=0,$C15=0),SUMPRODUCT((GASTOS!AK$2:AK$101=$A15)*(GASTOS!V$2:V$101>0)*ISBLANK(GASTOS!Z$2:Z$101)*(GASTOS!AB$2:AB$101=1)*GASTOS!U$2:U$101),SUMPRODUCT((GASTOS!AL$2:AL$101=$A15)*(GASTOS!V$2:V$101>0)*ISBLANK(GASTOS!Z$2:Z$101)*(GASTOS!AB$2:AB$101=1)*GASTOS!AE$2:AE$101)) -> 0 | AG15: =IF(AND($B$14=0,$C15=0),SUMPRODUCT((GASTOS!AK$2:AK$101=$A15)*ISBLANK(GASTOS!Z$2:Z$101)*(GASTOS!AB$2:AB$101=1)*GASTOS!W$2:W$101),SUMPRODUCT((GASTOS!AL$2:AL$101=$A15)*ISBLANK(GASTOS!Z$2:Z$101)*(GASTOS!AB$2:AB$101=1)*GASTOS!AG$2:AG$101)) -> 0 | AH15: =IF(AND($B$14=0,$C15=0),SUMPRODUCT((GASTOS!AK$2:AK$101=$A15)*GASTOS!AI$2:AI$101),SUMPRODUCT((GASTOS!AL$2:AL$101=$A15)*GASTOS!AI$2:AI$101)) -> 0 | AI15: =SUM(E15,G15,I15,K15,M15,O15,U15,W15)-S15-SUM(Y15,AA15,AG15,AH15) -> 0 | AJ15: =SUMPRODUCT((INGRESOS!$V$2:$V$101=$A15)*ISNUMBER(INGRESOS!$M$2:$M$101)*INGRESOS!$L$2:$L$101) -> 0 | AK15: =IF($B$14=1,SUMPRODUCT((INGRESOS!$V$2:$V$101=$A15)*(INGRESOS!$O$2:$O$101=1)*NOT(ISBLANK(INGRESOS!$G$2:$G$101))*INGRESOS!$F$2:$F$101),0) -> 0 | AL15: =IF($B$14=1,SUMPRODUCT((INGRESOS!$V$2:$V$101=$A15)*(INGRESOS!$O$2:$O$101=1)*NOT(ISBLANK(INGRESOS!$G$2:$G$101))*INGRESOS!$I$2:$I$101),0) -> 0 | AM15: =IF(OR($B$14=1,$C15=1),SUMPRODUCT((GASTOS!$AK$2:$AK$101=$A15)*(GASTOS!$AC$2:$AC$101>0)*NOT(ISBLANK(GASTOS!$V$2:$V$101))*GASTOS!$U$2:$U$101),0) -> 0 | AN15: =IF(OR($B$14=1,$C15=1),SUMPRODUCT((GASTOS!$AK$2:$AK$101=$A15)*(GASTOS!$AC$2:$AC$101>0)*NOT(ISBLANK(GASTOS!$V$2:$V$101))*GASTOS!$W$2:$W$101),0) -> 0 | AO15: =IF(AP14<0,ABS(AP14),0) -> 0 | AP15: =AI15-AO15 -> 0
A16: 3 | C16: =SUMPRODUCT((GASTOS!AL$2:AL$101=$A16)*(GASTOS!AC$2:AC$101=2)) -> 0 | D16: =IF($B$14=0,SUMPRODUCT((INGRESOS!$V$2:$V$101=$A16)*(INGRESOS!$G$2:$G$101='DATOS FISCALES'!$C$13)*ISBLANK(INGRESOS!$N$2:$N$101)*INGRESOS!$F$2:$F$101),SUMPRODUCT((INGRESOS!$W$2:$W$101=$A16)*(INGRESOS!$R$2:$R$101='DATOS FISCALES'!$C$13)*ISBLANK(INGRESOS!$N$2:$N$101)*INGRESOS!$Q$2:$Q$101)) -> 0 | E16: =IF($B$14=0,SUMPRODUCT((INGRESOS!$V$2:$V$101=$A16)*(INGRESOS!$G$2:$G$101='DATOS FISCALES'!$C$13)*ISBLANK(INGRESOS!$N$2:$N$101)*INGRESOS!$I$2:$I$101),SUMPRODUCT((INGRESOS!$W$2:$W$101=$A16)*(INGRESOS!$R$2:$R$101='DATOS FISCALES'!$C$13)*ISBLANK(INGRESOS!$N$2:$N$101)*INGRESOS!$S$2:$S$101)) -> 0 | F16: =SUMPRODUCT((INGRESOS!$V$2:$V$101=$A16)*(INGRESOS!$H$2:$H$101='DATOS FISCALES'!$E$13)*ISBLANK(INGRESOS!$N$2:$N$101)*INGRESOS!$F$2:$F$101) -> 0 | G16: =SUMPRODUCT((INGRESOS!$V$2:$V$101=$A16)*(INGRESOS!$H$2:$H$101='DATOS FISCALES'!$E$13)*ISBLANK(INGRESOS!$N$2:$N$101)*INGRESOS!$J$2:$J$101) -> 0 | H16: =IF($B$14=0,SUMPRODUCT((INGRESOS!$V$2:$V$101=$A16)*(INGRESOS!$G$2:$G$101='DATOS FISCALES'!$C$14)*ISBLANK(INGRESOS!$N$2:$N$101)*INGRESOS!$F$2:$F$101),SUMPRODUCT((INGRESOS!$W$2:$W$101=$A16)*(INGRESOS!$R$2:$R$101='DATOS FISCALES'!$C$14)*ISBLANK(INGRESOS!$N$2:$N$101)*INGRESOS!$Q$2:$Q$101)) -> 0 | I16: =IF($B$14=0,SUMPRODUCT((INGRESOS!$V$2:$V$101=$A16)*(INGRESOS!$G$2:$G$101='DATOS FISCALES'!$C$14)*ISBLANK(INGRESOS!$N$2:$N$101)*INGRESOS!$I$2:$I$101),SUMPRODUCT((INGRESOS!$W$2:$W$101=$A16)*(INGRESOS!$R$2:$R$101='DATOS FISCALES'!$C$14)*ISBLANK(INGRESOS!$N$2:$N$101)*INGRESOS!$S$2:$S$101)) -> 0 | J16: =SUMPRODUCT((INGRESOS!$V$2:$V$101=$A16)*(INGRESOS!$H$2:$H$101='DATOS FISCALES'!$E$14)*ISBLANK(INGRESOS!$N$2:$N$101)*INGRESOS!$F$2:$F$101) -> 0 | K16: =SUMPRODUCT((INGRESOS!$V$2:$V$101=$A16)*(INGRESOS!$H$2:$H$101='DATOS FISCALES'!$E$14)*ISBLANK(INGRESOS!$N$2:$N$101)*INGRESOS!$J$2:$J$101) -> 0 | L16: =IF($B$14=0,SUMPRODUCT((INGRESOS!$V$2:$V$101=$A16)*(INGRESOS!$G$2:$G$101='DATOS FISCALES'!$C$15)*ISBLANK(INGRESOS!$N$2:$N$101)*INGRESOS!$F$2:$F$101),SUMPRODUCT((INGRESOS!$W$2:$W$101=$A16)*(INGRESOS!$R$2:$R$101='DATOS FISCALES'!$C$15)*ISBLANK(INGRESOS!$N$2:$N$101)*INGRESOS!$Q$2:$Q$101)) -> 0 | M16: =IF($B$14=0,SUMPRODUCT((INGRESOS!$V$2:$V$101=$A16)*(INGRESOS!$G$2:$G$101='DATOS FISCALES'!$C$15)*ISBLANK(INGRESOS!$N$2:$N$101)*INGRESOS!$I$2:$I$101),SUMPRODUCT((INGRESOS!$W$2:$W$101=$A16)*(INGRESOS!$R$2:$R$101='DATOS FISCALES'!$C$15)*ISBLANK(INGRESOS!$N$2:$N$101)*INGRESOS!$S$2:$S$101)) -> 0 | N16: =SUMPRODUCT((INGRESOS!$V$2:$V$101=$A16)*(INGRESOS!$H$2:$H$101='DATOS FISCALES'!$E$15)*ISBLANK(INGRESOS!$N$2:$N$101)*INGRESOS!$F$2:$F$101) -> 0 | O16: =SUMPRODUCT((INGRESOS!$V$2:$V$101=$A16)*(INGRESOS!$H$2:$H$101='DATOS FISCALES'!$E$15)*ISBLANK(INGRESOS!$N$2:$N$101)*INGRESOS!$J$2:$J$101) -> 0 | P16: =SUMPRODUCT((GASTOS!AK$2:AK$101=$A16)*ISNUMBER(GASTOS!Z$2:Z$101)*ISBLANK(GASTOS!AB$2:AB$101)*GASTOS!U$2:U$101) -> 0 | Q16: =SUMPRODUCT((GASTOS!AK$2:AK$101=$A16)*ISNUMBER(GASTOS!Z$2:Z$101)*ISBLANK(GASTOS!AB$2:AB$101)*GASTOS!W$2:W$101) -> 0 | R16: =SUMPRODUCT((GASTOS!AK$2:AK$101=$A16)*ISNUMBER(GASTOS!Z$2:Z$101)*(GASTOS!AB$2:AB$101=1)*GASTOS!U$2:U$101) -> 0 | S16: =SUMPRODUCT((GASTOS!AK$2:AK$101=$A16)*ISNUMBER(GASTOS!Z$2:Z$101)*(GASTOS!AB$2:AB$101=1)*GASTOS!W$2:W$101) -> 0 | T16: =IF($B$14=0,SUMPRODUCT((INGRESOS!$V$2:$V$101=$A16)*(INGRESOS!$N$2:$N$101=1)*INGRESOS!$F$2:$F$101)+R16,SUMPRODUCT((INGRESOS!$W$2:$W$101=$A16)*(INGRESOS!$N$2:$N$101=1)*INGRESOS!$Q$2:$Q$101)+R16) -> 0 | U16: =IF($B$14=0,SUMPRODUCT((INGRESOS!$V$2:$V$101=$A16)*(INGRESOS!$N$2:$N$101=1)*INGRESOS!$I$2:$I$101)+S16,SUMPRODUCT((INGRESOS!$W$2:$W$101=$A16)*(INGRESOS!$N$2:$N$101=1)*INGRESOS!$S$2:$S$101)+S16) -> 0 | V16: =SUMPRODUCT((INGRESOS!$V$2:$V$101=$A16)*(INGRESOS!$H$2:$H$101>0)*(INGRESOS!$N$2:$N$101=1)*INGRESOS!$F$2:$F$101) -> 0 | W16: =SUMPRODUCT((INGRESOS!$V$2:$V$101=$A16)*(INGRESOS!$H$2:$H$101>0)*(INGRESOS!$N$2:$N$101=1)*INGRESOS!$J$2:$J$101) -> 0 | X16: =IF(AND($B$14=0,$C16=0),SUMPRODUCT((GASTOS!AK$2:AK$101=$A16)*(GASTOS!V$2:V$101>0)*ISBLANK(GASTOS!Z$2:Z$101)*ISBLANK(GASTOS!AA$2:AA$101)*ISBLANK(GASTOS!AB$2:AB$101)*GASTOS!U$2:U$101),SUMPRODUCT((GASTOS!AL$2:AL$101=$A16)*(GASTOS!AF$2:AF$101>0)*ISBLANK(GASTOS!Z$2:Z$101)*ISBLANK(GASTOS!AA$2:AA$101)*ISBLANK(GASTOS!AB$2:AB$101)*GASTOS!AE$2:AE$101)) -> 0 | Y16: =IF(AND($B$14=0,$C16=0),SUMPRODUCT((GASTOS!AK$2:AK$101=$A16)*ISBLANK(GASTOS!Z$2:Z$101)*ISBLANK(GASTOS!AA$2:AA$101)*ISBLANK(GASTOS!AB$2:AB$101)*GASTOS!W$2:W$101),SUMPRODUCT((GASTOS!AL$2:AL$101=$A16)*ISBLANK(GASTOS!Z$2:Z$101)*ISBLANK(GASTOS!AA$2:AA$101)*ISBLANK(GASTOS!AB$2:AB$101)*GASTOS!AG$2:AG$101)) -> 0 | Z16: =IF(AND($B$14=0,$C16=0),SUMPRODUCT((GASTOS!AK$2:AK$101=$A16)*(GASTOS!V$2:V$101>0)*ISBLANK(GASTOS!Z$2:Z$101)*(GASTOS!AA$2:AA$101=1)*ISBLANK(GASTOS!AB$2:AB$101)*GASTOS!U$2:U$101),SUMPRODUCT((GASTOS!AL$2:AL$101=$A16)*(GASTOS!V$2:V$101>0)*ISBLANK(GASTOS!Z$2:Z$101)*(GASTOS!AA$2:AA$101=1)*ISBLANK(GASTOS!AB$2:AB$101)*GASTOS!AE$2:AE$101)) -> 0 | AA16: =IF(AND($B$14=0,$C16=0),SUMPRODUCT((GASTOS!AK$2:AK$101=$A16)*ISBLANK(GASTOS!Z$2:Z$101)*(GASTOS!AA$2:AA$101=1)*ISBLANK(GASTOS!AB$2:AB$101)*GASTOS!W$2:W$101),SUMPRODUCT((GASTOS!AL$2:AL$101=$A16)*ISBLANK(GASTOS!Z$2:Z$101)*(GASTOS!AA$2:AA$101=1)*ISBLANK(GASTOS!AB$2:AB$101)*GASTOS!AG$2:AG$101)) -> 0 | AB16: =SUMPRODUCT((GASTOS!AK$2:AK$101=$A16)*ISNUMBER(GASTOS!Z$2:Z$101)*GASTOS!U$2:U$101)-AD16 -> 0 | AC16: =SUMPRODUCT((GASTOS!AK$2:AK$101=$A16)*ISNUMBER(GASTOS!Z$2:Z$101)*GASTOS!W$2:W$101)-AE16 -> 0 | AD16: =SUMPRODUCT((GASTOS!AK$2:AK$101=$A16)*(GASTOS!Z$2:Z$101=3)*GASTOS!U$2:U$101) -> 0 | AE16: =SUMPRODUCT((GASTOS!AK$2:AK$101=$A16)*(GASTOS!Z$2:Z$101=3)*GASTOS!W$2:W$101) -> 0 | AF16: =IF(AND($B$14=0,$C16=0),SUMPRODUCT((GASTOS!AK$2:AK$101=$A16)*(GASTOS!V$2:V$101>0)*ISBLANK(GASTOS!Z$2:Z$101)*(GASTOS!AB$2:AB$101=1)*GASTOS!U$2:U$101),SUMPRODUCT((GASTOS!AL$2:AL$101=$A16)*(GASTOS!V$2:V$101>0)*ISBLANK(GASTOS!Z$2:Z$101)*(GASTOS!AB$2:AB$101=1)*GASTOS!AE$2:AE$101)) -> 0 | AG16: =IF(AND($B$14=0,$C16=0),SUMPRODUCT((GASTOS!AK$2:AK$101=$A16)*ISBLANK(GASTOS!Z$2:Z$101)*(GASTOS!AB$2:AB$101=1)*GASTOS!W$2:W$101),SUMPRODUCT((GASTOS!AL$2:AL$101=$A16)*ISBLANK(GASTOS!Z$2:Z$101)*(GASTOS!AB$2:AB$101=1)*GASTOS!AG$2:AG$101)) -> 0 | AH16: =IF(AND($B$14=0,$C16=0),SUMPRODUCT((GASTOS!AK$2:AK$101=$A16)*GASTOS!AI$2:AI$101),SUMPRODUCT((GASTOS!AL$2:AL$101=$A16)*GASTOS!AI$2:AI$101)) -> 0 | AI16: =SUM(E16,G16,I16,K16,M16,O16,U16,W16)-S16-SUM(Y16,AA16,AG16,AH16) -> 0 | AJ16: =SUMPRODUCT((INGRESOS!$V$2:$V$101=$A16)*ISNUMBER(INGRESOS!$M$2:$M$101)*INGRESOS!$L$2:$L$101) -> 0 | AK16: =IF($B$14=1,SUMPRODUCT((INGRESOS!$V$2:$V$101=$A16)*(INGRESOS!$O$2:$O$101=1)*NOT(ISBLANK(INGRESOS!$G$2:$G$101))*INGRESOS!$F$2:$F$101),0) -> 0 | AL16: =IF($B$14=1,SUMPRODUCT((INGRESOS!$V$2:$V$101=$A16)*(INGRESOS!$O$2:$O$101=1)*NOT(ISBLANK(INGRESOS!$G$2:$G$101))*INGRESOS!$I$2:$I$101),0) -> 0 | AM16: =IF(OR($B$14=1,$C16=1),SUMPRODUCT((GASTOS!$AK$2:$AK$101=$A16)*(GASTOS!$AC$2:$AC$101>0)*NOT(ISBLANK(GASTOS!$V$2:$V$101))*GASTOS!$U$2:$U$101),0) -> 0 | AN16: =IF(OR($B$14=1,$C16=1),SUMPRODUCT((GASTOS!$AK$2:$AK$101=$A16)*(GASTOS!$AC$2:$AC$101>0)*NOT(ISBLANK(GASTOS!$V$2:$V$101))*GASTOS!$W$2:$W$101),0) -> 0 | AO16: =IF(AP15<0,ABS(AP15),0) -> 0 | AP16: =AI16-AO16 -> 0
A17: 4 | C17: =SUMPRODUCT((GASTOS!AL$2:AL$101=$A17)*(GASTOS!AC$2:AC$101=2)) -> 0 | D17: =IF($B$14=0,SUMPRODUCT((INGRESOS!$V$2:$V$101=$A17)*(INGRESOS!$G$2:$G$101='DATOS FISCALES'!$C$13)*ISBLANK(INGRESOS!$N$2:$N$101)*INGRESOS!$F$2:$F$101),SUMPRODUCT((INGRESOS!$W$2:$W$101=$A17)*(INGRESOS!$R$2:$R$101='DATOS FISCALES'!$C$13)*ISBLANK(INGRESOS!$N$2:$N$101)*INGRESOS!$Q$2:$Q$101)) -> 0 | E17: =IF($B$14=0,SUMPRODUCT((INGRESOS!$V$2:$V$101=$A17)*(INGRESOS!$G$2:$G$101='DATOS FISCALES'!$C$13)*ISBLANK(INGRESOS!$N$2:$N$101)*INGRESOS!$I$2:$I$101),SUMPRODUCT((INGRESOS!$W$2:$W$101=$A17)*(INGRESOS!$R$2:$R$101='DATOS FISCALES'!$C$13)*ISBLANK(INGRESOS!$N$2:$N$101)*INGRESOS!$S$2:$S$101)) -> 0 | F17: =SUMPRODUCT((INGRESOS!$V$2:$V$101=$A17)*(INGRESOS!$H$2:$H$101='DATOS FISCALES'!$E$13)*ISBLANK(INGRESOS!$N$2:$N$101)*INGRESOS!$F$2:$F$101) -> 0 | G17: =SUMPRODUCT((INGRESOS!$V$2:$V$101=$A17)*(INGRESOS!$H$2:$H$101='DATOS FISCALES'!$E$13)*ISBLANK(INGRESOS!$N$2:$N$101)*INGRESOS!$J$2:$J$101) -> 0 | H17: =IF($B$14=0,SUMPRODUCT((INGRESOS!$V$2:$V$101=$A17)*(INGRESOS!$G$2:$G$101='DATOS FISCALES'!$C$14)*ISBLANK(INGRESOS!$N$2:$N$101)*INGRESOS!$F$2:$F$101),SUMPRODUCT((INGRESOS!$W$2:$W$101=$A17)*(INGRESOS!$R$2:$R$101='DATOS FISCALES'!$C$14)*ISBLANK(INGRESOS!$N$2:$N$101)*INGRESOS!$Q$2:$Q$101)) -> 0 | I17: =IF($B$14=0,SUMPRODUCT((INGRESOS!$V$2:$V$101=$A17)*(INGRESOS!$G$2:$G$101='DATOS FISCALES'!$C$14)*ISBLANK(INGRESOS!$N$2:$N$101)*INGRESOS!$I$2:$I$101),SUMPRODUCT((INGRESOS!$W$2:$W$101=$A17)*(INGRESOS!$R$2:$R$101='DATOS FISCALES'!$C$14)*ISBLANK(INGRESOS!$N$2:$N$101)*INGRESOS!$S$2:$S$101)) -> 0 | J17: =SUMPRODUCT((INGRESOS!$V$2:$V$101=$A17)*(INGRESOS!$H$2:$H$101='DATOS FISCALES'!$E$14)*ISBLANK(INGRESOS!$N$2:$N$101)*INGRESOS!$F$2:$F$101) -> 0 | K17: =SUMPRODUCT((INGRESOS!$V$2:$V$101=$A17)*(INGRESOS!$H$2:$H$101='DATOS FISCALES'!$E$14)*ISBLANK(INGRESOS!$N$2:$N$101)*INGRESOS!$J$2:$J$101) -> 0 | L17: =IF($B$14=0,SUMPRODUCT((INGRESOS!$V$2:$V$101=$A17)*(INGRESOS!$G$2:$G$101='DATOS FISCALES'!$C$15)*ISBLANK(INGRESOS!$N$2:$N$101)*INGRESOS!$F$2:$F$101),SUMPRODUCT((INGRESOS!$W$2:$W$101=$A17)*(INGRESOS!$R$2:$R$101='DATOS FISCALES'!$C$15)*ISBLANK(INGRESOS!$N$2:$N$101)*INGRESOS!$Q$2:$Q$101)) -> 0 | M17: =IF($B$14=0,SUMPRODUCT((INGRESOS!$V$2:$V$101=$A17)*(INGRESOS!$G$2:$G$101='DATOS FISCALES'!$C$15)*ISBLANK(INGRESOS!$N$2:$N$101)*INGRESOS!$I$2:$I$101),SUMPRODUCT((INGRESOS!$W$2:$W$101=$A17)*(INGRESOS!$R$2:$R$101='DATOS FISCALES'!$C$15)*ISBLANK(INGRESOS!$N$2:$N$101)*INGRESOS!$S$2:$S$101)) -> 0 | N17: =SUMPRODUCT((INGRESOS!$V$2:$V$101=$A17)*(INGRESOS!$H$2:$H$101='DATOS FISCALES'!$E$15)*ISBLANK(INGRESOS!$N$2:$N$101)*INGRESOS!$F$2:$F$101) -> 0 | O17: =SUMPRODUCT((INGRESOS!$V$2:$V$101=$A17)*(INGRESOS!$H$2:$H$101='DATOS FISCALES'!$E$15)*ISBLANK(INGRESOS!$N$2:$N$101)*INGRESOS!$J$2:$J$101) -> 0 | P17: =SUMPRODUCT((GASTOS!AK$2:AK$101=$A17)*ISNUMBER(GASTOS!Z$2:Z$101)*ISBLANK(GASTOS!AB$2:AB$101)*GASTOS!U$2:U$101) -> 0 | Q17: =SUMPRODUCT((GASTOS!AK$2:AK$101=$A17)*ISNUMBER(GASTOS!Z$2:Z$101)*ISBLANK(GASTOS!AB$2:AB$101)*GASTOS!W$2:W$101) -> 0 | R17: =SUMPRODUCT((GASTOS!AK$2:AK$101=$A17)*ISNUMBER(GASTOS!Z$2:Z$101)*(GASTOS!AB$2:AB$101=1)*GASTOS!U$2:U$101) -> 0 | S17: =SUMPRODUCT((GASTOS!AK$2:AK$101=$A17)*ISNUMBER(GASTOS!Z$2:Z$101)*(GASTOS!AB$2:AB$101=1)*GASTOS!W$2:W$101) -> 0 | T17: =IF($B$14=0,SUMPRODUCT((INGRESOS!$V$2:$V$101=$A17)*(INGRESOS!$N$2:$N$101=1)*INGRESOS!$F$2:$F$101)+R17,SUMPRODUCT((INGRESOS!$W$2:$W$101=$A17)*(INGRESOS!$N$2:$N$101=1)*INGRESOS!$Q$2:$Q$101)+R17) -> 0 | U17: =IF($B$14=0,SUMPRODUCT((INGRESOS!$V$2:$V$101=$A17)*(INGRESOS!$N$2:$N$101=1)*INGRESOS!$I$2:$I$101)+S17,SUMPRODUCT((INGRESOS!$W$2:$W$101=$A17)*(INGRESOS!$N$2:$N$101=1)*INGRESOS!$S$2:$S$101)+S17) -> 0 | V17: =SUMPRODUCT((INGRESOS!$V$2:$V$101=$A17)*(INGRESOS!$H$2:$H$101>0)*(INGRESOS!$N$2:$N$101=1)*INGRESOS!$F$2:$F$101) -> 0 | W17: =SUMPRODUCT((INGRESOS!$V$2:$V$101=$A17)*(INGRESOS!$H$2:$H$101>0)*(INGRESOS!$N$2:$N$101=1)*INGRESOS!$J$2:$J$101) -> 0 | X17: =IF(AND($B$14=0,$C17=0),SUMPRODUCT((GASTOS!AK$2:AK$101=$A17)*(GASTOS!V$2:V$101>0)*ISBLANK(GASTOS!Z$2:Z$101)*ISBLANK(GASTOS!AA$2:AA$101)*ISBLANK(GASTOS!AB$2:AB$101)*GASTOS!U$2:U$101),SUMPRODUCT((GASTOS!AL$2:AL$101=$A17)*(GASTOS!AF$2:AF$101>0)*ISBLANK(GASTOS!Z$2:Z$101)*ISBLANK(GASTOS!AA$2:AA$101)*ISBLANK(GASTOS!AB$2:AB$101)*GASTOS!AE$2:AE$101)) -> 0 | Y17: =IF(AND($B$14=0,$C17=0),SUMPRODUCT((GASTOS!AK$2:AK$101=$A17)*ISBLANK(GASTOS!Z$2:Z$101)*ISBLANK(GASTOS!AA$2:AA$101)*ISBLANK(GASTOS!AB$2:AB$101)*GASTOS!W$2:W$101),SUMPRODUCT((GASTOS!AL$2:AL$101=$A17)*ISBLANK(GASTOS!Z$2:Z$101)*ISBLANK(GASTOS!AA$2:AA$101)*ISBLANK(GASTOS!AB$2:AB$101)*GASTOS!AG$2:AG$101)) -> 0 | Z17: =IF(AND($B$14=0,$C17=0),SUMPRODUCT((GASTOS!AK$2:AK$101=$A17)*(GASTOS!V$2:V$101>0)*ISBLANK(GASTOS!Z$2:Z$101)*(GASTOS!AA$2:AA$101=1)*ISBLANK(GASTOS!AB$2:AB$101)*GASTOS!U$2:U$101),SUMPRODUCT((GASTOS!AL$2:AL$101=$A17)*(GASTOS!V$2:V$101>0)*ISBLANK(GASTOS!Z$2:Z$101)*(GASTOS!AA$2:AA$101=1)*ISBLANK(GASTOS!AB$2:AB$101)*GASTOS!AE$2:AE$101)) -> 0 | AA17: =IF(AND($B$14=0,$C17=0),SUMPRODUCT((GASTOS!AK$2:AK$101=$A17)*ISBLANK(GASTOS!Z$2:Z$101)*(GASTOS!AA$2:AA$101=1)*ISBLANK(GASTOS!AB$2:AB$101)*GASTOS!W$2:W$101),SUMPRODUCT((GASTOS!AL$2:AL$101=$A17)*ISBLANK(GASTOS!Z$2:Z$101)*(GASTOS!AA$2:AA$101=1)*ISBLANK(GASTOS!AB$2:AB$101)*GASTOS!AG$2:AG$101)) -> 0 | AB17: =SUMPRODUCT((GASTOS!AK$2:AK$101=$A17)*ISNUMBER(GASTOS!Z$2:Z$101)*GASTOS!U$2:U$101)-AD17 -> 0 | AC17: =SUMPRODUCT((GASTOS!AK$2:AK$101=$A17)*ISNUMBER(GASTOS!Z$2:Z$101)*GASTOS!W$2:W$101)-AE17 -> 0 | AD17: =SUMPRODUCT((GASTOS!AK$2:AK$101=$A17)*(GASTOS!Z$2:Z$101=3)*GASTOS!U$2:U$101) -> 0 | AE17: =SUMPRODUCT((GASTOS!AK$2:AK$101=$A17)*(GASTOS!Z$2:Z$101=3)*GASTOS!W$2:W$101) -> 0 | AF17: =IF(AND($B$14=0,$C17=0),SUMPRODUCT((GASTOS!AK$2:AK$101=$A17)*(GASTOS!V$2:V$101>0)*ISBLANK(GASTOS!Z$2:Z$101)*(GASTOS!AB$2:AB$101=1)*GASTOS!U$2:U$101),SUMPRODUCT((GASTOS!AL$2:AL$101=$A17)*(GASTOS!V$2:V$101>0)*ISBLANK(GASTOS!Z$2:Z$101)*(GASTOS!AB$2:AB$101=1)*GASTOS!AE$2:AE$101)) -> 0 | AG17: =IF(AND($B$14=0,$C17=0),SUMPRODUCT((GASTOS!AK$2:AK$101=$A17)*ISBLANK(GASTOS!Z$2:Z$101)*(GASTOS!AB$2:AB$101=1)*GASTOS!W$2:W$101),SUMPRODUCT((GASTOS!AL$2:AL$101=$A17)*ISBLANK(GASTOS!Z$2:Z$101)*(GASTOS!AB$2:AB$101=1)*GASTOS!AG$2:AG$101)) -> 0 | AH17: =IF(AND($B$14=0,$C17=0),SUMPRODUCT((GASTOS!AK$2:AK$101=$A17)*GASTOS!AI$2:AI$101),SUMPRODUCT((GASTOS!AL$2:AL$101=$A17)*GASTOS!AI$2:AI$101)) -> 0 | AI17: =SUM(E17,G17,I17,K17,M17,O17,U17,W17)-S17-SUM(Y17,AA17,AG17,AH17) -> 0 | AJ17: =SUMPRODUCT((INGRESOS!$V$2:$V$101=$A17)*ISNUMBER(INGRESOS!$M$2:$M$101)*INGRESOS!$L$2:$L$101) -> 0 | AK17: =IF($B$14=1,SUMPRODUCT((INGRESOS!$V$2:$V$101=$A17)*(INGRESOS!$O$2:$O$101=1)*NOT(ISBLANK(INGRESOS!$G$2:$G$101))*INGRESOS!$F$2:$F$101),0) -> 0 | AL17: =IF($B$14=1,SUMPRODUCT((INGRESOS!$V$2:$V$101=$A17)*(INGRESOS!$O$2:$O$101=1)*NOT(ISBLANK(INGRESOS!$G$2:$G$101))*INGRESOS!$I$2:$I$101),0) -> 0 | AM17: =IF(OR($B$14=1,$C17=1),SUMPRODUCT((GASTOS!$AK$2:$AK$101=$A17)*(GASTOS!$AC$2:$AC$101>0)*NOT(ISBLANK(GASTOS!$V$2:$V$101))*GASTOS!$U$2:$U$101),0) -> 0 | AN17: =IF(OR($B$14=1,$C17=1),SUMPRODUCT((GASTOS!$AK$2:$AK$101=$A17)*(GASTOS!$AC$2:$AC$101>0)*NOT(ISBLANK(GASTOS!$V$2:$V$101))*GASTOS!$W$2:$W$101),0) -> 0 | AO17: =IF(AP16<0,ABS(AP16),0) -> 0 | AP17: =AI17-AO17 -> 0
A19: CÁLCULOS PARA EL MODELO 390
A21: RESUMEN ANUAL IVA | B21: IVA Devengado Operaciones Interiores: Régimen ordinario | H21: IVA Devengado: Operaciones en Régimen Especial del Criterio de Caja | N21: IVA Devengado: Adquisiciones Intracomunitarias de Bienes | T21: IVA Devengado: Adquisiciones Intracomunitarias de Servicios | Z21: IVA Deveng. Modificación | AB21: IVA Devengado: Recargo de Equivalencia | AH21: IVA Deveng. Modif R.E. | AJ21: IVA Deducible: Operaciones Interiores Bienes y Servicios Corrientes | AP21: IVA Deducible: Operaciones Interiores de Bienes de Inversión | AV21: IVA Deducible: Adq. Intracomunitarias de Bienes Corrientes | BB21: IVA Deducible: Adq. Intracomunitarias de Bienes de Inversión | BH21: IVA Deducible: Adq. Intracomunitarias de Bienes de Inversión | BN21: Compensaciones Rég. Ag. Gan. y Pes. | BP21: Rectificación Deducciones | BR21: Volumen de Operaciones
B22: ="Bases al Tipo " & 'DATOS FISCALES'!$C13 &"%" -> Bases al Tipo 4% | C22: ="Cuota IVA al "& 'DATOS FISCALES'!$C13 & "%" -> Cuota IVA al 4% | D22: ="Bases al Tipo " & 'DATOS FISCALES'!$C14 & "%" -> Bases al Tipo 10% | E22: ="Cuotas IVA al " & 'DATOS FISCALES'!$C14 & "%" -> Cuotas IVA al 10% | F22: ="Bases al Tipo " & 'DATOS FISCALES'!$C15 & "%" -> Bases al Tipo 21% | G22: ="Cuotas IVA al " & 'DATOS FISCALES'!$C15 & "%" -> Cuotas IVA al 21% | H22: =$B22 -> Bases al Tipo 4% | I22: =$C22 -> Cuota IVA al 4% | J22: =$D22 -> Bases al Tipo 10% | K22: =$E22 -> Cuotas IVA al 10% | L22: =$F22 -> Bases al Tipo 21% | M22: =$G22 -> Cuotas IVA al 21% | N22: =$B22 -> Bases al Tipo 4% | O22: =$C22 -> Cuota IVA al 4% | P22: =$D22 -> Bases al Tipo 10% | Q22: =$E22 -> Cuotas IVA al 10% | R22: =$F22 -> Bases al Tipo 21% | S22: =$G22 -> Cuotas IVA al 21% | T22: =$B22 -> Bases al Tipo 4% | U22: =$C22 -> Cuota IVA al 4% | V22: =$D22 -> Bases al Tipo 10% | W22: =$E22 -> Cuotas IVA al 10% | X22: =$F22 -> Bases al Tipo 21% | Y22: =$G22 -> Cuotas IVA al 21% | Z22: Base Imponible [29] | AA22: Cuota [30] | AB22: ="Bases sujetas R.E. " & 'DATOS FISCALES'!$E13 & "%" -> Bases sujetas R.E. 0,5% | AC22: ="Cuotas R.E. " & 'DATOS FISCALES'!$E13 & "%" -> Cuotas R.E. 0,5% | AD22: ="Bases sujetas R.E. " & 'DATOS FISCALES'!$E14 & "%" -> Bases sujetas R.E. 1,4% | AE22: ="Cuotas R.E. " & 'DATOS FISCALES'!$E14 & "%" -> Cuotas R.E. 1,4% | AF22: ="Bases sujetas R.E. " & 'DATOS FISCALES'!$E15 & "%" -> Bases sujetas R.E. 5,2% | AG22: ="Cuotas R.E. " & 'DATOS FISCALES'!$E15 & "%" -> Cuotas R.E. 5,2% | AH22: Base Imponible [43] | AI22: Cuota [44] | AJ22: =$B22 -> Bases al Tipo 4% | AK22: =$C22 -> Cuota IVA al 4% | AL22: =$D22 -> Bases al Tipo 10% | AM22: =$E22 -> Cuotas IVA al 10% | AN22: =$F22 -> Bases al Tipo 21% | AO22: =$G22 -> Cuotas IVA al 21% | AP22: =$B22 -> Bases al Tipo 4% | AQ22: =$C22 -> Cuota IVA al 4% | AR22: =$D22 -> Bases al Tipo 10% | AS22: =$E22 -> Cuotas IVA al 10% | AT22: =$F22 -> Bases al Tipo 21% | AU22: =$G22 -> Cuotas IVA al 21% | AV22: =$B22 -> Bases al Tipo 4% | AW22: =$C22 -> Cuota IVA al 4% | AX22: =$D22 -> Bases al Tipo 10% | AY22: =$E22 -> Cuotas IVA al 10% | AZ22: =$F22 -> Bases al Tipo 21% | BA22: =$G22 -> Cuotas IVA al 21% | BB22: =$B22 -> Bases al Tipo 4% | BC22: =$C22 -> Cuota IVA al 4% | BD22: =$D22 -> Bases al Tipo 10% | BE22: =$E22 -> Cuotas IVA al 10% | BF22: =$F22 -> Bases al Tipo 21% | BG22: =$G22 -> Cuotas IVA al 21% | BH22: =$B22 -> Bases al Tipo 4% | BI22: =$C22 -> Cuota IVA al 4% | BJ22: =$D22 -> Bases al Tipo 10% | BK22: =$E22 -> Cuotas IVA al 10% | BL22: =$F22 -> Bases al Tipo 21% | BM22: =$G22 -> Cuotas IVA al 21% | BN22: Base [60] | BO22: Cuota [61] | BP22: Base [639] | BQ22: Cuota [62] | BR22: Base [639] | BS22: Cuota [62]
B23: =IF($B$14=0,SUMPRODUCT((INGRESOS!$G$2:$G$101='DATOS FISCALES'!$C$13)*ISBLANK(INGRESOS!$N$2:$N$101)*INGRESOS!$F$2:$F$101),SUMPRODUCT((INGRESOS!$G$2:$G$101='DATOS FISCALES'!$C$13)*ISBLANK(INGRESOS!$N$2:$N$101)*ISBLANK(INGRESOS!$O$2:$O$101)*INGRESOS!$F$2:$F$101)) -> 0 | C23: =IF($B$14=0,SUMPRODUCT((INGRESOS!$G$2:$G$101='DATOS FISCALES'!$C$13)*ISBLANK(INGRESOS!$N$2:$N$101)*INGRESOS!$I$2:$I$101),SUMPRODUCT((INGRESOS!$G$2:$G$101='DATOS FISCALES'!$C$13)*ISBLANK(INGRESOS!$N$2:$N$101)*ISBLANK(INGRESOS!$O$2:$O$101)*INGRESOS!$I$2:$I$101)) -> 0 | D23: =IF($B$14=0,SUMPRODUCT((INGRESOS!$G$2:$G$101='DATOS FISCALES'!$C$14)*ISBLANK(INGRESOS!$N$2:$N$101)*INGRESOS!$F$2:$F$101),SUMPRODUCT((INGRESOS!$G$2:$G$101='DATOS FISCALES'!$C$14)*ISBLANK(INGRESOS!$N$2:$N$101)*ISBLANK(INGRESOS!$O$2:$O$101)*INGRESOS!$F$2:$F$101)) -> 0 | E23: =IF($B$14=0,SUMPRODUCT((INGRESOS!$G$2:$G$101='DATOS FISCALES'!$C$14)*ISBLANK(INGRESOS!$N$2:$N$101)*INGRESOS!$I$2:$I$101),SUMPRODUCT((INGRESOS!$G$2:$G$101='DATOS FISCALES'!$C$14)*ISBLANK(INGRESOS!$N$2:$N$101)*ISBLANK(INGRESOS!$O$2:$O$101)*INGRESOS!$I$2:$I$101)) -> 0 | F23: =IF($B$14=0,SUMPRODUCT((INGRESOS!$G$2:$G$101='DATOS FISCALES'!$C$15)*ISBLANK(INGRESOS!$N$2:$N$101)*INGRESOS!$F$2:$F$101),SUMPRODUCT((INGRESOS!$G$2:$G$101='DATOS FISCALES'!$C$15)*ISBLANK(INGRESOS!$N$2:$N$101)*ISBLANK(INGRESOS!$O$2:$O$101)*INGRESOS!$F$2:$F$101)) -> 0 | G23: =IF($B$14=0,SUMPRODUCT((INGRESOS!$G$2:$G$101='DATOS FISCALES'!$C$15)*ISBLANK(INGRESOS!$N$2:$N$101)*INGRESOS!$I$2:$I$101),SUMPRODUCT((INGRESOS!$G$2:$G$101='DATOS FISCALES'!$C$15)*ISBLANK(INGRESOS!$N$2:$N$101)*ISBLANK(INGRESOS!$O$2:$O$101)*INGRESOS!$I$2:$I$101)) -> 0 | H23: =IF($B$14=1,SUMPRODUCT((INGRESOS!$R$2:$R$101='DATOS FISCALES'!$C$13)*ISBLANK(INGRESOS!$N$2:$N$101)*(INGRESOS!$O$2:$O$101=1)*INGRESOS!$Q$2:$Q$101),0) -> 0 | I23: =IF($B$14=1,SUMPRODUCT((INGRESOS!$R$2:$R$101='DATOS FISCALES'!$C$13)*ISBLANK(INGRESOS!$N$2:$N$101)*(INGRESOS!$O$2:$O$101=1)*INGRESOS!$S$2:$S$101),0) -> 0 | J23: =IF($B$14=1,SUMPRODUCT((INGRESOS!$R$2:$R$101='DATOS FISCALES'!$C$14)*ISBLANK(INGRESOS!$N$2:$N$101)*(INGRESOS!$O$2:$O$101=1)*INGRESOS!$Q$2:$Q$101),0) -> 0 | K23: =IF($B$14=1,SUMPRODUCT((INGRESOS!$R$2:$R$101='DATOS FISCALES'!$C$14)*ISBLANK(INGRESOS!$N$2:$N$101)*(INGRESOS!$O$2:$O$101=1)*INGRESOS!$S$2:$S$101),0) -> 0 | L23: =IF($B$14=1,SUMPRODUCT((INGRESOS!$R$2:$R$101='DATOS FISCALES'!$C$15)*ISBLANK(INGRESOS!$N$2:$N$101)*(INGRESOS!$O$2:$O$101=1)*INGRESOS!$Q$2:$Q$101),0) -> 0 | M23: =IF($B$14=1,SUMPRODUCT((INGRESOS!$R$2:$R$101='DATOS FISCALES'!$C$15)*ISBLANK(INGRESOS!$N$2:$N$101)*(INGRESOS!$O$2:$O$101=1)*INGRESOS!$S$2:$S$101),0) -> 0 | N23: =SUMPRODUCT(ISNUMBER(GASTOS!$Z2:$Z101)*ISBLANK(GASTOS!$AB2:$AB101)*(GASTOS!$V2:$V101='DATOS FISCALES'!$C13)*GASTOS!$U2:$U101)-T23 -> 0 | O23: =SUMPRODUCT(ISNUMBER(GASTOS!$Z2:$Z101)*ISBLANK(GASTOS!$AB2:$AB101)*(GASTOS!$V2:$V101='DATOS FISCALES'!$C13)*GASTOS!$W2:$W101)-U23 -> 0 | P23: =SUMPRODUCT(ISNUMBER(GASTOS!$Z2:$Z101)*ISBLANK(GASTOS!$AB2:$AB101)*(GASTOS!$V2:$V101='DATOS FISCALES'!$C14)*GASTOS!$U2:$U101)-V23 -> 0 | Q23: =SUMPRODUCT(ISNUMBER(GASTOS!$Z2:$Z101)*ISBLANK(GASTOS!$AB2:$AB101)*(GASTOS!$V2:$V101='DATOS FISCALES'!$C14)*GASTOS!$W2:$W101)-W23 -> 0 | R23: =SUMPRODUCT(ISNUMBER(GASTOS!$Z2:$Z101)*ISBLANK(GASTOS!$AB2:$AB101)*(GASTOS!$V2:$V101='DATOS FISCALES'!$C15)*GASTOS!$U2:$U101)-X23 -> 0 | S23: =SUMPRODUCT(ISNUMBER(GASTOS!$Z2:$Z101)*ISBLANK(GASTOS!$AB2:$AB101)*(GASTOS!$V2:$V101='DATOS FISCALES'!$C15)*GASTOS!$W2:$W101)-Y23 -> 0 | T23: =SUMPRODUCT((GASTOS!$Z2:$Z101=2)*ISBLANK(GASTOS!$AB2:$AB101)*(GASTOS!$V2:$V101='DATOS FISCALES'!$C13)*GASTOS!$U2:$U101) -> 0 | U23: =SUMPRODUCT((GASTOS!$Z2:$Z101=2)*ISBLANK(GASTOS!$AB2:$AB101)*(GASTOS!$V2:$V101='DATOS FISCALES'!$C13)*GASTOS!$W2:$W101) -> 0 | V23: =SUMPRODUCT((GASTOS!$Z2:$Z101=2)*ISBLANK(GASTOS!$AB2:$AB101)*(GASTOS!$V2:$V101='DATOS FISCALES'!$C14)*GASTOS!$U2:$U101) -> 0 | W23: =SUMPRODUCT((GASTOS!$Z2:$Z101=2)*ISBLANK(GASTOS!$AB2:$AB101)*(GASTOS!$V2:$V101='DATOS FISCALES'!$C14)*GASTOS!$W2:$W101) -> 0 | X23: =SUMPRODUCT((GASTOS!$Z2:$Z101=2)*ISBLANK(GASTOS!$AB2:$AB101)*(GASTOS!$V2:$V101='DATOS FISCALES'!$C15)*GASTOS!$U2:$U101) -> 0 | Y23: =SUMPRODUCT((GASTOS!$Z2:$Z101=2)*ISBLANK(GASTOS!$AB2:$AB101)*(GASTOS!$V2:$V101='DATOS FISCALES'!$C15)*GASTOS!$W2:$W101) -> 0 | Z23: =SUM(T14:T17) -> 0 | AA23: =SUM(U14:U17) -> 0 | AB23: =SUM(F14:F17) -> 0 | AC23: =SUM(G14:G17) -> 0 | AD23: =SUM(J14:J17) -> 0 | AE23: =SUM(K14:K17) -> 0 | AF23: =SUM(N14:N17) -> 0 | AG23: =SUM(O14:O17) -> 0 | AH23: =SUM(V14:V17) -> 0 | AI23: =SUM(W14:W17) -> 0 | AJ23: =SUMPRODUCT((GASTOS!$V2:$V101='DATOS FISCALES'!$C$13)*ISBLANK(GASTOS!$Z2:$Z101)*ISBLANK(GASTOS!$AA2:$AA101)*ISBLANK(GASTOS!$AB2:$AB101)*GASTOS!$U2:$U101) -> 0 | AK23: =SUMPRODUCT((GASTOS!$V2:$V101='DATOS FISCALES'!$C$13)*ISBLANK(GASTOS!$Z2:$Z101)*ISBLANK(GASTOS!$AA2:$AA101)*ISBLANK(GASTOS!$AB2:$AB101)*GASTOS!$W2:$W101) -> 0 | AL23: =SUMPRODUCT((GASTOS!$V2:$V101='DATOS FISCALES'!$C$14)*ISBLANK(GASTOS!$Z2:$Z101)*ISBLANK(GASTOS!$AA2:$AA101)*ISBLANK(GASTOS!$AB2:$AB101)*GASTOS!$U2:$U101) -> 0 | AM23: =SUMPRODUCT((GASTOS!$V2:$V101='DATOS FISCALES'!$C$14)*ISBLANK(GASTOS!$Z2:$Z101)*ISBLANK(GASTOS!$AA2:$AA101)*ISBLANK(GASTOS!$AB2:$AB101)*GASTOS!$W2:$W101) -> 0 | AN23: =SUMPRODUCT((GASTOS!$V2:$V101='DATOS FISCALES'!$C$15)*ISBLANK(GASTOS!$Z2:$Z101)*ISBLANK(GASTOS!$AA2:$AA101)*ISBLANK(GASTOS!$AB2:$AB101)*GASTOS!$U2:$U101) -> 0 | AO23: =SUMPRODUCT((GASTOS!$V2:$V101='DATOS FISCALES'!$C$15)*ISBLANK(GASTOS!$Z2:$Z101)*ISBLANK(GASTOS!$AA2:$AA101)*ISBLANK(GASTOS!$AB2:$AB101)*GASTOS!$W2:$W101) -> 0 | AP23: =SUMPRODUCT((GASTOS!$V2:$V101='DATOS FISCALES'!$C$13)*ISBLANK(GASTOS!$Z2:$Z101)*(GASTOS!$AA2:$AA101=1)*ISBLANK(GASTOS!$AB2:$AB101)*GASTOS!$U2:$U101) -> 0 | AQ23: =SUMPRODUCT((GASTOS!$V2:$V101='DATOS FISCALES'!$C$13)*ISBLANK(GASTOS!$Z2:$Z101)*(GASTOS!$AA2:$AA101=1)*ISBLANK(GASTOS!$AB2:$AB101)*GASTOS!$W2:$W101) -> 0 | AR23: =SUMPRODUCT((GASTOS!$V2:$V101='DATOS FISCALES'!$C$14)*ISBLANK(GASTOS!$Z2:$Z101)*(GASTOS!$AA2:$AA101=1)*ISBLANK(GASTOS!$AB2:$AB101)*GASTOS!$U2:$U101) -> 0 | AS23: =SUMPRODUCT((GASTOS!$V2:$V101='DATOS FISCALES'!$C$14)*ISBLANK(GASTOS!$Z2:$Z101)*(GASTOS!$AA2:$AA101=1)*ISBLANK(GASTOS!$AB2:$AB101)*GASTOS!$W2:$W101) -> 0 | AT23: =SUMPRODUCT((GASTOS!$V2:$V101='DATOS FISCALES'!$C$15)*ISBLANK(GASTOS!$Z2:$Z101)*(GASTOS!$AA2:$AA101=1)*ISBLANK(GASTOS!$AB2:$AB101)*GASTOS!$U2:$U101) -> 0 | AU23: =SUMPRODUCT((GASTOS!$V2:$V101='DATOS FISCALES'!$C$15)*ISBLANK(GASTOS!$Z2:$Z101)*(GASTOS!$AA2:$AA101=1)*ISBLANK(GASTOS!$AB2:$AB101)*GASTOS!$W2:$W101) -> 0 | AV23: =SUMPRODUCT((GASTOS!$Z2:$Z101=1)*(GASTOS!$V2:$V101='DATOS FISCALES'!$C13)*GASTOS!$U2:$U101) -> 0 | AW23: =SUMPRODUCT((GASTOS!$Z2:$Z101=1)*(GASTOS!$V2:$V101='DATOS FISCALES'!$C13)*GASTOS!$W2:$W101) -> 0 | AX23: =SUMPRODUCT((GASTOS!$Z2:$Z101=1)*(GASTOS!$V2:$V101='DATOS FISCALES'!$C14)*GASTOS!$U2:$U101) -> 0 | AY23: =SUMPRODUCT((GASTOS!$Z2:$Z101=1)*(GASTOS!$V2:$V101='DATOS FISCALES'!$C14)*GASTOS!$W2:$W101) -> 0 | AZ23: =SUMPRODUCT((GASTOS!$Z2:$Z101=1)*(GASTOS!$V2:$V101='DATOS FISCALES'!$C15)*GASTOS!$U2:$U101) -> 0 | BA23: =SUMPRODUCT((GASTOS!$Z2:$Z101=1)*(GASTOS!$V2:$V101='DATOS FISCALES'!$C15)*GASTOS!$W2:$W101) -> 0 | BB23: =SUMPRODUCT((GASTOS!$Z2:$Z101=3)*(GASTOS!$V2:$V101='DATOS FISCALES'!$C13)*GASTOS!$U2:$U101) -> 0 | BC23: =SUMPRODUCT((GASTOS!$Z2:$Z101=3)*(GASTOS!$V2:$V101='DATOS FISCALES'!$C13)*GASTOS!$W2:$W101) -> 0 | BD23: =SUMPRODUCT((GASTOS!$Z2:$Z101=3)*(GASTOS!$V2:$V101='DATOS FISCALES'!$C14)*GASTOS!$U2:$U101) -> 0 | BE23: =SUMPRODUCT((GASTOS!$Z2:$Z101=3)*(GASTOS!$V2:$V101='DATOS FISCALES'!$C14)*GASTOS!$W2:$W101) -> 0 | BF23: =SUMPRODUCT((GASTOS!$Z2:$Z101=3)*(GASTOS!$V2:$V101='DATOS FISCALES'!$C15)*GASTOS!$U2:$U101) -> 0 | BG23: =SUMPRODUCT((GASTOS!$Z2:$Z101=3)*(GASTOS!$V2:$V101='DATOS FISCALES'!$C15)*GASTOS!$W2:$W101) -> 0 | BH23: =SUMPRODUCT((GASTOS!$Z2:$Z101=2)*(GASTOS!$V2:$V101='DATOS FISCALES'!$C13)*GASTOS!$U2:$U101) -> 0 | BI23: =SUMPRODUCT((GASTOS!$Z2:$Z101=2)*(GASTOS!$V2:$V101='DATOS FISCALES'!$C13)*GASTOS!$W2:$W101) -> 0 | BJ23: =SUMPRODUCT((GASTOS!$Z2:$Z101=2)*(GASTOS!$V2:$V101='DATOS FISCALES'!$C14)*GASTOS!$U2:$U101) -> 0 | BK23: =SUMPRODUCT((GASTOS!$Z2:$Z101=2)*(GASTOS!$V2:$V101='DATOS FISCALES'!$C14)*GASTOS!$W2:$W101) -> 0 | BL23: =SUMPRODUCT((GASTOS!$Z2:$Z101=2)*(GASTOS!$V2:$V101='DATOS FISCALES'!$C15)*GASTOS!$U2:$U101) -> 0 | BM23: =SUMPRODUCT((GASTOS!$Z2:$Z101=2)*(GASTOS!$V2:$V101='DATOS FISCALES'!$C15)*GASTOS!$W2:$W101) -> 0 | BN23: =IF(AND($B$14=0,SUM(CALCULOS!$C$14:$C$17)=0),SUMPRODUCT((GASTOS!AI$2:AI$101>0)*GASTOS!U$2:U$101),SUMPRODUCT((GASTOS!AI$2:AI$101>0)*GASTOS!AE$2:AE$101)) -> 0 | BO23: =SUM(AH14:AH17) -> 0 | BP23: =SUM(AF14:AF17) -> 0 | BQ23: =SUM(AG14:AG17) -> 0 | BR23: =SUM(AH14:AH17) -> 0 | BS23: =SUM(AI14:AI17) -> 0
A25: CÁCULOS TRIMESTRALES PARA EL MODELO 115: IRPF ARRENDAMIENTOS
A26: Cálculos del Modelo 115 aportados por un usuario anónimo. Agradecemos su aportación
A27: TRIMESTRE | B27: Casilla (2) Base Retención | C27: % Retención | D27: Casilla (3) Importe Retención | E27: Casilla (5) Total Retención
A28: 1T | B28: =SUMIF(GASTOS!$AK$2:$AK$101,1,GASTOS!$K$2:$K$101) -> 0 | C28: 0.21 | D28: =B28*C28 -> 0 | E28: =D28 -> 0
A29: 2T | B29: =SUMIF(GASTOS!$AK$2:$AK$101,2,GASTOS!$K$2:$K$101) -> 0 | C29: 0.21 | D29: =B29*C29 -> 0 | E29: =D29 -> 0
A30: 3T | B30: =SUMIF(GASTOS!$AK$2:$AK$101,3,GASTOS!$K$2:$K$101) -> 0 | C30: 0.21 | D30: =B30*C30 -> 0 | E30: =D30 -> 0
A31: 4T | B31: =SUMIF(GASTOS!$AK$2:$AK$101,4,GASTOS!$K$2:$K$101) -> 0 | C31: 0.21 | D31: =B31*C31 -> 0 | E31: =D31 -> 0
A32: TOTAL DECLARACIÓN ANUAL | B32: =SUM(B28:B31) -> 0 | C32: 0.21 | D32: =B32*C32 -> 0 | E32: =SUM(E28:E31) -> 0
A34: CÁLCULOS PARA EL MODELO 347
A36: Nº Declarado | B36: Libro | C36: NIF declarado | D36: NIF representante | E36: Apellidos y nombre o razón social | F36: Provincia (Código) | G36: País (Código) | H36: Clave de operación | I36: Arrendamiento local negocio | J36: Aviso deber de cumplir "hoja anexo" | K36: Importe percibido en metálico | L36: Importe anual de las operaciones | M36: Importe trimestral de las operaciones | Q36: Importe anual transmisiones inmuebles sujetas IVA | R36: Importe trimestral percibido por transmisiones de inmuebles sujetas a IVA | V36: Importe anual transmisiones inmuebles sujetas IVA | W36: Nº total personas y entidades en las hojas interiores [01] | X36: Importe total anual operaciones en las hojas interiores [02] | Y36: Nº total inmuebles en la hoja anexo de arrend. locales de negocio [03] | Z36: Importe total operaciones hoja anexo arrend. Locales negocio [04]
M37: 1 T | N37: 2 T | O37: 3 T | P37: 4 T | R37: 1 T | S37: 2 T | T37: 3 T | U37: 4 T
A38: 1 | B38: =IF(NOT(ISERROR(MATCH(A38,INGRESOS!$X$1:$X$101,0))),"INGRESOS",IF(NOT(ISERROR(MATCH(A38,GASTOS!$AM$1:$AM$101,0))),"GASTOS","")) ->  | C38: =IF(B38="INGRESOS",INDEX(INGRESOS!$A$1:$X$101,MATCH(A38,INGRESOS!$X$1:$X$101,0),COLUMN(INGRESOS!D1)),IF(B38="GASTOS",INDEX(GASTOS!$A$1:$AM$101,MATCH(A38,GASTOS!$AM$1:$AM$101,0),COLUMN(INGRESOS!$D$1)),"")) ->  | E38: =IF(B38<>"",IF(B38="INGRESOS",INDEX(CLIENTES!$A$1:$E$200,MATCH(C38,CLIENTES!$B$1:$B$200,0),COLUMN(CLIENTES!$A$1)),INDEX(PROVEEDORES!$A$1:$E$200,MATCH(C38,PROVEEDORES!$B$1:$B$200,0),COLUMN(PROVEEDORES!$A$1))),"") ->  | F38: =IF(B38<>"",IF(""=IF(B38="INGRESOS",VLOOKUP(C38,CLIENTES!$B$1:$C$200,2,FALSE),VLOOKUP(C38,PROVEEDORES!$B$1:$C$200,2,FALSE)),"FALTA",VLOOKUP(IF(B38="INGRESOS",VLOOKUP(C38,CLIENTES!$B$1:$C$200,2,FALSE),VLOOKUP(C38,PROVEEDORES!$B$1:$C$200,2,FALSE)),'DATOS FISCALES'!$F$20:$G$72,2,FALSE)),"") ->  | G38: =IF(F38=99,"introducir código de país","") ->  | H38: =IF(B38="","",IF(LEFT(B38,1)="I","B","A")) ->  | I38: =IF(B38<>"",IF(B38="INGRESOS",VLOOKUP(C38,CLIENTES!$B$2:$E$200,3,FALSE),VLOOKUP(C38,PROVEEDORES!$B$2:$E$200,3,FALSE)),"") ->  | J38: =IF(AND(B38="INGRESOS",I38>0),"AVISO_ANEXO","") ->  | K38: =IF(B38<>"",IF(B38="INGRESOS",VLOOKUP(C38,CLIENTES!$B$2:$E$200,4,FALSE),VLOOKUP(C38,PROVEEDORES!$B$2:$E$200,4,FALSE)),0) -> 0 | L38: =SUM(M38:P38) -> 0 | M38: =IF($H38="B",SUMPRODUCT((INGRESOS!$Y$2:$Y$101=1)*(INGRESOS!$X$2:$X$101=$A38)*INGRESOS!$F$2:$F$101)+SUMPRODUCT((INGRESOS!$Y$2:$Y$101=1)*(INGRESOS!$X$2:$X$101=$A38)*INGRESOS!$I$2:$I$101)+SUMPRODUCT((INGRESOS!$Y$2:$Y$101=1)*(INGRESOS!$X$2:$X$101=$A38)*INGRESOS!$J$2:$J$101),IF($H38="A",SUMPRODUCT((GASTOS!$AN$2:$AN$101=1)*(GASTOS!$AM$2:$AM$101=$A38)*GASTOS!$U$2:$U$101)+SUMPRODUCT((GASTOS!$AN$2:$AN$101=1)*(GASTOS!$AM$2:$AM$101=$A38)*GASTOS!$W$2:$W$101),0)) -> 0 | N38: =IF($H38="B",SUMPRODUCT((INGRESOS!$Y$2:$Y$101=2)*(INGRESOS!$X$2:$X$101=$A38)*INGRESOS!$F$2:$F$101)+SUMPRODUCT((INGRESOS!$Y$2:$Y$101=2)*(INGRESOS!$X$2:$X$101=$A38)*INGRESOS!$I$2:$I$101)+SUMPRODUCT((INGRESOS!$Y$2:$Y$101=2)*(INGRESOS!$X$2:$X$101=$A38)*INGRESOS!$J$2:$J$101),IF($H38="A",SUMPRODUCT((GASTOS!$AN$2:$AN$101=2)*(GASTOS!$AM$2:$AM$101=$A38)*GASTOS!$U$2:$U$101)+SUMPRODUCT((GASTOS!$AN$2:$AN$101=2)*(GASTOS!$AM$2:$AM$101=$A38)*GASTOS!$W$2:$W$101),0)) -> 0 | O38: =IF($H38="B",SUMPRODUCT((INGRESOS!$Y$2:$Y$101=3)*(INGRESOS!$X$2:$X$101=$A38)*INGRESOS!$F$2:$F$101)+SUMPRODUCT((INGRESOS!$Y$2:$Y$101=3)*(INGRESOS!$X$2:$X$101=$A38)*INGRESOS!$I$2:$I$101)+SUMPRODUCT((INGRESOS!$Y$2:$Y$101=3)*(INGRESOS!$X$2:$X$101=$A38)*INGRESOS!$J$2:$J$101),IF($H38="A",SUMPRODUCT((GASTOS!$AN$2:$AN$101=3)*(GASTOS!$AM$2:$AM$101=$A38)*GASTOS!$U$2:$U$101)+SUMPRODUCT((GASTOS!$AN$2:$AN$101=3)*(GASTOS!$AM$2:$AM$101=$A38)*GASTOS!$W$2:$W$101),0)) -> 0 | P38: =IF($H38="B",SUMPRODUCT((INGRESOS!$Y$2:$Y$101=4)*(INGRESOS!$X$2:$X$101=$A38)*INGRESOS!$F$2:$F$101)+SUMPRODUCT((INGRESOS!$Y$2:$Y$101=4)*(INGRESOS!$X$2:$X$101=$A38)*INGRESOS!$I$2:$I$101)+SUMPRODUCT((INGRESOS!$Y$2:$Y$101=4)*(INGRESOS!$X$2:$X$101=$A38)*INGRESOS!$J$2:$J$101),IF($H38="A",SUMPRODUCT((GASTOS!$AN$2:$AN$101=4)*(GASTOS!$AM$2:$AM$101=$A38)*GASTOS!$U$2:$U$101)+SUMPRODUCT((GASTOS!$AN$2:$AN$101=4)*(GASTOS!$AM$2:$AM$101=$A38)*GASTOS!$W$2:$W$101),0)) -> 0 | W38: =COUNTIF(B38:B69,">""") -> 0 | X38: =SUM(L38:L69,Q38:Q69) -> 0
A39: 2 | B39: =IF(NOT(ISERROR(MATCH(A39,INGRESOS!$X$1:$X$101,0))),"INGRESOS",IF(NOT(ISERROR(MATCH(A39,GASTOS!$AM$1:$AM$101,0))),"GASTOS","")) ->  | C39: =IF(B39="INGRESOS",INDEX(INGRESOS!$A$1:$X$101,MATCH(A39,INGRESOS!$X$1:$X$101,0),COLUMN(INGRESOS!D2)),IF(B39="GASTOS",INDEX(GASTOS!$A$1:$AM$101,MATCH(A39,GASTOS!$AM$1:$AM$101,0),COLUMN(INGRESOS!$D$1)),"")) ->  | E39: =IF(B39<>"",IF(B39="INGRESOS",INDEX(CLIENTES!$A$1:$E$200,MATCH(C39,CLIENTES!$B$1:$B$200,0),COLUMN(CLIENTES!$A$1)),INDEX(PROVEEDORES!$A$1:$E$200,MATCH(C39,PROVEEDORES!$B$1:$B$200,0),COLUMN(PROVEEDORES!$A$1))),"") ->  | F39: =IF(B39<>"",IF(""=IF(B39="INGRESOS",VLOOKUP(C39,CLIENTES!$B$1:$C$200,2,FALSE),VLOOKUP(C39,PROVEEDORES!$B$1:$C$200,2,FALSE)),"FALTA",VLOOKUP(IF(B39="INGRESOS",VLOOKUP(C39,CLIENTES!$B$1:$C$200,2,FALSE),VLOOKUP(C39,PROVEEDORES!$B$1:$C$200,2,FALSE)),'DATOS FISCALES'!$F$20:$G$72,2,FALSE)),"") ->  | G39: =IF(F39=99,"introducir código de país","") ->  | H39: =IF(B39="","",IF(LEFT(B39,1)="I","B","A")) ->  | I39: =IF(B39<>"",IF(B39="INGRESOS",VLOOKUP(C39,CLIENTES!$B$2:$E$200,3,FALSE),VLOOKUP(C39,PROVEEDORES!$B$2:$E$200,3,FALSE)),"") ->  | J39: =IF(AND(B39="INGRESOS",I39>0),"AVISO_ANEXO","") ->  | K39: =IF(B39<>"",IF(B39="INGRESOS",VLOOKUP(C39,CLIENTES!$B$2:$E$200,4,FALSE),VLOOKUP(C39,PROVEEDORES!$B$2:$E$200,4,FALSE)),0) -> 0 | L39: =SUM(M39:P39) -> 0 | M39: =IF($H39="B",SUMPRODUCT((INGRESOS!$Y$2:$Y$101=1)*(INGRESOS!$X$2:$X$101=$A39)*INGRESOS!$F$2:$F$101)+SUMPRODUCT((INGRESOS!$Y$2:$Y$101=1)*(INGRESOS!$X$2:$X$101=$A39)*INGRESOS!$I$2:$I$101)+SUMPRODUCT((INGRESOS!$Y$2:$Y$101=1)*(INGRESOS!$X$2:$X$101=$A39)*INGRESOS!$J$2:$J$101),IF($H39="A",SUMPRODUCT((GASTOS!$AN$2:$AN$101=1)*(GASTOS!$AM$2:$AM$101=$A39)*GASTOS!$U$2:$U$101)+SUMPRODUCT((GASTOS!$AN$2:$AN$101=1)*(GASTOS!$AM$2:$AM$101=$A39)*GASTOS!$W$2:$W$101),0)) -> 0 | N39: =IF($H39="B",SUMPRODUCT((INGRESOS!$Y$2:$Y$101=2)*(INGRESOS!$X$2:$X$101=$A39)*INGRESOS!$F$2:$F$101)+SUMPRODUCT((INGRESOS!$Y$2:$Y$101=2)*(INGRESOS!$X$2:$X$101=$A39)*INGRESOS!$I$2:$I$101)+SUMPRODUCT((INGRESOS!$Y$2:$Y$101=2)*(INGRESOS!$X$2:$X$101=$A39)*INGRESOS!$J$2:$J$101),IF($H39="A",SUMPRODUCT((GASTOS!$AN$2:$AN$101=2)*(GASTOS!$AM$2:$AM$101=$A39)*GASTOS!$U$2:$U$101)+SUMPRODUCT((GASTOS!$AN$2:$AN$101=2)*(GASTOS!$AM$2:$AM$101=$A39)*GASTOS!$W$2:$W$101),0)) -> 0 | O39: =IF($H39="B",SUMPRODUCT((INGRESOS!$Y$2:$Y$101=3)*(INGRESOS!$X$2:$X$101=$A39)*INGRESOS!$F$2:$F$101)+SUMPRODUCT((INGRESOS!$Y$2:$Y$101=3)*(INGRESOS!$X$2:$X$101=$A39)*INGRESOS!$I$2:$I$101)+SUMPRODUCT((INGRESOS!$Y$2:$Y$101=3)*(INGRESOS!$X$2:$X$101=$A39)*INGRESOS!$J$2:$J$101),IF($H39="A",SUMPRODUCT((GASTOS!$AN$2:$AN$101=3)*(GASTOS!$AM$2:$AM$101=$A39)*GASTOS!$U$2:$U$101)+SUMPRODUCT((GASTOS!$AN$2:$AN$101=3)*(GASTOS!$AM$2:$AM$101=$A39)*GASTOS!$W$2:$W$101),0)) -> 0 | P39: =IF($H39="B",SUMPRODUCT((INGRESOS!$Y$2:$Y$101=4)*(INGRESOS!$X$2:$X$101=$A39)*INGRESOS!$F$2:$F$101)+SUMPRODUCT((INGRESOS!$Y$2:$Y$101=4)*(INGRESOS!$X$2:$X$101=$A39)*INGRESOS!$I$2:$I$101)+SUMPRODUCT((INGRESOS!$Y$2:$Y$101=4)*(INGRESOS!$X$2:$X$101=$A39)*INGRESOS!$J$2:$J$101),IF($H39="A",SUMPRODUCT((GASTOS!$AN$2:$AN$101=4)*(GASTOS!$AM$2:$AM$101=$A39)*GASTOS!$U$2:$U$101)+SUMPRODUCT((GASTOS!$AN$2:$AN$101=4)*(GASTOS!$AM$2:$AM$101=$A39)*GASTOS!$W$2:$W$101),0)) -> 0
A40: 3 | B40: =IF(NOT(ISERROR(MATCH(A40,INGRESOS!$X$1:$X$101,0))),"INGRESOS",IF(NOT(ISERROR(MATCH(A40,GASTOS!$AM$1:$AM$101,0))),"GASTOS","")) ->  | C40: =IF(B40="INGRESOS",INDEX(INGRESOS!$A$1:$X$101,MATCH(A40,INGRESOS!$X$1:$X$101,0),COLUMN(INGRESOS!D3)),IF(B40="GASTOS",INDEX(GASTOS!$A$1:$AM$101,MATCH(A40,GASTOS!$AM$1:$AM$101,0),COLUMN(INGRESOS!$D$1)),"")) ->  | E40: =IF(B40<>"",IF(B40="INGRESOS",INDEX(CLIENTES!$A$1:$E$200,MATCH(C40,CLIENTES!$B$1:$B$200,0),COLUMN(CLIENTES!$A$1)),INDEX(PROVEEDORES!$A$1:$E$200,MATCH(C40,PROVEEDORES!$B$1:$B$200,0),COLUMN(PROVEEDORES!$A$1))),"") ->  | F40: =IF(B40<>"",IF(""=IF(B40="INGRESOS",VLOOKUP(C40,CLIENTES!$B$1:$C$200,2,FALSE),VLOOKUP(C40,PROVEEDORES!$B$1:$C$200,2,FALSE)),"FALTA",VLOOKUP(IF(B40="INGRESOS",VLOOKUP(C40,CLIENTES!$B$1:$C$200,2,FALSE),VLOOKUP(C40,PROVEEDORES!$B$1:$C$200,2,FALSE)),'DATOS FISCALES'!$F$20:$G$72,2,FALSE)),"") ->  | I40: =IF(B40<>"",IF(B40="INGRESOS",VLOOKUP(C40,CLIENTES!$B$2:$E$200,3,FALSE),VLOOKUP(C40,PROVEEDORES!$B$2:$E$200,3,FALSE)),"") ->  | K40: =IF(B40<>"",IF(B40="INGRESOS",VLOOKUP(C40,CLIENTES!$B$2:$E$200,4,FALSE),VLOOKUP(C40,PROVEEDORES!$B$2:$E$200,4,FALSE)),0) -> 0 | L40: 0 | M40: =IF($H40="B",SUMPRODUCT((INGRESOS!$Y$2:$Y$101=1)*(INGRESOS!$X$2:$X$101=$A40)*INGRESOS!$F$2:$F$101)+SUMPRODUCT((INGRESOS!$Y$2:$Y$101=1)*(INGRESOS!$X$2:$X$101=$A40)*INGRESOS!$I$2:$I$101)+SUMPRODUCT((INGRESOS!$Y$2:$Y$101=1)*(INGRESOS!$X$2:$X$101=$A40)*INGRESOS!$J$2:$J$101),IF($H40="A",SUMPRODUCT((GASTOS!$AN$2:$AN$101=1)*(GASTOS!$AM$2:$AM$101=$A40)*GASTOS!$U$2:$U$101)+SUMPRODUCT((GASTOS!$AN$2:$AN$101=1)*(GASTOS!$AM$2:$AM$101=$A40)*GASTOS!$W$2:$W$101),0)) -> 0 | N40: =IF($H40="B",SUMPRODUCT((INGRESOS!$Y$2:$Y$101=2)*(INGRESOS!$X$2:$X$101=$A40)*INGRESOS!$F$2:$F$101)+SUMPRODUCT((INGRESOS!$Y$2:$Y$101=2)*(INGRESOS!$X$2:$X$101=$A40)*INGRESOS!$I$2:$I$101)+SUMPRODUCT((INGRESOS!$Y$2:$Y$101=2)*(INGRESOS!$X$2:$X$101=$A40)*INGRESOS!$J$2:$J$101),IF($H40="A",SUMPRODUCT((GASTOS!$AN$2:$AN$101=2)*(GASTOS!$AM$2:$AM$101=$A40)*GASTOS!$U$2:$U$101)+SUMPRODUCT((GASTOS!$AN$2:$AN$101=2)*(GASTOS!$AM$2:$AM$101=$A40)*GASTOS!$W$2:$W$101),0)) -> 0 | O40: =IF($H40="B",SUMPRODUCT((INGRESOS!$Y$2:$Y$101=3)*(INGRESOS!$X$2:$X$101=$A40)*INGRESOS!$F$2:$F$101)+SUMPRODUCT((INGRESOS!$Y$2:$Y$101=3)*(INGRESOS!$X$2:$X$101=$A40)*INGRESOS!$I$2:$I$101)+SUMPRODUCT((INGRESOS!$Y$2:$Y$101=3)*(INGRESOS!$X$2:$X$101=$A40)*INGRESOS!$J$2:$J$101),IF($H40="A",SUMPRODUCT((GASTOS!$AN$2:$AN$101=3)*(GASTOS!$AM$2:$AM$101=$A40)*GASTOS!$U$2:$U$101)+SUMPRODUCT((GASTOS!$AN$2:$AN$101=3)*(GASTOS!$AM$2:$AM$101=$A40)*GASTOS!$W$2:$W$101),0)) -> 0 | P40: =IF($H40="B",SUMPRODUCT((INGRESOS!$Y$2:$Y$101=4)*(INGRESOS!$X$2:$X$101=$A40)*INGRESOS!$F$2:$F$101)+SUMPRODUCT((INGRESOS!$Y$2:$Y$101=4)*(INGRESOS!$X$2:$X$101=$A40)*INGRESOS!$I$2:$I$101)+SUMPRODUCT((INGRESOS!$Y$2:$Y$101=4)*(INGRESOS!$X$2:$X$101=$A40)*INGRESOS!$J$2:$J$101),IF($H40="A",SUMPRODUCT((GASTOS!$AN$2:$AN$101=4)*(GASTOS!$AM$2:$AM$101=$A40)*GASTOS!$U$2:$U$101)+SUMPRODUCT((GASTOS!$AN$2:$AN$101=4)*(GASTOS!$AM$2:$AM$101=$A40)*GASTOS!$W$2:$W$101),0)) -> 0
A41: 4 | B41: =IF(NOT(ISERROR(MATCH(A41,INGRESOS!$X$1:$X$101,0))),"INGRESOS",IF(NOT(ISERROR(MATCH(A41,GASTOS!$AM$1:$AM$101,0))),"GASTOS","")) ->  | C41: =IF(B41="INGRESOS",INDEX(INGRESOS!$A$1:$X$101,MATCH(A41,INGRESOS!$X$1:$X$101,0),COLUMN(INGRESOS!D4)),IF(B41="GASTOS",INDEX(GASTOS!$A$1:$AM$101,MATCH(A41,GASTOS!$AM$1:$AM$101,0),COLUMN(INGRESOS!$D$1)),"")) ->  | E41: =IF(B41<>"",IF(B41="INGRESOS",INDEX(CLIENTES!$A$1:$E$200,MATCH(C41,CLIENTES!$B$1:$B$200,0),COLUMN(CLIENTES!$A$1)),INDEX(PROVEEDORES!$A$1:$E$200,MATCH(C41,PROVEEDORES!$B$1:$B$200,0),COLUMN(PROVEEDORES!$A$1))),"") ->  | F41: =IF(B41<>"",IF(""=IF(B41="INGRESOS",VLOOKUP(C41,CLIENTES!$B$1:$C$200,2,FALSE),VLOOKUP(C41,PROVEEDORES!$B$1:$C$200,2,FALSE)),"FALTA",VLOOKUP(IF(B41="INGRESOS",VLOOKUP(C41,CLIENTES!$B$1:$C$200,2,FALSE),VLOOKUP(C41,PROVEEDORES!$B$1:$C$200,2,FALSE)),'DATOS FISCALES'!$F$20:$G$72,2,FALSE)),"") ->  | I41: =IF(B41<>"",IF(B41="INGRESOS",VLOOKUP(C41,CLIENTES!$B$2:$E$200,3,FALSE),VLOOKUP(C41,PROVEEDORES!$B$2:$E$200,3,FALSE)),"") ->  | K41: =IF(B41<>"",IF(B41="INGRESOS",VLOOKUP(C41,CLIENTES!$B$2:$E$200,4,FALSE),VLOOKUP(C41,PROVEEDORES!$B$2:$E$200,4,FALSE)),0) -> 0 | L41: 0 | M41: =IF($H41="B",SUMPRODUCT((INGRESOS!$Y$2:$Y$101=1)*(INGRESOS!$X$2:$X$101=$A41)*INGRESOS!$F$2:$F$101)+SUMPRODUCT((INGRESOS!$Y$2:$Y$101=1)*(INGRESOS!$X$2:$X$101=$A41)*INGRESOS!$I$2:$I$101)+SUMPRODUCT((INGRESOS!$Y$2:$Y$101=1)*(INGRESOS!$X$2:$X$101=$A41)*INGRESOS!$J$2:$J$101),IF($H41="A",SUMPRODUCT((GASTOS!$AN$2:$AN$101=1)*(GASTOS!$AM$2:$AM$101=$A41)*GASTOS!$U$2:$U$101)+SUMPRODUCT((GASTOS!$AN$2:$AN$101=1)*(GASTOS!$AM$2:$AM$101=$A41)*GASTOS!$W$2:$W$101),0)) -> 0 | N41: =IF($H41="B",SUMPRODUCT((INGRESOS!$Y$2:$Y$101=2)*(INGRESOS!$X$2:$X$101=$A41)*INGRESOS!$F$2:$F$101)+SUMPRODUCT((INGRESOS!$Y$2:$Y$101=2)*(INGRESOS!$X$2:$X$101=$A41)*INGRESOS!$I$2:$I$101)+SUMPRODUCT((INGRESOS!$Y$2:$Y$101=2)*(INGRESOS!$X$2:$X$101=$A41)*INGRESOS!$J$2:$J$101),IF($H41="A",SUMPRODUCT((GASTOS!$AN$2:$AN$101=2)*(GASTOS!$AM$2:$AM$101=$A41)*GASTOS!$U$2:$U$101)+SUMPRODUCT((GASTOS!$AN$2:$AN$101=2)*(GASTOS!$AM$2:$AM$101=$A41)*GASTOS!$W$2:$W$101),0)) -> 0 | O41: =IF($H41="B",SUMPRODUCT((INGRESOS!$Y$2:$Y$101=3)*(INGRESOS!$X$2:$X$101=$A41)*INGRESOS!$F$2:$F$101)+SUMPRODUCT((INGRESOS!$Y$2:$Y$101=3)*(INGRESOS!$X$2:$X$101=$A41)*INGRESOS!$I$2:$I$101)+SUMPRODUCT((INGRESOS!$Y$2:$Y$101=3)*(INGRESOS!$X$2:$X$101=$A41)*INGRESOS!$J$2:$J$101),IF($H41="A",SUMPRODUCT((GASTOS!$AN$2:$AN$101=3)*(GASTOS!$AM$2:$AM$101=$A41)*GASTOS!$U$2:$U$101)+SUMPRODUCT((GASTOS!$AN$2:$AN$101=3)*(GASTOS!$AM$2:$AM$101=$A41)*GASTOS!$W$2:$W$101),0)) -> 0 | P41: =IF($H41="B",SUMPRODUCT((INGRESOS!$Y$2:$Y$101=4)*(INGRESOS!$X$2:$X$101=$A41)*INGRESOS!$F$2:$F$101)+SUMPRODUCT((INGRESOS!$Y$2:$Y$101=4)*(INGRESOS!$X$2:$X$101=$A41)*INGRESOS!$I$2:$I$101)+SUMPRODUCT((INGRESOS!$Y$2:$Y$101=4)*(INGRESOS!$X$2:$X$101=$A41)*INGRESOS!$J$2:$J$101),IF($H41="A",SUMPRODUCT((GASTOS!$AN$2:$AN$101=4)*(GASTOS!$AM$2:$AM$101=$A41)*GASTOS!$U$2:$U$101)+SUMPRODUCT((GASTOS!$AN$2:$AN$101=4)*(GASTOS!$AM$2:$AM$101=$A41)*GASTOS!$W$2:$W$101),0)) -> 0
A42: 5 | B42: =IF(NOT(ISERROR(MATCH(A42,INGRESOS!$X$1:$X$101,0))),"INGRESOS",IF(NOT(ISERROR(MATCH(A42,GASTOS!$AM$1:$AM$101,0))),"GASTOS","")) ->  | C42: =IF(B42="INGRESOS",INDEX(INGRESOS!$A$1:$X$101,MATCH(A42,INGRESOS!$X$1:$X$101,0),COLUMN(INGRESOS!D5)),IF(B42="GASTOS",INDEX(GASTOS!$A$1:$AM$101,MATCH(A42,GASTOS!$AM$1:$AM$101,0),COLUMN(INGRESOS!$D$1)),"")) ->  | E42: =IF(B42<>"",IF(B42="INGRESOS",INDEX(CLIENTES!$A$1:$E$200,MATCH(C42,CLIENTES!$B$1:$B$200,0),COLUMN(CLIENTES!$A$1)),INDEX(PROVEEDORES!$A$1:$E$200,MATCH(C42,PROVEEDORES!$B$1:$B$200,0),COLUMN(PROVEEDORES!$A$1))),"") ->  | F42: =IF(B42<>"",IF(""=IF(B42="INGRESOS",VLOOKUP(C42,CLIENTES!$B$1:$C$200,2,FALSE),VLOOKUP(C42,PROVEEDORES!$B$1:$C$200,2,FALSE)),"FALTA",VLOOKUP(IF(B42="INGRESOS",VLOOKUP(C42,CLIENTES!$B$1:$C$200,2,FALSE),VLOOKUP(C42,PROVEEDORES!$B$1:$C$200,2,FALSE)),'DATOS FISCALES'!$F$20:$G$72,2,FALSE)),"") ->  | I42: =IF(B42<>"",IF(B42="INGRESOS",VLOOKUP(C42,CLIENTES!$B$2:$E$200,3,FALSE),VLOOKUP(C42,PROVEEDORES!$B$2:$E$200,3,FALSE)),"") ->  | K42: =IF(B42<>"",IF(B42="INGRESOS",VLOOKUP(C42,CLIENTES!$B$2:$E$200,4,FALSE),VLOOKUP(C42,PROVEEDORES!$B$2:$E$200,4,FALSE)),0) -> 0 | L42: 0 | M42: =IF($H42="B",SUMPRODUCT((INGRESOS!$Y$2:$Y$101=1)*(INGRESOS!$X$2:$X$101=$A42)*INGRESOS!$F$2:$F$101)+SUMPRODUCT((INGRESOS!$Y$2:$Y$101=1)*(INGRESOS!$X$2:$X$101=$A42)*INGRESOS!$I$2:$I$101)+SUMPRODUCT((INGRESOS!$Y$2:$Y$101=1)*(INGRESOS!$X$2:$X$101=$A42)*INGRESOS!$J$2:$J$101),IF($H42="A",SUMPRODUCT((GASTOS!$AN$2:$AN$101=1)*(GASTOS!$AM$2:$AM$101=$A42)*GASTOS!$U$2:$U$101)+SUMPRODUCT((GASTOS!$AN$2:$AN$101=1)*(GASTOS!$AM$2:$AM$101=$A42)*GASTOS!$W$2:$W$101),0)) -> 0 | N42: =IF($H42="B",SUMPRODUCT((INGRESOS!$Y$2:$Y$101=2)*(INGRESOS!$X$2:$X$101=$A42)*INGRESOS!$F$2:$F$101)+SUMPRODUCT((INGRESOS!$Y$2:$Y$101=2)*(INGRESOS!$X$2:$X$101=$A42)*INGRESOS!$I$2:$I$101)+SUMPRODUCT((INGRESOS!$Y$2:$Y$101=2)*(INGRESOS!$X$2:$X$101=$A42)*INGRESOS!$J$2:$J$101),IF($H42="A",SUMPRODUCT((GASTOS!$AN$2:$AN$101=2)*(GASTOS!$AM$2:$AM$101=$A42)*GASTOS!$U$2:$U$101)+SUMPRODUCT((GASTOS!$AN$2:$AN$101=2)*(GASTOS!$AM$2:$AM$101=$A42)*GASTOS!$W$2:$W$101),0)) -> 0 | O42: =IF($H42="B",SUMPRODUCT((INGRESOS!$Y$2:$Y$101=3)*(INGRESOS!$X$2:$X$101=$A42)*INGRESOS!$F$2:$F$101)+SUMPRODUCT((INGRESOS!$Y$2:$Y$101=3)*(INGRESOS!$X$2:$X$101=$A42)*INGRESOS!$I$2:$I$101)+SUMPRODUCT((INGRESOS!$Y$2:$Y$101=3)*(INGRESOS!$X$2:$X$101=$A42)*INGRESOS!$J$2:$J$101),IF($H42="A",SUMPRODUCT((GASTOS!$AN$2:$AN$101=3)*(GASTOS!$AM$2:$AM$101=$A42)*GASTOS!$U$2:$U$101)+SUMPRODUCT((GASTOS!$AN$2:$AN$101=3)*(GASTOS!$AM$2:$AM$101=$A42)*GASTOS!$W$2:$W$101),0)) -> 0 | P42: =IF($H42="B",SUMPRODUCT((INGRESOS!$Y$2:$Y$101=4)*(INGRESOS!$X$2:$X$101=$A42)*INGRESOS!$F$2:$F$101)+SUMPRODUCT((INGRESOS!$Y$2:$Y$101=4)*(INGRESOS!$X$2:$X$101=$A42)*INGRESOS!$I$2:$I$101)+SUMPRODUCT((INGRESOS!$Y$2:$Y$101=4)*(INGRESOS!$X$2:$X$101=$A42)*INGRESOS!$J$2:$J$101),IF($H42="A",SUMPRODUCT((GASTOS!$AN$2:$AN$101=4)*(GASTOS!$AM$2:$AM$101=$A42)*GASTOS!$U$2:$U$101)+SUMPRODUCT((GASTOS!$AN$2:$AN$101=4)*(GASTOS!$AM$2:$AM$101=$A42)*GASTOS!$W$2:$W$101),0)) -> 0
A43: 6 | B43: =IF(NOT(ISERROR(MATCH(A43,INGRESOS!$X$1:$X$101,0))),"INGRESOS",IF(NOT(ISERROR(MATCH(A43,GASTOS!$AM$1:$AM$101,0))),"GASTOS","")) ->  | C43: =IF(B43="INGRESOS",INDEX(INGRESOS!$A$1:$X$101,MATCH(A43,INGRESOS!$X$1:$X$101,0),COLUMN(INGRESOS!D6)),IF(B43="GASTOS",INDEX(GASTOS!$A$1:$AM$101,MATCH(A43,GASTOS!$AM$1:$AM$101,0),COLUMN(INGRESOS!$D$1)),"")) ->  | E43: =IF(B43<>"",IF(B43="INGRESOS",INDEX(CLIENTES!$A$1:$E$200,MATCH(C43,CLIENTES!$B$1:$B$200,0),COLUMN(CLIENTES!$A$1)),INDEX(PROVEEDORES!$A$1:$E$200,MATCH(C43,PROVEEDORES!$B$1:$B$200,0),COLUMN(PROVEEDORES!$A$1))),"") ->  | F43: =IF(B43<>"",IF(""=IF(B43="INGRESOS",VLOOKUP(C43,CLIENTES!$B$1:$C$200,2,FALSE),VLOOKUP(C43,PROVEEDORES!$B$1:$C$200,2,FALSE)),"FALTA",VLOOKUP(IF(B43="INGRESOS",VLOOKUP(C43,CLIENTES!$B$1:$C$200,2,FALSE),VLOOKUP(C43,PROVEEDORES!$B$1:$C$200,2,FALSE)),'DATOS FISCALES'!$F$20:$G$72,2,FALSE)),"") ->  | I43: =IF(B43<>"",IF(B43="INGRESOS",VLOOKUP(C43,CLIENTES!$B$2:$E$200,3,FALSE),VLOOKUP(C43,PROVEEDORES!$B$2:$E$200,3,FALSE)),"") ->  | K43: =IF(B43<>"",IF(B43="INGRESOS",VLOOKUP(C43,CLIENTES!$B$2:$E$200,4,FALSE),VLOOKUP(C43,PROVEEDORES!$B$2:$E$200,4,FALSE)),0) -> 0 | L43: 0 | M43: =IF($H43="B",SUMPRODUCT((INGRESOS!$Y$2:$Y$101=1)*(INGRESOS!$X$2:$X$101=$A43)*INGRESOS!$F$2:$F$101)+SUMPRODUCT((INGRESOS!$Y$2:$Y$101=1)*(INGRESOS!$X$2:$X$101=$A43)*INGRESOS!$I$2:$I$101)+SUMPRODUCT((INGRESOS!$Y$2:$Y$101=1)*(INGRESOS!$X$2:$X$101=$A43)*INGRESOS!$J$2:$J$101),IF($H43="A",SUMPRODUCT((GASTOS!$AN$2:$AN$101=1)*(GASTOS!$AM$2:$AM$101=$A43)*GASTOS!$U$2:$U$101)+SUMPRODUCT((GASTOS!$AN$2:$AN$101=1)*(GASTOS!$AM$2:$AM$101=$A43)*GASTOS!$W$2:$W$101),0)) -> 0 | N43: =IF($H43="B",SUMPRODUCT((INGRESOS!$Y$2:$Y$101=2)*(INGRESOS!$X$2:$X$101=$A43)*INGRESOS!$F$2:$F$101)+SUMPRODUCT((INGRESOS!$Y$2:$Y$101=2)*(INGRESOS!$X$2:$X$101=$A43)*INGRESOS!$I$2:$I$101)+SUMPRODUCT((INGRESOS!$Y$2:$Y$101=2)*(INGRESOS!$X$2:$X$101=$A43)*INGRESOS!$J$2:$J$101),IF($H43="A",SUMPRODUCT((GASTOS!$AN$2:$AN$101=2)*(GASTOS!$AM$2:$AM$101=$A43)*GASTOS!$U$2:$U$101)+SUMPRODUCT((GASTOS!$AN$2:$AN$101=2)*(GASTOS!$AM$2:$AM$101=$A43)*GASTOS!$W$2:$W$101),0)) -> 0 | O43: =IF($H43="B",SUMPRODUCT((INGRESOS!$Y$2:$Y$101=3)*(INGRESOS!$X$2:$X$101=$A43)*INGRESOS!$F$2:$F$101)+SUMPRODUCT((INGRESOS!$Y$2:$Y$101=3)*(INGRESOS!$X$2:$X$101=$A43)*INGRESOS!$I$2:$I$101)+SUMPRODUCT((INGRESOS!$Y$2:$Y$101=3)*(INGRESOS!$X$2:$X$101=$A43)*INGRESOS!$J$2:$J$101),IF($H43="A",SUMPRODUCT((GASTOS!$AN$2:$AN$101=3)*(GASTOS!$AM$2:$AM$101=$A43)*GASTOS!$U$2:$U$101)+SUMPRODUCT((GASTOS!$AN$2:$AN$101=3)*(GASTOS!$AM$2:$AM$101=$A43)*GASTOS!$W$2:$W$101),0)) -> 0 | P43: =IF($H43="B",SUMPRODUCT((INGRESOS!$Y$2:$Y$101=4)*(INGRESOS!$X$2:$X$101=$A43)*INGRESOS!$F$2:$F$101)+SUMPRODUCT((INGRESOS!$Y$2:$Y$101=4)*(INGRESOS!$X$2:$X$101=$A43)*INGRESOS!$I$2:$I$101)+SUMPRODUCT((INGRESOS!$Y$2:$Y$101=4)*(INGRESOS!$X$2:$X$101=$A43)*INGRESOS!$J$2:$J$101),IF($H43="A",SUMPRODUCT((GASTOS!$AN$2:$AN$101=4)*(GASTOS!$AM$2:$AM$101=$A43)*GASTOS!$U$2:$U$101)+SUMPRODUCT((GASTOS!$AN$2:$AN$101=4)*(GASTOS!$AM$2:$AM$101=$A43)*GASTOS!$W$2:$W$101),0)) -> 0
A44: 7 | B44: =IF(NOT(ISERROR(MATCH(A44,INGRESOS!$X$1:$X$101,0))),"INGRESOS",IF(NOT(ISERROR(MATCH(A44,GASTOS!$AM$1:$AM$101,0))),"GASTOS","")) ->  | C44: =IF(B44="INGRESOS",INDEX(INGRESOS!$A$1:$X$101,MATCH(A44,INGRESOS!$X$1:$X$101,0),COLUMN(INGRESOS!D7)),IF(B44="GASTOS",INDEX(GASTOS!$A$1:$AM$101,MATCH(A44,GASTOS!$AM$1:$AM$101,0),COLUMN(INGRESOS!$D$1)),"")) ->  | E44: =IF(B44<>"",IF(B44="INGRESOS",INDEX(CLIENTES!$A$1:$E$200,MATCH(C44,CLIENTES!$B$1:$B$200,0),COLUMN(CLIENTES!$A$1)),INDEX(PROVEEDORES!$A$1:$E$200,MATCH(C44,PROVEEDORES!$B$1:$B$200,0),COLUMN(PROVEEDORES!$A$1))),"") ->  | F44: =IF(B44<>"",IF(""=IF(B44="INGRESOS",VLOOKUP(C44,CLIENTES!$B$1:$C$200,2,FALSE),VLOOKUP(C44,PROVEEDORES!$B$1:$C$200,2,FALSE)),"FALTA",VLOOKUP(IF(B44="INGRESOS",VLOOKUP(C44,CLIENTES!$B$1:$C$200,2,FALSE),VLOOKUP(C44,PROVEEDORES!$B$1:$C$200,2,FALSE)),'DATOS FISCALES'!$F$20:$G$72,2,FALSE)),"") ->  | I44: =IF(B44<>"",IF(B44="INGRESOS",VLOOKUP(C44,CLIENTES!$B$2:$E$200,3,FALSE),VLOOKUP(C44,PROVEEDORES!$B$2:$E$200,3,FALSE)),"") ->  | K44: =IF(B44<>"",IF(B44="INGRESOS",VLOOKUP(C44,CLIENTES!$B$2:$E$200,4,FALSE),VLOOKUP(C44,PROVEEDORES!$B$2:$E$200,4,FALSE)),0) -> 0 | L44: 0 | M44: =IF($H44="B",SUMPRODUCT((INGRESOS!$Y$2:$Y$101=1)*(INGRESOS!$X$2:$X$101=$A44)*INGRESOS!$F$2:$F$101)+SUMPRODUCT((INGRESOS!$Y$2:$Y$101=1)*(INGRESOS!$X$2:$X$101=$A44)*INGRESOS!$I$2:$I$101)+SUMPRODUCT((INGRESOS!$Y$2:$Y$101=1)*(INGRESOS!$X$2:$X$101=$A44)*INGRESOS!$J$2:$J$101),IF($H44="A",SUMPRODUCT((GASTOS!$AN$2:$AN$101=1)*(GASTOS!$AM$2:$AM$101=$A44)*GASTOS!$U$2:$U$101)+SUMPRODUCT((GASTOS!$AN$2:$AN$101=1)*(GASTOS!$AM$2:$AM$101=$A44)*GASTOS!$W$2:$W$101),0)) -> 0 | N44: =IF($H44="B",SUMPRODUCT((INGRESOS!$Y$2:$Y$101=2)*(INGRESOS!$X$2:$X$101=$A44)*INGRESOS!$F$2:$F$101)+SUMPRODUCT((INGRESOS!$Y$2:$Y$101=2)*(INGRESOS!$X$2:$X$101=$A44)*INGRESOS!$I$2:$I$101)+SUMPRODUCT((INGRESOS!$Y$2:$Y$101=2)*(INGRESOS!$X$2:$X$101=$A44)*INGRESOS!$J$2:$J$101),IF($H44="A",SUMPRODUCT((GASTOS!$AN$2:$AN$101=2)*(GASTOS!$AM$2:$AM$101=$A44)*GASTOS!$U$2:$U$101)+SUMPRODUCT((GASTOS!$AN$2:$AN$101=2)*(GASTOS!$AM$2:$AM$101=$A44)*GASTOS!$W$2:$W$101),0)) -> 0 | O44: =IF($H44="B",SUMPRODUCT((INGRESOS!$Y$2:$Y$101=3)*(INGRESOS!$X$2:$X$101=$A44)*INGRESOS!$F$2:$F$101)+SUMPRODUCT((INGRESOS!$Y$2:$Y$101=3)*(INGRESOS!$X$2:$X$101=$A44)*INGRESOS!$I$2:$I$101)+SUMPRODUCT((INGRESOS!$Y$2:$Y$101=3)*(INGRESOS!$X$2:$X$101=$A44)*INGRESOS!$J$2:$J$101),IF($H44="A",SUMPRODUCT((GASTOS!$AN$2:$AN$101=3)*(GASTOS!$AM$2:$AM$101=$A44)*GASTOS!$U$2:$U$101)+SUMPRODUCT((GASTOS!$AN$2:$AN$101=3)*(GASTOS!$AM$2:$AM$101=$A44)*GASTOS!$W$2:$W$101),0)) -> 0 | P44: =IF($H44="B",SUMPRODUCT((INGRESOS!$Y$2:$Y$101=4)*(INGRESOS!$X$2:$X$101=$A44)*INGRESOS!$F$2:$F$101)+SUMPRODUCT((INGRESOS!$Y$2:$Y$101=4)*(INGRESOS!$X$2:$X$101=$A44)*INGRESOS!$I$2:$I$101)+SUMPRODUCT((INGRESOS!$Y$2:$Y$101=4)*(INGRESOS!$X$2:$X$101=$A44)*INGRESOS!$J$2:$J$101),IF($H44="A",SUMPRODUCT((GASTOS!$AN$2:$AN$101=4)*(GASTOS!$AM$2:$AM$101=$A44)*GASTOS!$U$2:$U$101)+SUMPRODUCT((GASTOS!$AN$2:$AN$101=4)*(GASTOS!$AM$2:$AM$101=$A44)*GASTOS!$W$2:$W$101),0)) -> 0
A45: 8 | B45: =IF(NOT(ISERROR(MATCH(A45,INGRESOS!$X$1:$X$101,0))),"INGRESOS",IF(NOT(ISERROR(MATCH(A45,GASTOS!$AM$1:$AM$101,0))),"GASTOS","")) ->  | C45: =IF(B45="INGRESOS",INDEX(INGRESOS!$A$1:$X$101,MATCH(A45,INGRESOS!$X$1:$X$101,0),COLUMN(INGRESOS!D8)),IF(B45="GASTOS",INDEX(GASTOS!$A$1:$AM$101,MATCH(A45,GASTOS!$AM$1:$AM$101,0),COLUMN(INGRESOS!$D$1)),"")) ->  | E45: =IF(B45<>"",IF(B45="INGRESOS",INDEX(CLIENTES!$A$1:$E$200,MATCH(C45,CLIENTES!$B$1:$B$200,0),COLUMN(CLIENTES!$A$1)),INDEX(PROVEEDORES!$A$1:$E$200,MATCH(C45,PROVEEDORES!$B$1:$B$200,0),COLUMN(PROVEEDORES!$A$1))),"") ->  | F45: =IF(B45<>"",IF(""=IF(B45="INGRESOS",VLOOKUP(C45,CLIENTES!$B$1:$C$200,2,FALSE),VLOOKUP(C45,PROVEEDORES!$B$1:$C$200,2,FALSE)),"FALTA",VLOOKUP(IF(B45="INGRESOS",VLOOKUP(C45,CLIENTES!$B$1:$C$200,2,FALSE),VLOOKUP(C45,PROVEEDORES!$B$1:$C$200,2,FALSE)),'DATOS FISCALES'!$F$20:$G$72,2,FALSE)),"") ->  | I45: =IF(B45<>"",IF(B45="INGRESOS",VLOOKUP(C45,CLIENTES!$B$2:$E$200,3,FALSE),VLOOKUP(C45,PROVEEDORES!$B$2:$E$200,3,FALSE)),"") ->  | K45: =IF(B45<>"",IF(B45="INGRESOS",VLOOKUP(C45,CLIENTES!$B$2:$E$200,4,FALSE),VLOOKUP(C45,PROVEEDORES!$B$2:$E$200,4,FALSE)),0) -> 0 | L45: 0 | M45: =IF($H45="B",SUMPRODUCT((INGRESOS!$Y$2:$Y$101=1)*(INGRESOS!$X$2:$X$101=$A45)*INGRESOS!$F$2:$F$101)+SUMPRODUCT((INGRESOS!$Y$2:$Y$101=1)*(INGRESOS!$X$2:$X$101=$A45)*INGRESOS!$I$2:$I$101)+SUMPRODUCT((INGRESOS!$Y$2:$Y$101=1)*(INGRESOS!$X$2:$X$101=$A45)*INGRESOS!$J$2:$J$101),IF($H45="A",SUMPRODUCT((GASTOS!$AN$2:$AN$101=1)*(GASTOS!$AM$2:$AM$101=$A45)*GASTOS!$U$2:$U$101)+SUMPRODUCT((GASTOS!$AN$2:$AN$101=1)*(GASTOS!$AM$2:$AM$101=$A45)*GASTOS!$W$2:$W$101),0)) -> 0 | N45: =IF($H45="B",SUMPRODUCT((INGRESOS!$Y$2:$Y$101=2)*(INGRESOS!$X$2:$X$101=$A45)*INGRESOS!$F$2:$F$101)+SUMPRODUCT((INGRESOS!$Y$2:$Y$101=2)*(INGRESOS!$X$2:$X$101=$A45)*INGRESOS!$I$2:$I$101)+SUMPRODUCT((INGRESOS!$Y$2:$Y$101=2)*(INGRESOS!$X$2:$X$101=$A45)*INGRESOS!$J$2:$J$101),IF($H45="A",SUMPRODUCT((GASTOS!$AN$2:$AN$101=2)*(GASTOS!$AM$2:$AM$101=$A45)*GASTOS!$U$2:$U$101)+SUMPRODUCT((GASTOS!$AN$2:$AN$101=2)*(GASTOS!$AM$2:$AM$101=$A45)*GASTOS!$W$2:$W$101),0)) -> 0 | O45: =IF($H45="B",SUMPRODUCT((INGRESOS!$Y$2:$Y$101=3)*(INGRESOS!$X$2:$X$101=$A45)*INGRESOS!$F$2:$F$101)+SUMPRODUCT((INGRESOS!$Y$2:$Y$101=3)*(INGRESOS!$X$2:$X$101=$A45)*INGRESOS!$I$2:$I$101)+SUMPRODUCT((INGRESOS!$Y$2:$Y$101=3)*(INGRESOS!$X$2:$X$101=$A45)*INGRESOS!$J$2:$J$101),IF($H45="A",SUMPRODUCT((GASTOS!$AN$2:$AN$101=3)*(GASTOS!$AM$2:$AM$101=$A45)*GASTOS!$U$2:$U$101)+SUMPRODUCT((GASTOS!$AN$2:$AN$101=3)*(GASTOS!$AM$2:$AM$101=$A45)*GASTOS!$W$2:$W$101),0)) -> 0 | P45: =IF($H45="B",SUMPRODUCT((INGRESOS!$Y$2:$Y$101=4)*(INGRESOS!$X$2:$X$101=$A45)*INGRESOS!$F$2:$F$101)+SUMPRODUCT((INGRESOS!$Y$2:$Y$101=4)*(INGRESOS!$X$2:$X$101=$A45)*INGRESOS!$I$2:$I$101)+SUMPRODUCT((INGRESOS!$Y$2:$Y$101=4)*(INGRESOS!$X$2:$X$101=$A45)*INGRESOS!$J$2:$J$101),IF($H45="A",SUMPRODUCT((GASTOS!$AN$2:$AN$101=4)*(GASTOS!$AM$2:$AM$101=$A45)*GASTOS!$U$2:$U$101)+SUMPRODUCT((GASTOS!$AN$2:$AN$101=4)*(GASTOS!$AM$2:$AM$101=$A45)*GASTOS!$W$2:$W$101),0)) -> 0
A46: 9 | B46: =IF(NOT(ISERROR(MATCH(A46,INGRESOS!$X$1:$X$101,0))),"INGRESOS",IF(NOT(ISERROR(MATCH(A46,GASTOS!$AM$1:$AM$101,0))),"GASTOS","")) ->  | C46: =IF(B46="INGRESOS",INDEX(INGRESOS!$A$1:$X$101,MATCH(A46,INGRESOS!$X$1:$X$101,0),COLUMN(INGRESOS!D9)),IF(B46="GASTOS",INDEX(GASTOS!$A$1:$AM$101,MATCH(A46,GASTOS!$AM$1:$AM$101,0),COLUMN(INGRESOS!$D$1)),"")) ->  | E46: =IF(B46<>"",IF(B46="INGRESOS",INDEX(CLIENTES!$A$1:$E$200,MATCH(C46,CLIENTES!$B$1:$B$200,0),COLUMN(CLIENTES!$A$1)),INDEX(PROVEEDORES!$A$1:$E$200,MATCH(C46,PROVEEDORES!$B$1:$B$200,0),COLUMN(PROVEEDORES!$A$1))),"") ->  | F46: =IF(B46<>"",IF(""=IF(B46="INGRESOS",VLOOKUP(C46,CLIENTES!$B$1:$C$200,2,FALSE),VLOOKUP(C46,PROVEEDORES!$B$1:$C$200,2,FALSE)),"FALTA",VLOOKUP(IF(B46="INGRESOS",VLOOKUP(C46,CLIENTES!$B$1:$C$200,2,FALSE),VLOOKUP(C46,PROVEEDORES!$B$1:$C$200,2,FALSE)),'DATOS FISCALES'!$F$20:$G$72,2,FALSE)),"") ->  | I46: =IF(B46<>"",IF(B46="INGRESOS",VLOOKUP(C46,CLIENTES!$B$2:$E$200,3,FALSE),VLOOKUP(C46,PROVEEDORES!$B$2:$E$200,3,FALSE)),"") ->  | K46: =IF(B46<>"",IF(B46="INGRESOS",VLOOKUP(C46,CLIENTES!$B$2:$E$200,4,FALSE),VLOOKUP(C46,PROVEEDORES!$B$2:$E$200,4,FALSE)),0) -> 0 | L46: 0 | M46: =IF($H46="B",SUMPRODUCT((INGRESOS!$Y$2:$Y$101=1)*(INGRESOS!$X$2:$X$101=$A46)*INGRESOS!$F$2:$F$101)+SUMPRODUCT((INGRESOS!$Y$2:$Y$101=1)*(INGRESOS!$X$2:$X$101=$A46)*INGRESOS!$I$2:$I$101)+SUMPRODUCT((INGRESOS!$Y$2:$Y$101=1)*(INGRESOS!$X$2:$X$101=$A46)*INGRESOS!$J$2:$J$101),IF($H46="A",SUMPRODUCT((GASTOS!$AN$2:$AN$101=1)*(GASTOS!$AM$2:$AM$101=$A46)*GASTOS!$U$2:$U$101)+SUMPRODUCT((GASTOS!$AN$2:$AN$101=1)*(GASTOS!$AM$2:$AM$101=$A46)*GASTOS!$W$2:$W$101),0)) -> 0 | N46: =IF($H46="B",SUMPRODUCT((INGRESOS!$Y$2:$Y$101=2)*(INGRESOS!$X$2:$X$101=$A46)*INGRESOS!$F$2:$F$101)+SUMPRODUCT((INGRESOS!$Y$2:$Y$101=2)*(INGRESOS!$X$2:$X$101=$A46)*INGRESOS!$I$2:$I$101)+SUMPRODUCT((INGRESOS!$Y$2:$Y$101=2)*(INGRESOS!$X$2:$X$101=$A46)*INGRESOS!$J$2:$J$101),IF($H46="A",SUMPRODUCT((GASTOS!$AN$2:$AN$101=2)*(GASTOS!$AM$2:$AM$101=$A46)*GASTOS!$U$2:$U$101)+SUMPRODUCT((GASTOS!$AN$2:$AN$101=2)*(GASTOS!$AM$2:$AM$101=$A46)*GASTOS!$W$2:$W$101),0)) -> 0 | O46: =IF($H46="B",SUMPRODUCT((INGRESOS!$Y$2:$Y$101=3)*(INGRESOS!$X$2:$X$101=$A46)*INGRESOS!$F$2:$F$101)+SUMPRODUCT((INGRESOS!$Y$2:$Y$101=3)*(INGRESOS!$X$2:$X$101=$A46)*INGRESOS!$I$2:$I$101)+SUMPRODUCT((INGRESOS!$Y$2:$Y$101=3)*(INGRESOS!$X$2:$X$101=$A46)*INGRESOS!$J$2:$J$101),IF($H46="A",SUMPRODUCT((GASTOS!$AN$2:$AN$101=3)*(GASTOS!$AM$2:$AM$101=$A46)*GASTOS!$U$2:$U$101)+SUMPRODUCT((GASTOS!$AN$2:$AN$101=3)*(GASTOS!$AM$2:$AM$101=$A46)*GASTOS!$W$2:$W$101),0)) -> 0 | P46: =IF($H46="B",SUMPRODUCT((INGRESOS!$Y$2:$Y$101=4)*(INGRESOS!$X$2:$X$101=$A46)*INGRESOS!$F$2:$F$101)+SUMPRODUCT((INGRESOS!$Y$2:$Y$101=4)*(INGRESOS!$X$2:$X$101=$A46)*INGRESOS!$I$2:$I$101)+SUMPRODUCT((INGRESOS!$Y$2:$Y$101=4)*(INGRESOS!$X$2:$X$101=$A46)*INGRESOS!$J$2:$J$101),IF($H46="A",SUMPRODUCT((GASTOS!$AN$2:$AN$101=4)*(GASTOS!$AM$2:$AM$101=$A46)*GASTOS!$U$2:$U$101)+SUMPRODUCT((GASTOS!$AN$2:$AN$101=4)*(GASTOS!$AM$2:$AM$101=$A46)*GASTOS!$W$2:$W$101),0)) -> 0
A47: 10 | B47: =IF(NOT(ISERROR(MATCH(A47,INGRESOS!$X$1:$X$101,0))),"INGRESOS",IF(NOT(ISERROR(MATCH(A47,GASTOS!$AM$1:$AM$101,0))),"GASTOS","")) ->  | C47: =IF(B47="INGRESOS",INDEX(INGRESOS!$A$1:$X$101,MATCH(A47,INGRESOS!$X$1:$X$101,0),COLUMN(INGRESOS!D10)),IF(B47="GASTOS",INDEX(GASTOS!$A$1:$AM$101,MATCH(A47,GASTOS!$AM$1:$AM$101,0),COLUMN(INGRESOS!$D$1)),"")) ->  | E47: =IF(B47<>"",IF(B47="INGRESOS",INDEX(CLIENTES!$A$1:$E$200,MATCH(C47,CLIENTES!$B$1:$B$200,0),COLUMN(CLIENTES!$A$1)),INDEX(PROVEEDORES!$A$1:$E$200,MATCH(C47,PROVEEDORES!$B$1:$B$200,0),COLUMN(PROVEEDORES!$A$1))),"") ->  | F47: =IF(B47<>"",IF(""=IF(B47="INGRESOS",VLOOKUP(C47,CLIENTES!$B$1:$C$200,2,FALSE),VLOOKUP(C47,PROVEEDORES!$B$1:$C$200,2,FALSE)),"FALTA",VLOOKUP(IF(B47="INGRESOS",VLOOKUP(C47,CLIENTES!$B$1:$C$200,2,FALSE),VLOOKUP(C47,PROVEEDORES!$B$1:$C$200,2,FALSE)),'DATOS FISCALES'!$F$20:$G$72,2,FALSE)),"") ->  | I47: =IF(B47<>"",IF(B47="INGRESOS",VLOOKUP(C47,CLIENTES!$B$2:$E$200,3,FALSE),VLOOKUP(C47,PROVEEDORES!$B$2:$E$200,3,FALSE)),"") ->  | K47: =IF(B47<>"",IF(B47="INGRESOS",VLOOKUP(C47,CLIENTES!$B$2:$E$200,4,FALSE),VLOOKUP(C47,PROVEEDORES!$B$2:$E$200,4,FALSE)),0) -> 0 | L47: 0 | M47: =IF($H47="B",SUMPRODUCT((INGRESOS!$Y$2:$Y$101=1)*(INGRESOS!$X$2:$X$101=$A47)*INGRESOS!$F$2:$F$101)+SUMPRODUCT((INGRESOS!$Y$2:$Y$101=1)*(INGRESOS!$X$2:$X$101=$A47)*INGRESOS!$I$2:$I$101)+SUMPRODUCT((INGRESOS!$Y$2:$Y$101=1)*(INGRESOS!$X$2:$X$101=$A47)*INGRESOS!$J$2:$J$101),IF($H47="A",SUMPRODUCT((GASTOS!$AN$2:$AN$101=1)*(GASTOS!$AM$2:$AM$101=$A47)*GASTOS!$U$2:$U$101)+SUMPRODUCT((GASTOS!$AN$2:$AN$101=1)*(GASTOS!$AM$2:$AM$101=$A47)*GASTOS!$W$2:$W$101),0)) -> 0 | N47: =IF($H47="B",SUMPRODUCT((INGRESOS!$Y$2:$Y$101=2)*(INGRESOS!$X$2:$X$101=$A47)*INGRESOS!$F$2:$F$101)+SUMPRODUCT((INGRESOS!$Y$2:$Y$101=2)*(INGRESOS!$X$2:$X$101=$A47)*INGRESOS!$I$2:$I$101)+SUMPRODUCT((INGRESOS!$Y$2:$Y$101=2)*(INGRESOS!$X$2:$X$101=$A47)*INGRESOS!$J$2:$J$101),IF($H47="A",SUMPRODUCT((GASTOS!$AN$2:$AN$101=2)*(GASTOS!$AM$2:$AM$101=$A47)*GASTOS!$U$2:$U$101)+SUMPRODUCT((GASTOS!$AN$2:$AN$101=2)*(GASTOS!$AM$2:$AM$101=$A47)*GASTOS!$W$2:$W$101),0)) -> 0 | O47: =IF($H47="B",SUMPRODUCT((INGRESOS!$Y$2:$Y$101=3)*(INGRESOS!$X$2:$X$101=$A47)*INGRESOS!$F$2:$F$101)+SUMPRODUCT((INGRESOS!$Y$2:$Y$101=3)*(INGRESOS!$X$2:$X$101=$A47)*INGRESOS!$I$2:$I$101)+SUMPRODUCT((INGRESOS!$Y$2:$Y$101=3)*(INGRESOS!$X$2:$X$101=$A47)*INGRESOS!$J$2:$J$101),IF($H47="A",SUMPRODUCT((GASTOS!$AN$2:$AN$101=3)*(GASTOS!$AM$2:$AM$101=$A47)*GASTOS!$U$2:$U$101)+SUMPRODUCT((GASTOS!$AN$2:$AN$101=3)*(GASTOS!$AM$2:$AM$101=$A47)*GASTOS!$W$2:$W$101),0)) -> 0 | P47: =IF($H47="B",SUMPRODUCT((INGRESOS!$Y$2:$Y$101=4)*(INGRESOS!$X$2:$X$101=$A47)*INGRESOS!$F$2:$F$101)+SUMPRODUCT((INGRESOS!$Y$2:$Y$101=4)*(INGRESOS!$X$2:$X$101=$A47)*INGRESOS!$I$2:$I$101)+SUMPRODUCT((INGRESOS!$Y$2:$Y$101=4)*(INGRESOS!$X$2:$X$101=$A47)*INGRESOS!$J$2:$J$101),IF($H47="A",SUMPRODUCT((GASTOS!$AN$2:$AN$101=4)*(GASTOS!$AM$2:$AM$101=$A47)*GASTOS!$U$2:$U$101)+SUMPRODUCT((GASTOS!$AN$2:$AN$101=4)*(GASTOS!$AM$2:$AM$101=$A47)*GASTOS!$W$2:$W$101),0)) -> 0
A48: 11 | B48: =IF(NOT(ISERROR(MATCH(A48,INGRESOS!$X$1:$X$101,0))),"INGRESOS",IF(NOT(ISERROR(MATCH(A48,GASTOS!$AM$1:$AM$101,0))),"GASTOS","")) ->  | C48: =IF(B48="INGRESOS",INDEX(INGRESOS!$A$1:$X$101,MATCH(A48,INGRESOS!$X$1:$X$101,0),COLUMN(INGRESOS!D11)),IF(B48="GASTOS",INDEX(GASTOS!$A$1:$AM$101,MATCH(A48,GASTOS!$AM$1:$AM$101,0),COLUMN(INGRESOS!$D$1)),"")) ->  | E48: =IF(B48<>"",IF(B48="INGRESOS",INDEX(CLIENTES!$A$1:$E$200,MATCH(C48,CLIENTES!$B$1:$B$200,0),COLUMN(CLIENTES!$A$1)),INDEX(PROVEEDORES!$A$1:$E$200,MATCH(C48,PROVEEDORES!$B$1:$B$200,0),COLUMN(PROVEEDORES!$A$1))),"") ->  | F48: =IF(B48<>"",IF(""=IF(B48="INGRESOS",VLOOKUP(C48,CLIENTES!$B$1:$C$200,2,FALSE),VLOOKUP(C48,PROVEEDORES!$B$1:$C$200,2,FALSE)),"FALTA",VLOOKUP(IF(B48="INGRESOS",VLOOKUP(C48,CLIENTES!$B$1:$C$200,2,FALSE),VLOOKUP(C48,PROVEEDORES!$B$1:$C$200,2,FALSE)),'DATOS FISCALES'!$F$20:$G$72,2,FALSE)),"") ->  | I48: =IF(B48<>"",IF(B48="INGRESOS",VLOOKUP(C48,CLIENTES!$B$2:$E$200,3,FALSE),VLOOKUP(C48,PROVEEDORES!$B$2:$E$200,3,FALSE)),"") ->  | K48: =IF(B48<>"",IF(B48="INGRESOS",VLOOKUP(C48,CLIENTES!$B$2:$E$200,4,FALSE),VLOOKUP(C48,PROVEEDORES!$B$2:$E$200,4,FALSE)),0) -> 0 | L48: 0 | M48: =IF($H48="B",SUMPRODUCT((INGRESOS!$Y$2:$Y$101=1)*(INGRESOS!$X$2:$X$101=$A48)*INGRESOS!$F$2:$F$101)+SUMPRODUCT((INGRESOS!$Y$2:$Y$101=1)*(INGRESOS!$X$2:$X$101=$A48)*INGRESOS!$I$2:$I$101)+SUMPRODUCT((INGRESOS!$Y$2:$Y$101=1)*(INGRESOS!$X$2:$X$101=$A48)*INGRESOS!$J$2:$J$101),IF($H48="A",SUMPRODUCT((GASTOS!$AN$2:$AN$101=1)*(GASTOS!$AM$2:$AM$101=$A48)*GASTOS!$U$2:$U$101)+SUMPRODUCT((GASTOS!$AN$2:$AN$101=1)*(GASTOS!$AM$2:$AM$101=$A48)*GASTOS!$W$2:$W$101),0)) -> 0 | N48: =IF($H48="B",SUMPRODUCT((INGRESOS!$Y$2:$Y$101=2)*(INGRESOS!$X$2:$X$101=$A48)*INGRESOS!$F$2:$F$101)+SUMPRODUCT((INGRESOS!$Y$2:$Y$101=2)*(INGRESOS!$X$2:$X$101=$A48)*INGRESOS!$I$2:$I$101)+SUMPRODUCT((INGRESOS!$Y$2:$Y$101=2)*(INGRESOS!$X$2:$X$101=$A48)*INGRESOS!$J$2:$J$101),IF($H48="A",SUMPRODUCT((GASTOS!$AN$2:$AN$101=2)*(GASTOS!$AM$2:$AM$101=$A48)*GASTOS!$U$2:$U$101)+SUMPRODUCT((GASTOS!$AN$2:$AN$101=2)*(GASTOS!$AM$2:$AM$101=$A48)*GASTOS!$W$2:$W$101),0)) -> 0 | O48: =IF($H48="B",SUMPRODUCT((INGRESOS!$Y$2:$Y$101=3)*(INGRESOS!$X$2:$X$101=$A48)*INGRESOS!$F$2:$F$101)+SUMPRODUCT((INGRESOS!$Y$2:$Y$101=3)*(INGRESOS!$X$2:$X$101=$A48)*INGRESOS!$I$2:$I$101)+SUMPRODUCT((INGRESOS!$Y$2:$Y$101=3)*(INGRESOS!$X$2:$X$101=$A48)*INGRESOS!$J$2:$J$101),IF($H48="A",SUMPRODUCT((GASTOS!$AN$2:$AN$101=3)*(GASTOS!$AM$2:$AM$101=$A48)*GASTOS!$U$2:$U$101)+SUMPRODUCT((GASTOS!$AN$2:$AN$101=3)*(GASTOS!$AM$2:$AM$101=$A48)*GASTOS!$W$2:$W$101),0)) -> 0 | P48: =IF($H48="B",SUMPRODUCT((INGRESOS!$Y$2:$Y$101=4)*(INGRESOS!$X$2:$X$101=$A48)*INGRESOS!$F$2:$F$101)+SUMPRODUCT((INGRESOS!$Y$2:$Y$101=4)*(INGRESOS!$X$2:$X$101=$A48)*INGRESOS!$I$2:$I$101)+SUMPRODUCT((INGRESOS!$Y$2:$Y$101=4)*(INGRESOS!$X$2:$X$101=$A48)*INGRESOS!$J$2:$J$101),IF($H48="A",SUMPRODUCT((GASTOS!$AN$2:$AN$101=4)*(GASTOS!$AM$2:$AM$101=$A48)*GASTOS!$U$2:$U$101)+SUMPRODUCT((GASTOS!$AN$2:$AN$101=4)*(GASTOS!$AM$2:$AM$101=$A48)*GASTOS!$W$2:$W$101),0)) -> 0
A49: 12 | B49: =IF(NOT(ISERROR(MATCH(A49,INGRESOS!$X$1:$X$101,0))),"INGRESOS",IF(NOT(ISERROR(MATCH(A49,GASTOS!$AM$1:$AM$101,0))),"GASTOS","")) ->  | C49: =IF(B49="INGRESOS",INDEX(INGRESOS!$A$1:$X$101,MATCH(A49,INGRESOS!$X$1:$X$101,0),COLUMN(INGRESOS!D12)),IF(B49="GASTOS",INDEX(GASTOS!$A$1:$AM$101,MATCH(A49,GASTOS!$AM$1:$AM$101,0),COLUMN(INGRESOS!$D$1)),"")) ->  | E49: =IF(B49<>"",IF(B49="INGRESOS",INDEX(CLIENTES!$A$1:$E$200,MATCH(C49,CLIENTES!$B$1:$B$200,0),COLUMN(CLIENTES!$A$1)),INDEX(PROVEEDORES!$A$1:$E$200,MATCH(C49,PROVEEDORES!$B$1:$B$200,0),COLUMN(PROVEEDORES!$A$1))),"") ->  | F49: =IF(B49<>"",IF(""=IF(B49="INGRESOS",VLOOKUP(C49,CLIENTES!$B$1:$C$200,2,FALSE),VLOOKUP(C49,PROVEEDORES!$B$1:$C$200,2,FALSE)),"FALTA",VLOOKUP(IF(B49="INGRESOS",VLOOKUP(C49,CLIENTES!$B$1:$C$200,2,FALSE),VLOOKUP(C49,PROVEEDORES!$B$1:$C$200,2,FALSE)),'DATOS FISCALES'!$F$20:$G$72,2,FALSE)),"") ->  | I49: =IF(B49<>"",IF(B49="INGRESOS",VLOOKUP(C49,CLIENTES!$B$2:$E$200,3,FALSE),VLOOKUP(C49,PROVEEDORES!$B$2:$E$200,3,FALSE)),"") ->  | K49: =IF(B49<>"",IF(B49="INGRESOS",VLOOKUP(C49,CLIENTES!$B$2:$E$200,4,FALSE),VLOOKUP(C49,PROVEEDORES!$B$2:$E$200,4,FALSE)),0) -> 0 | L49: 0 | M49: =IF($H49="B",SUMPRODUCT((INGRESOS!$Y$2:$Y$101=1)*(INGRESOS!$X$2:$X$101=$A49)*INGRESOS!$F$2:$F$101)+SUMPRODUCT((INGRESOS!$Y$2:$Y$101=1)*(INGRESOS!$X$2:$X$101=$A49)*INGRESOS!$I$2:$I$101)+SUMPRODUCT((INGRESOS!$Y$2:$Y$101=1)*(INGRESOS!$X$2:$X$101=$A49)*INGRESOS!$J$2:$J$101),IF($H49="A",SUMPRODUCT((GASTOS!$AN$2:$AN$101=1)*(GASTOS!$AM$2:$AM$101=$A49)*GASTOS!$U$2:$U$101)+SUMPRODUCT((GASTOS!$AN$2:$AN$101=1)*(GASTOS!$AM$2:$AM$101=$A49)*GASTOS!$W$2:$W$101),0)) -> 0 | N49: =IF($H49="B",SUMPRODUCT((INGRESOS!$Y$2:$Y$101=2)*(INGRESOS!$X$2:$X$101=$A49)*INGRESOS!$F$2:$F$101)+SUMPRODUCT((INGRESOS!$Y$2:$Y$101=2)*(INGRESOS!$X$2:$X$101=$A49)*INGRESOS!$I$2:$I$101)+SUMPRODUCT((INGRESOS!$Y$2:$Y$101=2)*(INGRESOS!$X$2:$X$101=$A49)*INGRESOS!$J$2:$J$101),IF($H49="A",SUMPRODUCT((GASTOS!$AN$2:$AN$101=2)*(GASTOS!$AM$2:$AM$101=$A49)*GASTOS!$U$2:$U$101)+SUMPRODUCT((GASTOS!$AN$2:$AN$101=2)*(GASTOS!$AM$2:$AM$101=$A49)*GASTOS!$W$2:$W$101),0)) -> 0 | O49: =IF($H49="B",SUMPRODUCT((INGRESOS!$Y$2:$Y$101=3)*(INGRESOS!$X$2:$X$101=$A49)*INGRESOS!$F$2:$F$101)+SUMPRODUCT((INGRESOS!$Y$2:$Y$101=3)*(INGRESOS!$X$2:$X$101=$A49)*INGRESOS!$I$2:$I$101)+SUMPRODUCT((INGRESOS!$Y$2:$Y$101=3)*(INGRESOS!$X$2:$X$101=$A49)*INGRESOS!$J$2:$J$101),IF($H49="A",SUMPRODUCT((GASTOS!$AN$2:$AN$101=3)*(GASTOS!$AM$2:$AM$101=$A49)*GASTOS!$U$2:$U$101)+SUMPRODUCT((GASTOS!$AN$2:$AN$101=3)*(GASTOS!$AM$2:$AM$101=$A49)*GASTOS!$W$2:$W$101),0)) -> 0 | P49: =IF($H49="B",SUMPRODUCT((INGRESOS!$Y$2:$Y$101=4)*(INGRESOS!$X$2:$X$101=$A49)*INGRESOS!$F$2:$F$101)+SUMPRODUCT((INGRESOS!$Y$2:$Y$101=4)*(INGRESOS!$X$2:$X$101=$A49)*INGRESOS!$I$2:$I$101)+SUMPRODUCT((INGRESOS!$Y$2:$Y$101=4)*(INGRESOS!$X$2:$X$101=$A49)*INGRESOS!$J$2:$J$101),IF($H49="A",SUMPRODUCT((GASTOS!$AN$2:$AN$101=4)*(GASTOS!$AM$2:$AM$101=$A49)*GASTOS!$U$2:$U$101)+SUMPRODUCT((GASTOS!$AN$2:$AN$101=4)*(GASTOS!$AM$2:$AM$101=$A49)*GASTOS!$W$2:$W$101),0)) -> 0
A50: 13 | B50: =IF(NOT(ISERROR(MATCH(A50,INGRESOS!$X$1:$X$101,0))),"INGRESOS",IF(NOT(ISERROR(MATCH(A50,GASTOS!$AM$1:$AM$101,0))),"GASTOS","")) ->  | C50: =IF(B50="INGRESOS",INDEX(INGRESOS!$A$1:$X$101,MATCH(A50,INGRESOS!$X$1:$X$101,0),COLUMN(INGRESOS!D13)),IF(B50="GASTOS",INDEX(GASTOS!$A$1:$AM$101,MATCH(A50,GASTOS!$AM$1:$AM$101,0),COLUMN(INGRESOS!$D$1)),"")) ->  | E50: =IF(B50<>"",IF(B50="INGRESOS",INDEX(CLIENTES!$A$1:$E$200,MATCH(C50,CLIENTES!$B$1:$B$200,0),COLUMN(CLIENTES!$A$1)),INDEX(PROVEEDORES!$A$1:$E$200,MATCH(C50,PROVEEDORES!$B$1:$B$200,0),COLUMN(PROVEEDORES!$A$1))),"") ->  | F50: =IF(B50<>"",IF(""=IF(B50="INGRESOS",VLOOKUP(C50,CLIENTES!$B$1:$C$200,2,FALSE),VLOOKUP(C50,PROVEEDORES!$B$1:$C$200,2,FALSE)),"FALTA",VLOOKUP(IF(B50="INGRESOS",VLOOKUP(C50,CLIENTES!$B$1:$C$200,2,FALSE),VLOOKUP(C50,PROVEEDORES!$B$1:$C$200,2,FALSE)),'DATOS FISCALES'!$F$20:$G$72,2,FALSE)),"") ->  | I50: =IF(B50<>"",IF(B50="INGRESOS",VLOOKUP(C50,CLIENTES!$B$2:$E$200,3,FALSE),VLOOKUP(C50,PROVEEDORES!$B$2:$E$200,3,FALSE)),"") ->  | K50: =IF(B50<>"",IF(B50="INGRESOS",VLOOKUP(C50,CLIENTES!$B$2:$E$200,4,FALSE),VLOOKUP(C50,PROVEEDORES!$B$2:$E$200,4,FALSE)),0) -> 0 | L50: 0 | M50: =IF($H50="B",SUMPRODUCT((INGRESOS!$Y$2:$Y$101=1)*(INGRESOS!$X$2:$X$101=$A50)*INGRESOS!$F$2:$F$101)+SUMPRODUCT((INGRESOS!$Y$2:$Y$101=1)*(INGRESOS!$X$2:$X$101=$A50)*INGRESOS!$I$2:$I$101)+SUMPRODUCT((INGRESOS!$Y$2:$Y$101=1)*(INGRESOS!$X$2:$X$101=$A50)*INGRESOS!$J$2:$J$101),IF($H50="A",SUMPRODUCT((GASTOS!$AN$2:$AN$101=1)*(GASTOS!$AM$2:$AM$101=$A50)*GASTOS!$U$2:$U$101)+SUMPRODUCT((GASTOS!$AN$2:$AN$101=1)*(GASTOS!$AM$2:$AM$101=$A50)*GASTOS!$W$2:$W$101),0)) -> 0 | N50: =IF($H50="B",SUMPRODUCT((INGRESOS!$Y$2:$Y$101=2)*(INGRESOS!$X$2:$X$101=$A50)*INGRESOS!$F$2:$F$101)+SUMPRODUCT((INGRESOS!$Y$2:$Y$101=2)*(INGRESOS!$X$2:$X$101=$A50)*INGRESOS!$I$2:$I$101)+SUMPRODUCT((INGRESOS!$Y$2:$Y$101=2)*(INGRESOS!$X$2:$X$101=$A50)*INGRESOS!$J$2:$J$101),IF($H50="A",SUMPRODUCT((GASTOS!$AN$2:$AN$101=2)*(GASTOS!$AM$2:$AM$101=$A50)*GASTOS!$U$2:$U$101)+SUMPRODUCT((GASTOS!$AN$2:$AN$101=2)*(GASTOS!$AM$2:$AM$101=$A50)*GASTOS!$W$2:$W$101),0)) -> 0 | O50: =IF($H50="B",SUMPRODUCT((INGRESOS!$Y$2:$Y$101=3)*(INGRESOS!$X$2:$X$101=$A50)*INGRESOS!$F$2:$F$101)+SUMPRODUCT((INGRESOS!$Y$2:$Y$101=3)*(INGRESOS!$X$2:$X$101=$A50)*INGRESOS!$I$2:$I$101)+SUMPRODUCT((INGRESOS!$Y$2:$Y$101=3)*(INGRESOS!$X$2:$X$101=$A50)*INGRESOS!$J$2:$J$101),IF($H50="A",SUMPRODUCT((GASTOS!$AN$2:$AN$101=3)*(GASTOS!$AM$2:$AM$101=$A50)*GASTOS!$U$2:$U$101)+SUMPRODUCT((GASTOS!$AN$2:$AN$101=3)*(GASTOS!$AM$2:$AM$101=$A50)*GASTOS!$W$2:$W$101),0)) -> 0 | P50: =IF($H50="B",SUMPRODUCT((INGRESOS!$Y$2:$Y$101=4)*(INGRESOS!$X$2:$X$101=$A50)*INGRESOS!$F$2:$F$101)+SUMPRODUCT((INGRESOS!$Y$2:$Y$101=4)*(INGRESOS!$X$2:$X$101=$A50)*INGRESOS!$I$2:$I$101)+SUMPRODUCT((INGRESOS!$Y$2:$Y$101=4)*(INGRESOS!$X$2:$X$101=$A50)*INGRESOS!$J$2:$J$101),IF($H50="A",SUMPRODUCT((GASTOS!$AN$2:$AN$101=4)*(GASTOS!$AM$2:$AM$101=$A50)*GASTOS!$U$2:$U$101)+SUMPRODUCT((GASTOS!$AN$2:$AN$101=4)*(GASTOS!$AM$2:$AM$101=$A50)*GASTOS!$W$2:$W$101),0)) -> 0
A51: 14 | B51: =IF(NOT(ISERROR(MATCH(A51,INGRESOS!$X$1:$X$101,0))),"INGRESOS",IF(NOT(ISERROR(MATCH(A51,GASTOS!$AM$1:$AM$101,0))),"GASTOS","")) ->  | C51: =IF(B51="INGRESOS",INDEX(INGRESOS!$A$1:$X$101,MATCH(A51,INGRESOS!$X$1:$X$101,0),COLUMN(INGRESOS!D14)),IF(B51="GASTOS",INDEX(GASTOS!$A$1:$AM$101,MATCH(A51,GASTOS!$AM$1:$AM$101,0),COLUMN(INGRESOS!$D$1)),"")) ->  | E51: =IF(B51<>"",IF(B51="INGRESOS",INDEX(CLIENTES!$A$1:$E$200,MATCH(C51,CLIENTES!$B$1:$B$200,0),COLUMN(CLIENTES!$A$1)),INDEX(PROVEEDORES!$A$1:$E$200,MATCH(C51,PROVEEDORES!$B$1:$B$200,0),COLUMN(PROVEEDORES!$A$1))),"") ->  | F51: =IF(B51<>"",IF(""=IF(B51="INGRESOS",VLOOKUP(C51,CLIENTES!$B$1:$C$200,2,FALSE),VLOOKUP(C51,PROVEEDORES!$B$1:$C$200,2,FALSE)),"FALTA",VLOOKUP(IF(B51="INGRESOS",VLOOKUP(C51,CLIENTES!$B$1:$C$200,2,FALSE),VLOOKUP(C51,PROVEEDORES!$B$1:$C$200,2,FALSE)),'DATOS FISCALES'!$F$20:$G$72,2,FALSE)),"") ->  | I51: =IF(B51<>"",IF(B51="INGRESOS",VLOOKUP(C51,CLIENTES!$B$2:$E$200,3,FALSE),VLOOKUP(C51,PROVEEDORES!$B$2:$E$200,3,FALSE)),"") ->  | K51: =IF(B51<>"",IF(B51="INGRESOS",VLOOKUP(C51,CLIENTES!$B$2:$E$200,4,FALSE),VLOOKUP(C51,PROVEEDORES!$B$2:$E$200,4,FALSE)),0) -> 0 | L51: 0 | M51: =IF($H51="B",SUMPRODUCT((INGRESOS!$Y$2:$Y$101=1)*(INGRESOS!$X$2:$X$101=$A51)*INGRESOS!$F$2:$F$101)+SUMPRODUCT((INGRESOS!$Y$2:$Y$101=1)*(INGRESOS!$X$2:$X$101=$A51)*INGRESOS!$I$2:$I$101)+SUMPRODUCT((INGRESOS!$Y$2:$Y$101=1)*(INGRESOS!$X$2:$X$101=$A51)*INGRESOS!$J$2:$J$101),IF($H51="A",SUMPRODUCT((GASTOS!$AN$2:$AN$101=1)*(GASTOS!$AM$2:$AM$101=$A51)*GASTOS!$U$2:$U$101)+SUMPRODUCT((GASTOS!$AN$2:$AN$101=1)*(GASTOS!$AM$2:$AM$101=$A51)*GASTOS!$W$2:$W$101),0)) -> 0 | N51: =IF($H51="B",SUMPRODUCT((INGRESOS!$Y$2:$Y$101=2)*(INGRESOS!$X$2:$X$101=$A51)*INGRESOS!$F$2:$F$101)+SUMPRODUCT((INGRESOS!$Y$2:$Y$101=2)*(INGRESOS!$X$2:$X$101=$A51)*INGRESOS!$I$2:$I$101)+SUMPRODUCT((INGRESOS!$Y$2:$Y$101=2)*(INGRESOS!$X$2:$X$101=$A51)*INGRESOS!$J$2:$J$101),IF($H51="A",SUMPRODUCT((GASTOS!$AN$2:$AN$101=2)*(GASTOS!$AM$2:$AM$101=$A51)*GASTOS!$U$2:$U$101)+SUMPRODUCT((GASTOS!$AN$2:$AN$101=2)*(GASTOS!$AM$2:$AM$101=$A51)*GASTOS!$W$2:$W$101),0)) -> 0 | O51: =IF($H51="B",SUMPRODUCT((INGRESOS!$Y$2:$Y$101=3)*(INGRESOS!$X$2:$X$101=$A51)*INGRESOS!$F$2:$F$101)+SUMPRODUCT((INGRESOS!$Y$2:$Y$101=3)*(INGRESOS!$X$2:$X$101=$A51)*INGRESOS!$I$2:$I$101)+SUMPRODUCT((INGRESOS!$Y$2:$Y$101=3)*(INGRESOS!$X$2:$X$101=$A51)*INGRESOS!$J$2:$J$101),IF($H51="A",SUMPRODUCT((GASTOS!$AN$2:$AN$101=3)*(GASTOS!$AM$2:$AM$101=$A51)*GASTOS!$U$2:$U$101)+SUMPRODUCT((GASTOS!$AN$2:$AN$101=3)*(GASTOS!$AM$2:$AM$101=$A51)*GASTOS!$W$2:$W$101),0)) -> 0 | P51: =IF($H51="B",SUMPRODUCT((INGRESOS!$Y$2:$Y$101=4)*(INGRESOS!$X$2:$X$101=$A51)*INGRESOS!$F$2:$F$101)+SUMPRODUCT((INGRESOS!$Y$2:$Y$101=4)*(INGRESOS!$X$2:$X$101=$A51)*INGRESOS!$I$2:$I$101)+SUMPRODUCT((INGRESOS!$Y$2:$Y$101=4)*(INGRESOS!$X$2:$X$101=$A51)*INGRESOS!$J$2:$J$101),IF($H51="A",SUMPRODUCT((GASTOS!$AN$2:$AN$101=4)*(GASTOS!$AM$2:$AM$101=$A51)*GASTOS!$U$2:$U$101)+SUMPRODUCT((GASTOS!$AN$2:$AN$101=4)*(GASTOS!$AM$2:$AM$101=$A51)*GASTOS!$W$2:$W$101),0)) -> 0
A52: 15 | B52: =IF(NOT(ISERROR(MATCH(A52,INGRESOS!$X$1:$X$101,0))),"INGRESOS",IF(NOT(ISERROR(MATCH(A52,GASTOS!$AM$1:$AM$101,0))),"GASTOS","")) ->  | C52: =IF(B52="INGRESOS",INDEX(INGRESOS!$A$1:$X$101,MATCH(A52,INGRESOS!$X$1:$X$101,0),COLUMN(INGRESOS!D15)),IF(B52="GASTOS",INDEX(GASTOS!$A$1:$AM$101,MATCH(A52,GASTOS!$AM$1:$AM$101,0),COLUMN(INGRESOS!$D$1)),"")) ->  | E52: =IF(B52<>"",IF(B52="INGRESOS",INDEX(CLIENTES!$A$1:$E$200,MATCH(C52,CLIENTES!$B$1:$B$200,0),COLUMN(CLIENTES!$A$1)),INDEX(PROVEEDORES!$A$1:$E$200,MATCH(C52,PROVEEDORES!$B$1:$B$200,0),COLUMN(PROVEEDORES!$A$1))),"") ->  | F52: =IF(B52<>"",IF(""=IF(B52="INGRESOS",VLOOKUP(C52,CLIENTES!$B$1:$C$200,2,FALSE),VLOOKUP(C52,PROVEEDORES!$B$1:$C$200,2,FALSE)),"FALTA",VLOOKUP(IF(B52="INGRESOS",VLOOKUP(C52,CLIENTES!$B$1:$C$200,2,FALSE),VLOOKUP(C52,PROVEEDORES!$B$1:$C$200,2,FALSE)),'DATOS FISCALES'!$F$20:$G$72,2,FALSE)),"") ->  | I52: =IF(B52<>"",IF(B52="INGRESOS",VLOOKUP(C52,CLIENTES!$B$2:$E$200,3,FALSE),VLOOKUP(C52,PROVEEDORES!$B$2:$E$200,3,FALSE)),"") ->  | K52: =IF(B52<>"",IF(B52="INGRESOS",VLOOKUP(C52,CLIENTES!$B$2:$E$200,4,FALSE),VLOOKUP(C52,PROVEEDORES!$B$2:$E$200,4,FALSE)),0) -> 0 | L52: 0 | M52: =IF($H52="B",SUMPRODUCT((INGRESOS!$Y$2:$Y$101=1)*(INGRESOS!$X$2:$X$101=$A52)*INGRESOS!$F$2:$F$101)+SUMPRODUCT((INGRESOS!$Y$2:$Y$101=1)*(INGRESOS!$X$2:$X$101=$A52)*INGRESOS!$I$2:$I$101)+SUMPRODUCT((INGRESOS!$Y$2:$Y$101=1)*(INGRESOS!$X$2:$X$101=$A52)*INGRESOS!$J$2:$J$101),IF($H52="A",SUMPRODUCT((GASTOS!$AN$2:$AN$101=1)*(GASTOS!$AM$2:$AM$101=$A52)*GASTOS!$U$2:$U$101)+SUMPRODUCT((GASTOS!$AN$2:$AN$101=1)*(GASTOS!$AM$2:$AM$101=$A52)*GASTOS!$W$2:$W$101),0)) -> 0 | N52: =IF($H52="B",SUMPRODUCT((INGRESOS!$Y$2:$Y$101=2)*(INGRESOS!$X$2:$X$101=$A52)*INGRESOS!$F$2:$F$101)+SUMPRODUCT((INGRESOS!$Y$2:$Y$101=2)*(INGRESOS!$X$2:$X$101=$A52)*INGRESOS!$I$2:$I$101)+SUMPRODUCT((INGRESOS!$Y$2:$Y$101=2)*(INGRESOS!$X$2:$X$101=$A52)*INGRESOS!$J$2:$J$101),IF($H52="A",SUMPRODUCT((GASTOS!$AN$2:$AN$101=2)*(GASTOS!$AM$2:$AM$101=$A52)*GASTOS!$U$2:$U$101)+SUMPRODUCT((GASTOS!$AN$2:$AN$101=2)*(GASTOS!$AM$2:$AM$101=$A52)*GASTOS!$W$2:$W$101),0)) -> 0 | O52: =IF($H52="B",SUMPRODUCT((INGRESOS!$Y$2:$Y$101=3)*(INGRESOS!$X$2:$X$101=$A52)*INGRESOS!$F$2:$F$101)+SUMPRODUCT((INGRESOS!$Y$2:$Y$101=3)*(INGRESOS!$X$2:$X$101=$A52)*INGRESOS!$I$2:$I$101)+SUMPRODUCT((INGRESOS!$Y$2:$Y$101=3)*(INGRESOS!$X$2:$X$101=$A52)*INGRESOS!$J$2:$J$101),IF($H52="A",SUMPRODUCT((GASTOS!$AN$2:$AN$101=3)*(GASTOS!$AM$2:$AM$101=$A52)*GASTOS!$U$2:$U$101)+SUMPRODUCT((GASTOS!$AN$2:$AN$101=3)*(GASTOS!$AM$2:$AM$101=$A52)*GASTOS!$W$2:$W$101),0)) -> 0 | P52: =IF($H52="B",SUMPRODUCT((INGRESOS!$Y$2:$Y$101=4)*(INGRESOS!$X$2:$X$101=$A52)*INGRESOS!$F$2:$F$101)+SUMPRODUCT((INGRESOS!$Y$2:$Y$101=4)*(INGRESOS!$X$2:$X$101=$A52)*INGRESOS!$I$2:$I$101)+SUMPRODUCT((INGRESOS!$Y$2:$Y$101=4)*(INGRESOS!$X$2:$X$101=$A52)*INGRESOS!$J$2:$J$101),IF($H52="A",SUMPRODUCT((GASTOS!$AN$2:$AN$101=4)*(GASTOS!$AM$2:$AM$101=$A52)*GASTOS!$U$2:$U$101)+SUMPRODUCT((GASTOS!$AN$2:$AN$101=4)*(GASTOS!$AM$2:$AM$101=$A52)*GASTOS!$W$2:$W$101),0)) -> 0
A53: 16 | B53: =IF(NOT(ISERROR(MATCH(A53,INGRESOS!$X$1:$X$101,0))),"INGRESOS",IF(NOT(ISERROR(MATCH(A53,GASTOS!$AM$1:$AM$101,0))),"GASTOS","")) ->  | C53: =IF(B53="INGRESOS",INDEX(INGRESOS!$A$1:$X$101,MATCH(A53,INGRESOS!$X$1:$X$101,0),COLUMN(INGRESOS!D16)),IF(B53="GASTOS",INDEX(GASTOS!$A$1:$AM$101,MATCH(A53,GASTOS!$AM$1:$AM$101,0),COLUMN(INGRESOS!$D$1)),"")) ->  | E53: =IF(B53<>"",IF(B53="INGRESOS",INDEX(CLIENTES!$A$1:$E$200,MATCH(C53,CLIENTES!$B$1:$B$200,0),COLUMN(CLIENTES!$A$1)),INDEX(PROVEEDORES!$A$1:$E$200,MATCH(C53,PROVEEDORES!$B$1:$B$200,0),COLUMN(PROVEEDORES!$A$1))),"") ->  | F53: =IF(B53<>"",IF(""=IF(B53="INGRESOS",VLOOKUP(C53,CLIENTES!$B$1:$C$200,2,FALSE),VLOOKUP(C53,PROVEEDORES!$B$1:$C$200,2,FALSE)),"FALTA",VLOOKUP(IF(B53="INGRESOS",VLOOKUP(C53,CLIENTES!$B$1:$C$200,2,FALSE),VLOOKUP(C53,PROVEEDORES!$B$1:$C$200,2,FALSE)),'DATOS FISCALES'!$F$20:$G$72,2,FALSE)),"") ->  | I53: =IF(B53<>"",IF(B53="INGRESOS",VLOOKUP(C53,CLIENTES!$B$2:$E$200,3,FALSE),VLOOKUP(C53,PROVEEDORES!$B$2:$E$200,3,FALSE)),"") ->  | K53: =IF(B53<>"",IF(B53="INGRESOS",VLOOKUP(C53,CLIENTES!$B$2:$E$200,4,FALSE),VLOOKUP(C53,PROVEEDORES!$B$2:$E$200,4,FALSE)),0) -> 0 | L53: 0 | M53: =IF($H53="B",SUMPRODUCT((INGRESOS!$Y$2:$Y$101=1)*(INGRESOS!$X$2:$X$101=$A53)*INGRESOS!$F$2:$F$101)+SUMPRODUCT((INGRESOS!$Y$2:$Y$101=1)*(INGRESOS!$X$2:$X$101=$A53)*INGRESOS!$I$2:$I$101)+SUMPRODUCT((INGRESOS!$Y$2:$Y$101=1)*(INGRESOS!$X$2:$X$101=$A53)*INGRESOS!$J$2:$J$101),IF($H53="A",SUMPRODUCT((GASTOS!$AN$2:$AN$101=1)*(GASTOS!$AM$2:$AM$101=$A53)*GASTOS!$U$2:$U$101)+SUMPRODUCT((GASTOS!$AN$2:$AN$101=1)*(GASTOS!$AM$2:$AM$101=$A53)*GASTOS!$W$2:$W$101),0)) -> 0 | N53: =IF($H53="B",SUMPRODUCT((INGRESOS!$Y$2:$Y$101=2)*(INGRESOS!$X$2:$X$101=$A53)*INGRESOS!$F$2:$F$101)+SUMPRODUCT((INGRESOS!$Y$2:$Y$101=2)*(INGRESOS!$X$2:$X$101=$A53)*INGRESOS!$I$2:$I$101)+SUMPRODUCT((INGRESOS!$Y$2:$Y$101=2)*(INGRESOS!$X$2:$X$101=$A53)*INGRESOS!$J$2:$J$101),IF($H53="A",SUMPRODUCT((GASTOS!$AN$2:$AN$101=2)*(GASTOS!$AM$2:$AM$101=$A53)*GASTOS!$U$2:$U$101)+SUMPRODUCT((GASTOS!$AN$2:$AN$101=2)*(GASTOS!$AM$2:$AM$101=$A53)*GASTOS!$W$2:$W$101),0)) -> 0 | O53: =IF($H53="B",SUMPRODUCT((INGRESOS!$Y$2:$Y$101=3)*(INGRESOS!$X$2:$X$101=$A53)*INGRESOS!$F$2:$F$101)+SUMPRODUCT((INGRESOS!$Y$2:$Y$101=3)*(INGRESOS!$X$2:$X$101=$A53)*INGRESOS!$I$2:$I$101)+SUMPRODUCT((INGRESOS!$Y$2:$Y$101=3)*(INGRESOS!$X$2:$X$101=$A53)*INGRESOS!$J$2:$J$101),IF($H53="A",SUMPRODUCT((GASTOS!$AN$2:$AN$101=3)*(GASTOS!$AM$2:$AM$101=$A53)*GASTOS!$U$2:$U$101)+SUMPRODUCT((GASTOS!$AN$2:$AN$101=3)*(GASTOS!$AM$2:$AM$101=$A53)*GASTOS!$W$2:$W$101),0)) -> 0 | P53: =IF($H53="B",SUMPRODUCT((INGRESOS!$Y$2:$Y$101=4)*(INGRESOS!$X$2:$X$101=$A53)*INGRESOS!$F$2:$F$101)+SUMPRODUCT((INGRESOS!$Y$2:$Y$101=4)*(INGRESOS!$X$2:$X$101=$A53)*INGRESOS!$I$2:$I$101)+SUMPRODUCT((INGRESOS!$Y$2:$Y$101=4)*(INGRESOS!$X$2:$X$101=$A53)*INGRESOS!$J$2:$J$101),IF($H53="A",SUMPRODUCT((GASTOS!$AN$2:$AN$101=4)*(GASTOS!$AM$2:$AM$101=$A53)*GASTOS!$U$2:$U$101)+SUMPRODUCT((GASTOS!$AN$2:$AN$101=4)*(GASTOS!$AM$2:$AM$101=$A53)*GASTOS!$W$2:$W$101),0)) -> 0
A54: 17 | B54: =IF(NOT(ISERROR(MATCH(A54,INGRESOS!$X$1:$X$101,0))),"INGRESOS",IF(NOT(ISERROR(MATCH(A54,GASTOS!$AM$1:$AM$101,0))),"GASTOS","")) ->  | C54: =IF(B54="INGRESOS",INDEX(INGRESOS!$A$1:$X$101,MATCH(A54,INGRESOS!$X$1:$X$101,0),COLUMN(INGRESOS!D17)),IF(B54="GASTOS",INDEX(GASTOS!$A$1:$AM$101,MATCH(A54,GASTOS!$AM$1:$AM$101,0),COLUMN(INGRESOS!$D$1)),"")) ->  | E54: =IF(B54<>"",IF(B54="INGRESOS",INDEX(CLIENTES!$A$1:$E$200,MATCH(C54,CLIENTES!$B$1:$B$200,0),COLUMN(CLIENTES!$A$1)),INDEX(PROVEEDORES!$A$1:$E$200,MATCH(C54,PROVEEDORES!$B$1:$B$200,0),COLUMN(PROVEEDORES!$A$1))),"") ->  | F54: =IF(B54<>"",IF(""=IF(B54="INGRESOS",VLOOKUP(C54,CLIENTES!$B$1:$C$200,2,FALSE),VLOOKUP(C54,PROVEEDORES!$B$1:$C$200,2,FALSE)),"FALTA",VLOOKUP(IF(B54="INGRESOS",VLOOKUP(C54,CLIENTES!$B$1:$C$200,2,FALSE),VLOOKUP(C54,PROVEEDORES!$B$1:$C$200,2,FALSE)),'DATOS FISCALES'!$F$20:$G$72,2,FALSE)),"") ->  | G54: =IF(F54=99,"introducir código de país","") ->  | H54: =IF(B54="","",IF(LEFT(B54,1)="I","B","A")) ->  | I54: =IF(B54<>"",IF(B54="INGRESOS",VLOOKUP(C54,CLIENTES!$B$2:$E$200,3,FALSE),VLOOKUP(C54,PROVEEDORES!$B$2:$E$200,3,FALSE)),"") ->  | J54: =IF(AND(B54="INGRESOS",I54>0),"AVISO_ANEXO","") ->  | K54: =IF(B54<>"",IF(B54="INGRESOS",VLOOKUP(C54,CLIENTES!$B$2:$E$200,4,FALSE),VLOOKUP(C54,PROVEEDORES!$B$2:$E$200,4,FALSE)),0) -> 0 | L54: =SUM(M54:P54) -> 0 | M54: =IF($H54="B",SUMPRODUCT((INGRESOS!$Y$2:$Y$101=1)*(INGRESOS!$X$2:$X$101=$A54)*INGRESOS!$F$2:$F$101)+SUMPRODUCT((INGRESOS!$Y$2:$Y$101=1)*(INGRESOS!$X$2:$X$101=$A54)*INGRESOS!$I$2:$I$101)+SUMPRODUCT((INGRESOS!$Y$2:$Y$101=1)*(INGRESOS!$X$2:$X$101=$A54)*INGRESOS!$J$2:$J$101),IF($H54="A",SUMPRODUCT((GASTOS!$AN$2:$AN$101=1)*(GASTOS!$AM$2:$AM$101=$A54)*GASTOS!$U$2:$U$101)+SUMPRODUCT((GASTOS!$AN$2:$AN$101=1)*(GASTOS!$AM$2:$AM$101=$A54)*GASTOS!$W$2:$W$101),0)) -> 0 | N54: =IF($H54="B",SUMPRODUCT((INGRESOS!$Y$2:$Y$101=2)*(INGRESOS!$X$2:$X$101=$A54)*INGRESOS!$F$2:$F$101)+SUMPRODUCT((INGRESOS!$Y$2:$Y$101=2)*(INGRESOS!$X$2:$X$101=$A54)*INGRESOS!$I$2:$I$101)+SUMPRODUCT((INGRESOS!$Y$2:$Y$101=2)*(INGRESOS!$X$2:$X$101=$A54)*INGRESOS!$J$2:$J$101),IF($H54="A",SUMPRODUCT((GASTOS!$AN$2:$AN$101=2)*(GASTOS!$AM$2:$AM$101=$A54)*GASTOS!$U$2:$U$101)+SUMPRODUCT((GASTOS!$AN$2:$AN$101=2)*(GASTOS!$AM$2:$AM$101=$A54)*GASTOS!$W$2:$W$101),0)) -> 0 | O54: =IF($H54="B",SUMPRODUCT((INGRESOS!$Y$2:$Y$101=3)*(INGRESOS!$X$2:$X$101=$A54)*INGRESOS!$F$2:$F$101)+SUMPRODUCT((INGRESOS!$Y$2:$Y$101=3)*(INGRESOS!$X$2:$X$101=$A54)*INGRESOS!$I$2:$I$101)+SUMPRODUCT((INGRESOS!$Y$2:$Y$101=3)*(INGRESOS!$X$2:$X$101=$A54)*INGRESOS!$J$2:$J$101),IF($H54="A",SUMPRODUCT((GASTOS!$AN$2:$AN$101=3)*(GASTOS!$AM$2:$AM$101=$A54)*GASTOS!$U$2:$U$101)+SUMPRODUCT((GASTOS!$AN$2:$AN$101=3)*(GASTOS!$AM$2:$AM$101=$A54)*GASTOS!$W$2:$W$101),0)) -> 0 | P54: =IF($H54="B",SUMPRODUCT((INGRESOS!$Y$2:$Y$101=4)*(INGRESOS!$X$2:$X$101=$A54)*INGRESOS!$F$2:$F$101)+SUMPRODUCT((INGRESOS!$Y$2:$Y$101=4)*(INGRESOS!$X$2:$X$101=$A54)*INGRESOS!$I$2:$I$101)+SUMPRODUCT((INGRESOS!$Y$2:$Y$101=4)*(INGRESOS!$X$2:$X$101=$A54)*INGRESOS!$J$2:$J$101),IF($H54="A",SUMPRODUCT((GASTOS!$AN$2:$AN$101=4)*(GASTOS!$AM$2:$AM$101=$A54)*GASTOS!$U$2:$U$101)+SUMPRODUCT((GASTOS!$AN$2:$AN$101=4)*(GASTOS!$AM$2:$AM$101=$A54)*GASTOS!$W$2:$W$101),0)) -> 0
A55: 18 | B55: =IF(NOT(ISERROR(MATCH(A55,INGRESOS!$X$1:$X$101,0))),"INGRESOS",IF(NOT(ISERROR(MATCH(A55,GASTOS!$AM$1:$AM$101,0))),"GASTOS","")) ->  | C55: =IF(B55="INGRESOS",INDEX(INGRESOS!$A$1:$X$101,MATCH(A55,INGRESOS!$X$1:$X$101,0),COLUMN(INGRESOS!D18)),IF(B55="GASTOS",INDEX(GASTOS!$A$1:$AM$101,MATCH(A55,GASTOS!$AM$1:$AM$101,0),COLUMN(INGRESOS!$D$1)),"")) ->  | E55: =IF(B55<>"",IF(B55="INGRESOS",INDEX(CLIENTES!$A$1:$E$200,MATCH(C55,CLIENTES!$B$1:$B$200,0),COLUMN(CLIENTES!$A$1)),INDEX(PROVEEDORES!$A$1:$E$200,MATCH(C55,PROVEEDORES!$B$1:$B$200,0),COLUMN(PROVEEDORES!$A$1))),"") ->  | F55: =IF(B55<>"",IF(""=IF(B55="INGRESOS",VLOOKUP(C55,CLIENTES!$B$1:$C$200,2,FALSE),VLOOKUP(C55,PROVEEDORES!$B$1:$C$200,2,FALSE)),"FALTA",VLOOKUP(IF(B55="INGRESOS",VLOOKUP(C55,CLIENTES!$B$1:$C$200,2,FALSE),VLOOKUP(C55,PROVEEDORES!$B$1:$C$200,2,FALSE)),'DATOS FISCALES'!$F$20:$G$72,2,FALSE)),"") ->  | I55: =IF(B55<>"",IF(B55="INGRESOS",VLOOKUP(C55,CLIENTES!$B$2:$E$200,3,FALSE),VLOOKUP(C55,PROVEEDORES!$B$2:$E$200,3,FALSE)),"") ->  | K55: =IF(B55<>"",IF(B55="INGRESOS",VLOOKUP(C55,CLIENTES!$B$2:$E$200,4,FALSE),VLOOKUP(C55,PROVEEDORES!$B$2:$E$200,4,FALSE)),0) -> 0 | L55: 0 | M55: =IF($H55="B",SUMPRODUCT((INGRESOS!$Y$2:$Y$101=1)*(INGRESOS!$X$2:$X$101=$A55)*INGRESOS!$F$2:$F$101)+SUMPRODUCT((INGRESOS!$Y$2:$Y$101=1)*(INGRESOS!$X$2:$X$101=$A55)*INGRESOS!$I$2:$I$101)+SUMPRODUCT((INGRESOS!$Y$2:$Y$101=1)*(INGRESOS!$X$2:$X$101=$A55)*INGRESOS!$J$2:$J$101),IF($H55="A",SUMPRODUCT((GASTOS!$AN$2:$AN$101=1)*(GASTOS!$AM$2:$AM$101=$A55)*GASTOS!$U$2:$U$101)+SUMPRODUCT((GASTOS!$AN$2:$AN$101=1)*(GASTOS!$AM$2:$AM$101=$A55)*GASTOS!$W$2:$W$101),0)) -> 0 | N55: =IF($H55="B",SUMPRODUCT((INGRESOS!$Y$2:$Y$101=2)*(INGRESOS!$X$2:$X$101=$A55)*INGRESOS!$F$2:$F$101)+SUMPRODUCT((INGRESOS!$Y$2:$Y$101=2)*(INGRESOS!$X$2:$X$101=$A55)*INGRESOS!$I$2:$I$101)+SUMPRODUCT((INGRESOS!$Y$2:$Y$101=2)*(INGRESOS!$X$2:$X$101=$A55)*INGRESOS!$J$2:$J$101),IF($H55="A",SUMPRODUCT((GASTOS!$AN$2:$AN$101=2)*(GASTOS!$AM$2:$AM$101=$A55)*GASTOS!$U$2:$U$101)+SUMPRODUCT((GASTOS!$AN$2:$AN$101=2)*(GASTOS!$AM$2:$AM$101=$A55)*GASTOS!$W$2:$W$101),0)) -> 0 | O55: =IF($H55="B",SUMPRODUCT((INGRESOS!$Y$2:$Y$101=3)*(INGRESOS!$X$2:$X$101=$A55)*INGRESOS!$F$2:$F$101)+SUMPRODUCT((INGRESOS!$Y$2:$Y$101=3)*(INGRESOS!$X$2:$X$101=$A55)*INGRESOS!$I$2:$I$101)+SUMPRODUCT((INGRESOS!$Y$2:$Y$101=3)*(INGRESOS!$X$2:$X$101=$A55)*INGRESOS!$J$2:$J$101),IF($H55="A",SUMPRODUCT((GASTOS!$AN$2:$AN$101=3)*(GASTOS!$AM$2:$AM$101=$A55)*GASTOS!$U$2:$U$101)+SUMPRODUCT((GASTOS!$AN$2:$AN$101=3)*(GASTOS!$AM$2:$AM$101=$A55)*GASTOS!$W$2:$W$101),0)) -> 0 | P55: =IF($H55="B",SUMPRODUCT((INGRESOS!$Y$2:$Y$101=4)*(INGRESOS!$X$2:$X$101=$A55)*INGRESOS!$F$2:$F$101)+SUMPRODUCT((INGRESOS!$Y$2:$Y$101=4)*(INGRESOS!$X$2:$X$101=$A55)*INGRESOS!$I$2:$I$101)+SUMPRODUCT((INGRESOS!$Y$2:$Y$101=4)*(INGRESOS!$X$2:$X$101=$A55)*INGRESOS!$J$2:$J$101),IF($H55="A",SUMPRODUCT((GASTOS!$AN$2:$AN$101=4)*(GASTOS!$AM$2:$AM$101=$A55)*GASTOS!$U$2:$U$101)+SUMPRODUCT((GASTOS!$AN$2:$AN$101=4)*(GASTOS!$AM$2:$AM$101=$A55)*GASTOS!$W$2:$W$101),0)) -> 0
A56: 19 | B56: =IF(NOT(ISERROR(MATCH(A56,INGRESOS!$X$1:$X$101,0))),"INGRESOS",IF(NOT(ISERROR(MATCH(A56,GASTOS!$AM$1:$AM$101,0))),"GASTOS","")) ->  | C56: =IF(B56="INGRESOS",INDEX(INGRESOS!$A$1:$X$101,MATCH(A56,INGRESOS!$X$1:$X$101,0),COLUMN(INGRESOS!D19)),IF(B56="GASTOS",INDEX(GASTOS!$A$1:$AM$101,MATCH(A56,GASTOS!$AM$1:$AM$101,0),COLUMN(INGRESOS!$D$1)),"")) ->  | E56: =IF(B56<>"",IF(B56="INGRESOS",INDEX(CLIENTES!$A$1:$E$200,MATCH(C56,CLIENTES!$B$1:$B$200,0),COLUMN(CLIENTES!$A$1)),INDEX(PROVEEDORES!$A$1:$E$200,MATCH(C56,PROVEEDORES!$B$1:$B$200,0),COLUMN(PROVEEDORES!$A$1))),"") ->  | F56: =IF(B56<>"",IF(""=IF(B56="INGRESOS",VLOOKUP(C56,CLIENTES!$B$1:$C$200,2,FALSE),VLOOKUP(C56,PROVEEDORES!$B$1:$C$200,2,FALSE)),"FALTA",VLOOKUP(IF(B56="INGRESOS",VLOOKUP(C56,CLIENTES!$B$1:$C$200,2,FALSE),VLOOKUP(C56,PROVEEDORES!$B$1:$C$200,2,FALSE)),'DATOS FISCALES'!$F$20:$G$72,2,FALSE)),"") ->  | I56: =IF(B56<>"",IF(B56="INGRESOS",VLOOKUP(C56,CLIENTES!$B$2:$E$200,3,FALSE),VLOOKUP(C56,PROVEEDORES!$B$2:$E$200,3,FALSE)),"") ->  | K56: =IF(B56<>"",IF(B56="INGRESOS",VLOOKUP(C56,CLIENTES!$B$2:$E$200,4,FALSE),VLOOKUP(C56,PROVEEDORES!$B$2:$E$200,4,FALSE)),0) -> 0 | L56: 0 | M56: =IF($H56="B",SUMPRODUCT((INGRESOS!$Y$2:$Y$101=1)*(INGRESOS!$X$2:$X$101=$A56)*INGRESOS!$F$2:$F$101)+SUMPRODUCT((INGRESOS!$Y$2:$Y$101=1)*(INGRESOS!$X$2:$X$101=$A56)*INGRESOS!$I$2:$I$101)+SUMPRODUCT((INGRESOS!$Y$2:$Y$101=1)*(INGRESOS!$X$2:$X$101=$A56)*INGRESOS!$J$2:$J$101),IF($H56="A",SUMPRODUCT((GASTOS!$AN$2:$AN$101=1)*(GASTOS!$AM$2:$AM$101=$A56)*GASTOS!$U$2:$U$101)+SUMPRODUCT((GASTOS!$AN$2:$AN$101=1)*(GASTOS!$AM$2:$AM$101=$A56)*GASTOS!$W$2:$W$101),0)) -> 0 | N56: =IF($H56="B",SUMPRODUCT((INGRESOS!$Y$2:$Y$101=2)*(INGRESOS!$X$2:$X$101=$A56)*INGRESOS!$F$2:$F$101)+SUMPRODUCT((INGRESOS!$Y$2:$Y$101=2)*(INGRESOS!$X$2:$X$101=$A56)*INGRESOS!$I$2:$I$101)+SUMPRODUCT((INGRESOS!$Y$2:$Y$101=2)*(INGRESOS!$X$2:$X$101=$A56)*INGRESOS!$J$2:$J$101),IF($H56="A",SUMPRODUCT((GASTOS!$AN$2:$AN$101=2)*(GASTOS!$AM$2:$AM$101=$A56)*GASTOS!$U$2:$U$101)+SUMPRODUCT((GASTOS!$AN$2:$AN$101=2)*(GASTOS!$AM$2:$AM$101=$A56)*GASTOS!$W$2:$W$101),0)) -> 0 | O56: =IF($H56="B",SUMPRODUCT((INGRESOS!$Y$2:$Y$101=3)*(INGRESOS!$X$2:$X$101=$A56)*INGRESOS!$F$2:$F$101)+SUMPRODUCT((INGRESOS!$Y$2:$Y$101=3)*(INGRESOS!$X$2:$X$101=$A56)*INGRESOS!$I$2:$I$101)+SUMPRODUCT((INGRESOS!$Y$2:$Y$101=3)*(INGRESOS!$X$2:$X$101=$A56)*INGRESOS!$J$2:$J$101),IF($H56="A",SUMPRODUCT((GASTOS!$AN$2:$AN$101=3)*(GASTOS!$AM$2:$AM$101=$A56)*GASTOS!$U$2:$U$101)+SUMPRODUCT((GASTOS!$AN$2:$AN$101=3)*(GASTOS!$AM$2:$AM$101=$A56)*GASTOS!$W$2:$W$101),0)) -> 0 | P56: =IF($H56="B",SUMPRODUCT((INGRESOS!$Y$2:$Y$101=4)*(INGRESOS!$X$2:$X$101=$A56)*INGRESOS!$F$2:$F$101)+SUMPRODUCT((INGRESOS!$Y$2:$Y$101=4)*(INGRESOS!$X$2:$X$101=$A56)*INGRESOS!$I$2:$I$101)+SUMPRODUCT((INGRESOS!$Y$2:$Y$101=4)*(INGRESOS!$X$2:$X$101=$A56)*INGRESOS!$J$2:$J$101),IF($H56="A",SUMPRODUCT((GASTOS!$AN$2:$AN$101=4)*(GASTOS!$AM$2:$AM$101=$A56)*GASTOS!$U$2:$U$101)+SUMPRODUCT((GASTOS!$AN$2:$AN$101=4)*(GASTOS!$AM$2:$AM$101=$A56)*GASTOS!$W$2:$W$101),0)) -> 0
A57: 20 | B57: =IF(NOT(ISERROR(MATCH(A57,INGRESOS!$X$1:$X$101,0))),"INGRESOS",IF(NOT(ISERROR(MATCH(A57,GASTOS!$AM$1:$AM$101,0))),"GASTOS","")) ->  | C57: =IF(B57="INGRESOS",INDEX(INGRESOS!$A$1:$X$101,MATCH(A57,INGRESOS!$X$1:$X$101,0),COLUMN(INGRESOS!D20)),IF(B57="GASTOS",INDEX(GASTOS!$A$1:$AM$101,MATCH(A57,GASTOS!$AM$1:$AM$101,0),COLUMN(INGRESOS!$D$1)),"")) ->  | E57: =IF(B57<>"",IF(B57="INGRESOS",INDEX(CLIENTES!$A$1:$E$200,MATCH(C57,CLIENTES!$B$1:$B$200,0),COLUMN(CLIENTES!$A$1)),INDEX(PROVEEDORES!$A$1:$E$200,MATCH(C57,PROVEEDORES!$B$1:$B$200,0),COLUMN(PROVEEDORES!$A$1))),"") ->  | F57: =IF(B57<>"",IF(""=IF(B57="INGRESOS",VLOOKUP(C57,CLIENTES!$B$1:$C$200,2,FALSE),VLOOKUP(C57,PROVEEDORES!$B$1:$C$200,2,FALSE)),"FALTA",VLOOKUP(IF(B57="INGRESOS",VLOOKUP(C57,CLIENTES!$B$1:$C$200,2,FALSE),VLOOKUP(C57,PROVEEDORES!$B$1:$C$200,2,FALSE)),'DATOS FISCALES'!$F$20:$G$72,2,FALSE)),"") ->  | I57: =IF(B57<>"",IF(B57="INGRESOS",VLOOKUP(C57,CLIENTES!$B$2:$E$200,3,FALSE),VLOOKUP(C57,PROVEEDORES!$B$2:$E$200,3,FALSE)),"") ->  | K57: =IF(B57<>"",IF(B57="INGRESOS",VLOOKUP(C57,CLIENTES!$B$2:$E$200,4,FALSE),VLOOKUP(C57,PROVEEDORES!$B$2:$E$200,4,FALSE)),0) -> 0 | L57: 0 | M57: =IF($H57="B",SUMPRODUCT((INGRESOS!$Y$2:$Y$101=1)*(INGRESOS!$X$2:$X$101=$A57)*INGRESOS!$F$2:$F$101)+SUMPRODUCT((INGRESOS!$Y$2:$Y$101=1)*(INGRESOS!$X$2:$X$101=$A57)*INGRESOS!$I$2:$I$101)+SUMPRODUCT((INGRESOS!$Y$2:$Y$101=1)*(INGRESOS!$X$2:$X$101=$A57)*INGRESOS!$J$2:$J$101),IF($H57="A",SUMPRODUCT((GASTOS!$AN$2:$AN$101=1)*(GASTOS!$AM$2:$AM$101=$A57)*GASTOS!$U$2:$U$101)+SUMPRODUCT((GASTOS!$AN$2:$AN$101=1)*(GASTOS!$AM$2:$AM$101=$A57)*GASTOS!$W$2:$W$101),0)) -> 0 | N57: =IF($H57="B",SUMPRODUCT((INGRESOS!$Y$2:$Y$101=2)*(INGRESOS!$X$2:$X$101=$A57)*INGRESOS!$F$2:$F$101)+SUMPRODUCT((INGRESOS!$Y$2:$Y$101=2)*(INGRESOS!$X$2:$X$101=$A57)*INGRESOS!$I$2:$I$101)+SUMPRODUCT((INGRESOS!$Y$2:$Y$101=2)*(INGRESOS!$X$2:$X$101=$A57)*INGRESOS!$J$2:$J$101),IF($H57="A",SUMPRODUCT((GASTOS!$AN$2:$AN$101=2)*(GASTOS!$AM$2:$AM$101=$A57)*GASTOS!$U$2:$U$101)+SUMPRODUCT((GASTOS!$AN$2:$AN$101=2)*(GASTOS!$AM$2:$AM$101=$A57)*GASTOS!$W$2:$W$101),0)) -> 0 | O57: =IF($H57="B",SUMPRODUCT((INGRESOS!$Y$2:$Y$101=3)*(INGRESOS!$X$2:$X$101=$A57)*INGRESOS!$F$2:$F$101)+SUMPRODUCT((INGRESOS!$Y$2:$Y$101=3)*(INGRESOS!$X$2:$X$101=$A57)*INGRESOS!$I$2:$I$101)+SUMPRODUCT((INGRESOS!$Y$2:$Y$101=3)*(INGRESOS!$X$2:$X$101=$A57)*INGRESOS!$J$2:$J$101),IF($H57="A",SUMPRODUCT((GASTOS!$AN$2:$AN$101=3)*(GASTOS!$AM$2:$AM$101=$A57)*GASTOS!$U$2:$U$101)+SUMPRODUCT((GASTOS!$AN$2:$AN$101=3)*(GASTOS!$AM$2:$AM$101=$A57)*GASTOS!$W$2:$W$101),0)) -> 0 | P57: =IF($H57="B",SUMPRODUCT((INGRESOS!$Y$2:$Y$101=4)*(INGRESOS!$X$2:$X$101=$A57)*INGRESOS!$F$2:$F$101)+SUMPRODUCT((INGRESOS!$Y$2:$Y$101=4)*(INGRESOS!$X$2:$X$101=$A57)*INGRESOS!$I$2:$I$101)+SUMPRODUCT((INGRESOS!$Y$2:$Y$101=4)*(INGRESOS!$X$2:$X$101=$A57)*INGRESOS!$J$2:$J$101),IF($H57="A",SUMPRODUCT((GASTOS!$AN$2:$AN$101=4)*(GASTOS!$AM$2:$AM$101=$A57)*GASTOS!$U$2:$U$101)+SUMPRODUCT((GASTOS!$AN$2:$AN$101=4)*(GASTOS!$AM$2:$AM$101=$A57)*GASTOS!$W$2:$W$101),0)) -> 0
A58: 21 | B58: =IF(NOT(ISERROR(MATCH(A58,INGRESOS!$X$1:$X$101,0))),"INGRESOS",IF(NOT(ISERROR(MATCH(A58,GASTOS!$AM$1:$AM$101,0))),"GASTOS","")) ->  | C58: =IF(B58="INGRESOS",INDEX(INGRESOS!$A$1:$X$101,MATCH(A58,INGRESOS!$X$1:$X$101,0),COLUMN(INGRESOS!D21)),IF(B58="GASTOS",INDEX(GASTOS!$A$1:$AM$101,MATCH(A58,GASTOS!$AM$1:$AM$101,0),COLUMN(INGRESOS!$D$1)),"")) ->  | E58: =IF(B58<>"",IF(B58="INGRESOS",INDEX(CLIENTES!$A$1:$E$200,MATCH(C58,CLIENTES!$B$1:$B$200,0),COLUMN(CLIENTES!$A$1)),INDEX(PROVEEDORES!$A$1:$E$200,MATCH(C58,PROVEEDORES!$B$1:$B$200,0),COLUMN(PROVEEDORES!$A$1))),"") ->  | F58: =IF(B58<>"",IF(""=IF(B58="INGRESOS",VLOOKUP(C58,CLIENTES!$B$1:$C$200,2,FALSE),VLOOKUP(C58,PROVEEDORES!$B$1:$C$200,2,FALSE)),"FALTA",VLOOKUP(IF(B58="INGRESOS",VLOOKUP(C58,CLIENTES!$B$1:$C$200,2,FALSE),VLOOKUP(C58,PROVEEDORES!$B$1:$C$200,2,FALSE)),'DATOS FISCALES'!$F$20:$G$72,2,FALSE)),"") ->  | I58: =IF(B58<>"",IF(B58="INGRESOS",VLOOKUP(C58,CLIENTES!$B$2:$E$200,3,FALSE),VLOOKUP(C58,PROVEEDORES!$B$2:$E$200,3,FALSE)),"") ->  | K58: =IF(B58<>"",IF(B58="INGRESOS",VLOOKUP(C58,CLIENTES!$B$2:$E$200,4,FALSE),VLOOKUP(C58,PROVEEDORES!$B$2:$E$200,4,FALSE)),0) -> 0 | L58: 0 | M58: =IF($H58="B",SUMPRODUCT((INGRESOS!$Y$2:$Y$101=1)*(INGRESOS!$X$2:$X$101=$A58)*INGRESOS!$F$2:$F$101)+SUMPRODUCT((INGRESOS!$Y$2:$Y$101=1)*(INGRESOS!$X$2:$X$101=$A58)*INGRESOS!$I$2:$I$101)+SUMPRODUCT((INGRESOS!$Y$2:$Y$101=1)*(INGRESOS!$X$2:$X$101=$A58)*INGRESOS!$J$2:$J$101),IF($H58="A",SUMPRODUCT((GASTOS!$AN$2:$AN$101=1)*(GASTOS!$AM$2:$AM$101=$A58)*GASTOS!$U$2:$U$101)+SUMPRODUCT((GASTOS!$AN$2:$AN$101=1)*(GASTOS!$AM$2:$AM$101=$A58)*GASTOS!$W$2:$W$101),0)) -> 0 | N58: =IF($H58="B",SUMPRODUCT((INGRESOS!$Y$2:$Y$101=2)*(INGRESOS!$X$2:$X$101=$A58)*INGRESOS!$F$2:$F$101)+SUMPRODUCT((INGRESOS!$Y$2:$Y$101=2)*(INGRESOS!$X$2:$X$101=$A58)*INGRESOS!$I$2:$I$101)+SUMPRODUCT((INGRESOS!$Y$2:$Y$101=2)*(INGRESOS!$X$2:$X$101=$A58)*INGRESOS!$J$2:$J$101),IF($H58="A",SUMPRODUCT((GASTOS!$AN$2:$AN$101=2)*(GASTOS!$AM$2:$AM$101=$A58)*GASTOS!$U$2:$U$101)+SUMPRODUCT((GASTOS!$AN$2:$AN$101=2)*(GASTOS!$AM$2:$AM$101=$A58)*GASTOS!$W$2:$W$101),0)) -> 0 | O58: =IF($H58="B",SUMPRODUCT((INGRESOS!$Y$2:$Y$101=3)*(INGRESOS!$X$2:$X$101=$A58)*INGRESOS!$F$2:$F$101)+SUMPRODUCT((INGRESOS!$Y$2:$Y$101=3)*(INGRESOS!$X$2:$X$101=$A58)*INGRESOS!$I$2:$I$101)+SUMPRODUCT((INGRESOS!$Y$2:$Y$101=3)*(INGRESOS!$X$2:$X$101=$A58)*INGRESOS!$J$2:$J$101),IF($H58="A",SUMPRODUCT((GASTOS!$AN$2:$AN$101=3)*(GASTOS!$AM$2:$AM$101=$A58)*GASTOS!$U$2:$U$101)+SUMPRODUCT((GASTOS!$AN$2:$AN$101=3)*(GASTOS!$AM$2:$AM$101=$A58)*GASTOS!$W$2:$W$101),0)) -> 0 | P58: =IF($H58="B",SUMPRODUCT((INGRESOS!$Y$2:$Y$101=4)*(INGRESOS!$X$2:$X$101=$A58)*INGRESOS!$F$2:$F$101)+SUMPRODUCT((INGRESOS!$Y$2:$Y$101=4)*(INGRESOS!$X$2:$X$101=$A58)*INGRESOS!$I$2:$I$101)+SUMPRODUCT((INGRESOS!$Y$2:$Y$101=4)*(INGRESOS!$X$2:$X$101=$A58)*INGRESOS!$J$2:$J$101),IF($H58="A",SUMPRODUCT((GASTOS!$AN$2:$AN$101=4)*(GASTOS!$AM$2:$AM$101=$A58)*GASTOS!$U$2:$U$101)+SUMPRODUCT((GASTOS!$AN$2:$AN$101=4)*(GASTOS!$AM$2:$AM$101=$A58)*GASTOS!$W$2:$W$101),0)) -> 0
A59: 22 | B59: =IF(NOT(ISERROR(MATCH(A59,INGRESOS!$X$1:$X$101,0))),"INGRESOS",IF(NOT(ISERROR(MATCH(A59,GASTOS!$AM$1:$AM$101,0))),"GASTOS","")) ->  | C59: =IF(B59="INGRESOS",INDEX(INGRESOS!$A$1:$X$101,MATCH(A59,INGRESOS!$X$1:$X$101,0),COLUMN(INGRESOS!D22)),IF(B59="GASTOS",INDEX(GASTOS!$A$1:$AM$101,MATCH(A59,GASTOS!$AM$1:$AM$101,0),COLUMN(INGRESOS!$D$1)),"")) ->  | E59: =IF(B59<>"",IF(B59="INGRESOS",INDEX(CLIENTES!$A$1:$E$200,MATCH(C59,CLIENTES!$B$1:$B$200,0),COLUMN(CLIENTES!$A$1)),INDEX(PROVEEDORES!$A$1:$E$200,MATCH(C59,PROVEEDORES!$B$1:$B$200,0),COLUMN(PROVEEDORES!$A$1))),"") ->  | F59: =IF(B59<>"",IF(""=IF(B59="INGRESOS",VLOOKUP(C59,CLIENTES!$B$1:$C$200,2,FALSE),VLOOKUP(C59,PROVEEDORES!$B$1:$C$200,2,FALSE)),"FALTA",VLOOKUP(IF(B59="INGRESOS",VLOOKUP(C59,CLIENTES!$B$1:$C$200,2,FALSE),VLOOKUP(C59,PROVEEDORES!$B$1:$C$200,2,FALSE)),'DATOS FISCALES'!$F$20:$G$72,2,FALSE)),"") ->  | I59: =IF(B59<>"",IF(B59="INGRESOS",VLOOKUP(C59,CLIENTES!$B$2:$E$200,3,FALSE),VLOOKUP(C59,PROVEEDORES!$B$2:$E$200,3,FALSE)),"") ->  | K59: =IF(B59<>"",IF(B59="INGRESOS",VLOOKUP(C59,CLIENTES!$B$2:$E$200,4,FALSE),VLOOKUP(C59,PROVEEDORES!$B$2:$E$200,4,FALSE)),0) -> 0 | L59: 0 | M59: =IF($H59="B",SUMPRODUCT((INGRESOS!$Y$2:$Y$101=1)*(INGRESOS!$X$2:$X$101=$A59)*INGRESOS!$F$2:$F$101)+SUMPRODUCT((INGRESOS!$Y$2:$Y$101=1)*(INGRESOS!$X$2:$X$101=$A59)*INGRESOS!$I$2:$I$101)+SUMPRODUCT((INGRESOS!$Y$2:$Y$101=1)*(INGRESOS!$X$2:$X$101=$A59)*INGRESOS!$J$2:$J$101),IF($H59="A",SUMPRODUCT((GASTOS!$AN$2:$AN$101=1)*(GASTOS!$AM$2:$AM$101=$A59)*GASTOS!$U$2:$U$101)+SUMPRODUCT((GASTOS!$AN$2:$AN$101=1)*(GASTOS!$AM$2:$AM$101=$A59)*GASTOS!$W$2:$W$101),0)) -> 0 | N59: =IF($H59="B",SUMPRODUCT((INGRESOS!$Y$2:$Y$101=2)*(INGRESOS!$X$2:$X$101=$A59)*INGRESOS!$F$2:$F$101)+SUMPRODUCT((INGRESOS!$Y$2:$Y$101=2)*(INGRESOS!$X$2:$X$101=$A59)*INGRESOS!$I$2:$I$101)+SUMPRODUCT((INGRESOS!$Y$2:$Y$101=2)*(INGRESOS!$X$2:$X$101=$A59)*INGRESOS!$J$2:$J$101),IF($H59="A",SUMPRODUCT((GASTOS!$AN$2:$AN$101=2)*(GASTOS!$AM$2:$AM$101=$A59)*GASTOS!$U$2:$U$101)+SUMPRODUCT((GASTOS!$AN$2:$AN$101=2)*(GASTOS!$AM$2:$AM$101=$A59)*GASTOS!$W$2:$W$101),0)) -> 0 | O59: =IF($H59="B",SUMPRODUCT((INGRESOS!$Y$2:$Y$101=3)*(INGRESOS!$X$2:$X$101=$A59)*INGRESOS!$F$2:$F$101)+SUMPRODUCT((INGRESOS!$Y$2:$Y$101=3)*(INGRESOS!$X$2:$X$101=$A59)*INGRESOS!$I$2:$I$101)+SUMPRODUCT((INGRESOS!$Y$2:$Y$101=3)*(INGRESOS!$X$2:$X$101=$A59)*INGRESOS!$J$2:$J$101),IF($H59="A",SUMPRODUCT((GASTOS!$AN$2:$AN$101=3)*(GASTOS!$AM$2:$AM$101=$A59)*GASTOS!$U$2:$U$101)+SUMPRODUCT((GASTOS!$AN$2:$AN$101=3)*(GASTOS!$AM$2:$AM$101=$A59)*GASTOS!$W$2:$W$101),0)) -> 0 | P59: =IF($H59="B",SUMPRODUCT((INGRESOS!$Y$2:$Y$101=4)*(INGRESOS!$X$2:$X$101=$A59)*INGRESOS!$F$2:$F$101)+SUMPRODUCT((INGRESOS!$Y$2:$Y$101=4)*(INGRESOS!$X$2:$X$101=$A59)*INGRESOS!$I$2:$I$101)+SUMPRODUCT((INGRESOS!$Y$2:$Y$101=4)*(INGRESOS!$X$2:$X$101=$A59)*INGRESOS!$J$2:$J$101),IF($H59="A",SUMPRODUCT((GASTOS!$AN$2:$AN$101=4)*(GASTOS!$AM$2:$AM$101=$A59)*GASTOS!$U$2:$U$101)+SUMPRODUCT((GASTOS!$AN$2:$AN$101=4)*(GASTOS!$AM$2:$AM$101=$A59)*GASTOS!$W$2:$W$101),0)) -> 0
A60: 23 | B60: =IF(NOT(ISERROR(MATCH(A60,INGRESOS!$X$1:$X$101,0))),"INGRESOS",IF(NOT(ISERROR(MATCH(A60,GASTOS!$AM$1:$AM$101,0))),"GASTOS","")) ->  | C60: =IF(B60="INGRESOS",INDEX(INGRESOS!$A$1:$X$101,MATCH(A60,INGRESOS!$X$1:$X$101,0),COLUMN(INGRESOS!D23)),IF(B60="GASTOS",INDEX(GASTOS!$A$1:$AM$101,MATCH(A60,GASTOS!$AM$1:$AM$101,0),COLUMN(INGRESOS!$D$1)),"")) ->  | E60: =IF(B60<>"",IF(B60="INGRESOS",INDEX(CLIENTES!$A$1:$E$200,MATCH(C60,CLIENTES!$B$1:$B$200,0),COLUMN(CLIENTES!$A$1)),INDEX(PROVEEDORES!$A$1:$E$200,MATCH(C60,PROVEEDORES!$B$1:$B$200,0),COLUMN(PROVEEDORES!$A$1))),"") ->  | F60: =IF(B60<>"",IF(""=IF(B60="INGRESOS",VLOOKUP(C60,CLIENTES!$B$1:$C$200,2,FALSE),VLOOKUP(C60,PROVEEDORES!$B$1:$C$200,2,FALSE)),"FALTA",VLOOKUP(IF(B60="INGRESOS",VLOOKUP(C60,CLIENTES!$B$1:$C$200,2,FALSE),VLOOKUP(C60,PROVEEDORES!$B$1:$C$200,2,FALSE)),'DATOS FISCALES'!$F$20:$G$72,2,FALSE)),"") ->  | I60: =IF(B60<>"",IF(B60="INGRESOS",VLOOKUP(C60,CLIENTES!$B$2:$E$200,3,FALSE),VLOOKUP(C60,PROVEEDORES!$B$2:$E$200,3,FALSE)),"") ->  | K60: =IF(B60<>"",IF(B60="INGRESOS",VLOOKUP(C60,CLIENTES!$B$2:$E$200,4,FALSE),VLOOKUP(C60,PROVEEDORES!$B$2:$E$200,4,FALSE)),0) -> 0 | L60: 0 | M60: =IF($H60="B",SUMPRODUCT((INGRESOS!$Y$2:$Y$101=1)*(INGRESOS!$X$2:$X$101=$A60)*INGRESOS!$F$2:$F$101)+SUMPRODUCT((INGRESOS!$Y$2:$Y$101=1)*(INGRESOS!$X$2:$X$101=$A60)*INGRESOS!$I$2:$I$101)+SUMPRODUCT((INGRESOS!$Y$2:$Y$101=1)*(INGRESOS!$X$2:$X$101=$A60)*INGRESOS!$J$2:$J$101),IF($H60="A",SUMPRODUCT((GASTOS!$AN$2:$AN$101=1)*(GASTOS!$AM$2:$AM$101=$A60)*GASTOS!$U$2:$U$101)+SUMPRODUCT((GASTOS!$AN$2:$AN$101=1)*(GASTOS!$AM$2:$AM$101=$A60)*GASTOS!$W$2:$W$101),0)) -> 0 | N60: =IF($H60="B",SUMPRODUCT((INGRESOS!$Y$2:$Y$101=2)*(INGRESOS!$X$2:$X$101=$A60)*INGRESOS!$F$2:$F$101)+SUMPRODUCT((INGRESOS!$Y$2:$Y$101=2)*(INGRESOS!$X$2:$X$101=$A60)*INGRESOS!$I$2:$I$101)+SUMPRODUCT((INGRESOS!$Y$2:$Y$101=2)*(INGRESOS!$X$2:$X$101=$A60)*INGRESOS!$J$2:$J$101),IF($H60="A",SUMPRODUCT((GASTOS!$AN$2:$AN$101=2)*(GASTOS!$AM$2:$AM$101=$A60)*GASTOS!$U$2:$U$101)+SUMPRODUCT((GASTOS!$AN$2:$AN$101=2)*(GASTOS!$AM$2:$AM$101=$A60)*GASTOS!$W$2:$W$101),0)) -> 0 | O60: =IF($H60="B",SUMPRODUCT((INGRESOS!$Y$2:$Y$101=3)*(INGRESOS!$X$2:$X$101=$A60)*INGRESOS!$F$2:$F$101)+SUMPRODUCT((INGRESOS!$Y$2:$Y$101=3)*(INGRESOS!$X$2:$X$101=$A60)*INGRESOS!$I$2:$I$101)+SUMPRODUCT((INGRESOS!$Y$2:$Y$101=3)*(INGRESOS!$X$2:$X$101=$A60)*INGRESOS!$J$2:$J$101),IF($H60="A",SUMPRODUCT((GASTOS!$AN$2:$AN$101=3)*(GASTOS!$AM$2:$AM$101=$A60)*GASTOS!$U$2:$U$101)+SUMPRODUCT((GASTOS!$AN$2:$AN$101=3)*(GASTOS!$AM$2:$AM$101=$A60)*GASTOS!$W$2:$W$101),0)) -> 0 | P60: =IF($H60="B",SUMPRODUCT((INGRESOS!$Y$2:$Y$101=4)*(INGRESOS!$X$2:$X$101=$A60)*INGRESOS!$F$2:$F$101)+SUMPRODUCT((INGRESOS!$Y$2:$Y$101=4)*(INGRESOS!$X$2:$X$101=$A60)*INGRESOS!$I$2:$I$101)+SUMPRODUCT((INGRESOS!$Y$2:$Y$101=4)*(INGRESOS!$X$2:$X$101=$A60)*INGRESOS!$J$2:$J$101),IF($H60="A",SUMPRODUCT((GASTOS!$AN$2:$AN$101=4)*(GASTOS!$AM$2:$AM$101=$A60)*GASTOS!$U$2:$U$101)+SUMPRODUCT((GASTOS!$AN$2:$AN$101=4)*(GASTOS!$AM$2:$AM$101=$A60)*GASTOS!$W$2:$W$101),0)) -> 0
A61: 24 | B61: =IF(NOT(ISERROR(MATCH(A61,INGRESOS!$X$1:$X$101,0))),"INGRESOS",IF(NOT(ISERROR(MATCH(A61,GASTOS!$AM$1:$AM$101,0))),"GASTOS","")) ->  | C61: =IF(B61="INGRESOS",INDEX(INGRESOS!$A$1:$X$101,MATCH(A61,INGRESOS!$X$1:$X$101,0),COLUMN(INGRESOS!D24)),IF(B61="GASTOS",INDEX(GASTOS!$A$1:$AM$101,MATCH(A61,GASTOS!$AM$1:$AM$101,0),COLUMN(INGRESOS!$D$1)),"")) ->  | E61: =IF(B61<>"",IF(B61="INGRESOS",INDEX(CLIENTES!$A$1:$E$200,MATCH(C61,CLIENTES!$B$1:$B$200,0),COLUMN(CLIENTES!$A$1)),INDEX(PROVEEDORES!$A$1:$E$200,MATCH(C61,PROVEEDORES!$B$1:$B$200,0),COLUMN(PROVEEDORES!$A$1))),"") ->  | F61: =IF(B61<>"",IF(""=IF(B61="INGRESOS",VLOOKUP(C61,CLIENTES!$B$1:$C$200,2,FALSE),VLOOKUP(C61,PROVEEDORES!$B$1:$C$200,2,FALSE)),"FALTA",VLOOKUP(IF(B61="INGRESOS",VLOOKUP(C61,CLIENTES!$B$1:$C$200,2,FALSE),VLOOKUP(C61,PROVEEDORES!$B$1:$C$200,2,FALSE)),'DATOS FISCALES'!$F$20:$G$72,2,FALSE)),"") ->  | I61: =IF(B61<>"",IF(B61="INGRESOS",VLOOKUP(C61,CLIENTES!$B$2:$E$200,3,FALSE),VLOOKUP(C61,PROVEEDORES!$B$2:$E$200,3,FALSE)),"") ->  | K61: =IF(B61<>"",IF(B61="INGRESOS",VLOOKUP(C61,CLIENTES!$B$2:$E$200,4,FALSE),VLOOKUP(C61,PROVEEDORES!$B$2:$E$200,4,FALSE)),0) -> 0 | L61: 0 | M61: =IF($H61="B",SUMPRODUCT((INGRESOS!$Y$2:$Y$101=1)*(INGRESOS!$X$2:$X$101=$A61)*INGRESOS!$F$2:$F$101)+SUMPRODUCT((INGRESOS!$Y$2:$Y$101=1)*(INGRESOS!$X$2:$X$101=$A61)*INGRESOS!$I$2:$I$101)+SUMPRODUCT((INGRESOS!$Y$2:$Y$101=1)*(INGRESOS!$X$2:$X$101=$A61)*INGRESOS!$J$2:$J$101),IF($H61="A",SUMPRODUCT((GASTOS!$AN$2:$AN$101=1)*(GASTOS!$AM$2:$AM$101=$A61)*GASTOS!$U$2:$U$101)+SUMPRODUCT((GASTOS!$AN$2:$AN$101=1)*(GASTOS!$AM$2:$AM$101=$A61)*GASTOS!$W$2:$W$101),0)) -> 0 | N61: =IF($H61="B",SUMPRODUCT((INGRESOS!$Y$2:$Y$101=2)*(INGRESOS!$X$2:$X$101=$A61)*INGRESOS!$F$2:$F$101)+SUMPRODUCT((INGRESOS!$Y$2:$Y$101=2)*(INGRESOS!$X$2:$X$101=$A61)*INGRESOS!$I$2:$I$101)+SUMPRODUCT((INGRESOS!$Y$2:$Y$101=2)*(INGRESOS!$X$2:$X$101=$A61)*INGRESOS!$J$2:$J$101),IF($H61="A",SUMPRODUCT((GASTOS!$AN$2:$AN$101=2)*(GASTOS!$AM$2:$AM$101=$A61)*GASTOS!$U$2:$U$101)+SUMPRODUCT((GASTOS!$AN$2:$AN$101=2)*(GASTOS!$AM$2:$AM$101=$A61)*GASTOS!$W$2:$W$101),0)) -> 0 | O61: =IF($H61="B",SUMPRODUCT((INGRESOS!$Y$2:$Y$101=3)*(INGRESOS!$X$2:$X$101=$A61)*INGRESOS!$F$2:$F$101)+SUMPRODUCT((INGRESOS!$Y$2:$Y$101=3)*(INGRESOS!$X$2:$X$101=$A61)*INGRESOS!$I$2:$I$101)+SUMPRODUCT((INGRESOS!$Y$2:$Y$101=3)*(INGRESOS!$X$2:$X$101=$A61)*INGRESOS!$J$2:$J$101),IF($H61="A",SUMPRODUCT((GASTOS!$AN$2:$AN$101=3)*(GASTOS!$AM$2:$AM$101=$A61)*GASTOS!$U$2:$U$101)+SUMPRODUCT((GASTOS!$AN$2:$AN$101=3)*(GASTOS!$AM$2:$AM$101=$A61)*GASTOS!$W$2:$W$101),0)) -> 0 | P61: =IF($H61="B",SUMPRODUCT((INGRESOS!$Y$2:$Y$101=4)*(INGRESOS!$X$2:$X$101=$A61)*INGRESOS!$F$2:$F$101)+SUMPRODUCT((INGRESOS!$Y$2:$Y$101=4)*(INGRESOS!$X$2:$X$101=$A61)*INGRESOS!$I$2:$I$101)+SUMPRODUCT((INGRESOS!$Y$2:$Y$101=4)*(INGRESOS!$X$2:$X$101=$A61)*INGRESOS!$J$2:$J$101),IF($H61="A",SUMPRODUCT((GASTOS!$AN$2:$AN$101=4)*(GASTOS!$AM$2:$AM$101=$A61)*GASTOS!$U$2:$U$101)+SUMPRODUCT((GASTOS!$AN$2:$AN$101=4)*(GASTOS!$AM$2:$AM$101=$A61)*GASTOS!$W$2:$W$101),0)) -> 0
A62: 25 | B62: =IF(NOT(ISERROR(MATCH(A62,INGRESOS!$X$1:$X$101,0))),"INGRESOS",IF(NOT(ISERROR(MATCH(A62,GASTOS!$AM$1:$AM$101,0))),"GASTOS","")) ->  | C62: =IF(B62="INGRESOS",INDEX(INGRESOS!$A$1:$X$101,MATCH(A62,INGRESOS!$X$1:$X$101,0),COLUMN(INGRESOS!D25)),IF(B62="GASTOS",INDEX(GASTOS!$A$1:$AM$101,MATCH(A62,GASTOS!$AM$1:$AM$101,0),COLUMN(INGRESOS!$D$1)),"")) ->  | E62: =IF(B62<>"",IF(B62="INGRESOS",INDEX(CLIENTES!$A$1:$E$200,MATCH(C62,CLIENTES!$B$1:$B$200,0),COLUMN(CLIENTES!$A$1)),INDEX(PROVEEDORES!$A$1:$E$200,MATCH(C62,PROVEEDORES!$B$1:$B$200,0),COLUMN(PROVEEDORES!$A$1))),"") ->  | F62: =IF(B62<>"",IF(""=IF(B62="INGRESOS",VLOOKUP(C62,CLIENTES!$B$1:$C$200,2,FALSE),VLOOKUP(C62,PROVEEDORES!$B$1:$C$200,2,FALSE)),"FALTA",VLOOKUP(IF(B62="INGRESOS",VLOOKUP(C62,CLIENTES!$B$1:$C$200,2,FALSE),VLOOKUP(C62,PROVEEDORES!$B$1:$C$200,2,FALSE)),'DATOS FISCALES'!$F$20:$G$72,2,FALSE)),"") ->  | I62: =IF(B62<>"",IF(B62="INGRESOS",VLOOKUP(C62,CLIENTES!$B$2:$E$200,3,FALSE),VLOOKUP(C62,PROVEEDORES!$B$2:$E$200,3,FALSE)),"") ->  | K62: =IF(B62<>"",IF(B62="INGRESOS",VLOOKUP(C62,CLIENTES!$B$2:$E$200,4,FALSE),VLOOKUP(C62,PROVEEDORES!$B$2:$E$200,4,FALSE)),0) -> 0 | L62: 0 | M62: =IF($H62="B",SUMPRODUCT((INGRESOS!$Y$2:$Y$101=1)*(INGRESOS!$X$2:$X$101=$A62)*INGRESOS!$F$2:$F$101)+SUMPRODUCT((INGRESOS!$Y$2:$Y$101=1)*(INGRESOS!$X$2:$X$101=$A62)*INGRESOS!$I$2:$I$101)+SUMPRODUCT((INGRESOS!$Y$2:$Y$101=1)*(INGRESOS!$X$2:$X$101=$A62)*INGRESOS!$J$2:$J$101),IF($H62="A",SUMPRODUCT((GASTOS!$AN$2:$AN$101=1)*(GASTOS!$AM$2:$AM$101=$A62)*GASTOS!$U$2:$U$101)+SUMPRODUCT((GASTOS!$AN$2:$AN$101=1)*(GASTOS!$AM$2:$AM$101=$A62)*GASTOS!$W$2:$W$101),0)) -> 0 | N62: =IF($H62="B",SUMPRODUCT((INGRESOS!$Y$2:$Y$101=2)*(INGRESOS!$X$2:$X$101=$A62)*INGRESOS!$F$2:$F$101)+SUMPRODUCT((INGRESOS!$Y$2:$Y$101=2)*(INGRESOS!$X$2:$X$101=$A62)*INGRESOS!$I$2:$I$101)+SUMPRODUCT((INGRESOS!$Y$2:$Y$101=2)*(INGRESOS!$X$2:$X$101=$A62)*INGRESOS!$J$2:$J$101),IF($H62="A",SUMPRODUCT((GASTOS!$AN$2:$AN$101=2)*(GASTOS!$AM$2:$AM$101=$A62)*GASTOS!$U$2:$U$101)+SUMPRODUCT((GASTOS!$AN$2:$AN$101=2)*(GASTOS!$AM$2:$AM$101=$A62)*GASTOS!$W$2:$W$101),0)) -> 0 | O62: =IF($H62="B",SUMPRODUCT((INGRESOS!$Y$2:$Y$101=3)*(INGRESOS!$X$2:$X$101=$A62)*INGRESOS!$F$2:$F$101)+SUMPRODUCT((INGRESOS!$Y$2:$Y$101=3)*(INGRESOS!$X$2:$X$101=$A62)*INGRESOS!$I$2:$I$101)+SUMPRODUCT((INGRESOS!$Y$2:$Y$101=3)*(INGRESOS!$X$2:$X$101=$A62)*INGRESOS!$J$2:$J$101),IF($H62="A",SUMPRODUCT((GASTOS!$AN$2:$AN$101=3)*(GASTOS!$AM$2:$AM$101=$A62)*GASTOS!$U$2:$U$101)+SUMPRODUCT((GASTOS!$AN$2:$AN$101=3)*(GASTOS!$AM$2:$AM$101=$A62)*GASTOS!$W$2:$W$101),0)) -> 0 | P62: =IF($H62="B",SUMPRODUCT((INGRESOS!$Y$2:$Y$101=4)*(INGRESOS!$X$2:$X$101=$A62)*INGRESOS!$F$2:$F$101)+SUMPRODUCT((INGRESOS!$Y$2:$Y$101=4)*(INGRESOS!$X$2:$X$101=$A62)*INGRESOS!$I$2:$I$101)+SUMPRODUCT((INGRESOS!$Y$2:$Y$101=4)*(INGRESOS!$X$2:$X$101=$A62)*INGRESOS!$J$2:$J$101),IF($H62="A",SUMPRODUCT((GASTOS!$AN$2:$AN$101=4)*(GASTOS!$AM$2:$AM$101=$A62)*GASTOS!$U$2:$U$101)+SUMPRODUCT((GASTOS!$AN$2:$AN$101=4)*(GASTOS!$AM$2:$AM$101=$A62)*GASTOS!$W$2:$W$101),0)) -> 0
A63: 26 | B63: =IF(NOT(ISERROR(MATCH(A63,INGRESOS!$X$1:$X$101,0))),"INGRESOS",IF(NOT(ISERROR(MATCH(A63,GASTOS!$AM$1:$AM$101,0))),"GASTOS","")) ->  | C63: =IF(B63="INGRESOS",INDEX(INGRESOS!$A$1:$X$101,MATCH(A63,INGRESOS!$X$1:$X$101,0),COLUMN(INGRESOS!D26)),IF(B63="GASTOS",INDEX(GASTOS!$A$1:$AM$101,MATCH(A63,GASTOS!$AM$1:$AM$101,0),COLUMN(INGRESOS!$D$1)),"")) ->  | E63: =IF(B63<>"",IF(B63="INGRESOS",INDEX(CLIENTES!$A$1:$E$200,MATCH(C63,CLIENTES!$B$1:$B$200,0),COLUMN(CLIENTES!$A$1)),INDEX(PROVEEDORES!$A$1:$E$200,MATCH(C63,PROVEEDORES!$B$1:$B$200,0),COLUMN(PROVEEDORES!$A$1))),"") ->  | F63: =IF(B63<>"",IF(""=IF(B63="INGRESOS",VLOOKUP(C63,CLIENTES!$B$1:$C$200,2,FALSE),VLOOKUP(C63,PROVEEDORES!$B$1:$C$200,2,FALSE)),"FALTA",VLOOKUP(IF(B63="INGRESOS",VLOOKUP(C63,CLIENTES!$B$1:$C$200,2,FALSE),VLOOKUP(C63,PROVEEDORES!$B$1:$C$200,2,FALSE)),'DATOS FISCALES'!$F$20:$G$72,2,FALSE)),"") ->  | I63: =IF(B63<>"",IF(B63="INGRESOS",VLOOKUP(C63,CLIENTES!$B$2:$E$200,3,FALSE),VLOOKUP(C63,PROVEEDORES!$B$2:$E$200,3,FALSE)),"") ->  | K63: =IF(B63<>"",IF(B63="INGRESOS",VLOOKUP(C63,CLIENTES!$B$2:$E$200,4,FALSE),VLOOKUP(C63,PROVEEDORES!$B$2:$E$200,4,FALSE)),0) -> 0 | L63: 0 | M63: =IF($H63="B",SUMPRODUCT((INGRESOS!$Y$2:$Y$101=1)*(INGRESOS!$X$2:$X$101=$A63)*INGRESOS!$F$2:$F$101)+SUMPRODUCT((INGRESOS!$Y$2:$Y$101=1)*(INGRESOS!$X$2:$X$101=$A63)*INGRESOS!$I$2:$I$101)+SUMPRODUCT((INGRESOS!$Y$2:$Y$101=1)*(INGRESOS!$X$2:$X$101=$A63)*INGRESOS!$J$2:$J$101),IF($H63="A",SUMPRODUCT((GASTOS!$AN$2:$AN$101=1)*(GASTOS!$AM$2:$AM$101=$A63)*GASTOS!$U$2:$U$101)+SUMPRODUCT((GASTOS!$AN$2:$AN$101=1)*(GASTOS!$AM$2:$AM$101=$A63)*GASTOS!$W$2:$W$101),0)) -> 0 | N63: =IF($H63="B",SUMPRODUCT((INGRESOS!$Y$2:$Y$101=2)*(INGRESOS!$X$2:$X$101=$A63)*INGRESOS!$F$2:$F$101)+SUMPRODUCT((INGRESOS!$Y$2:$Y$101=2)*(INGRESOS!$X$2:$X$101=$A63)*INGRESOS!$I$2:$I$101)+SUMPRODUCT((INGRESOS!$Y$2:$Y$101=2)*(INGRESOS!$X$2:$X$101=$A63)*INGRESOS!$J$2:$J$101),IF($H63="A",SUMPRODUCT((GASTOS!$AN$2:$AN$101=2)*(GASTOS!$AM$2:$AM$101=$A63)*GASTOS!$U$2:$U$101)+SUMPRODUCT((GASTOS!$AN$2:$AN$101=2)*(GASTOS!$AM$2:$AM$101=$A63)*GASTOS!$W$2:$W$101),0)) -> 0 | O63: =IF($H63="B",SUMPRODUCT((INGRESOS!$Y$2:$Y$101=3)*(INGRESOS!$X$2:$X$101=$A63)*INGRESOS!$F$2:$F$101)+SUMPRODUCT((INGRESOS!$Y$2:$Y$101=3)*(INGRESOS!$X$2:$X$101=$A63)*INGRESOS!$I$2:$I$101)+SUMPRODUCT((INGRESOS!$Y$2:$Y$101=3)*(INGRESOS!$X$2:$X$101=$A63)*INGRESOS!$J$2:$J$101),IF($H63="A",SUMPRODUCT((GASTOS!$AN$2:$AN$101=3)*(GASTOS!$AM$2:$AM$101=$A63)*GASTOS!$U$2:$U$101)+SUMPRODUCT((GASTOS!$AN$2:$AN$101=3)*(GASTOS!$AM$2:$AM$101=$A63)*GASTOS!$W$2:$W$101),0)) -> 0 | P63: =IF($H63="B",SUMPRODUCT((INGRESOS!$Y$2:$Y$101=4)*(INGRESOS!$X$2:$X$101=$A63)*INGRESOS!$F$2:$F$101)+SUMPRODUCT((INGRESOS!$Y$2:$Y$101=4)*(INGRESOS!$X$2:$X$101=$A63)*INGRESOS!$I$2:$I$101)+SUMPRODUCT((INGRESOS!$Y$2:$Y$101=4)*(INGRESOS!$X$2:$X$101=$A63)*INGRESOS!$J$2:$J$101),IF($H63="A",SUMPRODUCT((GASTOS!$AN$2:$AN$101=4)*(GASTOS!$AM$2:$AM$101=$A63)*GASTOS!$U$2:$U$101)+SUMPRODUCT((GASTOS!$AN$2:$AN$101=4)*(GASTOS!$AM$2:$AM$101=$A63)*GASTOS!$W$2:$W$101),0)) -> 0
A64: 27 | B64: =IF(NOT(ISERROR(MATCH(A64,INGRESOS!$X$1:$X$101,0))),"INGRESOS",IF(NOT(ISERROR(MATCH(A64,GASTOS!$AM$1:$AM$101,0))),"GASTOS","")) ->  | C64: =IF(B64="INGRESOS",INDEX(INGRESOS!$A$1:$X$101,MATCH(A64,INGRESOS!$X$1:$X$101,0),COLUMN(INGRESOS!D27)),IF(B64="GASTOS",INDEX(GASTOS!$A$1:$AM$101,MATCH(A64,GASTOS!$AM$1:$AM$101,0),COLUMN(INGRESOS!$D$1)),"")) ->  | E64: =IF(B64<>"",IF(B64="INGRESOS",INDEX(CLIENTES!$A$1:$E$200,MATCH(C64,CLIENTES!$B$1:$B$200,0),COLUMN(CLIENTES!$A$1)),INDEX(PROVEEDORES!$A$1:$E$200,MATCH(C64,PROVEEDORES!$B$1:$B$200,0),COLUMN(PROVEEDORES!$A$1))),"") ->  | F64: =IF(B64<>"",IF(""=IF(B64="INGRESOS",VLOOKUP(C64,CLIENTES!$B$1:$C$200,2,FALSE),VLOOKUP(C64,PROVEEDORES!$B$1:$C$200,2,FALSE)),"FALTA",VLOOKUP(IF(B64="INGRESOS",VLOOKUP(C64,CLIENTES!$B$1:$C$200,2,FALSE),VLOOKUP(C64,PROVEEDORES!$B$1:$C$200,2,FALSE)),'DATOS FISCALES'!$F$20:$G$72,2,FALSE)),"") ->  | I64: =IF(B64<>"",IF(B64="INGRESOS",VLOOKUP(C64,CLIENTES!$B$2:$E$200,3,FALSE),VLOOKUP(C64,PROVEEDORES!$B$2:$E$200,3,FALSE)),"") ->  | K64: =IF(B64<>"",IF(B64="INGRESOS",VLOOKUP(C64,CLIENTES!$B$2:$E$200,4,FALSE),VLOOKUP(C64,PROVEEDORES!$B$2:$E$200,4,FALSE)),0) -> 0 | L64: 0 | M64: =IF($H64="B",SUMPRODUCT((INGRESOS!$Y$2:$Y$101=1)*(INGRESOS!$X$2:$X$101=$A64)*INGRESOS!$F$2:$F$101)+SUMPRODUCT((INGRESOS!$Y$2:$Y$101=1)*(INGRESOS!$X$2:$X$101=$A64)*INGRESOS!$I$2:$I$101)+SUMPRODUCT((INGRESOS!$Y$2:$Y$101=1)*(INGRESOS!$X$2:$X$101=$A64)*INGRESOS!$J$2:$J$101),IF($H64="A",SUMPRODUCT((GASTOS!$AN$2:$AN$101=1)*(GASTOS!$AM$2:$AM$101=$A64)*GASTOS!$U$2:$U$101)+SUMPRODUCT((GASTOS!$AN$2:$AN$101=1)*(GASTOS!$AM$2:$AM$101=$A64)*GASTOS!$W$2:$W$101),0)) -> 0 | N64: =IF($H64="B",SUMPRODUCT((INGRESOS!$Y$2:$Y$101=2)*(INGRESOS!$X$2:$X$101=$A64)*INGRESOS!$F$2:$F$101)+SUMPRODUCT((INGRESOS!$Y$2:$Y$101=2)*(INGRESOS!$X$2:$X$101=$A64)*INGRESOS!$I$2:$I$101)+SUMPRODUCT((INGRESOS!$Y$2:$Y$101=2)*(INGRESOS!$X$2:$X$101=$A64)*INGRESOS!$J$2:$J$101),IF($H64="A",SUMPRODUCT((GASTOS!$AN$2:$AN$101=2)*(GASTOS!$AM$2:$AM$101=$A64)*GASTOS!$U$2:$U$101)+SUMPRODUCT((GASTOS!$AN$2:$AN$101=2)*(GASTOS!$AM$2:$AM$101=$A64)*GASTOS!$W$2:$W$101),0)) -> 0 | O64: =IF($H64="B",SUMPRODUCT((INGRESOS!$Y$2:$Y$101=3)*(INGRESOS!$X$2:$X$101=$A64)*INGRESOS!$F$2:$F$101)+SUMPRODUCT((INGRESOS!$Y$2:$Y$101=3)*(INGRESOS!$X$2:$X$101=$A64)*INGRESOS!$I$2:$I$101)+SUMPRODUCT((INGRESOS!$Y$2:$Y$101=3)*(INGRESOS!$X$2:$X$101=$A64)*INGRESOS!$J$2:$J$101),IF($H64="A",SUMPRODUCT((GASTOS!$AN$2:$AN$101=3)*(GASTOS!$AM$2:$AM$101=$A64)*GASTOS!$U$2:$U$101)+SUMPRODUCT((GASTOS!$AN$2:$AN$101=3)*(GASTOS!$AM$2:$AM$101=$A64)*GASTOS!$W$2:$W$101),0)) -> 0 | P64: =IF($H64="B",SUMPRODUCT((INGRESOS!$Y$2:$Y$101=4)*(INGRESOS!$X$2:$X$101=$A64)*INGRESOS!$F$2:$F$101)+SUMPRODUCT((INGRESOS!$Y$2:$Y$101=4)*(INGRESOS!$X$2:$X$101=$A64)*INGRESOS!$I$2:$I$101)+SUMPRODUCT((INGRESOS!$Y$2:$Y$101=4)*(INGRESOS!$X$2:$X$101=$A64)*INGRESOS!$J$2:$J$101),IF($H64="A",SUMPRODUCT((GASTOS!$AN$2:$AN$101=4)*(GASTOS!$AM$2:$AM$101=$A64)*GASTOS!$U$2:$U$101)+SUMPRODUCT((GASTOS!$AN$2:$AN$101=4)*(GASTOS!$AM$2:$AM$101=$A64)*GASTOS!$W$2:$W$101),0)) -> 0
A65: 28 | B65: =IF(NOT(ISERROR(MATCH(A65,INGRESOS!$X$1:$X$101,0))),"INGRESOS",IF(NOT(ISERROR(MATCH(A65,GASTOS!$AM$1:$AM$101,0))),"GASTOS","")) ->  | C65: =IF(B65="INGRESOS",INDEX(INGRESOS!$A$1:$X$101,MATCH(A65,INGRESOS!$X$1:$X$101,0),COLUMN(INGRESOS!D28)),IF(B65="GASTOS",INDEX(GASTOS!$A$1:$AM$101,MATCH(A65,GASTOS!$AM$1:$AM$101,0),COLUMN(INGRESOS!$D$1)),"")) ->  | E65: =IF(B65<>"",IF(B65="INGRESOS",INDEX(CLIENTES!$A$1:$E$200,MATCH(C65,CLIENTES!$B$1:$B$200,0),COLUMN(CLIENTES!$A$1)),INDEX(PROVEEDORES!$A$1:$E$200,MATCH(C65,PROVEEDORES!$B$1:$B$200,0),COLUMN(PROVEEDORES!$A$1))),"") ->  | F65: =IF(B65<>"",IF(""=IF(B65="INGRESOS",VLOOKUP(C65,CLIENTES!$B$1:$C$200,2,FALSE),VLOOKUP(C65,PROVEEDORES!$B$1:$C$200,2,FALSE)),"FALTA",VLOOKUP(IF(B65="INGRESOS",VLOOKUP(C65,CLIENTES!$B$1:$C$200,2,FALSE),VLOOKUP(C65,PROVEEDORES!$B$1:$C$200,2,FALSE)),'DATOS FISCALES'!$F$20:$G$72,2,FALSE)),"") ->  | I65: =IF(B65<>"",IF(B65="INGRESOS",VLOOKUP(C65,CLIENTES!$B$2:$E$200,3,FALSE),VLOOKUP(C65,PROVEEDORES!$B$2:$E$200,3,FALSE)),"") ->  | K65: =IF(B65<>"",IF(B65="INGRESOS",VLOOKUP(C65,CLIENTES!$B$2:$E$200,4,FALSE),VLOOKUP(C65,PROVEEDORES!$B$2:$E$200,4,FALSE)),0) -> 0 | L65: 0 | M65: =IF($H65="B",SUMPRODUCT((INGRESOS!$Y$2:$Y$101=1)*(INGRESOS!$X$2:$X$101=$A65)*INGRESOS!$F$2:$F$101)+SUMPRODUCT((INGRESOS!$Y$2:$Y$101=1)*(INGRESOS!$X$2:$X$101=$A65)*INGRESOS!$I$2:$I$101)+SUMPRODUCT((INGRESOS!$Y$2:$Y$101=1)*(INGRESOS!$X$2:$X$101=$A65)*INGRESOS!$J$2:$J$101),IF($H65="A",SUMPRODUCT((GASTOS!$AN$2:$AN$101=1)*(GASTOS!$AM$2:$AM$101=$A65)*GASTOS!$U$2:$U$101)+SUMPRODUCT((GASTOS!$AN$2:$AN$101=1)*(GASTOS!$AM$2:$AM$101=$A65)*GASTOS!$W$2:$W$101),0)) -> 0 | N65: =IF($H65="B",SUMPRODUCT((INGRESOS!$Y$2:$Y$101=2)*(INGRESOS!$X$2:$X$101=$A65)*INGRESOS!$F$2:$F$101)+SUMPRODUCT((INGRESOS!$Y$2:$Y$101=2)*(INGRESOS!$X$2:$X$101=$A65)*INGRESOS!$I$2:$I$101)+SUMPRODUCT((INGRESOS!$Y$2:$Y$101=2)*(INGRESOS!$X$2:$X$101=$A65)*INGRESOS!$J$2:$J$101),IF($H65="A",SUMPRODUCT((GASTOS!$AN$2:$AN$101=2)*(GASTOS!$AM$2:$AM$101=$A65)*GASTOS!$U$2:$U$101)+SUMPRODUCT((GASTOS!$AN$2:$AN$101=2)*(GASTOS!$AM$2:$AM$101=$A65)*GASTOS!$W$2:$W$101),0)) -> 0 | O65: =IF($H65="B",SUMPRODUCT((INGRESOS!$Y$2:$Y$101=3)*(INGRESOS!$X$2:$X$101=$A65)*INGRESOS!$F$2:$F$101)+SUMPRODUCT((INGRESOS!$Y$2:$Y$101=3)*(INGRESOS!$X$2:$X$101=$A65)*INGRESOS!$I$2:$I$101)+SUMPRODUCT((INGRESOS!$Y$2:$Y$101=3)*(INGRESOS!$X$2:$X$101=$A65)*INGRESOS!$J$2:$J$101),IF($H65="A",SUMPRODUCT((GASTOS!$AN$2:$AN$101=3)*(GASTOS!$AM$2:$AM$101=$A65)*GASTOS!$U$2:$U$101)+SUMPRODUCT((GASTOS!$AN$2:$AN$101=3)*(GASTOS!$AM$2:$AM$101=$A65)*GASTOS!$W$2:$W$101),0)) -> 0 | P65: =IF($H65="B",SUMPRODUCT((INGRESOS!$Y$2:$Y$101=4)*(INGRESOS!$X$2:$X$101=$A65)*INGRESOS!$F$2:$F$101)+SUMPRODUCT((INGRESOS!$Y$2:$Y$101=4)*(INGRESOS!$X$2:$X$101=$A65)*INGRESOS!$I$2:$I$101)+SUMPRODUCT((INGRESOS!$Y$2:$Y$101=4)*(INGRESOS!$X$2:$X$101=$A65)*INGRESOS!$J$2:$J$101),IF($H65="A",SUMPRODUCT((GASTOS!$AN$2:$AN$101=4)*(GASTOS!$AM$2:$AM$101=$A65)*GASTOS!$U$2:$U$101)+SUMPRODUCT((GASTOS!$AN$2:$AN$101=4)*(GASTOS!$AM$2:$AM$101=$A65)*GASTOS!$W$2:$W$101),0)) -> 0
A66: 29 | B66: =IF(NOT(ISERROR(MATCH(A66,INGRESOS!$X$1:$X$101,0))),"INGRESOS",IF(NOT(ISERROR(MATCH(A66,GASTOS!$AM$1:$AM$101,0))),"GASTOS","")) ->  | C66: =IF(B66="INGRESOS",INDEX(INGRESOS!$A$1:$X$101,MATCH(A66,INGRESOS!$X$1:$X$101,0),COLUMN(INGRESOS!D29)),IF(B66="GASTOS",INDEX(GASTOS!$A$1:$AM$101,MATCH(A66,GASTOS!$AM$1:$AM$101,0),COLUMN(INGRESOS!$D$1)),"")) ->  | E66: =IF(B66<>"",IF(B66="INGRESOS",INDEX(CLIENTES!$A$1:$E$200,MATCH(C66,CLIENTES!$B$1:$B$200,0),COLUMN(CLIENTES!$A$1)),INDEX(PROVEEDORES!$A$1:$E$200,MATCH(C66,PROVEEDORES!$B$1:$B$200,0),COLUMN(PROVEEDORES!$A$1))),"") ->  | F66: =IF(B66<>"",IF(""=IF(B66="INGRESOS",VLOOKUP(C66,CLIENTES!$B$1:$C$200,2,FALSE),VLOOKUP(C66,PROVEEDORES!$B$1:$C$200,2,FALSE)),"FALTA",VLOOKUP(IF(B66="INGRESOS",VLOOKUP(C66,CLIENTES!$B$1:$C$200,2,FALSE),VLOOKUP(C66,PROVEEDORES!$B$1:$C$200,2,FALSE)),'DATOS FISCALES'!$F$20:$G$72,2,FALSE)),"") ->  | I66: =IF(B66<>"",IF(B66="INGRESOS",VLOOKUP(C66,CLIENTES!$B$2:$E$200,3,FALSE),VLOOKUP(C66,PROVEEDORES!$B$2:$E$200,3,FALSE)),"") ->  | K66: =IF(B66<>"",IF(B66="INGRESOS",VLOOKUP(C66,CLIENTES!$B$2:$E$200,4,FALSE),VLOOKUP(C66,PROVEEDORES!$B$2:$E$200,4,FALSE)),0) -> 0 | L66: 0 | M66: =IF($H66="B",SUMPRODUCT((INGRESOS!$Y$2:$Y$101=1)*(INGRESOS!$X$2:$X$101=$A66)*INGRESOS!$F$2:$F$101)+SUMPRODUCT((INGRESOS!$Y$2:$Y$101=1)*(INGRESOS!$X$2:$X$101=$A66)*INGRESOS!$I$2:$I$101)+SUMPRODUCT((INGRESOS!$Y$2:$Y$101=1)*(INGRESOS!$X$2:$X$101=$A66)*INGRESOS!$J$2:$J$101),IF($H66="A",SUMPRODUCT((GASTOS!$AN$2:$AN$101=1)*(GASTOS!$AM$2:$AM$101=$A66)*GASTOS!$U$2:$U$101)+SUMPRODUCT((GASTOS!$AN$2:$AN$101=1)*(GASTOS!$AM$2:$AM$101=$A66)*GASTOS!$W$2:$W$101),0)) -> 0 | N66: =IF($H66="B",SUMPRODUCT((INGRESOS!$Y$2:$Y$101=2)*(INGRESOS!$X$2:$X$101=$A66)*INGRESOS!$F$2:$F$101)+SUMPRODUCT((INGRESOS!$Y$2:$Y$101=2)*(INGRESOS!$X$2:$X$101=$A66)*INGRESOS!$I$2:$I$101)+SUMPRODUCT((INGRESOS!$Y$2:$Y$101=2)*(INGRESOS!$X$2:$X$101=$A66)*INGRESOS!$J$2:$J$101),IF($H66="A",SUMPRODUCT((GASTOS!$AN$2:$AN$101=2)*(GASTOS!$AM$2:$AM$101=$A66)*GASTOS!$U$2:$U$101)+SUMPRODUCT((GASTOS!$AN$2:$AN$101=2)*(GASTOS!$AM$2:$AM$101=$A66)*GASTOS!$W$2:$W$101),0)) -> 0 | O66: =IF($H66="B",SUMPRODUCT((INGRESOS!$Y$2:$Y$101=3)*(INGRESOS!$X$2:$X$101=$A66)*INGRESOS!$F$2:$F$101)+SUMPRODUCT((INGRESOS!$Y$2:$Y$101=3)*(INGRESOS!$X$2:$X$101=$A66)*INGRESOS!$I$2:$I$101)+SUMPRODUCT((INGRESOS!$Y$2:$Y$101=3)*(INGRESOS!$X$2:$X$101=$A66)*INGRESOS!$J$2:$J$101),IF($H66="A",SUMPRODUCT((GASTOS!$AN$2:$AN$101=3)*(GASTOS!$AM$2:$AM$101=$A66)*GASTOS!$U$2:$U$101)+SUMPRODUCT((GASTOS!$AN$2:$AN$101=3)*(GASTOS!$AM$2:$AM$101=$A66)*GASTOS!$W$2:$W$101),0)) -> 0 | P66: =IF($H66="B",SUMPRODUCT((INGRESOS!$Y$2:$Y$101=4)*(INGRESOS!$X$2:$X$101=$A66)*INGRESOS!$F$2:$F$101)+SUMPRODUCT((INGRESOS!$Y$2:$Y$101=4)*(INGRESOS!$X$2:$X$101=$A66)*INGRESOS!$I$2:$I$101)+SUMPRODUCT((INGRESOS!$Y$2:$Y$101=4)*(INGRESOS!$X$2:$X$101=$A66)*INGRESOS!$J$2:$J$101),IF($H66="A",SUMPRODUCT((GASTOS!$AN$2:$AN$101=4)*(GASTOS!$AM$2:$AM$101=$A66)*GASTOS!$U$2:$U$101)+SUMPRODUCT((GASTOS!$AN$2:$AN$101=4)*(GASTOS!$AM$2:$AM$101=$A66)*GASTOS!$W$2:$W$101),0)) -> 0
A67: 30 | B67: =IF(NOT(ISERROR(MATCH(A67,INGRESOS!$X$1:$X$101,0))),"INGRESOS",IF(NOT(ISERROR(MATCH(A67,GASTOS!$AM$1:$AM$101,0))),"GASTOS","")) ->  | C67: =IF(B67="INGRESOS",INDEX(INGRESOS!$A$1:$X$101,MATCH(A67,INGRESOS!$X$1:$X$101,0),COLUMN(INGRESOS!D30)),IF(B67="GASTOS",INDEX(GASTOS!$A$1:$AM$101,MATCH(A67,GASTOS!$AM$1:$AM$101,0),COLUMN(INGRESOS!$D$1)),"")) ->  | E67: =IF(B67<>"",IF(B67="INGRESOS",INDEX(CLIENTES!$A$1:$E$200,MATCH(C67,CLIENTES!$B$1:$B$200,0),COLUMN(CLIENTES!$A$1)),INDEX(PROVEEDORES!$A$1:$E$200,MATCH(C67,PROVEEDORES!$B$1:$B$200,0),COLUMN(PROVEEDORES!$A$1))),"") ->  | F67: =IF(B67<>"",IF(""=IF(B67="INGRESOS",VLOOKUP(C67,CLIENTES!$B$1:$C$200,2,FALSE),VLOOKUP(C67,PROVEEDORES!$B$1:$C$200,2,FALSE)),"FALTA",VLOOKUP(IF(B67="INGRESOS",VLOOKUP(C67,CLIENTES!$B$1:$C$200,2,FALSE),VLOOKUP(C67,PROVEEDORES!$B$1:$C$200,2,FALSE)),'DATOS FISCALES'!$F$20:$G$72,2,FALSE)),"") ->  | I67: =IF(B67<>"",IF(B67="INGRESOS",VLOOKUP(C67,CLIENTES!$B$2:$E$200,3,FALSE),VLOOKUP(C67,PROVEEDORES!$B$2:$E$200,3,FALSE)),"") ->  | K67: =IF(B67<>"",IF(B67="INGRESOS",VLOOKUP(C67,CLIENTES!$B$2:$E$200,4,FALSE),VLOOKUP(C67,PROVEEDORES!$B$2:$E$200,4,FALSE)),0) -> 0 | L67: 0 | M67: =IF($H67="B",SUMPRODUCT((INGRESOS!$Y$2:$Y$101=1)*(INGRESOS!$X$2:$X$101=$A67)*INGRESOS!$F$2:$F$101)+SUMPRODUCT((INGRESOS!$Y$2:$Y$101=1)*(INGRESOS!$X$2:$X$101=$A67)*INGRESOS!$I$2:$I$101)+SUMPRODUCT((INGRESOS!$Y$2:$Y$101=1)*(INGRESOS!$X$2:$X$101=$A67)*INGRESOS!$J$2:$J$101),IF($H67="A",SUMPRODUCT((GASTOS!$AN$2:$AN$101=1)*(GASTOS!$AM$2:$AM$101=$A67)*GASTOS!$U$2:$U$101)+SUMPRODUCT((GASTOS!$AN$2:$AN$101=1)*(GASTOS!$AM$2:$AM$101=$A67)*GASTOS!$W$2:$W$101),0)) -> 0 | N67: =IF($H67="B",SUMPRODUCT((INGRESOS!$Y$2:$Y$101=2)*(INGRESOS!$X$2:$X$101=$A67)*INGRESOS!$F$2:$F$101)+SUMPRODUCT((INGRESOS!$Y$2:$Y$101=2)*(INGRESOS!$X$2:$X$101=$A67)*INGRESOS!$I$2:$I$101)+SUMPRODUCT((INGRESOS!$Y$2:$Y$101=2)*(INGRESOS!$X$2:$X$101=$A67)*INGRESOS!$J$2:$J$101),IF($H67="A",SUMPRODUCT((GASTOS!$AN$2:$AN$101=2)*(GASTOS!$AM$2:$AM$101=$A67)*GASTOS!$U$2:$U$101)+SUMPRODUCT((GASTOS!$AN$2:$AN$101=2)*(GASTOS!$AM$2:$AM$101=$A67)*GASTOS!$W$2:$W$101),0)) -> 0 | O67: =IF($H67="B",SUMPRODUCT((INGRESOS!$Y$2:$Y$101=3)*(INGRESOS!$X$2:$X$101=$A67)*INGRESOS!$F$2:$F$101)+SUMPRODUCT((INGRESOS!$Y$2:$Y$101=3)*(INGRESOS!$X$2:$X$101=$A67)*INGRESOS!$I$2:$I$101)+SUMPRODUCT((INGRESOS!$Y$2:$Y$101=3)*(INGRESOS!$X$2:$X$101=$A67)*INGRESOS!$J$2:$J$101),IF($H67="A",SUMPRODUCT((GASTOS!$AN$2:$AN$101=3)*(GASTOS!$AM$2:$AM$101=$A67)*GASTOS!$U$2:$U$101)+SUMPRODUCT((GASTOS!$AN$2:$AN$101=3)*(GASTOS!$AM$2:$AM$101=$A67)*GASTOS!$W$2:$W$101),0)) -> 0 | P67: =IF($H67="B",SUMPRODUCT((INGRESOS!$Y$2:$Y$101=4)*(INGRESOS!$X$2:$X$101=$A67)*INGRESOS!$F$2:$F$101)+SUMPRODUCT((INGRESOS!$Y$2:$Y$101=4)*(INGRESOS!$X$2:$X$101=$A67)*INGRESOS!$I$2:$I$101)+SUMPRODUCT((INGRESOS!$Y$2:$Y$101=4)*(INGRESOS!$X$2:$X$101=$A67)*INGRESOS!$J$2:$J$101),IF($H67="A",SUMPRODUCT((GASTOS!$AN$2:$AN$101=4)*(GASTOS!$AM$2:$AM$101=$A67)*GASTOS!$U$2:$U$101)+SUMPRODUCT((GASTOS!$AN$2:$AN$101=4)*(GASTOS!$AM$2:$AM$101=$A67)*GASTOS!$W$2:$W$101),0)) -> 0
A68: 31 | B68: =IF(NOT(ISERROR(MATCH(A68,INGRESOS!$X$1:$X$101,0))),"INGRESOS",IF(NOT(ISERROR(MATCH(A68,GASTOS!$AM$1:$AM$101,0))),"GASTOS","")) ->  | C68: =IF(B68="INGRESOS",INDEX(INGRESOS!$A$1:$X$101,MATCH(A68,INGRESOS!$X$1:$X$101,0),COLUMN(INGRESOS!D31)),IF(B68="GASTOS",INDEX(GASTOS!$A$1:$AM$101,MATCH(A68,GASTOS!$AM$1:$AM$101,0),COLUMN(INGRESOS!$D$1)),"")) ->  | E68: =IF(B68<>"",IF(B68="INGRESOS",INDEX(CLIENTES!$A$1:$E$200,MATCH(C68,CLIENTES!$B$1:$B$200,0),COLUMN(CLIENTES!$A$1)),INDEX(PROVEEDORES!$A$1:$E$200,MATCH(C68,PROVEEDORES!$B$1:$B$200,0),COLUMN(PROVEEDORES!$A$1))),"") ->  | F68: =IF(B68<>"",IF(""=IF(B68="INGRESOS",VLOOKUP(C68,CLIENTES!$B$1:$C$200,2,FALSE),VLOOKUP(C68,PROVEEDORES!$B$1:$C$200,2,FALSE)),"FALTA",VLOOKUP(IF(B68="INGRESOS",VLOOKUP(C68,CLIENTES!$B$1:$C$200,2,FALSE),VLOOKUP(C68,PROVEEDORES!$B$1:$C$200,2,FALSE)),'DATOS FISCALES'!$F$20:$G$72,2,FALSE)),"") ->  | I68: =IF(B68<>"",IF(B68="INGRESOS",VLOOKUP(C68,CLIENTES!$B$2:$E$200,3,FALSE),VLOOKUP(C68,PROVEEDORES!$B$2:$E$200,3,FALSE)),"") ->  | K68: =IF(B68<>"",IF(B68="INGRESOS",VLOOKUP(C68,CLIENTES!$B$2:$E$200,4,FALSE),VLOOKUP(C68,PROVEEDORES!$B$2:$E$200,4,FALSE)),0) -> 0 | L68: 0 | M68: =IF($H68="B",SUMPRODUCT((INGRESOS!$Y$2:$Y$101=1)*(INGRESOS!$X$2:$X$101=$A68)*INGRESOS!$F$2:$F$101)+SUMPRODUCT((INGRESOS!$Y$2:$Y$101=1)*(INGRESOS!$X$2:$X$101=$A68)*INGRESOS!$I$2:$I$101)+SUMPRODUCT((INGRESOS!$Y$2:$Y$101=1)*(INGRESOS!$X$2:$X$101=$A68)*INGRESOS!$J$2:$J$101),IF($H68="A",SUMPRODUCT((GASTOS!$AN$2:$AN$101=1)*(GASTOS!$AM$2:$AM$101=$A68)*GASTOS!$U$2:$U$101)+SUMPRODUCT((GASTOS!$AN$2:$AN$101=1)*(GASTOS!$AM$2:$AM$101=$A68)*GASTOS!$W$2:$W$101),0)) -> 0 | N68: =IF($H68="B",SUMPRODUCT((INGRESOS!$Y$2:$Y$101=2)*(INGRESOS!$X$2:$X$101=$A68)*INGRESOS!$F$2:$F$101)+SUMPRODUCT((INGRESOS!$Y$2:$Y$101=2)*(INGRESOS!$X$2:$X$101=$A68)*INGRESOS!$I$2:$I$101)+SUMPRODUCT((INGRESOS!$Y$2:$Y$101=2)*(INGRESOS!$X$2:$X$101=$A68)*INGRESOS!$J$2:$J$101),IF($H68="A",SUMPRODUCT((GASTOS!$AN$2:$AN$101=2)*(GASTOS!$AM$2:$AM$101=$A68)*GASTOS!$U$2:$U$101)+SUMPRODUCT((GASTOS!$AN$2:$AN$101=2)*(GASTOS!$AM$2:$AM$101=$A68)*GASTOS!$W$2:$W$101),0)) -> 0 | O68: =IF($H68="B",SUMPRODUCT((INGRESOS!$Y$2:$Y$101=3)*(INGRESOS!$X$2:$X$101=$A68)*INGRESOS!$F$2:$F$101)+SUMPRODUCT((INGRESOS!$Y$2:$Y$101=3)*(INGRESOS!$X$2:$X$101=$A68)*INGRESOS!$I$2:$I$101)+SUMPRODUCT((INGRESOS!$Y$2:$Y$101=3)*(INGRESOS!$X$2:$X$101=$A68)*INGRESOS!$J$2:$J$101),IF($H68="A",SUMPRODUCT((GASTOS!$AN$2:$AN$101=3)*(GASTOS!$AM$2:$AM$101=$A68)*GASTOS!$U$2:$U$101)+SUMPRODUCT((GASTOS!$AN$2:$AN$101=3)*(GASTOS!$AM$2:$AM$101=$A68)*GASTOS!$W$2:$W$101),0)) -> 0 | P68: =IF($H68="B",SUMPRODUCT((INGRESOS!$Y$2:$Y$101=4)*(INGRESOS!$X$2:$X$101=$A68)*INGRESOS!$F$2:$F$101)+SUMPRODUCT((INGRESOS!$Y$2:$Y$101=4)*(INGRESOS!$X$2:$X$101=$A68)*INGRESOS!$I$2:$I$101)+SUMPRODUCT((INGRESOS!$Y$2:$Y$101=4)*(INGRESOS!$X$2:$X$101=$A68)*INGRESOS!$J$2:$J$101),IF($H68="A",SUMPRODUCT((GASTOS!$AN$2:$AN$101=4)*(GASTOS!$AM$2:$AM$101=$A68)*GASTOS!$U$2:$U$101)+SUMPRODUCT((GASTOS!$AN$2:$AN$101=4)*(GASTOS!$AM$2:$AM$101=$A68)*GASTOS!$W$2:$W$101),0)) -> 0
A69: 32 | B69: =IF(NOT(ISERROR(MATCH(A69,INGRESOS!$X$1:$X$101,0))),"INGRESOS",IF(NOT(ISERROR(MATCH(A69,GASTOS!$AM$1:$AM$101,0))),"GASTOS","")) ->  | C69: =IF(B69="INGRESOS",INDEX(INGRESOS!$A$1:$X$101,MATCH(A69,INGRESOS!$X$1:$X$101,0),COLUMN(INGRESOS!D32)),IF(B69="GASTOS",INDEX(GASTOS!$A$1:$AM$101,MATCH(A69,GASTOS!$AM$1:$AM$101,0),COLUMN(INGRESOS!$D$1)),"")) ->  | E69: =IF(B69<>"",IF(B69="INGRESOS",INDEX(CLIENTES!$A$1:$E$200,MATCH(C69,CLIENTES!$B$1:$B$200,0),COLUMN(CLIENTES!$A$1)),INDEX(PROVEEDORES!$A$1:$E$200,MATCH(C69,PROVEEDORES!$B$1:$B$200,0),COLUMN(PROVEEDORES!$A$1))),"") ->  | F69: =IF(B69<>"",IF(""=IF(B69="INGRESOS",VLOOKUP(C69,CLIENTES!$B$1:$C$200,2,FALSE),VLOOKUP(C69,PROVEEDORES!$B$1:$C$200,2,FALSE)),"FALTA",VLOOKUP(IF(B69="INGRESOS",VLOOKUP(C69,CLIENTES!$B$1:$C$200,2,FALSE),VLOOKUP(C69,PROVEEDORES!$B$1:$C$200,2,FALSE)),'DATOS FISCALES'!$F$20:$G$72,2,FALSE)),"") ->  | I69: =IF(B69<>"",IF(B69="INGRESOS",VLOOKUP(C69,CLIENTES!$B$2:$E$200,3,FALSE),VLOOKUP(C69,PROVEEDORES!$B$2:$E$200,3,FALSE)),"") ->  | K69: =IF(B69<>"",IF(B69="INGRESOS",VLOOKUP(C69,CLIENTES!$B$2:$E$200,4,FALSE),VLOOKUP(C69,PROVEEDORES!$B$2:$E$200,4,FALSE)),0) -> 0 | L69: 0 | M69: =IF($H69="B",SUMPRODUCT((INGRESOS!$Y$2:$Y$101=1)*(INGRESOS!$X$2:$X$101=$A69)*INGRESOS!$F$2:$F$101)+SUMPRODUCT((INGRESOS!$Y$2:$Y$101=1)*(INGRESOS!$X$2:$X$101=$A69)*INGRESOS!$I$2:$I$101)+SUMPRODUCT((INGRESOS!$Y$2:$Y$101=1)*(INGRESOS!$X$2:$X$101=$A69)*INGRESOS!$J$2:$J$101),IF($H69="A",SUMPRODUCT((GASTOS!$AN$2:$AN$101=1)*(GASTOS!$AM$2:$AM$101=$A69)*GASTOS!$U$2:$U$101)+SUMPRODUCT((GASTOS!$AN$2:$AN$101=1)*(GASTOS!$AM$2:$AM$101=$A69)*GASTOS!$W$2:$W$101),0)) -> 0 | N69: =IF($H69="B",SUMPRODUCT((INGRESOS!$Y$2:$Y$101=2)*(INGRESOS!$X$2:$X$101=$A69)*INGRESOS!$F$2:$F$101)+SUMPRODUCT((INGRESOS!$Y$2:$Y$101=2)*(INGRESOS!$X$2:$X$101=$A69)*INGRESOS!$I$2:$I$101)+SUMPRODUCT((INGRESOS!$Y$2:$Y$101=2)*(INGRESOS!$X$2:$X$101=$A69)*INGRESOS!$J$2:$J$101),IF($H69="A",SUMPRODUCT((GASTOS!$AN$2:$AN$101=2)*(GASTOS!$AM$2:$AM$101=$A69)*GASTOS!$U$2:$U$101)+SUMPRODUCT((GASTOS!$AN$2:$AN$101=2)*(GASTOS!$AM$2:$AM$101=$A69)*GASTOS!$W$2:$W$101),0)) -> 0 | O69: =IF($H69="B",SUMPRODUCT((INGRESOS!$Y$2:$Y$101=3)*(INGRESOS!$X$2:$X$101=$A69)*INGRESOS!$F$2:$F$101)+SUMPRODUCT((INGRESOS!$Y$2:$Y$101=3)*(INGRESOS!$X$2:$X$101=$A69)*INGRESOS!$I$2:$I$101)+SUMPRODUCT((INGRESOS!$Y$2:$Y$101=3)*(INGRESOS!$X$2:$X$101=$A69)*INGRESOS!$J$2:$J$101),IF($H69="A",SUMPRODUCT((GASTOS!$AN$2:$AN$101=3)*(GASTOS!$AM$2:$AM$101=$A69)*GASTOS!$U$2:$U$101)+SUMPRODUCT((GASTOS!$AN$2:$AN$101=3)*(GASTOS!$AM$2:$AM$101=$A69)*GASTOS!$W$2:$W$101),0)) -> 0 | P69: =IF($H69="B",SUMPRODUCT((INGRESOS!$Y$2:$Y$101=4)*(INGRESOS!$X$2:$X$101=$A69)*INGRESOS!$F$2:$F$101)+SUMPRODUCT((INGRESOS!$Y$2:$Y$101=4)*(INGRESOS!$X$2:$X$101=$A69)*INGRESOS!$I$2:$I$101)+SUMPRODUCT((INGRESOS!$Y$2:$Y$101=4)*(INGRESOS!$X$2:$X$101=$A69)*INGRESOS!$J$2:$J$101),IF($H69="A",SUMPRODUCT((GASTOS!$AN$2:$AN$101=4)*(GASTOS!$AM$2:$AM$101=$A69)*GASTOS!$U$2:$U$101)+SUMPRODUCT((GASTOS!$AN$2:$AN$101=4)*(GASTOS!$AM$2:$AM$101=$A69)*GASTOS!$W$2:$W$101),0)) -> 0

Sheet CLIENTES
A1: APELLIDOS Y NOMBRE O RAZÓN SOCIAL | B1: NIF / CIF | C1: Para Modelo 347: PROVINCIA | D1: Para Modelo 347: Arrendamiento local negocio: "X" | E1: Para M-347: Importe percibido en metálico
A2: CLIENTE A | B2: A12896448 | C2: MADRID
A3: CLIENTE B | B3: A1111111 | C3: BARCELONA
A4: CLIENTE C | B4: B12345678 | C4: ALBACETE

Sheet PROVEEDORES
A1: APELLIDOS Y NOMBRE O RAZÓN SOCIAL | B1: NIF / CIF | C1: Para Modelo 347: PROVINCIA | D1: Para Modelo 347: Arrendamiento local negocio: "X" | E1: Para M-347: Importe percibido en metálico
A2: PROVEEDOR A | B2: A12896448 | C2: MADRID
A3: PROVEEDOR B | B3: A1111111 | C3: BARCELONA
A4: PROVEEDOR C | B4: B12345678 | C4: ALBACETE

Sheet Bienes de inversión
B1: MANGLOSER ES EL AUTOR DE ESTA HOJA Y SUS MACROS, NUESTRO MÁS SINCERO AGRADECIMIENTO.
B2: Nº Anotación | C2: Fecha | F2: inmovilizado, material e inmaterial | I2: Valor de adquisición | K2: % amortización | L2: Nº Trimestres
C3: Factura | D3: inicio Amort. | E3: Fin Amort. | F3: Nº Factura | G3: CIF | H3: PROVEEDOR | I3: Base imponible | J3: IVA
B4: 1 | C4: 2012-05-17 | D4: =IF(C4<>"",IF(MONTH(C4)<=3,DATE(YEAR(C4),3,31),IF(AND(MONTH(C4)>3,MONTH(C4)<=6),DATE(YEAR(C4),6,30),IF(AND(MONTH(C4)>6,MONTH(C4)<=9),DATE(YEAR(C4),9,30),(DATE(YEAR(C4),12,31))))),"") -> 2012-06-30 | E4: =IF(C4<>"",EDATE(D4,(L4*3-3)),"") -> 2018-06-30 | F4: 13485 | G4: B------- | H4: Proveedor A, S.L. | I4: 14775.42 | J4: 2659.58 | K4: 0.16 | L4: =ROUNDUP((4)/(K4),0) -> 25
A5: ,,,,,,,,,,,,,,,,,,,,,,,,,,,,,,,,,,,,,,,,,,,,,,,,,,,,,,,,,,,,,ol. | B5: Descripción | C5: furgoneta marca A matrícula _____ | I5: Cuota amort. Trimestre | K5: =IF(I4<>"",SLN(I4,0,L4),"") -> 591.0168 | M5: =IF(I4<>"",IF(AND(MONTH(C4)<=3,YEAR(C4)=2012),I4/L4,"")) -> 
I6: Total amort. 1er año | K6: =IF(D4<>"",IF(MONTH(D4)<=3,(K5*4),IF(AND(MONTH(D4)>3,MONTH(D4)<=6),(K5*3),IF(AND(MONTH(D4)>6,MONTH(D4)<=9),(K5*2),K5))),"") -> 1773.0504
I7: Total amort año completo | K7: =IF(C4<>"",IF(AND(DATEDIF(D4,E4,"m")>=12),K5*4,""),"") -> 2364.0672
I8: Total amort. último año | K8: =IF(E4<>"",IF(AND(MONTH(E4)>3,MONTH(E4)<=6),(K5*2),IF(AND(MONTH(E4)>6,MONTH(E4)<=9),(K5*3),IF(AND(MONTH(E4)>9,MONTH(E4)<=12),(K5*4),K5))),"") -> 1182.0336
B9: capital amortizado | D9: =SUM(B11:L11) -> 4137.13 | F9: capital pendiente | H9: =I4-D9 -> 10638.29
B10: =YEAR(D4) -> 2012 | C10: =IF(B10="","",IF((B10+1)>YEAR(E4),"",B10+1)) -> 2013 | D10: =IF(C10="","",IF((C10+1)>YEAR(E4),"",C10+1)) -> 2014 | E10: =IF(D10="","",IF((D10+1)>YEAR(E4),"",D10+1)) -> 2015 | F10: =IF(E10="","",IF((E10+1)>YEAR(E4),"",E10+1)) -> 2016 | G10: =IF(F10="","",IF((F10+1)>YEAR(E4),"",F10+1)) -> 2017 | H10: =IF(G10="","",IF((G10+1)>YEAR(E4),"",G10+1)) -> 2018 | I10: =IF(H10="","",IF((H10+1)>YEAR(E4),"",H10+1)) ->  | J10: =IF(I10="","",IF((I10+1)>YEAR(E4),"",I10+1)) ->  | K10: =IF(J10="","",IF((J10+1)>YEAR(E4),"",J10+1)) ->  | L10: =IF(K10="","",IF((K10+1)>YEAR(E4),"",K10+1)) -> 
B11: 1773.05 | C11: 2364.08 | D11: =IF(YEAR(TODAY())=D10,SUMIF(GASTOS!C2:C101,F4,GASTOS!Q2:Q101),"") ->  | E11: =IF(YEAR(TODAY())=E10,SUMIF(GASTOS!C2:C101,F4,GASTOS!Q2:Q101),"") ->  | F11: =IF(YEAR(TODAY())=F10,SUMIF(GASTOS!C2:C101,F4,GASTOS!Q2:Q101),"") ->  | G11: =IF(YEAR(TODAY())=G10,SUMIF(GASTOS!C2:C101,F4,GASTOS!Q2:Q101),"") ->  | H11: =IF(YEAR(TODAY())=H10,SUMIF(GASTOS!C2:C101,F4,GASTOS!Q2:Q101),"") ->  | I11: =IF(YEAR(TODAY())=I10,SUMIF(GASTOS!C2:C101,F4,GASTOS!Q2:Q101),"") ->  | J11: =IF(YEAR(TODAY())=J10,SUMIF(GASTOS!C2:C101,F4,GASTOS!Q2:Q101),"") ->  | K11: =IF(YEAR(TODAY())=K10,SUMIF(GASTOS!C2:C101,F4,GASTOS!Q2:Q101),"") ->  | L11: =IF(YEAR(TODAY())=L10,SUMIF(GASTOS!C2:C101,F4,GASTOS!Q2:Q101),"") -> 
B12: Nº Anotación | C12: Fecha | F12: inmovilizado, material e inmaterial | I12: Valor de adquisición | K12: % amortización | L12: Nº Trimestres
C13: Factura | D13: inicio Amort. | E13: Fin Amort. | F13: Nº Factura | G13: CIF | H13: PROVEEDOR | I13: Base imponible | J13: IVA
B14: 2 | C14: 2012-05-31 | D14: =IF(C14<>"",IF(MONTH(C14)<=3,DATE(YEAR(C14),3,31),IF(AND(MONTH(C14)>3,MONTH(C14)<=6),DATE(YEAR(C14),6,30),IF(AND(MONTH(C14)>6,MONTH(C14)<=9),DATE(YEAR(C14),9,30),(DATE(YEAR(C14),12,31))))),"") -> 2012-06-30 | E14: =IF(C14<>"",EDATE(D14,(L14*3-3)),"") -> 2015-09-30 | F14: 21609 | G14: B-- | H14: PROVEEDOR B, SL | I14: 1419.18 | J14: 255.45 | K14: 0.3 | L14: =ROUNDUP((4)/(K14),0) -> 14
B15: Descripción | C15: herramientas de .... | I15: Cuota amort. Trimestre | K15: =IF(I14<>"",SLN(I14,0,L14),"") -> 101.37
I16: Total amort. 1er año | K16: =IF(D14<>"",IF(MONTH(D14)<=3,(K15*4),IF(AND(MONTH(D14)>3,MONTH(D14)<=6),(K15*3),IF(AND(MONTH(D14)>6,MONTH(D14)<=9),(K15*2),K15))),"") -> 304.11
I17: Total amort año completo | K17: =IF(C14<>"",IF(AND(DATEDIF(D14,E14,"m")>=12),K15*4,""),"") -> 405.48
I18: Total amort. último año | K18: =IF(E14<>"",IF(AND(MONTH(E14)>3,MONTH(E14)<=6),(K15*2),IF(AND(MONTH(E14)>6,MONTH(E14)<=9),(K15*3),IF(AND(MONTH(E14)>9,MONTH(E14)<=12),(K15*4),K15))),"") -> 304.11
B19: capital amortizado | D19: =SUM(B21:L21) -> 709.59 | F19: capital pendiente | H19: =I14-D19 -> 709.59
B20: =YEAR(D14) -> 2012 | C20: =IF(B20="","",IF((B20+1)>YEAR(E14),"",B20+1)) -> 2013 | D20: =IF(C20="","",IF((C20+1)>YEAR(E14),"",C20+1)) -> 2014 | E20: =IF(D20="","",IF((D20+1)>YEAR(E14),"",D20+1)) -> 2015 | F20: =IF(E20="","",IF((E20+1)>YEAR(E14),"",E20+1)) ->  | G20: =IF(F20="","",IF((F20+1)>YEAR(E14),"",F20+1)) ->  | H20: =IF(G20="","",IF((G20+1)>YEAR(E14),"",G20+1)) ->  | I20: =IF(H20="","",IF((H20+1)>YEAR(E14),"",H20+1)) ->  | J20: =IF(I20="","",IF((I20+1)>YEAR(E14),"",I20+1)) ->  | K20: =IF(J20="","",IF((J20+1)>YEAR(E14),"",J20+1)) ->  | L20: =IF(K20="","",IF((K20+1)>YEAR(E14),"",K20+1)) -> 
B21: 304.11 | C21: 405.48 | D21: =IF(YEAR(TODAY())=D20,SUMIF(GASTOS!C2:C101,F14,GASTOS!Q2:Q101),"") ->  | E21: =IF(YEAR(TODAY())=E20,SUMIF(GASTOS!C2:C101,F14,GASTOS!Q2:Q101),"") ->  | F21: =IF(YEAR(TODAY())=F20,SUMIF(GASTOS!C2:C101,F14,GASTOS!Q2:Q101),"") ->  | G21: =IF(YEAR(TODAY())=G20,SUMIF(GASTOS!C2:C101,F14,GASTOS!Q2:Q101),"") ->  | H21: =IF(YEAR(TODAY())=H20,SUMIF(GASTOS!C2:C101,F14,GASTOS!Q2:Q101),"") ->  | I21: =IF(YEAR(TODAY())=I20,SUMIF(GASTOS!C2:C101,F14,GASTOS!Q2:Q101),"") ->  | J21: =IF(YEAR(TODAY())=J20,SUMIF(GASTOS!C2:C101,F14,GASTOS!Q2:Q101),"") ->  | K21: =IF(YEAR(TODAY())=K20,SUMIF(GASTOS!C2:C101,F14,GASTOS!Q2:Q101),"") ->  | L21: =IF(YEAR(TODAY())=L20,SUMIF(GASTOS!C2:C101,F14,GASTOS!Q2:Q101),"") -> 
B22: Nº Anotación | C22: Fecha | F22: inmovilizado, material e inmaterial | I22: Valor de adquisición | K22: % amortización | L22: Nº Trimestres
C23: Factura | D23: inicio Amort. | E23: Fin Amort. | F23: Nº Factura | G23: CIF | H23: PROVEEDOR | I23: Base imponible | J23: IVA
B24: 3 | C24: 2012-06-04 | D24: =IF(C24<>"",IF(MONTH(C24)<=3,DATE(YEAR(C24),3,31),IF(AND(MONTH(C24)>3,MONTH(C24)<=6),DATE(YEAR(C24),6,30),IF(AND(MONTH(C24)>6,MONTH(C24)<=9),DATE(YEAR(C24),9,30),(DATE(YEAR(C24),12,31))))),"") -> 2012-06-30 | E24: =IF(C24<>"",EDATE(D24,(L24*3-3)),"") -> 2015-09-30 | F24: A/120016 | G24: B---- | H24: PROVEEDOR C, SL | I24: 933.35 | J24: 168 | K24: 0.3 | L24: =ROUNDUP((4)/(K24),0) -> 14
B25: Descripción | C25: Material para trabajos ... | I25: Cuota amort. Trimestre | K25: =IF(I24<>"",SLN(I24,0,L24),"") -> 66.66785714
I26: Total amort. 1er año | K26: =IF(D24<>"",IF(MONTH(D24)<=3,(K25*4),IF(AND(MONTH(D24)>3,MONTH(D24)<=6),(K25*3),IF(AND(MONTH(D24)>6,MONTH(D24)<=9),(K25*2),K25))),"") -> 200.0035714
I27: Total amort año completo | K27: =IF(C24<>"",IF(AND(DATEDIF(D24,E24,"m")>=12),K25*4,""),"") -> 266.6714286
I28: Total amort. último año | K28: =IF(E24<>"",IF(AND(MONTH(E24)>3,MONTH(E24)<=6),(K25*2),IF(AND(MONTH(E24)>6,MONTH(E24)<=9),(K25*3),IF(AND(MONTH(E24)>9,MONTH(E24)<=12),(K25*4),K25))),"") -> 200.0035714
B29: capital amortizado | D29: =SUM(B31:L31) -> 466.68 | F29: capital pendiente | H29: =I24-D29 -> 466.67
B30: =YEAR(D24) -> 2012 | C30: =IF(B30="","",IF((B30+1)>YEAR(E24),"",B30+1)) -> 2013 | D30: =IF(C30="","",IF((C30+1)>YEAR(E24),"",C30+1)) -> 2014 | E30: =IF(D30="","",IF((D30+1)>YEAR(E24),"",D30+1)) -> 2015 | F30: =IF(E30="","",IF((E30+1)>YEAR(E24),"",E30+1)) ->  | G30: =IF(F30="","",IF((F30+1)>YEAR(E24),"",F30+1)) ->  | H30: =IF(G30="","",IF((G30+1)>YEAR(E24),"",G30+1)) ->  | I30: =IF(H30="","",IF((H30+1)>YEAR(E24),"",H30+1)) ->  | J30: =IF(I30="","",IF((I30+1)>YEAR(E24),"",I30+1)) ->  | K30: =IF(J30="","",IF((J30+1)>YEAR(E24),"",J30+1)) ->  | L30: =IF(K30="","",IF((K30+1)>YEAR(E24),"",K30+1)) -> 
B31: 200 | C31: 266.68 | D31: =IF(YEAR(TODAY())=D30,SUMIF(GASTOS!C2:C101,F24,GASTOS!Q2:Q101),"") ->  | E31: =IF(YEAR(TODAY())=E30,SUMIF(GASTOS!C2:C101,F24,GASTOS!Q2:Q101),"") ->  | F31: =IF(YEAR(TODAY())=F30,SUMIF(GASTOS!C2:C101,F24,GASTOS!Q2:Q101),"") ->  | G31: =IF(YEAR(TODAY())=G30,SUMIF(GASTOS!C2:C101,F24,GASTOS!Q2:Q101),"") ->  | H31: =IF(YEAR(TODAY())=H30,SUMIF(GASTOS!C2:C101,F24,GASTOS!Q2:Q101),"") ->  | I31: =IF(YEAR(TODAY())=I30,SUMIF(GASTOS!C2:C101,F24,GASTOS!Q2:Q101),"") ->  | J31: =IF(YEAR(TODAY())=J30,SUMIF(GASTOS!C2:C101,F24,GASTOS!Q2:Q101),"") ->  | K31: =IF(YEAR(TODAY())=K30,SUMIF(GASTOS!C2:C101,F24,GASTOS!Q2:Q101),"") ->  | L31: =IF(YEAR(TODAY())=L30,SUMIF(GASTOS!C2:C101,F24,GASTOS!Q2:Q101),"") -> 
B32: Nº Anotación | C32: Fecha | F32: inmovilizado, material e inmaterial | I32: Valor de adquisición | K32: % amortización | L32: Nº Trimestres
C33: Factura | D33: inicio Amort. | E33: Fin Amort. | F33: Nº Factura | G33: CIF | H33: PROVEEDOR | I33: Base imponible | J33: IVA
B34: 4 | C34: 2012-06-06 | D34: =IF(C34<>"",IF(MONTH(C34)<=3,DATE(YEAR(C34),3,31),IF(AND(MONTH(C34)>3,MONTH(C34)<=6),DATE(YEAR(C34),6,30),IF(AND(MONTH(C34)>6,MONTH(C34)<=9),DATE(YEAR(C34),9,30),(DATE(YEAR(C34),12,31))))),"") -> 2012-06-30 | E34: =IF(C34<>"",EDATE(D34,(L34*3-3)),"") -> 2015-09-30 | F34: 28492 | G34: A---- | H34: PROVEEDOR D, S.A. | I34: 537.79 | J34: 96.8 | K34: 0.3 | L34: =ROUNDUP((4)/(K34),0) -> 14
B35: Descripción | C35: Herramientas de uso comun: martillo, alicates, radial, destornilladores, sargentos, caladora, etc | I35: Cuota amort. Trimestre | K35: =IF(I34<>"",SLN(I34,0,L34),"") -> 38.41357143
I36: Total amort. 1er año | K36: =IF(D34<>"",IF(MONTH(D34)<=3,(K35*4),IF(AND(MONTH(D34)>3,MONTH(D34)<=6),(K35*3),IF(AND(MONTH(D34)>6,MONTH(D34)<=9),(K35*2),K35))),"") -> 115.2407143
I37: Total amort año completo | K37: =IF(C34<>"",IF(AND(DATEDIF(D34,E34,"m")>=12),K35*4,""),"") -> 153.6542857
I38: Total amort. último año | K38: =IF(E34<>"",IF(AND(MONTH(E34)>3,MONTH(E34)<=6),(K35*2),IF(AND(MONTH(E34)>6,MONTH(E34)<=9),(K35*3),IF(AND(MONTH(E34)>9,MONTH(E34)<=12),(K35*4),K35))),"") -> 115.2407143
B39: capital amortizado | D39: =SUM(B41:L41) -> 268.88 | F39: capital pendiente | H39: =I34-D39 -> 268.91
B40: =YEAR(D34) -> 2012 | C40: =IF(B40="","",IF((B40+1)>YEAR(E34),"",B40+1)) -> 2013 | D40: =IF(C40="","",IF((C40+1)>YEAR(E34),"",C40+1)) -> 2014 | E40: =IF(D40="","",IF((D40+1)>YEAR(E34),"",D40+1)) -> 2015 | F40: =IF(E40="","",IF((E40+1)>YEAR(E34),"",E40+1)) ->  | G40: =IF(F40="","",IF((F40+1)>YEAR(E34),"",F40+1)) ->  | H40: =IF(G40="","",IF((G40+1)>YEAR(E34),"",G40+1)) ->  | I40: =IF(H40="","",IF((H40+1)>YEAR(E34),"",H40+1)) ->  | J40: =IF(I40="","",IF((I40+1)>YEAR(E34),"",I40+1)) ->  | K40: =IF(J40="","",IF((J40+1)>YEAR(E34),"",J40+1)) ->  | L40: =IF(K40="","",IF((K40+1)>YEAR(E34),"",K40+1)) -> 
B41: 115.24 | C41: 153.64 | D41: =IF(YEAR(TODAY())=D40,SUMIF(GASTOS!C2:C101,F34,GASTOS!Q2:Q101),"") ->  | E41: =IF(YEAR(TODAY())=E40,SUMIF(GASTOS!C2:C101,F34,GASTOS!Q2:Q101),"") ->  | F41: =IF(YEAR(TODAY())=F40,SUMIF(GASTOS!C2:C101,F34,GASTOS!Q2:Q101),"") ->  | G41: =IF(YEAR(TODAY())=G40,SUMIF(GASTOS!C2:C101,F34,GASTOS!Q2:Q101),"") ->  | H41: =IF(YEAR(TODAY())=H40,SUMIF(GASTOS!C2:C101,F34,GASTOS!Q2:Q101),"") ->  | I41: =IF(YEAR(TODAY())=I40,SUMIF(GASTOS!C2:C101,F34,GASTOS!Q2:Q101),"") ->  | J41: =IF(YEAR(TODAY())=J40,SUMIF(GASTOS!C2:C101,F34,GASTOS!Q2:Q101),"") ->  | K41: =IF(YEAR(TODAY())=K40,SUMIF(GASTOS!C2:C101,F34,GASTOS!Q2:Q101),"") ->  | L41: =IF(YEAR(TODAY())=L40,SUMIF(GASTOS!C2:C101,F34,GASTOS!Q2:Q101),"") -> 
F42: NOTA IMPORTANTE: ESTE LIBRO SE MANTIENE DE UN EJERCICIO
F43: AL SIGUIENTE, PUES LAS AMORTIZACIONES SON PLURIANUALES

Sheet FACTURA
A1: FACTURA | I1: Mostrar Calculadora de Windows (Ctl+w)
A4: ='DATOS FISCALES'!C4 & " " & 'DATOS FISCALES'!C5 & " " & 'DATOS FISCALES'!C6 -> NOMBRE APELLIDOA APELLIDOB | F4: Factura nº:
A5: ESCRIBIR DIRECCIÓN
A6: ="NIF: " & 'DATOS FISCALES'!C2 -> NIF: 34999999W | F6: Fecha: | G6: =TODAY() -> 2022-04-26
A10: Factura a:
B11: =IF(ISERROR(VLOOKUP(B10,CLIENTES!A2:E200,3,FALSE)),"",VLOOKUP(B10,CLIENTES!A2:E200,3,FALSE)) -> 
A12: CIF / NIF: | B12: =IF(ISERROR(VLOOKUP(B10,CLIENTES!A2:E200,2,FALSE)),"",VLOOKUP(B10,CLIENTES!A2:E200,2,FALSE)) -> 
C15: Concepto | F15: Cantidad | G15: Precio | H15: Importe
H16: =F16*G16 -> 0
H17: =F17*G17 -> 0
H18: 0
H19: 0
H20: 0
H21: 0
H22: 0
H23: 0
H24: 0
H25: 0
H26: 0
H27: 0
H28: 0
H29: 0
H30: 0
H31: 0
H32: 0
H33: 0
H34: 0
H35: 0
H36: 0
H37: 0
H38: 0
H39: 0
D41: Importe Total | E41: =SUM(H16:H39) -> 0 | G41: Descuento
G42: Base Imponible | H42: =SUM(H16:H39)-H41 -> 0
F43: Retención: | G43: 19 | H43: =ROUND(H42*(G43/100),2) -> 0
F44: IVA: | G44: 21 | H44: =ROUND(H42*(G44/100),2) -> 0
G45: Total | H45: =H42-H43+H44 -> 0

Sheet FACTURA R.EQ
A1: FACTURA | G1: ='DATOS FISCALES'!C4 & " " & 'DATOS FISCALES'!C5 & " " & 'DATOS FISCALES'!C6 -> NOMBRE APELLIDOA APELLIDOB | S1: Mostrar Calculadora de Windows (Ctl+w)
G2: ="NIF: " & 'DATOS FISCALES'!C2 -> NIF: 34999999W
G3: Escribir dirección ....
F4: Factura nº:
F6: Fecha: | G6: =TODAY() -> 2022-04-26
L7: Pendiente desarrollar esta macro
L8: que deberá grabar en varias líneas, agrupando por tipos de iva
B9: NOMBRE CLIENTE | G9: DIRECCIÓN
B11: CIF / NIF
B12: =IF(ISERROR(VLOOKUP(B10,CLIENTES!A2:E200,2,FALSE)),"",VLOOKUP(B10,CLIENTES!A2:E200,2,FALSE)) -> 
A14: CÓDIGO ARTÍC. | C14: DESCRIPCIÓN | I14: CAJAS | J14: UDS. CAJA | K14: PRECIO | M14: PRECIO CON IVA | O14: BASE IMPONIB. | Q14: TIPO IVA | R14: REC. EQUIV.
A16: 001 | C16: AZUCAR BLANCO 1K | H16: =F16*G16 -> 0 | I16: 1 | J16: 12 | K16: 0.9 | M16: =K16*(1+(Q16+R16)/100) -> 1.0026 | O16: =J16*K16 -> 10.8 | Q16: 10 | R16: =IF(Q16>0,VLOOKUP(Q16,'DATOS FISCALES'!$C$13:$E$15,3,FALSE),0) -> 1.4
A17: 089 | C17: GASEOSA | H17: 0 | I17: 4 | J17: 24 | K17: 0.24 | M17: =K17*(1+(Q17+R17)/100) -> 0.26736 | O17: =J17*K17 -> 5.76 | Q17: 10 | R17: =IF(Q17>0,VLOOKUP(Q17,'DATOS FISCALES'!$C$13:$E$15,3,FALSE),0) -> 1.4
A18: 025 | C18: VINO BLANCO | H18: 0 | I18: 1 | J18: 12 | K18: 1.34 | M18: 1.69108 | O18: 16.08 | Q18: 21 | R18: =IF(Q18>0,VLOOKUP(Q18,'DATOS FISCALES'!$C$13:$E$15,3,FALSE),0) -> 5.2
A19: 003 | C19: DETERGENTE 3,92K | H19: 0 | I19: 1 | J19: 4 | K19: 9.95 | M19: 12.5569 | O19: 39.8 | Q19: 21 | R19: =IF(Q19>0,VLOOKUP(Q19,'DATOS FISCALES'!$C$13:$E$15,3,FALSE),0) -> 5.2
A20: 054 | C20: DETERGENTE 2,64K | H20: 0 | I20: 1 | J20: 4 | K20: 3.39 | M20: 4.27818 | O20: 13.56 | Q20: 21 | R20: =IF(Q20>0,VLOOKUP(Q20,'DATOS FISCALES'!$C$13:$E$15,3,FALSE),0) -> 5.2
A21: 075 | C21: LEJIA 2L | H21: 0 | I21: 1 | J21: 8 | K21: 0.98 | M21: 1.23676 | O21: 7.84 | Q21: 21 | R21: =IF(Q21>0,VLOOKUP(Q21,'DATOS FISCALES'!$C$13:$E$15,3,FALSE),0) -> 5.2
A22: 099 | C22: LAVAVAJILLAS 600ml | H22: 0 | I22: 1 | J22: 14 | K22: 1.39 | M22: 1.75418 | O22: 19.46 | Q22: 21 | R22: =IF(Q22>0,VLOOKUP(Q22,'DATOS FISCALES'!$C$13:$E$15,3,FALSE),0) -> 5.2
H23: 0 | M23: 0 | O23: 0 | R23: =IF(Q23>0,VLOOKUP(Q23,'DATOS FISCALES'!$C$13:$E$15,3,FALSE),0) -> 0
H24: 0 | M24: 0 | O24: 0 | R24: =IF(Q24>0,VLOOKUP(Q24,'DATOS FISCALES'!$C$13:$E$15,3,FALSE),0) -> 0
H25: 0 | M25: 0 | O25: 0 | R25: =IF(Q25>0,VLOOKUP(Q25,'DATOS FISCALES'!$C$13:$E$15,3,FALSE),0) -> 0
H26: 0 | M26: 0 | O26: 0 | R26: =IF(Q26>0,VLOOKUP(Q26,'DATOS FISCALES'!$C$13:$E$15,3,FALSE),0) -> 0
H27: 0 | M27: 0 | O27: 0 | R27: =IF(Q27>0,VLOOKUP(Q27,'DATOS FISCALES'!$C$13:$E$15,3,FALSE),0) -> 0
H28: 0 | M28: 0 | O28: 0 | R28: =IF(Q28>0,VLOOKUP(Q28,'DATOS FISCALES'!$C$13:$E$15,3,FALSE),0) -> 0
H29: 0 | M29: 0 | O29: 0 | R29: =IF(Q29>0,VLOOKUP(Q29,'DATOS FISCALES'!$C$13:$E$15,3,FALSE),0) -> 0
H30: 0 | M30: 0 | O30: 0 | R30: =IF(Q30>0,VLOOKUP(Q30,'DATOS FISCALES'!$C$13:$E$15,3,FALSE),0) -> 0
H31: 0 | M31: 0 | O31: 0 | R31: =IF(Q31>0,VLOOKUP(Q31,'DATOS FISCALES'!$C$13:$E$15,3,FALSE),0) -> 0
H32: 0 | M32: 0 | O32: 0 | R32: =IF(Q32>0,VLOOKUP(Q32,'DATOS FISCALES'!$C$13:$E$15,3,FALSE),0) -> 0
H33: 0 | M33: 0 | O33: 0 | R33: =IF(Q33>0,VLOOKUP(Q33,'DATOS FISCALES'!$C$13:$E$15,3,FALSE),0) -> 0
H34: 0 | M34: 0 | O34: 0 | R34: =IF(Q34>0,VLOOKUP(Q34,'DATOS FISCALES'!$C$13:$E$15,3,FALSE),0) -> 0
H35: 0 | M35: 0 | O35: 0 | R35: =IF(Q35>0,VLOOKUP(Q35,'DATOS FISCALES'!$C$13:$E$15,3,FALSE),0) -> 0
H36: 0 | M36: 0 | O36: 0 | R36: =IF(Q36>0,VLOOKUP(Q36,'DATOS FISCALES'!$C$13:$E$15,3,FALSE),0) -> 0
H37: 0 | M37: 0 | O37: 0 | R37: =IF(Q37>0,VLOOKUP(Q37,'DATOS FISCALES'!$C$13:$E$15,3,FALSE),0) -> 0
H38: 0 | M38: 0 | O38: 0 | R38: =IF(Q38>0,VLOOKUP(Q38,'DATOS FISCALES'!$C$13:$E$15,3,FALSE),0) -> 0
M39: 0 | O39: 0 | R39: =IF(Q39>0,VLOOKUP(Q39,'DATOS FISCALES'!$C$13:$E$15,3,FALSE),0) -> 0
D40: Importe bruto | E40: =SUM(H15:H38) -> 0 | G40: Descuento | M40: 0 | O40: 0 | R40: =IF(Q40>0,VLOOKUP(Q40,'DATOS FISCALES'!$C$13:$E$15,3,FALSE),0) -> 0
G41: Base Imponible | H41: =SUM(H15:H38)-H40 -> 0 | M41: 0 | O41: 0 | R41: =IF(Q41>0,VLOOKUP(Q41,'DATOS FISCALES'!$C$13:$E$15,3,FALSE),0) -> 0
F42: Retención: | G42: 15 | H42: =ROUND(H41*(G42/100),2) -> 0 | M42: 0 | O42: 0 | R42: =IF(Q42>0,VLOOKUP(Q42,'DATOS FISCALES'!$C$13:$E$15,3,FALSE),0) -> 0
F43: IVA: | G43: 18 | H43: =ROUND(H41*(G43/100),2) -> 0 | M43: 0 | O43: 0 | R43: =IF(Q43>0,VLOOKUP(Q43,'DATOS FISCALES'!$C$13:$E$15,3,FALSE),0) -> 0
G44: Total | H44: =H41-H42+H43 -> 0 | M44: 0 | O44: 0 | R44: =IF(Q44>0,VLOOKUP(Q44,'DATOS FISCALES'!$C$13:$E$15,3,FALSE),0) -> 0
M45: 0 | O45: 0 | R45: =IF(Q45>0,VLOOKUP(Q45,'DATOS FISCALES'!$C$13:$E$15,3,FALSE),0) -> 0
M46: 0 | O46: 0 | R46: =IF(Q46>0,VLOOKUP(Q46,'DATOS FISCALES'!$C$13:$E$15,3,FALSE),0) -> 0
M47: 0 | O47: 0 | R47: =IF(Q47>0,VLOOKUP(Q47,'DATOS FISCALES'!$C$13:$E$15,3,FALSE),0) -> 0
A48: BASE IMPONIB. | C48: IVA | F48: RECARGO EQ. | P48: TOTAL FACTURA: | Q48: =A53+D53+G53 -> 140.54
C49: % | D49: IMPORTE | F49: % | G49: IMPORTE
A50: =SUMIF($Q$16:$Q$47,C50,$O$16:$P$47) -> 96.74 | C50: ='DATOS FISCALES'!C15 -> 21 | D50: =ROUND(A50*(C50/100),2) -> 20.32 | F50: ='DATOS FISCALES'!E15 -> 5.2 | G50: =ROUND(F50*(A50/100),2) -> 5.03
A51: =SUMIF($Q$16:$Q$47,C51,$O$16:$P$47) -> 16.56 | C51: ='DATOS FISCALES'!C14 -> 10 | D51: =ROUND(A51*(C51/100),2) -> 1.66 | F51: ='DATOS FISCALES'!E14 -> 1.4 | G51: =ROUND(F51*(A51/100),2) -> 0.23
A52: =SUMIF($Q$16:$Q$47,C52,$O$16:$P$47) -> 0 | C52: ='DATOS FISCALES'!C13 -> 4 | D52: =ROUND(A52*(C52/100),2) -> 0 | F52: ='DATOS FISCALES'!E13 -> 0.5 | G52: =ROUND(F52*(A52/100),2) -> 0
A53: =SUM(A50:B52) -> 113.3 | D53: =SUM(D50:E52) -> 21.98 | G53: =SUM(G50:H52) -> 5.26

Sheet Acerca de
A1: Plantilla de Excel para gestión de impuestos
A2: Programa de Excel para gestión de impuestos de empresarios individuales y profesionales autónomos
P3: Keywords
A4: Este archivo de Excel ("plantilla") se ofrece gratuitamente con la esperanza de que sea útil, pero SIN GARANTÍA ALGUNA; | P4: APLICACIÓN EXCEL
A5: ni siquiera la garantía implícita MERCANTIL o de APTITUD PARA UN PROPÓSITO DETERMINADO. | P5: GESTIÓN DE IMPUESTOS AUTÓNOMOS
P6: CÁLCULO DE DECLARACIONES TRIMESTRALES EN EXCEL
A7: Se concede permiso para copiar, distribuir y/o modificar este documento bajo los términos de la Licencia de Documentación Libre de GNU, Versión 1.3 o cualquier otra versión posterior publicada por la Free Software Foundation. | P7: MODELO 130
A8: Consulte los detalles de la licencia en: http://www.gnu.org/licenses/fdl.txt | P8: MODELO 303
P9: MODELO 390
P10: MODELO 347
A11: Agradecimientos: | P11: GESTIÓN TRIBUTARIA PARA PEQUEÑOS EMPRESARIOS
A12: A todos los que han aportado ideas y correcciones con las que se ha ido mejorando esta plantilla. | P12: Libro Registro de Ventas e Ingresos
A13: Especialmente agradecer a Jose Manuel Sánchez Puchades de Sánchez Castelló,S.L. (Valencia: asesoría fiscal, laboral y contable) | P13: Libro Registro de Compras y Gastos
A14: que aportó varias ideas fundamentales para la utilidad actual de la plantilla. | P14: IVA
P15: IRPF
A17: últimas actualizaciones:
A18: * 26/01/2015 corregido error según comenta JuanL Rodríguez el 26 de Enero de 2015 (referido al diseño de registro para la impresión del Modelo 130). Gracias por su aportación.
A19: * 15/02/2015 Aportación de Marc Morales en comentario de febrero de 2015: corregida fórmula en la hoja cálculos, en la celda D5 y en las inferiores, para establecer un límite de 2000 euros en los gastos de difícil justificación: =SI((B5-C5)>=0;C5+MIN(REDONDEAR(0,05*(B5-C5);2);2000);C5) Corregido también en la hoja 'IRPF ANUAL' la celda D43: establecido el mismo límite de 2000 euros.
A20: * 17/02/2015 Aportaciones de Jose Mª el 30/01/2015 y Marc Morales el 6/02/15: se corrige el tipo predeterminado de retención de IRPF en ingresos: cambiado del 21 al 19.
A21: * 17/02/2015 Corrección aportada por Mangloser en comentarios de 31/1/15 y 5/2/15: añadidas columnas en hoja ingresos y gastos para asignación de trimestres del Modelo 347. Ahora las casillas "importe trimestral de las operaciones" en el Modelo 347 se obtienen según la fecha de la factura (columna B) y no según la fecha de registro o contabilización (columna A) como hacemos para el resto de los Modelos (declaraciones).
A22: * 17/02/2015 Corregidos cálculos en la hoja 'Bienes de inversión' según aportación de Juanan en comentario de fecha 15/02/2015.
A23: * 12/04/2015 Cambios en el diseño de registro del Modelo 303 para adaptarlo a las modificaciones introducidas por la Agencia Tributaria
A24: * 19/04/2015 Actualizados los cálculos de la casilla 13 del Modelo 130 según la reducción establecida en el artículo 110.3 c) del Reglamentoo del IRPF. Cambio la celda B7 de la hoja DATOS FISCALES para introducir en ella el rendimiento neto del ejercicio anterior (que se utiliza para el cálculo de la reducción). También en la hoja CALCULOS se modifican las fórmulas en la celda L5 y siguientes
A25: * 19/04/2015 Cambios en el diseño de registro del Modelo 130 para adaptarlo a las modificaciones introducidas por la Agencia Tributaria. Se elimina la macro que imprimía el modelo oficial (ya no existe el módulo de impresión para este modelo)
A26: * Oct-2016 Mejora en las celdas con validación Hoja Clientes y Proveedores (evitando que salgan muchas filas vacías en el desplegable). Para ello se reescriben los dos procedimientos VBA: Cliente_Guardar y Proveedor_Guardar. También en los módulos VBA de las hojas Clientes y Proveedores se añade código en el evento Change de la primera columna; de forma que ahora se actualiza el rango con nombre en cada introducción de un nuevo nombre.
A27: * Oct-2016 Para facilitar el alta de clientes o proveedores se incorpora un formulario y un botón en las hojas ingresos y gastos (ver botón en el encabezado de la columna E en ambas hojas). Este botón lanza el formulario.
A28: * Oct-2016 Se incorpora el cálculo de Adquisiciones Intracomunitarias y Entregas Intracomunitarias. Ha sido necesario hacer algunos cambios en la estructura de las hojas Gastos y Cálculos:
A29: - Hoja Gastos: se añade la columna Z en la que se hay que escribir un número para que una factura (fila) sea identificada como compra intracomunitaria de bienes o servicios (escribir un 1 para bienes, 2 para servicios y 3 para bienes de inversión).
A30: - Hoja Gastos: se cambia la fórmula en la columna referente al Modelo 347 para exluir del cálculo las operaciones intracomunitarias (que se declaran en el Modelo 349 no incorporado actualmente en la plantilla)
A31: - Hoja Ingresos: se añade la columna M en la que hay que escribir un número para que esa fila se considere Entrega Intracomunitaria. También se cambia la fórmula en la columna del Modelo 347 para exluir del cálculo estas entregas.
A32: - Hoja Cálculos: se adapta la tabla del Modelo 303 para el cálculo de las casillas 10 y 11 del Modelo 303. También las casillas 36, 37, 38 y 39. Por último, la casilla 59 del Modelo 303 (Entregas Intracomunitarias).
A33: - Hoja Cálculos: se cambia la tabla del 390 para incorporar las adquisiciones intracomunitarias.
A34: - Hoja Modelo 303: adaptados varios cálculos derivado del cambio en el diseño de la tabla en la Hoja Cálculos (cambio comentado en el punto anterior). También se añade el cálculo de las casillas 10 y 11 del Modelo; y de las casillas 36, 37, 38 y 39.
A35: - Hoja Modelo 303: se añaden filas en torno a la 44, para incorporar la casilla 59 del Modelo (que faltaba): 'Entregas Intracomunitarias de bienes y servicios'.
A36: - Hoja Modelo 390: rediseño para incorporar intracomunitarias.
A37: * Oct-2016 En la Hoja Cálculos, en la tabla del Modelo 347, se amplían los cálculos de las 16 líneas anteriores a 50 líneas (pero en la Hoja del Modelo 347 no se han añadido más páginas, sigue mostrando las primeras 16 líneas)
A38: * Oct-2016 Posibilidad de ampliar fácilmente las filas de ingresos y gastos mediante un botón en ambas hojas (situado en el encabezado de la columna E). Este botón ejecuta una nueva macro llamada 'Añadir_mas_filas'.
A39: * Oct-2016 Se reduce a 100 filas las tablas de ingresos y gastos; ya que ahora es muy fácil añadir cualquier número de filas cuando se necesiten. Reducir el tamaño del archivo y el número de celdas consideradas en los cálculos aporta ventajas en términos de rapidez de carga del archivo y velocidad en la respuesta de la hoja al editar celdas (aunque en ordenadores potentes puede ser poco perceptible).
A40: * Oct-2016 Reescrita la macro 'Crear_Hoja_Comprobacion_Modelo_347'. Antes se basaba en autofiltros; ahora utiliza matrices (variables Array).
A41: * Oct-2016 Cambios en el diseño de registro del Modelo 303 (esto es el fichero .txt para la presentación telemática) para incorporar las Adquisiciones Intracomunitarias (casillas 10, 11 y 36 a 38), y también para incorporar las casilla 59 de Entregas Intracomunitarias.
A42: * Oct-2016 Cambio nombre de las hojas de los modelos: se abrevian eliminando 'Modelo '. El motivo es que ocupen menos las pestañas.
A43: * Oct-2016 En la Hoja Gastos, se añade la columna AA para el cálculo de las casillas 30 y 32 del Modelo 303 y casillas 196 y siguientes en el Modelo 390. Es decir, escribiendo un 1 en esta columna permite diferenciar los bienes de inversión del resto de operaciones interiores. En consecuencia, se adaptan las tablas en la Hoja Cálculos.
A44: * Oct-2016 En la Hoja Gastos, se añade la columna AB para identificar facturas rectificativas o abonos. Lo mismo en la Hoja Ingresos (columna N). En la Hoja Calculos se adapta la tabla del Modelo 303 para el cálculo de las casillas 14 y 15, 25 y 26, 40 y 41 del Modelo. También la tabla del Modelo 390: cálculo de las casillas 29 y 30, 43 y 44, 639 y 62.
A45: * Oct-2016 Adaptado el diseño de registro del Modelo 303 incorporando las rectificativas (casillas 14, 15, 25, 26, 40, 41).
A46: * Oct-2016 Corrección según comentario Juan L. Rodríguez: "fórmulas de búsqueda de NIF de clientes y proveedores sólo se centran en los primeros 4 registros. He visto el error en las tablas de ingresos, gastos y cálculos (abajo 347)"
A47: * Oct-2016 Cambios para incorporar la opción del régimen especial del criterio de caja:
A48: - Hoja Datos Fiscales: en la fila 11 escribir SI para aplicar este régimen.
A49: - Hoja Modelo 303: incoporación de las casillas 62, 63 y 74, 75
A50: - Hoja Modelo 390: también incorporadas las casillas relativas al criterio de caja
A51: - Hojas Ingresos y Gastos: se añade columna de asignación a trimestres según fecha de cobro / pago
A52: - Hojas Calculos: adaptación de las tablas de cálculo de los Modelos 303 y 390
A53: * Oct-2016 Incorporado cálculo de las compensaciones en compras a titulares de explotaciones acogidos al régimen especial de agricultura, ganadería y pesca. Ver columna AI en Hoja Gastos, casillas 42 del Modelo 303 y 60, 61 del Modelo 390.
A54: * Oct-2016 Cambios en el diseño de registro del Modelo 303 para incorporar el régimen especial de criterio de caja y las compensaciones a tanto alzado en compras a titulares del régimen especial de agricultura, ganadería y pesca.
A55: * Abril-2017 Adaptado a los cambios realizados por la Agencia Tributaria en el diseño de registro del Modelo 303.
